Workbook

Sheet Dashboard
B2: GLOBAL CLIMATESCOPE INDEX 2014
B3: INSTRUCTIONS
B4: Climatescope is a comprehensive index and report assessing the environment for low-carbon investment in 80 countries and regions in Africa, Asia and Latin America and the Caribbean,developed by the Multilateral
B5: Investment Fund (part of the Inter-American Development Bank), the UK Department for International Development, the US Agency for International Development and Bloomberg New Energy Finance.
B6: TAB CONTENT
B7: ="Climatescope scores countries on a 0 to "&dbl_ScoreMax&" scale and is composed of four parameters (see list below) - each of which has a unique weight to the overall final score." -> Climatescope scores countries on a 0 to 5 scale and is composed of four parameters (see list below) - each of which has a unique weight to the overall final score.
B8: ="The maximum attainable score is "& dbl_ScoreMax& " given the total weight of all parameters and/or categories do not exceed 100%." -> The maximum attainable score is 5 given the total weight of all parameters and/or categories do not exceed 100%.
B9: 1) Enabling Framework (40%)
B10: 2) Clean Energy Investment & Climate Financing (30%)
B11: 3) Low-Carbon Business & Clean Energy Value Chains (15%)
B12: 4) Greenhouse Gas Management Activities (15%)
B13: INSTRUCTIONS
B14: The Climatescope tool allows users to fine tune the methodology for parameter weights to fit their preferences. To customise parameter weighting scenarios...
B15: 1) Choose between global and regional results, Indian states, Chinese provinces and off-grid focus countries in the drop-down menu (Cell E21).
B16: 2) Choose pre-selected scenarios to analyse countries’ performance under a specific parameter. Country rankings will automatically reshuffle to reflect the results of your personalised Climatescope index.
B17: 3) To assign custom weights, choose the option 'Custom' in the drop-down menu and type in your own weighting assumptions. Click on 'Calculate Scores' to see the changes in the results.
B18: 4) To see how countries performed in each of the Climatescope’s 53 indicators click on 'View Country Analysis'. This button will take you to a new tab 'Country', which lists all Climatescope’s indicators, as well as their respective weights.
B19: FOR QUESTIONS OR FEEDBACK PLEASE EMAIL CLIMATESCOPE@BLOOMBERG.NET
B21: REGION | E21: Global | O21: SCORE RANGES
B22: PARAMETER WEIGHTING SCENARIO | E22: Defaults | O22: 4.01 to 5.00
B23: I. Enabling Framework | E23: 0.4 | O23: 3.01 to 4.00
B24: II. Clean Energy Investment & Climate Financing | E24: 0.3 | O24: 2.01 to 3.01
B25: III. Low Carbon Value Chain | E25: 0.15 | O25: 1.01 to 2.00
B26: IV. Greenhouse Gas Management Activities | E26: 0.15 | O26: 0.00 to 1.00
E27: =dbl_DBWeightP1+dbl_DBWeightP2+dbl_DBWeightP3+dbl_DBWeightP4 -> 1
B32: RANK | C32: REGION | D32: COUNTRY | E32: SCORE
B33: =IF(E33="", "", IFERROR(RANK(E33, $E$33:$E$112), "")) -> 1 | C33: =IFERROR(INDEX(Indicator!$H$10:$H$89, MATCH(D33, Indicator!$I$10:$I$89, 0), 1), "") -> Asia | D33: China | E33: 2.233160017
B34: =IF(E34="", "", IFERROR(RANK(E34, $E$33:$E$112), "")) -> 2 | C34: =IFERROR(INDEX(Indicator!$H$10:$H$89, MATCH(D34, Indicator!$I$10:$I$89, 0), 1), "") -> LAC | D34: Brazil | E34: 2.173218114
B35: 3 | C35: =IFERROR(INDEX(Indicator!$H$10:$H$89, MATCH(D35, Indicator!$I$10:$I$89, 0), 1), "") -> Africa | D35: South Africa | E35: 1.924370847
B36: 4 | C36: =IFERROR(INDEX(Indicator!$H$10:$H$89, MATCH(D36, Indicator!$I$10:$I$89, 0), 1), "") -> Asia | D36: India | E36: 1.854409631
B37: 5 | C37: =IFERROR(INDEX(Indicator!$H$10:$H$89, MATCH(D37, Indicator!$I$10:$I$89, 0), 1), "") -> LAC | D37: Chile | E37: 1.790422499
B38: 6 | C38: =IFERROR(INDEX(Indicator!$H$10:$H$89, MATCH(D38, Indicator!$I$10:$I$89, 0), 1), "") -> LAC | D38: Uruguay | E38: 1.753447035
B39: 7 | C39: =IFERROR(INDEX(Indicator!$H$10:$H$89, MATCH(D39, Indicator!$I$10:$I$89, 0), 1), "") -> Africa | D39: Kenya | E39: 1.726408023
B40: 8 | C40: =IFERROR(INDEX(Indicator!$H$10:$H$89, MATCH(D40, Indicator!$I$10:$I$89, 0), 1), "") -> LAC | D40: Mexico | E40: 1.570192434
B41: 9 | C41: =IFERROR(INDEX(Indicator!$H$10:$H$89, MATCH(D41, Indicator!$I$10:$I$89, 0), 1), "") -> Asia | D41: Indonesia | E41: 1.520514096
B42: 10 | C42: =IFERROR(INDEX(Indicator!$H$10:$H$89, MATCH(D42, Indicator!$I$10:$I$89, 0), 1), "") -> Africa | D42: Uganda | E42: 1.515567512
B43: 11 | C43: =IFERROR(INDEX(Indicator!$H$10:$H$89, MATCH(D43, Indicator!$I$10:$I$89, 0), 1), "") -> LAC | D43: Peru | E43: 1.499990759
B44: 12 | C44: =IFERROR(INDEX(Indicator!$H$10:$H$89, MATCH(D44, Indicator!$I$10:$I$89, 0), 1), "") -> LAC | D44: Costa Rica | E44: 1.448056929
B45: 13 | C45: =IFERROR(INDEX(Indicator!$H$10:$H$89, MATCH(D45, Indicator!$I$10:$I$89, 0), 1), "") -> Asia | D45: Vietnam | E45: 1.412265027
B46: 14 | C46: =IFERROR(INDEX(Indicator!$H$10:$H$89, MATCH(D46, Indicator!$I$10:$I$89, 0), 1), "") -> LAC | D46: Nicaragua | E46: 1.369278266
B47: 15 | C47: =IFERROR(INDEX(Indicator!$H$10:$H$89, MATCH(D47, Indicator!$I$10:$I$89, 0), 1), "") -> Asia | D47: Pakistan | E47: 1.361383988
B48: 16 | C48: =IFERROR(INDEX(Indicator!$H$10:$H$89, MATCH(D48, Indicator!$I$10:$I$89, 0), 1), "") -> LAC | D48: Colombia | E48: 1.329532388
B49: 17 | C49: =IFERROR(INDEX(Indicator!$H$10:$H$89, MATCH(D49, Indicator!$I$10:$I$89, 0), 1), "") -> Asia | D49: Nepal | E49: 1.310364454
B50: 18 | C50: =IFERROR(INDEX(Indicator!$H$10:$H$89, MATCH(D50, Indicator!$I$10:$I$89, 0), 1), "") -> Asia | D50: Bangladesh | E50: 1.264318778
B51: 19 | C51: =IFERROR(INDEX(Indicator!$H$10:$H$89, MATCH(D51, Indicator!$I$10:$I$89, 0), 1), "") -> Africa | D51: Ethiopia | E51: 1.249083321
B52: 20 | C52: =IFERROR(INDEX(Indicator!$H$10:$H$89, MATCH(D52, Indicator!$I$10:$I$89, 0), 1), "") -> LAC | D52: Argentina | E52: 1.242400476
B53: 21 | C53: =IFERROR(INDEX(Indicator!$H$10:$H$89, MATCH(D53, Indicator!$I$10:$I$89, 0), 1), "") -> Africa | D53: Tanzania | E53: 1.234866405
B54: 22 | C54: =IFERROR(INDEX(Indicator!$H$10:$H$89, MATCH(D54, Indicator!$I$10:$I$89, 0), 1), "") -> Africa | D54: Nigeria | E54: 1.232951022
B55: 23 | C55: =IFERROR(INDEX(Indicator!$H$10:$H$89, MATCH(D55, Indicator!$I$10:$I$89, 0), 1), "") -> Africa | D55: Rwanda | E55: 1.202845895
B56: 24 | C56: =IFERROR(INDEX(Indicator!$H$10:$H$89, MATCH(D56, Indicator!$I$10:$I$89, 0), 1), "") -> LAC | D56: Dominican Republic | E56: 1.159987594
B57: 25 | C57: =IFERROR(INDEX(Indicator!$H$10:$H$89, MATCH(D57, Indicator!$I$10:$I$89, 0), 1), "") -> LAC | D57: Honduras | E57: 1.154935291
B58: 26 | C58: =IFERROR(INDEX(Indicator!$H$10:$H$89, MATCH(D58, Indicator!$I$10:$I$89, 0), 1), "") -> Africa | D58: Ghana | E58: 1.150363365
B59: 27 | C59: =IFERROR(INDEX(Indicator!$H$10:$H$89, MATCH(D59, Indicator!$I$10:$I$89, 0), 1), "") -> LAC | D59: El Salvador | E59: 1.12208513
B60: 28 | C60: =IFERROR(INDEX(Indicator!$H$10:$H$89, MATCH(D60, Indicator!$I$10:$I$89, 0), 1), "") -> LAC | D60: Panama | E60: 1.113835498
B61: 29 | C61: =IFERROR(INDEX(Indicator!$H$10:$H$89, MATCH(D61, Indicator!$I$10:$I$89, 0), 1), "") -> LAC | D61: Guatemala | E61: 1.096526966
B62: 30 | C62: =IFERROR(INDEX(Indicator!$H$10:$H$89, MATCH(D62, Indicator!$I$10:$I$89, 0), 1), "") -> Africa | D62: Zambia | E62: 1.065477378
B63: 31 | C63: =IFERROR(INDEX(Indicator!$H$10:$H$89, MATCH(D63, Indicator!$I$10:$I$89, 0), 1), "") -> Asia | D63: Sri Lanka | E63: 1.048097026
B64: 32 | C64: =IFERROR(INDEX(Indicator!$H$10:$H$89, MATCH(D64, Indicator!$I$10:$I$89, 0), 1), "") -> LAC | D64: Belize | E64: 0.978236841
B65: 33 | C65: =IFERROR(INDEX(Indicator!$H$10:$H$89, MATCH(D65, Indicator!$I$10:$I$89, 0), 1), "") -> LAC | D65: Ecuador | E65: 0.96063879
B66: 34 | C66: =IFERROR(INDEX(Indicator!$H$10:$H$89, MATCH(D66, Indicator!$I$10:$I$89, 0), 1), "") -> Africa | D66: Malawi | E66: 0.9168614634
B67: 35 | C67: =IFERROR(INDEX(Indicator!$H$10:$H$89, MATCH(D67, Indicator!$I$10:$I$89, 0), 1), "") -> Africa | D67: Liberia | E67: 0.9129768775
B68: 36 | C68: =IFERROR(INDEX(Indicator!$H$10:$H$89, MATCH(D68, Indicator!$I$10:$I$89, 0), 1), "") -> LAC | D68: Bolivia | E68: 0.9124223731
B69: 37 | C69: =IFERROR(INDEX(Indicator!$H$10:$H$89, MATCH(D69, Indicator!$I$10:$I$89, 0), 1), "") -> Africa | D69: Senegal | E69: 0.8891214784
B70: 38 | C70: =IFERROR(INDEX(Indicator!$H$10:$H$89, MATCH(D70, Indicator!$I$10:$I$89, 0), 1), "") -> Africa | D70: Democratic Republic of Congo | E70: 0.834892179
B71: 39 | C71: =IFERROR(INDEX(Indicator!$H$10:$H$89, MATCH(D71, Indicator!$I$10:$I$89, 0), 1), "") -> LAC | D71: Jamaica | E71: 0.8032925947
B72: 40 | C72: =IFERROR(INDEX(Indicator!$H$10:$H$89, MATCH(D72, Indicator!$I$10:$I$89, 0), 1), "") -> Africa | D72: Mozambique | E72: 0.7856080421
B73: 41 | C73: =IFERROR(INDEX(Indicator!$H$10:$H$89, MATCH(D73, Indicator!$I$10:$I$89, 0), 1), "") -> LAC | D73: Barbados | E73: 0.7855590126
B74: 42 | C74: =IFERROR(INDEX(Indicator!$H$10:$H$89, MATCH(D74, Indicator!$I$10:$I$89, 0), 1), "") -> Asia | D74: Myanmar | E74: 0.7772789648
B75: 43 | C75: =IFERROR(INDEX(Indicator!$H$10:$H$89, MATCH(D75, Indicator!$I$10:$I$89, 0), 1), "") -> Africa | D75: Zimbabwe | E75: 0.7639394764
B76: 44 | C76: =IFERROR(INDEX(Indicator!$H$10:$H$89, MATCH(D76, Indicator!$I$10:$I$89, 0), 1), "") -> Africa | D76: Sierra Leone | E76: 0.7601085747
B77: 45 | C77: =IFERROR(INDEX(Indicator!$H$10:$H$89, MATCH(D77, Indicator!$I$10:$I$89, 0), 1), "") -> LAC | D77: Haiti | E77: 0.7292851628
B78: 46 | C78: =IFERROR(INDEX(Indicator!$H$10:$H$89, MATCH(D78, Indicator!$I$10:$I$89, 0), 1), "") -> Africa | D78: Cote d'Ivoire | E78: 0.6903134817
B79: 47 | C79: =IFERROR(INDEX(Indicator!$H$10:$H$89, MATCH(D79, Indicator!$I$10:$I$89, 0), 1), "") -> Africa | D79: Cameroon | E79: 0.6451551351
B80: 48 | C80: =IFERROR(INDEX(Indicator!$H$10:$H$89, MATCH(D80, Indicator!$I$10:$I$89, 0), 1), "") -> Africa | D80: Botswana | E80: 0.6204950763
B81: 49 | C81: =IFERROR(INDEX(Indicator!$H$10:$H$89, MATCH(D81, Indicator!$I$10:$I$89, 0), 1), "") -> LAC | D81: Guyana | E81: 0.6021974656
B82: 50 | C82: =IFERROR(INDEX(Indicator!$H$10:$H$89, MATCH(D82, Indicator!$I$10:$I$89, 0), 1), "") -> LAC | D82: Paraguay | E82: 0.5902564505
B83: 51 | C83: =IFERROR(INDEX(Indicator!$H$10:$H$89, MATCH(D83, Indicator!$I$10:$I$89, 0), 1), "") -> LAC | D83: Trinidad & Tobago | E83: 0.5385173502
B84: 52 | C84: =IFERROR(INDEX(Indicator!$H$10:$H$89, MATCH(D84, Indicator!$I$10:$I$89, 0), 1), "") -> LAC | D84: Bahamas | E84: 0.5270392334
B85: 53 | C85: =IFERROR(INDEX(Indicator!$H$10:$H$89, MATCH(D85, Indicator!$I$10:$I$89, 0), 1), "") -> Asia | D85: Tajikistan | E85: 0.4811224672
B86: 54 | C86: =IFERROR(INDEX(Indicator!$H$10:$H$89, MATCH(D86, Indicator!$I$10:$I$89, 0), 1), "") -> LAC | D86: Venezuela | E86: 0.3227173508
B87: 55 | C87: =IFERROR(INDEX(Indicator!$H$10:$H$89, MATCH(D87, Indicator!$I$10:$I$89, 0), 1), "") -> LAC | D87: Suriname | E87: 0.3068424461
C88: =IFERROR(INDEX(Indicator!$H$10:$H$89, MATCH(D88, Indicator!$I$10:$I$89, 0), 1), "") -> 
C89: =IFERROR(INDEX(Indicator!$H$10:$H$89, MATCH(D89, Indicator!$I$10:$I$89, 0), 1), "") -> 
C90: =IFERROR(INDEX(Indicator!$H$10:$H$89, MATCH(D90, Indicator!$I$10:$I$89, 0), 1), "") -> 
C91: =IFERROR(INDEX(Indicator!$H$10:$H$89, MATCH(D91, Indicator!$I$10:$I$89, 0), 1), "") -> 
C92: =IFERROR(INDEX(Indicator!$H$10:$H$89, MATCH(D92, Indicator!$I$10:$I$89, 0), 1), "") -> 
C93: =IFERROR(INDEX(Indicator!$H$10:$H$89, MATCH(D93, Indicator!$I$10:$I$89, 0), 1), "") -> 
C94: =IFERROR(INDEX(Indicator!$H$10:$H$89, MATCH(D94, Indicator!$I$10:$I$89, 0), 1), "") -> 
C95: =IFERROR(INDEX(Indicator!$H$10:$H$89, MATCH(D95, Indicator!$I$10:$I$89, 0), 1), "") -> 
C96: =IFERROR(INDEX(Indicator!$H$10:$H$89, MATCH(D96, Indicator!$I$10:$I$89, 0), 1), "") -> 
C97: =IFERROR(INDEX(Indicator!$H$10:$H$89, MATCH(D97, Indicator!$I$10:$I$89, 0), 1), "") -> 
B98: =IF(E98="", "", IFERROR(RANK(E98, $E$33:$E$112), "")) ->  | C98: =IFERROR(INDEX(Indicator!$H$10:$H$89, MATCH(D98, Indicator!$I$10:$I$89, 0), 1), "") -> 
C99: =IFERROR(INDEX(Indicator!$H$10:$H$89, MATCH(D99, Indicator!$I$10:$I$89, 0), 1), "") -> 
C100: =IFERROR(INDEX(Indicator!$H$10:$H$89, MATCH(D100, Indicator!$I$10:$I$89, 0), 1), "") -> 
C101: =IFERROR(INDEX(Indicator!$H$10:$H$89, MATCH(D101, Indicator!$I$10:$I$89, 0), 1), "") -> 
C102: =IFERROR(INDEX(Indicator!$H$10:$H$89, MATCH(D102, Indicator!$I$10:$I$89, 0), 1), "") -> 
C103: =IFERROR(INDEX(Indicator!$H$10:$H$89, MATCH(D103, Indicator!$I$10:$I$89, 0), 1), "") -> 
C104: =IFERROR(INDEX(Indicator!$H$10:$H$89, MATCH(D104, Indicator!$I$10:$I$89, 0), 1), "") -> 
C105: =IFERROR(INDEX(Indicator!$H$10:$H$89, MATCH(D105, Indicator!$I$10:$I$89, 0), 1), "") -> 
C106: =IFERROR(INDEX(Indicator!$H$10:$H$89, MATCH(D106, Indicator!$I$10:$I$89, 0), 1), "") -> 
C107: =IFERROR(INDEX(Indicator!$H$10:$H$89, MATCH(D107, Indicator!$I$10:$I$89, 0), 1), "") -> 
C108: =IFERROR(INDEX(Indicator!$H$10:$H$89, MATCH(D108, Indicator!$I$10:$I$89, 0), 1), "") -> 
C109: =IFERROR(INDEX(Indicator!$H$10:$H$89, MATCH(D109, Indicator!$I$10:$I$89, 0), 1), "") -> 
C110: =IFERROR(INDEX(Indicator!$H$10:$H$89, MATCH(D110, Indicator!$I$10:$I$89, 0), 1), "") -> 
C111: =IFERROR(INDEX(Indicator!$H$10:$H$89, MATCH(D111, Indicator!$I$10:$I$89, 0), 1), "") -> 
C112: =IFERROR(INDEX(Indicator!$H$10:$H$89, MATCH(D112, Indicator!$I$10:$I$89, 0), 1), "") -> 

Sheet Country (hidden)
B2: COUNTRY PROFILE
B3: INSTRUCTIONS
B4: Climatescope is a comprehensive index and report assessing the environment for low-carbon investment in 26 countries in Latin America and the Caribbean,
B5: developed by the Multilateral Investment Fund (part of the Inter-American Development Bank) and Bloomberg New Energy Finance.
B6: TAB CONTENT
B7: 1) Column B: Parameters (4)
B8: 2) Column C: Parameter weights
B9: 3) Column D: Categories (13)
B10: 4) Column E: Category weights
B11: 5) Column G: Indicators (53)
B12: 6) Column H: Grid status (on or off-grid)
B13: 7) Column I: Indicator weight (as a percentage of category weight)
B14: 8) Column J: Indicator net weight (as a percentage of the overall Climatescope score)
B15: 9) Column K: The underlying data which is used to derive the indicator scores
B16: 10) Column M: Aggregate scored data per indicator
B17: 11) Column N: Country’s relative performance per indicator (e.g. a full bar means the country has achieved the highest score possible for that indicator)
B18: INSTRUCTIONS
B19: 1) Select country of choice in the drop-down menu (Cell C24).
B20: 2) Scroll down to row 83 to visualize additional information, under 'Further Indicator Details'. Here you can see charts and tables which provide a more details on the related indicators.
B21: 3) Expand the indicator additional information by clicking on the '+' (plus sign) on the left.
B22: FOR QUESTIONS OR FEEDBACK PLEASE EMAIL CLIMATESCOPE@BLOOMBERG.NET
B23: INDICATOR ANALYSIS
B24: Country | C24: China
B25: Region | C25: =INDEX(Indicator!$H$10:$H$89, MATCH(str_Country, Indicator!$I$10:$I$89, 0), 1) -> Asia
B26: Score | C26: =SUM($M$29:$M$81) -> 2.233160017
B27: Indicators | C27: =COUNTIF(K29:K81, "<>0") -> 46 | Q27: Grid type… | R27: =IF(ISNUMBER(MATCH(str_Country, list_RegionOnGrid, 0)), "On-Grid", "Off-Grid") -> On-Grid
B28: PARAMETER | C28: P-WEIGHT | D28: CATEGORY | E28: C-WEIGHT | F28: ID. | G28: INDICATOR | H28: ON/OFF-GRID | I28: I-WEIGHT | J28: NET WEIGHT | K28: DATA | L28: UNITS | M28: SCORE | N28: PERFORMANCE | O28: DETAILS | P28: INDICATOR ID. | Q28: OFF-GRID I-WEIGHT | R28: ON-GRID I-WEIGHT
B29: Enabling framework | C29: 0.4 | D29: Policy & Regulation | E29: 0.4 | F29: 1.01 | G29: Clean energy policies | H29: Both | I29: =IF($R$27="Off-Grid", Q29, R29) -> 0.6 | J29: =IF(I29="", "", C29*E29*I29) -> 0.096 | K29: =IFERROR(INDEX(Indicator!$M$10:$M$4330, MATCH($F29&" > "&$C$24, Indicator!$R$10:$R$4330, 0), 1), 0) -> 7 | L29: =IF(K29=1, "Policy Type", "Policy Types") -> Policy Types | M29: =IF(J29="", "", IFERROR(J29*dbl_ScoreMax*MAX(0, IFERROR(INDEX(Indicator!$P$10:$P$4330, MATCH($F29&" > "&$C$24, Indicator!$R$10:$R$4330, 0), 1), 0))/100, 0)) -> 0.2600896398 | N29: =IF(M29="", "", IFERROR(M29/(J29*dbl_ScoreMax), 0)) -> 0.5418534163 | O29: =HYPERLINK(MID(CELL("FileName", str_Hyperlink101), FIND("[", CELL("FileName", str_Hyperlink101)), 255) & "!str_Hyperlink101", "LINK") -> LINK | P29: 1 | Q29: 0.4 | R29: 0.6
B30: Enabling framework | C30: =C29 -> 0.4 | D30: Policy & Regulation | E30: =E29 -> 0.4 | F30: =F29+0.01 -> 1.02 | G30: Power sector structure | H30: Both | I30: 0.3 | J30: =IF(I30="", "", C30*E30*I30) -> 0.048 | K30: =IFERROR(INDEX(Indicator!$M$10:$M$4330, MATCH($F30&" > "&$C$24, Indicator!$R$10:$R$4330, 0), 1), 0) -> 7.125 | L30: =IF(K30=1, "Question", "Questions") -> Questions | M30: =IF(J30="", "", IFERROR(J30*dbl_ScoreMax*MAX(0, IFERROR(INDEX(Indicator!$P$10:$P$4330, MATCH($F30&" > "&$C$24, Indicator!$R$10:$R$4330, 0), 1), 0))/100, 0)) -> 0.1425 | N30: =IF(M30="", "", IFERROR(M30/(J30*dbl_ScoreMax), 0)) -> 0.59375 | O30: =HYPERLINK(MID(CELL("FileName", str_Hyperlink102), FIND("[", CELL("FileName", str_Hyperlink102)), 255) & "!str_Hyperlink102", "LINK") -> LINK | P30: =P29+1 -> 2 | Q30: 0.25 | R30: 0.3
B31: Enabling framework | C31: 0.4 | D31: Policy & Regulation | E31: =E30 -> 0.4 | F31: =F30+0.01 -> 1.03 | G31: Distributed energy regulatory framework | H31: Off-grid | I31: 0 | J31: 0 | K31: =IFERROR(INDEX(Indicator!$M$10:$M$4330, MATCH($F31&" > "&$C$24, Indicator!$R$10:$R$4330, 0), 1), 0) -> 0 | L31: =IF(K31=1, "Question", "Questions") -> Questions | M31: =IF(J31="", "", IFERROR(J31*dbl_ScoreMax*MAX(0, IFERROR(INDEX(Indicator!$P$10:$P$4330, MATCH($F31&" > "&$C$24, Indicator!$R$10:$R$4330, 0), 1), 0))/100, 0)) -> 0 | N31: 0 | O31: =HYPERLINK(MID(CELL("FileName", str_Hyperlink103), FIND("[", CELL("FileName", str_Hyperlink103)), 255) & "!str_Hyperlink103", "LINK") -> LINK | P31: 3 | Q31: 0.15 | R31: 0
B32: Enabling framework | C32: 0.4 | D32: Policy & Regulation | E32: =E31 -> 0.4 | F32: 1.04 | G32: Clean energy rural electrification | H32: Both | I32: 0.05 | J32: 0.008 | K32: =IFERROR(INDEX(Indicator!$M$10:$M$4330, MATCH($F32&" > "&$C$24, Indicator!$R$10:$R$4330, 0), 1), 0) -> 1 | L32: =IF(K32=1, "Program", "Programs") -> Program | M32: =IF(J32="", "", IFERROR(J32*dbl_ScoreMax*MAX(0, IFERROR(INDEX(Indicator!$P$10:$P$4330, MATCH($F32&" > "&$C$24, Indicator!$R$10:$R$4330, 0), 1), 0))/100, 0)) -> 0.04 | N32: 1 | P32: 4 | Q32: 0.05 | R32: 0.05
B33: Enabling framework | C33: 0.4 | D33: Policy & Regulation | E33: =E32 -> 0.4 | F33: 1.05 | G33: Energy access policies | H33: Off-grid | I33: 0 | J33: 0 | K33: =IFERROR(INDEX(Indicator!$M$10:$M$4330, MATCH($F33&" > "&$C$24, Indicator!$R$10:$R$4330, 0), 1), 0) -> 0 | L33: =IF(K33=1, "Policy", "Policies") -> Policies | M33: =IF(J33="", "", IFERROR(J33*dbl_ScoreMax*MAX(0, IFERROR(INDEX(Indicator!$P$10:$P$4330, MATCH($F33&" > "&$C$24, Indicator!$R$10:$R$4330, 0), 1), 0))/100, 0)) -> 0 | N33: 0 | O33: =HYPERLINK(MID(CELL("FileName", str_Hyperlink105), FIND("[", CELL("FileName", str_Hyperlink105)), 255) & "!str_Hyperlink105", "LINK") -> LINK | P33: 5 | Q33: 0.1 | R33: 0
B34: Enabling framework | C34: 0.4 | D34: Policy & Regulation | E34: =E33 -> 0.4 | F34: 1.06 | G34: Policy barriers | H34: Both | I34: 0.05 | J34: 0.008 | K34: =IFERROR(INDEX(Indicator!$M$10:$M$4330, MATCH($F34&" > "&$C$24, Indicator!$R$10:$R$4330, 0), 1), 0) -> 0.5467409949 | L34: =IF(K33=1, "Barrier", "Barriers") -> Barriers | M34: =IF(J34="", "", IFERROR(J34*dbl_ScoreMax*MAX(0, IFERROR(INDEX(Indicator!$P$10:$P$4330, MATCH($F34&" > "&$C$24, Indicator!$R$10:$R$4330, 0), 1), 0))/100, 0)) -> 0.004373927959 | N34: 0.109348199 | P34: 6 | Q34: 0.05 | R34: 0.05
B35: Enabling framework | C35: 0.4 | D35: Clean Energy Penetration | E35: 0.4 | F35: 1.07 | G35: Clean energy installed capacity | H35: Both | I35: 0.2 | J35: 0.032 | K35: =IFERROR(INDEX(Indicator!$M$10:$M$4330, MATCH($F35&" > "&$C$24, Indicator!$R$10:$R$4330, 0), 1), 0) -> 166381 | L35: MW | M35: =IF(J35="", "", IFERROR(J35*dbl_ScoreMax*MAX(0, IFERROR(INDEX(Indicator!$P$10:$P$4330, MATCH($F35&" > "&$C$24, Indicator!$R$10:$R$4330, 0), 1), 0))/100, 0)) -> 0.03891566466 | N35: 0.2432229041 | O35: =HYPERLINK(MID(CELL("FileName", str_Hyperlink107), FIND("[", CELL("FileName", str_Hyperlink107)), 255) & "!str_Hyperlink107", "LINK") -> LINK | P35: 7 | Q35: 0.2 | R35: 0.2
B36: Enabling framework | C36: 0.4 | D36: Clean Energy Penetration | E36: =E35 -> 0.4 | F36: 1.08 | G36: Growth rate of installed capacity | H36: Both | I36: 0.2 | J36: 0.032 | K36: =IFERROR(INDEX(Indicator!$M$10:$M$4330, MATCH($F36&" > "&$C$24, Indicator!$R$10:$R$4330, 0), 1), 0)*100 -> 16.87894882 | L36: % | M36: =IF(J36="", "", IFERROR(J36*dbl_ScoreMax*MAX(0, IFERROR(INDEX(Indicator!$P$10:$P$4330, MATCH($F36&" > "&$C$24, Indicator!$R$10:$R$4330, 0), 1), 0))/100, 0)) -> 0.0001962944575 | N36: 0.001226840359 | P36: 8 | Q36: 0.2 | R36: 0.2
B37: Enabling framework | C37: 0.4 | D37: Clean Energy Penetration | E37: =E36 -> 0.4 | F37: 1.09 | G37: Clean energy electricity generation | H37: Both | I37: 0.2 | J37: 0.032 | K37: =IFERROR(INDEX(Indicator!$M$10:$M$4330, MATCH($F37&" > "&$C$24, Indicator!$R$10:$R$4330, 0), 1), 0) -> 419812.7557 | L37: GWh | M37: =IF(J37="", "", IFERROR(J37*dbl_ScoreMax*MAX(0, IFERROR(INDEX(Indicator!$P$10:$P$4330, MATCH($F37&" > "&$C$24, Indicator!$R$10:$R$4330, 0), 1), 0))/100, 0)) -> 0.01342240458 | N37: 0.0838900286 | O37: =HYPERLINK(MID(CELL("FileName", str_Hyperlink109), FIND("[", CELL("FileName", str_Hyperlink109)), 255) & "!str_Hyperlink109", "LINK") -> LINK | P37: 9 | Q37: 0.2 | R37: 0.2
B38: Enabling framework | C38: 0.4 | D38: Clean Energy Penetration | E38: =E37 -> 0.4 | F38: 1.1 | G38: Growth rate of electricity generation | H38: Both | I38: 0.2 | J38: 0.032 | K38: =IFERROR(INDEX(Indicator!$M$10:$M$4330, MATCH($F38&" > "&$C$24, Indicator!$R$10:$R$4330, 0), 1), 0)*100 -> 3.232417848 | L38: % | M38: =IF(J38="", "", IFERROR(J38*dbl_ScoreMax*MAX(0, IFERROR(INDEX(Indicator!$P$10:$P$4330, MATCH($F38&" > "&$C$24, Indicator!$R$10:$R$4330, 0), 1), 0))/100, 0)) -> 0.005269160001 | N38: 0.03293225001 | P38: 10 | Q38: 0.2 | R38: 0.2
B39: Enabling framework | C39: 0.4 | D39: Clean Energy Penetration | E39: =E38 -> 0.4 | F39: 1.11 | G39: Biofuels production | H39: Both | I39: 0.1 | J39: 0.016 | K39: =IFERROR(INDEX(Indicator!$M$10:$M$4330, MATCH($F39&" > "&$C$24, Indicator!$R$10:$R$4330, 0), 1), 0) -> 3.7329 | L39: =IF(K39=1, "Billion Litre", "Billion Litres") -> Billion Litres | M39: =IF(J39="", "", IFERROR(J39*dbl_ScoreMax*MAX(0, IFERROR(INDEX(Indicator!$P$10:$P$4330, MATCH($F39&" > "&$C$24, Indicator!$R$10:$R$4330, 0), 1), 0))/100, 0)) -> 0.001605860234 | N39: 0.02007325292 | P39: 11 | Q39: 0.1 | R39: 0.1
B40: Enabling framework | C40: 0.4 | D40: Clean Energy Penetration | E40: =E39 -> 0.4 | F40: 1.12 | G40: Growth rate biofuels production | H40: Both | I40: 0.1 | J40: 0.016 | K40: =IFERROR(INDEX(Indicator!$M$10:$M$4330, MATCH($F40&" > "&$C$24, Indicator!$R$10:$R$4330, 0), 1), 0)*100 -> 13.37585421 | L40: % | M40: =IF(J40="", "", IFERROR(J40*dbl_ScoreMax*MAX(0, IFERROR(INDEX(Indicator!$P$10:$P$4330, MATCH($F40&" > "&$C$24, Indicator!$R$10:$R$4330, 0), 1), 0))/100, 0)) -> 0.04015832554 | N40: 0.5019790693 | P40: 12 | Q40: 0.1 | R40: 0.1
B41: Enabling framework | C41: 0.4 | D41: Price Attractiveness | E41: 0.1 | F41: 1.13 | G41: Average electricity spot prices | H41: Both | I41: 0.5 | J41: 0.02 | K41: =IFERROR(INDEX(Indicator!$M$10:$M$4330, MATCH($F41&" > "&$C$24, Indicator!$R$10:$R$4330, 0), 1), 0) -> 67.98198526 | L41: USD/MWh | M41: =IF(J41="", "", IFERROR(J41*dbl_ScoreMax*MAX(0, IFERROR(INDEX(Indicator!$P$10:$P$4330, MATCH($F41&" > "&$C$24, Indicator!$R$10:$R$4330, 0), 1), 0))/100, 0)) -> 0.02609120265 | N41: 0.2609120265 | P41: 13 | Q41: =IF(K41=0,0,((1-SUM($Q$43:$Q$47))/COUNTIF($K$41:$K$42,"<>0"))) -> 0.3 | R41: =IF(K41=0, 0, 1/COUNTIF($K$41:$K$42, "<>0")) -> 0.5
B42: Enabling framework | C42: 0.4 | D42: Price Attractiveness | E42: =E41 -> 0.1 | F42: 1.14 | G42: Average retail electricity prices | H42: Both | I42: 0.5 | J42: 0.02 | K42: =IFERROR(INDEX(Indicator!$M$10:$M$4330, MATCH($F42&" > "&$C$24, Indicator!$R$10:$R$4330, 0), 1), 0) -> 90.78392664 | L42: USD/MWh | M42: =IF(J42="", "", IFERROR(J42*dbl_ScoreMax*MAX(0, IFERROR(INDEX(Indicator!$P$10:$P$4330, MATCH($F42&" > "&$C$24, Indicator!$R$10:$R$4330, 0), 1), 0))/100, 0)) -> 0.01700073533 | N42: 0.1700073533 | P42: 14 | Q42: =IF(K42=0,0,((1-SUM($Q$43:$Q$47))/COUNTIF($K$41:$K$42,"<>0"))) -> 0.3 | R42: =IF(K42=0, 0, 1/COUNTIF($K$41:$K$42, "<>0")) -> 0.5
B43: Enabling framework | C43: 0.4 | D43: Price Attractiveness | E43: =E42 -> 0.1 | F43: 1.15 | G43: Average residential electricity prices | H43: Both | I43: 0 | J43: 0 | K43: =IFERROR(INDEX(Indicator!$M$10:$M$4330, MATCH($F43&" > "&$C$24, Indicator!$R$10:$R$4330, 0), 1), 0) -> 82.04581688 | L43: USD/MWh | M43: =IF(J43="", "", IFERROR(J43*dbl_ScoreMax*MAX(0, IFERROR(INDEX(Indicator!$P$10:$P$4330, MATCH($F43&" > "&$C$24, Indicator!$R$10:$R$4330, 0), 1), 0))/100, 0)) -> 0 | N43: =IF(M43="", "", IFERROR(M43/(J43*dbl_ScoreMax), 0)) -> 0 | P43: 15 | Q43: 0 | R43: 0
B44: Enabling framework | C44: 0.4 | D44: Price Attractiveness | E44: =E43 -> 0.1 | F44: 1.16 | G44: Average commercial electricity prices | H44: Both | I44: 0 | J44: 0 | K44: =IFERROR(INDEX(Indicator!$M$10:$M$4330, MATCH($F44&" > "&$C$24, Indicator!$R$10:$R$4330, 0), 1), 0) -> 131.1877783 | L44: USD/MWh | M44: =IF(J44="", "", IFERROR(J44*dbl_ScoreMax*MAX(0, IFERROR(INDEX(Indicator!$P$10:$P$4330, MATCH($F44&" > "&$C$24, Indicator!$R$10:$R$4330, 0), 1), 0))/100, 0)) -> 0 | N44: =IF(M44="", "", IFERROR(M44/(J44*dbl_ScoreMax), 0)) -> 0 | P44: 16 | Q44: 0 | R44: 0
B45: Enabling framework | C45: 0.4 | D45: Price Attractiveness | E45: 0.1 | F45: 1.17 | G45: Average industrial electricity prices | H45: Both | I45: 0 | J45: 0 | K45: =IFERROR(INDEX(Indicator!$M$10:$M$4330, MATCH($F45&" > "&$C$24, Indicator!$R$10:$R$4330, 0), 1), 0) -> 142.7143504 | L45: USD/MWh | M45: =IF(J45="", "", IFERROR(J45*dbl_ScoreMax*MAX(0, IFERROR(INDEX(Indicator!$P$10:$P$4330, MATCH($F45&" > "&$C$24, Indicator!$R$10:$R$4330, 0), 1), 0))/100, 0)) -> 0 | N45: =IF(M45="", "", IFERROR(M45/(J45*dbl_ScoreMax), 0)) -> 0 | P45: 17 | Q45: 0 | R45: 0
B46: Enabling framework | C46: 0.4 | D46: Price Attractiveness | E46: 0.1 | F46: 1.18 | G46: Average kerosene prices | H46: Off-grid | I46: 0 | J46: 0 | K46: =IFERROR(INDEX(Indicator!$M$10:$M$4330, MATCH($F46&" > "&$C$24, Indicator!$R$10:$R$4330, 0), 1), 0) -> 0 | L46: USD/Litre | M46: =IF(J46="", "", IFERROR(J46*dbl_ScoreMax*MAX(0, IFERROR(INDEX(Indicator!$P$10:$P$4330, MATCH($F46&" > "&$C$24, Indicator!$R$10:$R$4330, 0), 1), 0))/100, 0)) -> 0 | N46: =IF(M46="", "", IFERROR(M46/(J46*dbl_ScoreMax), 0)) -> 0 | P46: 18 | Q46: 0.2 | R46: 0
B47: Enabling framework | C47: 0.4 | D47: Price Attractiveness | E47: 0.1 | F47: 1.19 | G47: Average diesel prices | H47: Off-grid | I47: 0 | J47: 0 | K47: =IFERROR(INDEX(Indicator!$M$10:$M$4330, MATCH($F47&" > "&$C$24, Indicator!$R$10:$R$4330, 0), 1), 0) -> 0 | L47: USD/Litre | M47: =IF(J47="", "", IFERROR(J47*dbl_ScoreMax*MAX(0, IFERROR(INDEX(Indicator!$P$10:$P$4330, MATCH($F47&" > "&$C$24, Indicator!$R$10:$R$4330, 0), 1), 0))/100, 0)) -> 0 | N47: =IF(M47="", "", IFERROR(M47/(J47*dbl_ScoreMax), 0)) -> 0 | P47: 19 | Q47: 0.2 | R47: 0
B48: Enabling framework | C48: 0.4 | D48: Market Size Expectations | E48: 0.1 | F48: 1.2 | G48: Growth rate of power demand | H48: Both | I48: 0.5 | J48: 0.02 | K48: =IFERROR(INDEX(Indicator!$M$10:$M$4330, MATCH($F48&" > "&$C$24, Indicator!$R$10:$R$4330, 0), 1), 0)*100 -> 8.730652265 | L48: % | M48: =IF(J48="", "", IFERROR(J48*dbl_ScoreMax*MAX(0, IFERROR(INDEX(Indicator!$P$10:$P$4330, MATCH($F48&" > "&$C$24, Indicator!$R$10:$R$4330, 0), 1), 0))/100, 0)) -> 0.03583656164 | N48: 0.3583656164 | P48: 20 | Q48: 0.3 | R48: 0.5
B49: Enabling framework | C49: 0.4 | D49: Market Size Expectations | E49: 0.1 | F49: 1.21 | G49: Electrification rate | H49: Both | I49: 0.5 | J49: 0.02 | K49: =IFERROR(INDEX(Indicator!$M$10:$M$4330, MATCH($F49&" > "&$C$24, Indicator!$R$10:$R$4330, 0), 1), 0) -> 99.9 | L49: % | M49: =IF(J49="", "", IFERROR(J49*dbl_ScoreMax*MAX(0, IFERROR(INDEX(Indicator!$P$10:$P$4330, MATCH($F49&" > "&$C$24, Indicator!$R$10:$R$4330, 0), 1), 0))/100, 0)) -> 0.001601601602 | N49: 0.01601601602 | P49: 21 | Q49: 0.6 | R49: 0.5
B50: Enabling framework | C50: 0.4 | E50: 0.1 | F50: 1.22 | G50: Population using solid fuels for cooking | H50: Off-grid | I50: 0 | J50: 0 | K50: =IFERROR(INDEX(Indicator!$M$10:$M$4330, MATCH($F50&" > "&$C$24, Indicator!$R$10:$R$4330, 0), 1), 0) -> 45 | L50: % | M50: =IF(J50="", "", IFERROR(J50*dbl_ScoreMax*MAX(0, IFERROR(INDEX(Indicator!$P$10:$P$4330, MATCH($F50&" > "&$C$24, Indicator!$R$10:$R$4330, 0), 1), 0))/100, 0)) -> 0 | N50: =IF(M50="", "", IFERROR(M50/(J50*dbl_ScoreMax), 0)) -> 0 | P50: 22 | Q50: 0.1 | R50: 0
B51: Clean Energy Investment | C51: 0.3 | D51: Amount Invested | E51: 0.45 | F51: 2.01 | G51: Clean energy investments | H51: Both | I51: 0.5 | J51: 0.0675 | K51: =IFERROR(INDEX(Indicator!$M$10:$M$4330, MATCH($F51&" > "&$C$24, Indicator!$R$10:$R$4330, 0), 1), 0) -> 302176.0243 | L51: USDm | M51: =IF(J51="", "", IFERROR(J51*dbl_ScoreMax*MAX(0, IFERROR(INDEX(Indicator!$P$10:$P$4330, MATCH($F51&" > "&$C$24, Indicator!$R$10:$R$4330, 0), 1), 0))/100, 0)) -> 0.03516404171 | N51: 0.1041897532 | O51: =HYPERLINK(MID(CELL("FileName", str_Hyperlink201), FIND("[", CELL("FileName", str_Hyperlink201)), 255) & "!str_Hyperlink201", "LINK") -> LINK | P51: 23 | Q51: 0.6 | R51: 0.5
B52: Clean Energy Investment | C52: =C51 -> 0.3 | D52: Amount Invested | E52: =E51 -> 0.45 | F52: 2.02 | G52: Growth rate of clean energy investments | H52: Both | I52: 0.5 | J52: 0.0675 | K52: =IFERROR(INDEX(Indicator!$M$10:$M$4330, MATCH($F52&" > "&$C$24, Indicator!$R$10:$R$4330, 0), 1), 0) -> 0.2200162032 | L52: % | M52: =IF(J52="", "", IFERROR(J52*dbl_ScoreMax*MAX(0, IFERROR(INDEX(Indicator!$P$10:$P$4330, MATCH($F52&" > "&$C$24, Indicator!$R$10:$R$4330, 0), 1), 0))/100, 0)) -> 0.05243819475 | N52: 0.1553724289 | P52: 24 | Q52: 0.4 | R52: 0.5
B53: Clean Energy Investment | C53: 0.3 | D53: Investment Type | E53: 0 | F53: 2.03 | G53: Asset finance investments | H53: Both | I53: 0 | J53: 0 | K53: =IFERROR(INDEX(Indicator!$M$10:$M$4330, MATCH($F53&" > "&$C$24, Indicator!$R$10:$R$4330, 0), 1), 0) -> 266106.772 | L53: USDm | M53: =IF(J53="", "", IFERROR(J53*dbl_ScoreMax*MAX(0, IFERROR(INDEX(Indicator!$P$10:$P$4330, MATCH($F53&" > "&$C$24, Indicator!$R$10:$R$4330, 0), 1), 0))/100, 0)) -> 0 | N53: =IF(M53="", "", IFERROR(M53/(J53*dbl_ScoreMax), 0)) -> 0 | P53: 25 | Q53: 0 | R53: 0
B54: Clean Energy Investment | C54: 0.3 | D54: Investment Type | E54: =E53 -> 0 | F54: 2.04 | G54: Corporate finance investments | H54: Both | I54: 0 | J54: 0 | K54: =IFERROR(INDEX(Indicator!$M$10:$M$4330, MATCH($F54&" > "&$C$24, Indicator!$R$10:$R$4330, 0), 1), 0) -> 32528.97824 | L54: USDm | M54: =IF(J54="", "", IFERROR(J54*dbl_ScoreMax*MAX(0, IFERROR(INDEX(Indicator!$P$10:$P$4330, MATCH($F54&" > "&$C$24, Indicator!$R$10:$R$4330, 0), 1), 0))/100, 0)) -> 0 | N54: =IF(M54="", "", IFERROR(M54/(J54*dbl_ScoreMax), 0)) -> 0 | P54: 26 | Q54: 0 | R54: 0
B55: Clean Energy Investment | C55: 0.3 | D55: Investment Type | E55: =E54 -> 0 | F55: 2.05 | G55: VC/PE investments | H55: Both | I55: 0 | J55: 0 | K55: =IFERROR(INDEX(Indicator!$M$10:$M$4330, MATCH($F55&" > "&$C$24, Indicator!$R$10:$R$4330, 0), 1), 0) -> 3540.274104 | L55: USDm | M55: =IF(J55="", "", IFERROR(J55*dbl_ScoreMax*MAX(0, IFERROR(INDEX(Indicator!$P$10:$P$4330, MATCH($F55&" > "&$C$24, Indicator!$R$10:$R$4330, 0), 1), 0))/100, 0)) -> 0 | N55: =IF(M55="", "", IFERROR(M55/(J55*dbl_ScoreMax), 0)) -> 0 | P55: 27 | Q55: 0 | R55: 0
B56: Clean Energy Investment | C56: 0.3 | D56: Fund Sources | E56: 0.2 | F56: 2.07 | G56: Loans, grants, grant programs | H56: Both | I56: 0.5 | J56: 0.03 | K56: =IFERROR(INDEX(Indicator!$M$10:$M$4330, MATCH($F56&" > "&$C$24, Indicator!$R$10:$R$4330, 0), 1), 0) -> 784.38 | L56: USDm | M56: =IF(J56="", "", IFERROR(J56*dbl_ScoreMax*MAX(0, IFERROR(INDEX(Indicator!$P$10:$P$4330, MATCH($F56&" > "&$C$24, Indicator!$R$10:$R$4330, 0), 1), 0))/100, 0)) -> 0.000999060332 | N56: 0.006660402214 | P56: 28 | Q56: 0.5 | R56: 0.5
B57: Clean Energy Investment | C57: 0.3 | D57: Fund Sources | E57: =E56 -> 0.2 | F57: 2.08 | G57: Local investments | H57: Both | I57: 0.5 | J57: 0.03 | K57: =IFERROR(INDEX(Indicator!$M$10:$M$4330, MATCH($F57&" > "&$C$24, Indicator!$R$10:$R$4330, 0), 1), 0) -> 37841.6879 | L57: USDm | M57: =IF(J57="", "", IFERROR(J57*dbl_ScoreMax*MAX(0, IFERROR(INDEX(Indicator!$P$10:$P$4330, MATCH($F57&" > "&$C$24, Indicator!$R$10:$R$4330, 0), 1), 0))/100, 0)) -> 0.09714560702 | N57: 0.6476373801 | P57: 29 | Q57: 0.5 | R57: 0.5
B58: Clean Energy Investment | C58: 0.3 | D58: Green Micro Finance | E58: 0.18 | F58: 2.09 | G58: Number of Green MFI | H58: Both | I58: 0.3833333333 | J58: 0.0207 | K58: =IFERROR(INDEX(Indicator!$M$10:$M$4330, MATCH($F58&" > "&$C$24, Indicator!$R$10:$R$4330, 0), 1), 0) -> 1 | L58: =IF(K58=1, "Company", "Companies") -> Company | M58: =IF(J58="", "", IFERROR(J58*dbl_ScoreMax*MAX(0, IFERROR(INDEX(Indicator!$P$10:$P$4330, MATCH($F58&" > "&$C$24, Indicator!$R$10:$R$4330, 0), 1), 0))/100, 0)) -> 0 | N58: 0 | P58: 30 | Q58: 0.3833333333 | R58: 0.3833333333
B59: Clean Energy Investment | C59: 0.3 | D59: Green Micro Finance | E59: =E58 -> 0.18 | F59: 2.1 | G59: Green micro-loans | H59: Both | I59: 0.2166666667 | J59: 0.0117 | K59: =IFERROR(INDEX(Indicator!$M$10:$M$4330, MATCH($F59&" > "&$C$24, Indicator!$R$10:$R$4330, 0), 1), 0) -> 350000 | L59: USD | M59: =IF(J59="", "", IFERROR(J59*dbl_ScoreMax*MAX(0, IFERROR(INDEX(Indicator!$P$10:$P$4330, MATCH($F59&" > "&$C$24, Indicator!$R$10:$R$4330, 0), 1), 0))/100, 0)) -> 3.404053131e-06 | N59: 5.818894242e-05 | P59: 31 | Q59: 0.2166666667 | R59: 0.2166666667
B60: Clean Energy Investment | C60: 0.3 | D60: Green Micro Finance | E60: =E59 -> 0.18 | F60: 2.11 | G60: Green micro-borrowers | H60: Both | I60: 0.2166666667 | J60: 0.0117 | K60: =IFERROR(INDEX(Indicator!$M$10:$M$4330, MATCH($F60&" > "&$C$24, Indicator!$R$10:$R$4330, 0), 1), 0) -> 10 | L60: =IF(K60=1, "Borrower", "Borrowers") -> Borrowers | M60: =IF(J60="", "", IFERROR(J60*dbl_ScoreMax*MAX(0, IFERROR(INDEX(Indicator!$P$10:$P$4330, MATCH($F60&" > "&$C$24, Indicator!$R$10:$R$4330, 0), 1), 0))/100, 0)) -> 1.563497327e-07 | N60: 2.672645004e-06 | P60: 32 | Q60: 0.2166666667 | R60: 0.2166666667
B61: Clean Energy Investment | C61: 0.3 | D61: Green Micro Finance | E61: =E60 -> 0.18 | F61: 2.12 | G61: Average cost of green micro debt | H61: Both | I61: =IF($R$27="Off-Grid", Q61, R61) -> 0.1833333333 | J61: 0.0099 | K61: =IFERROR(INDEX(Indicator!$M$10:$M$4330, MATCH($F61&" > "&$C$24, Indicator!$R$10:$R$4330, 0), 1), 0) -> 20 | L61: % | M61: =IF(J61="", "", IFERROR(J61*dbl_ScoreMax*MAX(0, IFERROR(INDEX(Indicator!$P$10:$P$4330, MATCH($F61&" > "&$C$24, Indicator!$R$10:$R$4330, 0), 1), 0))/100, 0)) -> 0.0037125 | N61: =IF(M61="", "", IFERROR(M61/(J61*dbl_ScoreMax), 0)) -> 0.075 | P61: 33 | Q61: 0.1833333333 | R61: 0.1833333333
B62: Clean Energy Investment | C62: 0.3 | D62: Cost of Debt | E62: 0.17 | F62: 2.13 | G62: Average cost of debt | H62: Both | I62: 0.5 | J62: =IF(I62="", "", C62*E62*I62) -> 0.0255 | K62: =IFERROR(INDEX(Indicator!$M$10:$M$4330, MATCH($F62&" > "&$C$24, Indicator!$R$10:$R$4330, 0), 1), 0) -> 6 | L62: % | M62: =IF(J62="", "", IFERROR(J62*dbl_ScoreMax*MAX(0, IFERROR(INDEX(Indicator!$P$10:$P$4330, MATCH($F62&" > "&$C$24, Indicator!$R$10:$R$4330, 0), 1), 0))/100, 0)) -> 0.09027708333 | N62: 0.7080555556 | P62: 34 | Q62: =IF(K62=0, 0, 1/COUNTIF($K$62:$K$63, "<>0")) -> 0.5 | R62: =IF(K62=0, 0, 1/COUNTIF($K$62:$K$63, "<>0")) -> 0.5
B63: Clean Energy Investment | C63: 0.3 | D63: Cost of Debt | E63: =E62 -> 0.17 | F63: 2.14 | G63: Swap rate | H63: Both | I63: 0.5 | J63: 0.0255 | K63: =IFERROR(INDEX(Indicator!$M$10:$M$4330, MATCH($F63&" > "&$C$24, Indicator!$R$10:$R$4330, 0), 1), 0) -> 3.25 | L63: % | M63: =IF(J63="", "", IFERROR(J63*dbl_ScoreMax*MAX(0, IFERROR(INDEX(Indicator!$P$10:$P$4330, MATCH($F63&" > "&$C$24, Indicator!$R$10:$R$4330, 0), 1), 0))/100, 0)) -> 0.1078846154 | N63: 0.8461538462 | P63: 35 | Q63: =IF(K63=0, 0, 1/COUNTIF($K$62:$K$63, "<>0")) -> 0.5 | R63: =IF(K63=0, 0, 1/COUNTIF($K$62:$K$63, "<>0")) -> 0.5
B64: Low-Carbon Business | C64: 0.15 | D64: Value Chain | E64: 1 | F64: 3.01 | G64: Financial institutions in clean energy | H64: Both | I64: 0.25 | J64: 0.0375 | K64: =IFERROR(INDEX(Indicator!$M$10:$M$4330, MATCH($F64&" > "&$C$24, Indicator!$R$10:$R$4330, 0), 1), 0) -> 5 | L64: =IF(K64=1, "Company Type", "Company Types") -> Company Types | M64: =IF(J64="", "", IFERROR(J64*dbl_ScoreMax*MAX(0, IFERROR(INDEX(Indicator!$P$10:$P$4330, MATCH($F64&" > "&$C$24, Indicator!$R$10:$R$4330, 0), 1), 0))/100, 0)) -> 0.1875 | N64: 1 | O64: =HYPERLINK(MID(CELL("FileName", str_Hyperlink301), FIND("[", CELL("FileName", str_Hyperlink301)), 255) & "!str_Hyperlink301", "LINK") -> LINK | P64: 36 | Q64: 0.2 | R64: 0.25
B65: Low-Carbon Business | C65: =C64 -> 0.15 | D65: Value Chain | E65: =E64 -> 1 | F65: 3.02 | G65: Value chains by clean energy sector | H65: Both | I65: 0.5 | J65: 0.075 | K65: =IFERROR(INDEX(Indicator!$M$10:$M$4330, MATCH($F65&" > "&$C$24, Indicator!$R$10:$R$4330, 0), 1), 0) -> 38 | L65: =IF(K65=1, "Value Chain", "Value Chains") -> Value Chains | M65: =IF(J65="", "", IFERROR(J65*dbl_ScoreMax*MAX(0, IFERROR(INDEX(Indicator!$P$10:$P$4330, MATCH($F65&" > "&$C$24, Indicator!$R$10:$R$4330, 0), 1), 0))/100, 0)) -> 0.375 | N65: 1 | O65: =HYPERLINK(MID(CELL("FileName", str_Hyperlink302), FIND("[", CELL("FileName", str_Hyperlink302)), 255) & "!str_Hyperlink302", "LINK") -> LINK | P65: 37 | Q65: 0.2 | R65: 0.5
B66: Low-Carbon Business | C66: =C65 -> 0.15 | D66: Value Chain | E66: =E65 -> 1 | F66: 3.03 | G66: Distributed clean energy value chains by sector | H66: Off-grid | I66: 0 | J66: 0 | K66: =IFERROR(INDEX(Indicator!$M$10:$M$4330, MATCH($F66&" > "&$C$24, Indicator!$R$10:$R$4330, 0), 1), 0) -> 0 | L66: =IF(K66=1, "Value Chain", "Value Chains") -> Value Chains | M66: =IF(J66="", "", IFERROR(J66*dbl_ScoreMax*MAX(0, IFERROR(INDEX(Indicator!$P$10:$P$4330, MATCH($F66&" > "&$C$24, Indicator!$R$10:$R$4330, 0), 1), 0))/100, 0)) -> 0 | N66: 0 | O66: =HYPERLINK(MID(CELL("FileName", str_Hyperlink303), FIND("[", CELL("FileName", str_Hyperlink303)), 255) & "!str_Hyperlink303", "LINK") -> LINK | P66: 38 | Q66: 0.2 | R66: 0
B67: Low-Carbon Business | C67: =C66 -> 0.15 | D67: Value Chain | E67: =E66 -> 1 | F67: 3.04 | G67: Clean energy service providers | H67: Both | I67: 0.25 | J67: 0.0375 | K67: =IFERROR(INDEX(Indicator!$M$10:$M$4330, MATCH($F67&" > "&$C$24, Indicator!$R$10:$R$4330, 0), 1), 0) -> 20 | L67: =IF(K67=1, "Service Provider", "Sevice Providers") -> Sevice Providers | M67: =IF(J67="", "", IFERROR(J67*dbl_ScoreMax*MAX(0, IFERROR(INDEX(Indicator!$P$10:$P$4330, MATCH($F67&" > "&$C$24, Indicator!$R$10:$R$4330, 0), 1), 0))/100, 0)) -> 0.1875 | N67: 1 | O67: =HYPERLINK(MID(CELL("FileName", str_Hyperlink304), FIND("[", CELL("FileName", str_Hyperlink304)), 255) & "!str_Hyperlink304", "LINK") -> LINK | P67: 39 | Q67: 0.2 | R67: 0.25
B68: Low-Carbon Business | C68: =C67 -> 0.15 | D68: Value Chain | E68: =E67 -> 1 | F68: 3.05 | G68: Distributed clean energy service providers | H68: Off-grid | I68: 0 | J68: 0 | K68: =IFERROR(INDEX(Indicator!$M$10:$M$4330, MATCH($F68&" > "&$C$24, Indicator!$R$10:$R$4330, 0), 1), 0) -> 0 | L68: =IF(K68=1, "Service Provider", "Sevice Providers") -> Sevice Providers | M68: =IF(J68="", "", IFERROR(J68*dbl_ScoreMax*MAX(0, IFERROR(INDEX(Indicator!$P$10:$P$4330, MATCH($F68&" > "&$C$24, Indicator!$R$10:$R$4330, 0), 1), 0))/100, 0)) -> 0 | N68: 0 | O68: =HYPERLINK(MID(CELL("FileName", str_Hyperlink305), FIND("[", CELL("FileName", str_Hyperlink305)), 255) & "!str_Hyperlink305", "LINK") -> LINK | P68: 40 | Q68: 0.2 | R68: 0
B69: GHG Management Activities | C69: 0.15 | D69: Carbon Offsets | E69: 0.4 | F69: 4.01 | G69: Carbon offsets historical activity | H69: Both | I69: 0.5 | J69: 0.03 | K69: =IFERROR(INDEX(Indicator!$M$10:$M$4330, MATCH($F69&" > "&$C$24, Indicator!$R$10:$R$4330, 0), 1), 0) -> 2 | L69: Projects Score | M69: =IF(J69="", "", IFERROR(J69*dbl_ScoreMax*MAX(0, IFERROR(INDEX(Indicator!$P$10:$P$4330, MATCH($F69&" > "&$C$24, Indicator!$R$10:$R$4330, 0), 1), 0))/100, 0)) -> 0.075 | N69: 0.5 | P69: 41 | Q69: 0.5 | R69: 0.5
B70: GHG Management Activities | C70: =C69 -> 0.15 | D70: Carbon Offsets | E70: =E69 -> 0.4 | F70: 4.02 | G70: CDM risk | H70: Both | I70: 0.25 | J70: 0.015 | K70: =IFERROR(INDEX(Indicator!$M$10:$M$4330, MATCH($F70&" > "&$C$24, Indicator!$R$10:$R$4330, 0), 1), 0) -> 5 | L70: Failures/Project | M70: =IF(J70="", "", IFERROR(J70*dbl_ScoreMax*MAX(0, IFERROR(INDEX(Indicator!$P$10:$P$4330, MATCH($F70&" > "&$C$24, Indicator!$R$10:$R$4330, 0), 1), 0))/100, 0)) -> 0.0625 | N70: 0.8333333333 | P70: 42 | Q70: 0.25 | R70: 0.25
B71: GHG Management Activities | C71: 0.15 | D71: Carbon Offsets | E71: =E70 -> 0.4 | F71: 4.03 | G71: Carbon offsets future potential | H71: Both | I71: 0.25 | J71: 0.015 | K71: =IFERROR(INDEX(Indicator!$M$10:$M$4330, MATCH($F71&" > "&$C$24, Indicator!$R$10:$R$4330, 0), 1), 0) -> 1.02387068 | L71: Potential | M71: =IF(J71="", "", IFERROR(J71*dbl_ScoreMax*MAX(0, IFERROR(INDEX(Indicator!$P$10:$P$4330, MATCH($F71&" > "&$C$24, Indicator!$R$10:$R$4330, 0), 1), 0))/100, 0)) -> 0.01919757525 | N71: 0.25596767 | P71: 43 | Q71: 0.25 | R71: 0.25
B72: GHG Management Activities | C72: 0.15 | D72: Carbon Policy | E72: 0.3 | F72: 4.04 | G72: GHG emissions reduction target | H72: Both | I72: 0.4166666667 | J72: 0.01875 | K72: =IFERROR(INDEX(Indicator!$M$10:$M$4330, MATCH($F72&" > "&$C$24, Indicator!$R$10:$R$4330, 0), 1), 0) -> 4 | L72: Target Score | M72: =IF(J72="", "", IFERROR(J72*dbl_ScoreMax*MAX(0, IFERROR(INDEX(Indicator!$P$10:$P$4330, MATCH($F72&" > "&$C$24, Indicator!$R$10:$R$4330, 0), 1), 0))/100, 0)) -> 0.075 | N72: 0.8 | P72: 44 | Q72: 0.4166666667 | R72: 0.4166666667
B73: GHG Management Activities | C73: 0.15 | D73: Carbon Policy | E73: =E72 -> 0.3 | F73: 4.05 | G73: GHG country registry | H73: Both | I73: 0.25 | J73: 0.01125 | K73: =IFERROR(INDEX(Indicator!$M$10:$M$4330, MATCH($F73&" > "&$C$24, Indicator!$R$10:$R$4330, 0), 1), 0) -> 2.5 | L73: Registry Score | M73: =IF(J73="", "", IFERROR(J73*dbl_ScoreMax*MAX(0, IFERROR(INDEX(Indicator!$P$10:$P$4330, MATCH($F73&" > "&$C$24, Indicator!$R$10:$R$4330, 0), 1), 0))/100, 0)) -> 0.05625 | N73: 1 | P73: 45 | Q73: 0.25 | R73: 0.25
B74: GHG Management Activities | C74: 0.15 | D74: Carbon Policy | E74: =E73 -> 0.3 | F74: 4.06 | G74: GHG market-based instruments | H74: Both | I74: 0.08333333333 | J74: 0.00375 | K74: =IFERROR(INDEX(Indicator!$M$10:$M$4330, MATCH($F74&" > "&$C$24, Indicator!$R$10:$R$4330, 0), 1), 0) -> 0 | L74: Program | M74: =IF(J74="", "", IFERROR(J74*dbl_ScoreMax*MAX(0, IFERROR(INDEX(Indicator!$P$10:$P$4330, MATCH($F74&" > "&$C$24, Indicator!$R$10:$R$4330, 0), 1), 0))/100, 0)) -> 0 | N74: 0 | P74: 46 | Q74: 0.08333333333 | R74: 0.08333333333
B75: GHG Management Activities | C75: 0.15 | D75: Carbon Policy | E75: =E74 -> 0.3 | F75: 4.07 | G75: PMR & NAMA | H75: Both | I75: 0.25 | J75: 0.01125 | K75: =IFERROR(INDEX(Indicator!$M$10:$M$4330, MATCH($F75&" > "&$C$24, Indicator!$R$10:$R$4330, 0), 1), 0) -> 3 | L75: PMR & NAMA | M75: =IF(J75="", "", IFERROR(J75*dbl_ScoreMax*MAX(0, IFERROR(INDEX(Indicator!$P$10:$P$4330, MATCH($F75&" > "&$C$24, Indicator!$R$10:$R$4330, 0), 1), 0))/100, 0)) -> 0.028125 | N75: 0.5 | P75: 47 | Q75: 0.25 | R75: 0.25
B76: GHG Management Activities | C76: 0.15 | D76: Corporate Awareness | E76: 0.3 | F76: 4.08 | G76: Voluntary GHG reporting by corporates | H76: Both | I76: 0.1666666667 | J76: 0.0075 | K76: =IFERROR(INDEX(Indicator!$M$10:$M$4330, MATCH($F76&" > "&$C$24, Indicator!$R$10:$R$4330, 0), 1), 0) -> 0.04801156905 | L76: Companies | M76: =IF(J76="", "", IFERROR(J76*dbl_ScoreMax*MAX(0, IFERROR(INDEX(Indicator!$P$10:$P$4330, MATCH($F76&" > "&$C$24, Indicator!$R$10:$R$4330, 0), 1), 0))/100, 0)) -> 0.001800433839 | N76: 0.04801156905 | P76: 48 | Q76: 0.1666666667 | R76: 0.1666666667
B77: GHG Management Activities | C77: 0.15 | D77: Corporate Awareness | E77: =E76 -> 0.3 | F77: 4.09 | G77: Investor pressure – PRI signatories | H77: Both | I77: 0.1666666667 | J77: 0.0075 | K77: =IFERROR(INDEX(Indicator!$M$10:$M$4330, MATCH($F77&" > "&$C$24, Indicator!$R$10:$R$4330, 0), 1), 0) -> 0.01602576744 | L77: Companies | M77: =IF(J77="", "", IFERROR(J77*dbl_ScoreMax*MAX(0, IFERROR(INDEX(Indicator!$P$10:$P$4330, MATCH($F77&" > "&$C$24, Indicator!$R$10:$R$4330, 0), 1), 0))/100, 0)) -> 0.0006009662788 | N77: 0.01602576744 | P77: 49 | Q77: 0.1666666667 | R77: 0.1666666667
B78: GHG Management Activities | C78: 0.15 | D78: Corporate Awareness | E78: =E77 -> 0.3 | F78: 4.1 | G78: Corporate energy efficiency initiatives | H78: Both | I78: 0.1666666667 | J78: 0.0075 | K78: =IFERROR(INDEX(Indicator!$M$10:$M$4330, MATCH($F78&" > "&$C$24, Indicator!$R$10:$R$4330, 0), 1), 0) -> 1 | L78: Companies | M78: =IF(J78="", "", IFERROR(J78*dbl_ScoreMax*MAX(0, IFERROR(INDEX(Indicator!$P$10:$P$4330, MATCH($F78&" > "&$C$24, Indicator!$R$10:$R$4330, 0), 1), 0))/100, 0)) -> 0.0375 | N78: 1 | P78: 50 | Q78: 0.1666666667 | R78: 0.1666666667
B79: GHG Management Activities | C79: 0.15 | D79: Corporate Awareness | E79: =E78 -> 0.3 | F79: 4.11 | G79: Corporate emission reduction policies | H79: Both | I79: 0.1666666667 | J79: 0.0075 | K79: =IFERROR(INDEX(Indicator!$M$10:$M$4330, MATCH($F79&" > "&$C$24, Indicator!$R$10:$R$4330, 0), 1), 0) -> 1 | L79: Companies | M79: =IF(J79="", "", IFERROR(J79*dbl_ScoreMax*MAX(0, IFERROR(INDEX(Indicator!$P$10:$P$4330, MATCH($F79&" > "&$C$24, Indicator!$R$10:$R$4330, 0), 1), 0))/100, 0)) -> 0.0375 | N79: 1 | P79: 51 | Q79: 0.1666666667 | R79: 0.1666666667
B80: GHG Management Activities | C80: 0.15 | D80: Corporate Awareness | E80: =E79 -> 0.3 | F80: 4.12 | G80: Capacity building – env. business training | H80: Both | I80: 0.1666666667 | J80: 0.0075 | K80: =IFERROR(INDEX(Indicator!$M$10:$M$4330, MATCH($F80&" > "&$C$24, Indicator!$R$10:$R$4330, 0), 1), 0) -> 1 | L80: Organisations | M80: =IF(J80="", "", IFERROR(J80*dbl_ScoreMax*MAX(0, IFERROR(INDEX(Indicator!$P$10:$P$4330, MATCH($F80&" > "&$C$24, Indicator!$R$10:$R$4330, 0), 1), 0))/100, 0)) -> 0.0375 | N80: 1 | P80: 52 | Q80: 0.1666666667 | R80: 0.1666666667
B81: GHG Management Activities | C81: 0.15 | D81: Corporate Awareness | E81: =E80 -> 0.3 | F81: 4.13 | G81: Capacity building – think tanks | H81: Both | I81: 0.1666666667 | J81: 0.0075 | K81: =IFERROR(INDEX(Indicator!$M$10:$M$4330, MATCH($F81&" > "&$C$24, Indicator!$R$10:$R$4330, 0), 1), 0) -> 1 | L81: Organisations | M81: =IF(J81="", "", IFERROR(J81*dbl_ScoreMax*MAX(0, IFERROR(INDEX(Indicator!$P$10:$P$4330, MATCH($F81&" > "&$C$24, Indicator!$R$10:$R$4330, 0), 1), 0))/100, 0)) -> 0.0375 | N81: 1 | P81: 53 | Q81: 0.1666666667 | R81: 0.1666666667
B83: FURTHER INDICATOR DETAILS | E83: MAX
A84: 1.01 | B84: 1.01 - Clean energy policies | D84: =COUNTIF(D85:D92, "Yes") -> 7 | E84: =COUNTA($E$85:$E$92) -> 8
A85: =A84 -> 1.01 | B85: Energy target | D85: =IF(F85=1, "Yes", "No") -> Yes | E85: Yes | F85: =SUMIFS(SubIndicator!V$5:V$3764, SubIndicator!$W$5:$W$3764, A85&" > "&B85&" > "&str_Country) -> 1
A86: =A85 -> 1.01 | B86: Auctions | D86: =IF(F86=1, "Yes", "No") -> Yes | E86: Yes | F86: =SUMIFS(SubIndicator!V$5:V$3764, SubIndicator!$W$5:$W$3764, A86&" > "&B86&" > "&str_Country) -> 1
A87: 1.01 | B87: Feed-in tariff | D87: Yes | E87: Yes | F87: =SUMIFS(SubIndicator!V$5:V$3764, SubIndicator!$W$5:$W$3764, A87&" > "&B87&" > "&str_Country) -> 1
A88: 1.01 | B88: Net metering | D88: No | E88: Yes | F88: =SUMIFS(SubIndicator!V$5:V$3764, SubIndicator!$W$5:$W$3764, A88&" > "&B88&" > "&str_Country) -> 0
A89: 1.01 | B89: Utility regulation | D89: Yes | E89: Yes | F89: =SUMIFS(SubIndicator!V$5:V$3764, SubIndicator!$W$5:$W$3764, A89&" > "&B89&" > "&str_Country) -> 1
A90: 1.01 | B90: Debt/Equity incentives | D90: Yes | E90: Yes | F90: =SUMIFS(SubIndicator!V$5:V$3764, SubIndicator!$W$5:$W$3764, A90&" > "&B90&" > "&str_Country) -> 1
A91: 1.01 | B91: Tax incentives | D91: Yes | E91: Yes | F91: =SUMIFS(SubIndicator!V$5:V$3764, SubIndicator!$W$5:$W$3764, A91&" > "&B91&" > "&str_Country) -> 1
A92: 1.01 | B92: Biofuel blending mandate | D92: Yes | E92: Yes | F92: =SUMIFS(SubIndicator!V$5:V$3764, SubIndicator!$W$5:$W$3764, A92&" > "&B92&" > "&str_Country) -> 1
A93: 1.02 | B93: 1.02 - Power sector structure | D93: =$K$30 -> 7.125 | E93: =Indicator!$O$90 -> 12
A94: =A93 -> 1.02 | B94: Public or private vertically integrated monopoly utility | D94: =IF(F94=0, "Yes", IF(AND(F94>0, F94<1), "Somewhat", "No")) -> No | E94: No | F94: =SUMIFS(SubIndicator!V$5:V$3764, SubIndicator!$W$5:$W$3764, A94&" > "&B94&" > "&str_Country) -> 1
A95: 1.02 | B95: Generation/transmission/distribution are legally separate entities | D95: =IF(F95=0, "No", IF(AND(F95>0, F95<1), "Somewhat", "Yes")) -> Somewhat | E95: Yes | F95: =SUMIFS(SubIndicator!V$5:V$3764, SubIndicator!$W$5:$W$3764, A95&" > "&B95&" > "&str_Country) -> 0.5
A96: 1.02 | B96: Independent power transmission | D96: =IF(F96=0, "No", IF(AND(F96>0, F96<1), "Somewhat", "Yes")) -> No | E96: Yes | F96: =SUMIFS(SubIndicator!V$5:V$3764, SubIndicator!$W$5:$W$3764, A96&" > "&B96&" > "&str_Country) -> 0
A97: 1.02 | B97: Distortions to retail electricity prices | D97: =IF(F97=0, "Yes", IF(AND(F97>0, F97<1), "Somewhat", "No")) -> No | E97: No | F97: =SUMIFS(SubIndicator!V$5:V$3764, SubIndicator!$W$5:$W$3764, A97&" > "&B97&" > "&str_Country) -> 1
A98: 1.02 | B98: Cross-border power exchange | D98: =IF(F98=0, "No", IF(AND(F98>0, F98<1), "Somewhat", "Yes")) -> Yes | E98: Yes | F98: =SUMIFS(SubIndicator!V$5:V$3764, SubIndicator!$W$5:$W$3764, A98&" > "&B98&" > "&str_Country) -> 1
A99: 1.02 | B99: Power outages - frequency | D99: =IF(F99<=0.13, "Very High", IF(AND(F99>0.13, F99<=0.25), "High", IF(AND(F99>0.25, F99<=0.38), "Regular", IF(AND(F99>0.38, F99<=0.5), "Low", "Very Low")))) -> Low | E99: Very Low | F99: =SUMIFS(SubIndicator!V$5:V$3764, SubIndicator!$W$5:$W$3764, A99&" > "&B99&" > "&str_Country) -> 0.5
A100: 1.02 | B100: Power outages - duration | D100: =IF(F100<=0.13, "Very Long", IF(AND(F100>0.13, F100<=0.25), "Long", IF(AND(F100>0.25, F100<=0.38), "Regular", IF(AND(F100>0.38, F100<=0.5), "Short", "Very Short")))) -> Very Long | E100: Very Short | F100: =SUMIFS(SubIndicator!V$5:V$3764, SubIndicator!$W$5:$W$3764, A100&" > "&B100&" > "&str_Country) -> 0.125
A101: 1.02 | B101: Barriers to private sector participation | D101: =IF(F101=0, "No", IF(AND(F101>0, F101<1), "Somewhat", "Yes")) -> Yes | E101: Yes | F101: =SUMIFS(SubIndicator!V$5:V$3764, SubIndicator!$W$5:$W$3764, A101&" > "&B101&" > "&str_Country) -> 1
A102: 1.02 | B102: End-users may choose third-party power marketers | D102: =IF(F102=0, "No", IF(AND(F102>0, F102<1), "Somewhat", "Yes")) -> Somewhat | E102: Yes | F102: =SUMIFS(SubIndicator!V$5:V$3764, SubIndicator!$W$5:$W$3764, A102&" > "&B102&" > "&str_Country) -> 0.5
A103: 1.02 | B103: Presence of wholesale power market | D103: =IF(F103=0, "No", IF(AND(F103>0, F103<1), "Somewhat", "Yes")) -> No | E103: Yes | F103: =SUMIFS(SubIndicator!V$5:V$3764, SubIndicator!$W$5:$W$3764, A103&" > "&B103&" > "&str_Country) -> 0
A104: 1.02 | B104: Concentration of generation market | D104: =IF(F104=0, "Yes", IF(AND(F104>0, F104<0.5), "Somewhat", "No")) -> Yes | E104: No | F104: =SUMIFS(SubIndicator!V$5:V$3764, SubIndicator!$W$5:$W$3764, A104&" > "&B104&" > "&str_Country) -> 0
A105: 1.02 | B105: Concentration of supply market | D105: =IF(F105=0, "Yes", IF(AND(F105>0, F105<0.5), "Somewhat", "No")) -> Yes | E105: No | F105: =SUMIFS(SubIndicator!V$5:V$3764, SubIndicator!$W$5:$W$3764, A105&" > "&B105&" > "&str_Country) -> 0
A106: 1.02 | B106: Openness to newcomers (IPPs) | D106: =SUMIFS(SubIndicator!V$5:V$3764, SubIndicator!$W$5:$W$3764, A106&" > "&B106&" > "&str_Country) -> 0.5 | E106: 1 | F106: =SUMIFS(SubIndicator!V$5:V$3764, SubIndicator!$W$5:$W$3764, A106&" > "&B106&" > "&str_Country) -> 0.5
A107: 1.02 | B107: Credit-worthiness of offtakers | D107: =IF(F107=0, "Very Risky", IF(F107=0.25, "Risky", IF(F107=0.5, "Neutral", IF(F107=1, "Low Risk", "Very Low Risk")))) -> Low Risk | E107: Very Low | F107: =SUMIFS(SubIndicator!V$5:V$3764, SubIndicator!$W$5:$W$3764, A107&" > "&B107&" > "&str_Country) -> 1
A108: 1.03 | B108: 1.03 - Distributed energy regulatory framework | D108: =IF($R$27="Off-grid",$K$31,"n/a") -> n/a | E108: =IF($R$27="Off-grid",Indicator!$O$170,"-") -> -
A109: =A108 -> 1.03 | B109: Mini-grids: requirements & license | D109: =IF($R$27="Off-grid",IF(F109=0,"No",IF(AND(F109>0,F109<1),"Somewhat","Yes")),"n/a") -> n/a | E109: =IF($R$27="Off-grid","Yes","-") -> - | F109: =SUMIFS(SubIndicator!V$5:V$3764, SubIndicator!$W$5:$W$3764, A109&" > "&B109&" > "&str_Country) -> 0
A110: 1.03 | B110: Mini-grids: threshold | D110: =IF($R$27="Off-grid",IF(F110=0,"Yes",IF(AND(F110>0,F110<1),"Somewhat","No")),"n/a") -> n/a | E110: =IF($R$27="Off-grid","No","-") -> - | F110: =SUMIFS(SubIndicator!V$5:V$3764, SubIndicator!$W$5:$W$3764, A110&" > "&B110&" > "&str_Country) -> 0
A111: 1.03 | B111: Dedicated regulator | D111: =IF($R$27="Off-grid",IF(F111=0,"No",IF(AND(F111>0,F111<1),"Somewhat","Yes")),"n/a") -> n/a | E111: =IF($R$27="Off-grid","Yes","-") -> - | F111: =SUMIFS(SubIndicator!V$5:V$3764, SubIndicator!$W$5:$W$3764, A111&" > "&B111&" > "&str_Country) -> 0
A112: 1.03 | B112: Dedicated team within utility | D112: n/a | E112: - | F112: =SUMIFS(SubIndicator!V$5:V$3764, SubIndicator!$W$5:$W$3764, A112&" > "&B112&" > "&str_Country) -> 0
A113: 1.03 | B113: Light-handed regulatory framework | D113: n/a | E113: - | F113: =SUMIFS(SubIndicator!V$5:V$3764, SubIndicator!$W$5:$W$3764, A113&" > "&B113&" > "&str_Country) -> 0
A114: 1.03 | B114: Cost reflective tariffs | D114: n/a | E114: - | F114: =SUMIFS(SubIndicator!V$5:V$3764, SubIndicator!$W$5:$W$3764, A114&" > "&B114&" > "&str_Country) -> 0
A115: 1.03 | B115: Duration of tariffs | D115: n/a | E115: - | F115: =SUMIFS(SubIndicator!V$5:V$3764, SubIndicator!$W$5:$W$3764, A115&" > "&B115&" > "&str_Country) -> 0
A116: 1.03 | B116: Tariff deregulation | D116: n/a | E116: - | F116: =SUMIFS(SubIndicator!V$5:V$3764, SubIndicator!$W$5:$W$3764, A116&" > "&B116&" > "&str_Country) -> 0
A117: 1.03 | B117: Standardised PPAs | D117: n/a | E117: - | F117: =SUMIFS(SubIndicator!V$5:V$3764, SubIndicator!$W$5:$W$3764, A117&" > "&B117&" > "&str_Country) -> 0
A118: 1.03 | B118: PPAs of sufficient duration | D118: n/a | E118: - | F118: =SUMIFS(SubIndicator!V$5:V$3764, SubIndicator!$W$5:$W$3764, A118&" > "&B118&" > "&str_Country) -> 0
A119: 1.03 | B119: Purchase obligation | D119: n/a | E119: - | F119: =SUMIFS(SubIndicator!V$5:V$3764, SubIndicator!$W$5:$W$3764, A119&" > "&B119&" > "&str_Country) -> 0
A120: 1.03 | B120: Clear rules on interconnection | D120: n/a | E120: - | F120: =SUMIFS(SubIndicator!V$5:V$3764, SubIndicator!$W$5:$W$3764, A120&" > "&B120&" > "&str_Country) -> 0
A121: 1.03 | B121: Clear rules on arrival of the main grid | D121: n/a | E121: - | F121: =SUMIFS(SubIndicator!V$5:V$3764, SubIndicator!$W$5:$W$3764, A121&" > "&B121&" > "&str_Country) -> 0
A122: 1.03 | B122: Quality of service standards | D122: n/a | E122: - | F122: =SUMIFS(SubIndicator!V$5:V$3764, SubIndicator!$W$5:$W$3764, A122&" > "&B122&" > "&str_Country) -> 0
A123: 1.03 | B123: SPPs can deliver financial services | D123: n/a | E123: - | F123: =SUMIFS(SubIndicator!V$5:V$3764, SubIndicator!$W$5:$W$3764, A123&" > "&B123&" > "&str_Country) -> 0
A124: 1.05 | B124: 1.05 - Energy access policies | D124: =IF($R$27="Off-grid",$K$33,"n/a") -> n/a | E124: =IF($R$27="Off-grid",Indicator!$O$330,"-") -> -
A125: =A124 -> 1.05 | B125: [Rural Electrification] Program status | D125: =IF($R$27="Off-grid",IF(F125=0,"No",IF(AND(F125>0,F125<1),"Somewhat","Yes")),"n/a") -> n/a | E125: =IF($R$27="Off-grid","Yes","-") -> - | F125: =SUMIFS(SubIndicator!V$5:V$3844, SubIndicator!$W$5:$W$3844, A125&" > "&B125&" > "&str_Country) -> 0
A126: 1.05 | B126: [Rural Electrification] Dedicated agency | D126: =IF($R$27="Off-grid",IF(F126=0,"No",IF(AND(F126>0,F126<1),"Somewhat","Yes")),"n/a") -> n/a | E126: =IF($R$27="Off-grid","Yes","-") -> - | F126: =SUMIFS(SubIndicator!V$5:V$3844, SubIndicator!$W$5:$W$3844, A126&" > "&B126&" > "&str_Country) -> 0
A127: 1.05 | B127: [Rural Electrification] Budget | D127: =IF($R$27="Off-grid",IF(F127<0.1, "Relatively Low", IF(AND(F127>=0.1, F127<0.2), "Average", "Relatively High")),"n/a") -> n/a | E127: =IF($R$27="Off-grid","High","-") -> - | F127: =SUMIFS(SubIndicator!V$5:V$3844, SubIndicator!$W$5:$W$3844, A127&" > "&B127&" > "&str_Country) -> 0
A128: 1.05 | B128: Energy access targets | D128: =IF($R$27="Off-grid",IF(F128=0,"No",IF(AND(F128>0,F128<1),"Somewhat","Yes")),"n/a") -> n/a | E128: =IF($R$27="Off-grid","Yes","-") -> - | F128: =SUMIFS(SubIndicator!V$5:V$3844, SubIndicator!$W$5:$W$3844, A128&" > "&B128&" > "&str_Country) -> 0
A129: 1.05 | B129: Clean energy plan | D129: n/a | E129: - | F129: =SUMIFS(SubIndicator!V$5:V$3844, SubIndicator!$W$5:$W$3844, A129&" > "&B129&" > "&str_Country) -> 0
A130: 1.05 | B130: Connection grants | D130: n/a | E130: - | F130: =SUMIFS(SubIndicator!V$5:V$3844, SubIndicator!$W$5:$W$3844, A130&" > "&B130&" > "&str_Country) -> 0
A131: 1.05 | B131: Generation incentives | D131: n/a | E131: - | F131: =SUMIFS(SubIndicator!V$5:V$3844, SubIndicator!$W$5:$W$3844, A131&" > "&B131&" > "&str_Country) -> 0
A132: 1.05 | B132: Tax / duty reductions | D132: n/a | E132: - | F132: =SUMIFS(SubIndicator!V$5:V$3844, SubIndicator!$W$5:$W$3844, A132&" > "&B132&" > "&str_Country) -> 0
A133: 1.05 | B133: Incentives: mobile money | D133: n/a | E133: - | F133: =SUMIFS(SubIndicator!V$5:V$3844, SubIndicator!$W$5:$W$3844, A133&" > "&B133&" > "&str_Country) -> 0
A134: 1.05 | B134: Barriers: licensing | D134: n/a | E134: - | F134: =SUMIFS(SubIndicator!V$5:V$3844, SubIndicator!$W$5:$W$3844, A134&" > "&B134&" > "&str_Country) -> 0
A135: 1.07 | B135: 1.07 - Clean energy capacity (MW) | D135: =SUM(C136:C140) -> 166381
A136: =A135 -> 1.07 | B136: Biomass & Waste | C136: =SUMIFS(SubIndicator!V$3925:V$4964, SubIndicator!$K$3925:$K$4964, str_Country, SubIndicator!$E$3925:$E$4964, $B136) -> 8768 | D136: =IF($D$135=0,0,C136/SUM($C$136:$C$141)) -> 0.007155880341
A137: 1.07 | B137: Geothermal | C137: =SUMIFS(SubIndicator!V$3925:V$4964, SubIndicator!$K$3925:$K$4964, str_Country, SubIndicator!$E$3925:$E$4964, $B137) -> 28 | D137: 2.285180766e-05
A138: 1.07 | B138: Small Hydro | C138: =SUMIFS(SubIndicator!V$3925:V$4964, SubIndicator!$K$3925:$K$4964, str_Country, SubIndicator!$E$3925:$E$4964, $B138) -> 68000 | D138: 0.05549724717
A139: 1.07 | B139: Solar | C139: =SUMIFS(SubIndicator!V$3925:V$4964, SubIndicator!$K$3925:$K$4964, str_Country, SubIndicator!$E$3925:$E$4964, $B139) -> 13655 | D139: 0.01114433691
A140: 1.07 | B140: Wind | C140: =SUMIFS(SubIndicator!V$3925:V$4964, SubIndicator!$K$3925:$K$4964, str_Country, SubIndicator!$E$3925:$E$4964, $B140) -> 75930 | D140: 0.06196920556
A141: 1.07 | B141: Other Energy | C141: =SUMIFS(SubIndicator!V$3925:V$4964, SubIndicator!$K$3925:$K$4964, str_Country, SubIndicator!$E$3925:$E$4964, "All Energy")-D135 -> 1058905 | D141: 0.8642104782
A142: 1.07 | B142: Capacity (MW) - Cumulative
A143: 1.07
A144: 1.07
A145: 1.07
A146: 1.07
A147: 1.07
A148: 1.07
A149: 1.07
A150: 1.07
A151: 1.07
A152: 1.07
A153: 1.07
A154: 1.07
A155: 1.07
A156: 1.07
A157: 1.07
A158: 1.07
A159: 1.07
A160: 1.07
A161: 1.09 | B161: 1.09 - Clean energy generation (GWh) | D161: =SUM(C162:C166) -> 419812.7557
A162: =A161 -> 1.09 | B162: Biomass & Waste | C162: =SUMIFS(SubIndicator!V$5045:V$6084, SubIndicator!$K$5045:$K$6084, str_Country, SubIndicator!$E$5045:$E$6084, $B162) -> 35751.89009 | D162: =IF($D$135=0,0,C162/SUM($C$162:$C$167)) -> 0.006718079468
A163: 1.09 | B163: Geothermal | C163: =SUMIFS(SubIndicator!V$5045:V$6084, SubIndicator!$K$5045:$K$6084, str_Country, SubIndicator!$E$5045:$E$6084, $B163) -> 140 | D163: 2.63071721e-05
A164: 1.09 | B164: Small Hydro | C164: =SUMIFS(SubIndicator!V$5045:V$6084, SubIndicator!$K$5045:$K$6084, str_Country, SubIndicator!$E$5045:$E$6084, $B164) -> 235799.9807 | D164: 0.04430879052
A165: 1.09 | B165: Solar | C165: =SUMIFS(SubIndicator!V$5045:V$6084, SubIndicator!$K$5045:$K$6084, str_Country, SubIndicator!$E$5045:$E$6084, $B165) -> 8020.885 | D165: 0.001507191443
A166: 1.09 | B166: Wind | C166: =SUMIFS(SubIndicator!V$5045:V$6084, SubIndicator!$K$5045:$K$6084, str_Country, SubIndicator!$E$5045:$E$6084, $B166) -> 140100 | D166: 0.02632596294
A167: 1.09 | B167: Other Energy | C167: =SUMIFS(SubIndicator!V$5045:V$6084, SubIndicator!$K$5045:$K$6084, str_Country, SubIndicator!$E$5045:$E$6084, "All Energy")-D161 -> 4901929.903 | D167: 0.9211136685
A168: 1.09 | B168: Generation (GWh) - Cumulative
A169: 1.09
A170: 1.09
A171: 1.09
A172: 1.09
A173: 1.09
A174: 1.09
A175: 1.09
A176: 1.09
A177: 1.09
A178: 1.09
A179: 1.09
A180: 1.09
A181: 1.09
A182: 1.09
A183: 1.09
A184: 1.09
A185: 1.09
A186: 1.09
A187: 1.09 | B187: Clean Energy Capacity Factors (%) | D187: =IFERROR(AVERAGEIF(D188:D192, "<>0"), 0) -> 0.341956734
A188: 1.09 | B188: Biomass & Waste | D188: =IF(C136=0,0,(C162*1000)/(8760*C136)) -> 0.4654728549
A189: 1.09 | B189: Geothermal | D189: 0.5707762557
A190: 1.09 | B190: Small Hydro | D190: 0.3958500884
A191: 1.09 | B191: Solar | D191: =IF(C139=0,0,(C165*1000)/(8760*C139)) -> 0.0670542762
A192: 1.09 | B192: Wind | D192: =IF(C140=0,0,(C166*1000)/(8760*C140)) -> 0.2106301947
A193: 1.09 | B193: Other Energy | D193: 0.5284525422
A194: 2.01 | B194: 2.01 - Clean energy investments (USDm) | D194: =SUM(C196:C203) -> 295378.5243
A195: =A194 -> 2.01 | B195: All
A196: 2.01 | B196: Biofuels | C196: =ChartData!L29 -> 3334.354134 | D196: =IF($D$194=0, 0, C196/$D$194) -> 0.01128841083
A197: 2.01 | B197: Biomass & Waste | C197: =ChartData!L30 -> 23048.78672 | D197: 0.07803135578
A198: 2.01 | B198: Geothermal | C198: =ChartData!L31 -> 29.8645976 | D198: 0.0001011061913
A199: 2.01 | B199: Small Hydro | C199: =ChartData!L32 -> 11912.9719 | D199: 0.0403312053
A200: 2.01 | B200: Solar | C200: =ChartData!L33 -> 78381.90323 | D200: 0.2653608735
A201: 2.01 | B201: Wind | C201: =ChartData!L34 -> 175671.5353 | D201: 0.5947336072
A202: 2.01 | B202: Other Clean Energy | C202: =ChartData!L35 -> 2999.108469 | D202: 0.01015344117
... 103 more rows

Sheet Indicator (hidden)
A1: INDICATOR DATABASE
A3: Internal Assumptions
A4: Model Year | D4: 2013
A5: Maximum Score | D5: 5
A6: Benchmark Max | D6: 100
A8: Indicator Database | J8: =int_Year -> 2013
A9: ID. | B9: Parameter | C9: Category | D9: Indicator | E9: On/Off-Grid | F9: Levelisation | G9: Units | H9: Region | I9: Countries & States | J9: Best | K9: User Defined | L9: Levelisation | M9: Data (Actual) | N9: Data (Levelised) | O9: Benchmark | P9: Score | Q9: Hardcoded Scores | R9: Row Description | S9: Row | T9: Indicator
A10: 1.01 | B10: Enabling framework | C10: Policy & Regulation | D10: Clean energy policies | E10: Both | F10: None | G10: Policy Types | H10: Africa | I10: Botswana | J10: User Defined | K10: 5 | L10: =IFERROR(IF($F10="None", 1, INDEX(SubIndicator!$L$15605:$U$16084, MATCH($F10&" > "&$I10, SubIndicator!$Y$15605:$Y$16084, 0), MATCH(int_Year, SubIndicator!$L$4:$U$4, 0))), 1) -> 1 | M10: =SUMIFS(SubIndicator!V$5:V$16398, SubIndicator!$X$5:$X$16398, $R10) -> 1 | N10: =IFERROR(IF(ISNUMBER(Q10), MAX(Q10/L10, 0), MAX(M10/L10, 0)), 0) -> 0.3910818636 | O10: =IFERROR(IF(J10="User Defined", $K10, IF(J10="Min", SMALL(N10:N89, COUNTIF(N10:N89, 0)+1), IF(J10="Max", MAX(N10:N89), IF(J10="Average", AVERAGEIF(N10:N89, "<>0"), IF(J10="Total", SUM(N10:N89), 0))))), 0) -> 5 | P10: =IFERROR(dbl_BenchmarkMax*IF(J10="Min", O10/N10, N10/O10), 0) -> 7.821637273 | Q10: 0.3910818636 | R10: =A10&" > " &I10 -> 1.01 > Botswana | S10: 1 | T10: =ROUNDUP(S10/COUNTA($I$10:$I$89),0) -> 1
A11: 1.01 | B11: Enabling framework | C11: Policy & Regulation | D11: Clean energy policies | E11: Both | F11: None | G11: Policy Types | H11: Africa | I11: Cameroon | J11: =J10 -> User Defined | K11: =K10 -> 5 | L11: =IFERROR(IF($F11="None", 1, INDEX(SubIndicator!$L$15605:$U$16084, MATCH($F11&" > "&$I11, SubIndicator!$Y$15605:$Y$16084, 0), MATCH(int_Year, SubIndicator!$L$4:$U$4, 0))), 1) -> 1 | M11: =SUMIFS(SubIndicator!V$5:V$16398, SubIndicator!$X$5:$X$16398, $R11) -> 2 | N11: 0.4807696076 | O11: =O10 -> 5 | P11: =IFERROR(dbl_BenchmarkMax*IF(J11="Min", O11/N11, N11/O11), 0) -> 9.615392152 | Q11: 0.4807696076 | R11: =A11&" > " &I11 -> 1.01 > Cameroon | S11: =S10+1 -> 2 | T11: 1
A12: 1.01 | B12: Enabling framework | C12: Policy & Regulation | D12: Clean energy policies | E12: Both | F12: None | G12: Policy Types | H12: Africa | I12: Cote d'Ivoire | J12: =J11 -> User Defined | K12: =K11 -> 5 | L12: =IFERROR(IF($F12="None", 1, INDEX(SubIndicator!$L$15605:$U$16084, MATCH($F12&" > "&$I12, SubIndicator!$Y$15605:$Y$16084, 0), MATCH(int_Year, SubIndicator!$L$4:$U$4, 0))), 1) -> 1 | M12: =SUMIFS(SubIndicator!V$5:V$16398, SubIndicator!$X$5:$X$16398, $R12) -> 2 | N12: 0.4900091541 | O12: =O11 -> 5 | P12: =IFERROR(dbl_BenchmarkMax*IF(J12="Min", O12/N12, N12/O12), 0) -> 9.800183082 | Q12: 0.4900091541 | R12: =A12&" > " &I12 -> 1.01 > Cote d'Ivoire | S12: =S11+1 -> 3 | T12: 1
A13: 1.01 | B13: Enabling framework | C13: Policy & Regulation | D13: Clean energy policies | E13: Both | F13: None | G13: Policy Types | H13: Africa | I13: Democratic Republic of Congo | J13: User Defined | K13: 5 | L13: =IFERROR(IF($F13="None", 1, INDEX(SubIndicator!$L$15605:$U$16084, MATCH($F13&" > "&$I13, SubIndicator!$Y$15605:$Y$16084, 0), MATCH(int_Year, SubIndicator!$L$4:$U$4, 0))), 1) -> 1 | M13: =SUMIFS(SubIndicator!V$5:V$16398, SubIndicator!$X$5:$X$16398, $R13) -> 1 | N13: 0.2313012479 | O13: 5 | P13: 4.626024959 | Q13: 0.2313012479 | R13: 1.01 > Democratic Republic of Congo | S13: 4 | T13: 1
A14: 1.01 | B14: Enabling framework | C14: Policy & Regulation | D14: Clean energy policies | E14: Both | F14: None | G14: Policy Types | H14: Africa | I14: Ethiopia | J14: User Defined | K14: 5 | L14: =IFERROR(IF($F14="None", 1, INDEX(SubIndicator!$L$15605:$U$16084, MATCH($F14&" > "&$I14, SubIndicator!$Y$15605:$Y$16084, 0), MATCH(int_Year, SubIndicator!$L$4:$U$4, 0))), 1) -> 1 | M14: =SUMIFS(SubIndicator!V$5:V$16398, SubIndicator!$X$5:$X$16398, $R14) -> 4 | N14: 1.62773387 | O14: 5 | P14: 32.5546774 | Q14: 1.62773387 | R14: 1.01 > Ethiopia | S14: 5 | T14: 1
A15: 1.01 | B15: Enabling framework | C15: Policy & Regulation | D15: Clean energy policies | E15: Both | F15: None | G15: Policy Types | H15: Africa | I15: Ghana | J15: User Defined | K15: 5 | L15: =IFERROR(IF($F15="None", 1, INDEX(SubIndicator!$L$15605:$U$16084, MATCH($F15&" > "&$I15, SubIndicator!$Y$15605:$Y$16084, 0), MATCH(int_Year, SubIndicator!$L$4:$U$4, 0))), 1) -> 1 | M15: =SUMIFS(SubIndicator!V$5:V$16398, SubIndicator!$X$5:$X$16398, $R15) -> 4 | N15: 2.139550312 | O15: 5 | P15: 42.79100624 | Q15: 2.139550312 | R15: 1.01 > Ghana | S15: 6 | T15: 1
A16: 1.01 | B16: Enabling framework | C16: Policy & Regulation | D16: Clean energy policies | E16: Both | F16: None | G16: Policy Types | H16: Africa | I16: Kenya | J16: User Defined | K16: 5 | L16: =IFERROR(IF($F16="None", 1, INDEX(SubIndicator!$L$15605:$U$16084, MATCH($F16&" > "&$I16, SubIndicator!$Y$15605:$Y$16084, 0), MATCH(int_Year, SubIndicator!$L$4:$U$4, 0))), 1) -> 1 | M16: =SUMIFS(SubIndicator!V$5:V$16398, SubIndicator!$X$5:$X$16398, $R16) -> 7 | N16: 2.171120204 | O16: 5 | P16: 43.42240408 | Q16: 2.171120204 | R16: 1.01 > Kenya | S16: 7 | T16: 1
A17: 1.01 | B17: Enabling framework | C17: Policy & Regulation | D17: Clean energy policies | E17: Both | F17: None | G17: Policy Types | H17: Africa | I17: Liberia | J17: User Defined | K17: 5 | L17: =IFERROR(IF($F17="None", 1, INDEX(SubIndicator!$L$15605:$U$16084, MATCH($F17&" > "&$I17, SubIndicator!$Y$15605:$Y$16084, 0), MATCH(int_Year, SubIndicator!$L$4:$U$4, 0))), 1) -> 1 | M17: =SUMIFS(SubIndicator!V$5:V$16398, SubIndicator!$X$5:$X$16398, $R17) -> 2 | N17: 0.9320536418 | O17: 5 | P17: 18.64107284 | Q17: 0.9320536418 | R17: 1.01 > Liberia | S17: 8 | T17: 1
A18: 1.01 | B18: Enabling framework | C18: Policy & Regulation | D18: Clean energy policies | E18: Both | F18: None | G18: Policy Types | H18: Africa | I18: Malawi | J18: User Defined | K18: 5 | L18: =IFERROR(IF($F18="None", 1, INDEX(SubIndicator!$L$15605:$U$16084, MATCH($F18&" > "&$I18, SubIndicator!$Y$15605:$Y$16084, 0), MATCH(int_Year, SubIndicator!$L$4:$U$4, 0))), 1) -> 1 | M18: =SUMIFS(SubIndicator!V$5:V$16398, SubIndicator!$X$5:$X$16398, $R18) -> 4 | N18: 0.5064198262 | O18: 5 | P18: 10.12839652 | Q18: 0.5064198262 | R18: 1.01 > Malawi | S18: 9 | T18: 1
A19: 1.01 | B19: Enabling framework | C19: Policy & Regulation | D19: Clean energy policies | E19: Both | F19: None | G19: Policy Types | H19: Africa | I19: Mozambique | J19: User Defined | K19: 5 | L19: =IFERROR(IF($F19="None", 1, INDEX(SubIndicator!$L$15605:$U$16084, MATCH($F19&" > "&$I19, SubIndicator!$Y$15605:$Y$16084, 0), MATCH(int_Year, SubIndicator!$L$4:$U$4, 0))), 1) -> 1 | M19: =SUMIFS(SubIndicator!V$5:V$16398, SubIndicator!$X$5:$X$16398, $R19) -> 4 | N19: 1.312773306 | O19: 5 | P19: 26.25546613 | Q19: 1.312773306 | R19: 1.01 > Mozambique | S19: 10 | T19: 1
A20: 1.01 | B20: Enabling framework | C20: Policy & Regulation | D20: Clean energy policies | E20: Both | F20: None | G20: Policy Types | H20: Africa | I20: Nigeria | J20: User Defined | K20: 5 | L20: =IFERROR(IF($F20="None", 1, INDEX(SubIndicator!$L$15605:$U$16084, MATCH($F20&" > "&$I20, SubIndicator!$Y$15605:$Y$16084, 0), MATCH(int_Year, SubIndicator!$L$4:$U$4, 0))), 1) -> 1 | M20: =SUMIFS(SubIndicator!V$5:V$16398, SubIndicator!$X$5:$X$16398, $R20) -> 5 | N20: 1.504414499 | O20: 5 | P20: 30.08828998 | Q20: 1.504414499 | R20: 1.01 > Nigeria | S20: 11 | T20: 1
A21: 1.01 | B21: Enabling framework | C21: Policy & Regulation | D21: Clean energy policies | E21: Both | F21: None | G21: Policy Types | H21: Africa | I21: Rwanda | J21: User Defined | K21: 5 | L21: =IFERROR(IF($F21="None", 1, INDEX(SubIndicator!$L$15605:$U$16084, MATCH($F21&" > "&$I21, SubIndicator!$Y$15605:$Y$16084, 0), MATCH(int_Year, SubIndicator!$L$4:$U$4, 0))), 1) -> 1 | M21: =SUMIFS(SubIndicator!V$5:V$16398, SubIndicator!$X$5:$X$16398, $R21) -> 5 | N21: 1.383220712 | O21: 5 | P21: 27.66441424 | Q21: 1.383220712 | R21: 1.01 > Rwanda | S21: 12 | T21: 1
A22: 1.01 | B22: Enabling framework | C22: Policy & Regulation | D22: Clean energy policies | E22: Both | F22: None | G22: Policy Types | H22: Africa | I22: Senegal | J22: User Defined | K22: 5 | L22: =IFERROR(IF($F22="None", 1, INDEX(SubIndicator!$L$15605:$U$16084, MATCH($F22&" > "&$I22, SubIndicator!$Y$15605:$Y$16084, 0), MATCH(int_Year, SubIndicator!$L$4:$U$4, 0))), 1) -> 1 | M22: =SUMIFS(SubIndicator!V$5:V$16398, SubIndicator!$X$5:$X$16398, $R22) -> 4 | N22: 1.417405076 | O22: 5 | P22: 28.34810152 | Q22: 1.417405076 | R22: 1.01 > Senegal | S22: 13 | T22: 1
A23: 1.01 | B23: Enabling framework | C23: Policy & Regulation | D23: Clean energy policies | E23: Both | F23: None | G23: Policy Types | H23: Africa | I23: Sierra Leone | J23: User Defined | K23: 5 | L23: =IFERROR(IF($F23="None", 1, INDEX(SubIndicator!$L$15605:$U$16084, MATCH($F23&" > "&$I23, SubIndicator!$Y$15605:$Y$16084, 0), MATCH(int_Year, SubIndicator!$L$4:$U$4, 0))), 1) -> 1 | M23: =SUMIFS(SubIndicator!V$5:V$16398, SubIndicator!$X$5:$X$16398, $R23) -> 0 | N23: 0 | O23: 5 | P23: 0 | Q23: 0 | R23: 1.01 > Sierra Leone | S23: 14 | T23: 1
A24: 1.01 | B24: Enabling framework | C24: Policy & Regulation | D24: Clean energy policies | E24: Both | F24: None | G24: Policy Types | H24: Africa | I24: South Africa | J24: User Defined | K24: 5 | L24: =IFERROR(IF($F24="None", 1, INDEX(SubIndicator!$L$15605:$U$16084, MATCH($F24&" > "&$I24, SubIndicator!$Y$15605:$Y$16084, 0), MATCH(int_Year, SubIndicator!$L$4:$U$4, 0))), 1) -> 1 | M24: =SUMIFS(SubIndicator!V$5:V$16398, SubIndicator!$X$5:$X$16398, $R24) -> 5 | N24: 2.5662904 | O24: 5 | P24: 51.325808 | Q24: 2.5662904 | R24: 1.01 > South Africa | S24: 15 | T24: 1
A25: 1.01 | B25: Enabling framework | C25: Policy & Regulation | D25: Clean energy policies | E25: Both | F25: None | G25: Policy Types | H25: Africa | I25: Tanzania | J25: User Defined | K25: 5 | L25: =IFERROR(IF($F25="None", 1, INDEX(SubIndicator!$L$15605:$U$16084, MATCH($F25&" > "&$I25, SubIndicator!$Y$15605:$Y$16084, 0), MATCH(int_Year, SubIndicator!$L$4:$U$4, 0))), 1) -> 1 | M25: =SUMIFS(SubIndicator!V$5:V$16398, SubIndicator!$X$5:$X$16398, $R25) -> 4 | N25: 1.359357014 | O25: 5 | P25: 27.18714028 | Q25: 1.359357014 | R25: 1.01 > Tanzania | S25: 16 | T25: 1
A26: 1.01 | B26: Enabling framework | C26: Policy & Regulation | D26: Clean energy policies | E26: Both | F26: None | G26: Policy Types | H26: Africa | I26: Uganda | J26: User Defined | K26: 5 | L26: =IFERROR(IF($F26="None", 1, INDEX(SubIndicator!$L$15605:$U$16084, MATCH($F26&" > "&$I26, SubIndicator!$Y$15605:$Y$16084, 0), MATCH(int_Year, SubIndicator!$L$4:$U$4, 0))), 1) -> 1 | M26: =SUMIFS(SubIndicator!V$5:V$16398, SubIndicator!$X$5:$X$16398, $R26) -> 5 | N26: 0.9891221823 | O26: 5 | P26: 19.78244365 | Q26: 0.9891221823 | R26: 1.01 > Uganda | S26: 17 | T26: 1
A27: 1.01 | B27: Enabling framework | C27: Policy & Regulation | D27: Clean energy policies | E27: Both | F27: None | G27: Policy Types | H27: Africa | I27: Zambia | J27: User Defined | K27: 5 | L27: =IFERROR(IF($F27="None", 1, INDEX(SubIndicator!$L$15605:$U$16084, MATCH($F27&" > "&$I27, SubIndicator!$Y$15605:$Y$16084, 0), MATCH(int_Year, SubIndicator!$L$4:$U$4, 0))), 1) -> 1 | M27: =SUMIFS(SubIndicator!V$5:V$16398, SubIndicator!$X$5:$X$16398, $R27) -> 2 | N27: 0.4804941006 | O27: 5 | P27: 9.609882012 | Q27: 0.4804941006 | R27: 1.01 > Zambia | S27: 18 | T27: 1
A28: 1.01 | B28: Enabling framework | C28: Policy & Regulation | D28: Clean energy policies | E28: Both | F28: None | G28: Policy Types | H28: Africa | I28: Zimbabwe | J28: User Defined | K28: 5 | L28: =IFERROR(IF($F28="None", 1, INDEX(SubIndicator!$L$15605:$U$16084, MATCH($F28&" > "&$I28, SubIndicator!$Y$15605:$Y$16084, 0), MATCH(int_Year, SubIndicator!$L$4:$U$4, 0))), 1) -> 1 | M28: =SUMIFS(SubIndicator!V$5:V$16398, SubIndicator!$X$5:$X$16398, $R28) -> 4 | N28: 0.9146386063 | O28: 5 | P28: 18.29277213 | Q28: 0.9146386063 | R28: 1.01 > Zimbabwe | S28: 19 | T28: 1
A29: 1.01 | B29: Enabling framework | C29: Policy & Regulation | D29: Clean energy policies | E29: Both | F29: None | G29: Policy Types | H29: Asia | I29: Bangladesh | J29: User Defined | K29: 5 | L29: =IFERROR(IF($F29="None", 1, INDEX(SubIndicator!$L$15605:$U$16084, MATCH($F29&" > "&$I29, SubIndicator!$Y$15605:$Y$16084, 0), MATCH(int_Year, SubIndicator!$L$4:$U$4, 0))), 1) -> 1 | M29: =SUMIFS(SubIndicator!V$5:V$16398, SubIndicator!$X$5:$X$16398, $R29) -> 3 | N29: 1.013022841 | O29: 5 | P29: 20.26045682 | Q29: 1.013022841 | R29: 1.01 > Bangladesh | S29: 20 | T29: 1
A30: 1.01 | B30: Enabling framework | C30: Policy & Regulation | D30: Clean energy policies | E30: Both | F30: None | G30: Policy Types | H30: Asia | I30: China | J30: User Defined | K30: 5 | L30: =IFERROR(IF($F30="None", 1, INDEX(SubIndicator!$L$15605:$U$16084, MATCH($F30&" > "&$I30, SubIndicator!$Y$15605:$Y$16084, 0), MATCH(int_Year, SubIndicator!$L$4:$U$4, 0))), 1) -> 1 | M30: =SUMIFS(SubIndicator!V$5:V$16398, SubIndicator!$X$5:$X$16398, $R30) -> 7 | N30: 2.709267082 | O30: 5 | P30: =IFERROR(dbl_BenchmarkMax*IF(J30="Min", O30/N30, N30/O30), 0) -> 54.18534163 | Q30: 2.709267082 | R30: 1.01 > China | S30: 21 | T30: 1
A31: 1.01 | B31: Enabling framework | C31: Policy & Regulation | D31: Clean energy policies | E31: Both | F31: None | G31: Policy Types | H31: Asia | I31: China :: Fujian | J31: User Defined | K31: 5 | L31: =IFERROR(IF($F31="None", 1, INDEX(SubIndicator!$L$15605:$U$16084, MATCH($F31&" > "&$I31, SubIndicator!$Y$15605:$Y$16084, 0), MATCH(int_Year, SubIndicator!$L$4:$U$4, 0))), 1) -> 1 | M31: =SUMIFS(SubIndicator!V$5:V$16398, SubIndicator!$X$5:$X$16398, $R31) -> 0 | N31: 2.709267082 | O31: 5 | P31: 54.18534163 | Q31: 2.709267082 | R31: 1.01 > China :: Fujian | S31: 22 | T31: 1
A32: 1.01 | B32: Enabling framework | C32: Policy & Regulation | D32: Clean energy policies | E32: Both | F32: None | G32: Policy Types | H32: Asia | I32: China :: Gansu | J32: User Defined | K32: 5 | L32: =IFERROR(IF($F32="None", 1, INDEX(SubIndicator!$L$15605:$U$16084, MATCH($F32&" > "&$I32, SubIndicator!$Y$15605:$Y$16084, 0), MATCH(int_Year, SubIndicator!$L$4:$U$4, 0))), 1) -> 1 | M32: =SUMIFS(SubIndicator!V$5:V$16398, SubIndicator!$X$5:$X$16398, $R32) -> 0 | N32: 2.709267082 | O32: 5 | P32: 54.18534163 | Q32: 2.709267082 | R32: 1.01 > China :: Gansu | S32: 23 | T32: 1
A33: 1.01 | B33: Enabling framework | C33: Policy & Regulation | D33: Clean energy policies | E33: Both | F33: None | G33: Policy Types | H33: Asia | I33: China :: Guangdong | J33: User Defined | K33: 5 | L33: =IFERROR(IF($F33="None", 1, INDEX(SubIndicator!$L$15605:$U$16084, MATCH($F33&" > "&$I33, SubIndicator!$Y$15605:$Y$16084, 0), MATCH(int_Year, SubIndicator!$L$4:$U$4, 0))), 1) -> 1 | M33: =SUMIFS(SubIndicator!V$5:V$16398, SubIndicator!$X$5:$X$16398, $R33) -> 0 | N33: 2.709267082 | O33: 5 | P33: 54.18534163 | Q33: 2.709267082 | R33: 1.01 > China :: Guangdong | S33: 24 | T33: 1
A34: 1.01 | B34: Enabling framework | C34: Policy & Regulation | D34: Clean energy policies | E34: Both | F34: None | G34: Policy Types | H34: Asia | I34: China :: Hebei | J34: User Defined | K34: 5 | L34: =IFERROR(IF($F34="None", 1, INDEX(SubIndicator!$L$15605:$U$16084, MATCH($F34&" > "&$I34, SubIndicator!$Y$15605:$Y$16084, 0), MATCH(int_Year, SubIndicator!$L$4:$U$4, 0))), 1) -> 1 | M34: =SUMIFS(SubIndicator!V$5:V$16398, SubIndicator!$X$5:$X$16398, $R34) -> 0 | N34: 2.709267082 | O34: 5 | P34: 54.18534163 | Q34: 2.709267082 | R34: 1.01 > China :: Hebei | S34: 25 | T34: 1
A35: 1.01 | B35: Enabling framework | C35: Policy & Regulation | D35: Clean energy policies | E35: Both | F35: None | G35: Policy Types | H35: Asia | I35: China :: Heilongjiang | J35: User Defined | K35: 5 | L35: =IFERROR(IF($F35="None", 1, INDEX(SubIndicator!$L$15605:$U$16084, MATCH($F35&" > "&$I35, SubIndicator!$Y$15605:$Y$16084, 0), MATCH(int_Year, SubIndicator!$L$4:$U$4, 0))), 1) -> 1 | M35: =SUMIFS(SubIndicator!V$5:V$16398, SubIndicator!$X$5:$X$16398, $R35) -> 0 | N35: 2.709267082 | O35: 5 | P35: 54.18534163 | Q35: 2.709267082 | R35: 1.01 > China :: Heilongjiang | S35: 26 | T35: 1
A36: 1.01 | B36: Enabling framework | C36: Policy & Regulation | D36: Clean energy policies | E36: Both | F36: None | G36: Policy Types | H36: Asia | I36: China :: Hubei | J36: User Defined | K36: 5 | L36: =IFERROR(IF($F36="None", 1, INDEX(SubIndicator!$L$15605:$U$16084, MATCH($F36&" > "&$I36, SubIndicator!$Y$15605:$Y$16084, 0), MATCH(int_Year, SubIndicator!$L$4:$U$4, 0))), 1) -> 1 | M36: =SUMIFS(SubIndicator!V$5:V$16398, SubIndicator!$X$5:$X$16398, $R36) -> 0 | N36: 2.709267082 | O36: 5 | P36: 54.18534163 | Q36: 2.709267082 | R36: 1.01 > China :: Hubei | S36: 27 | T36: 1
A37: 1.01 | B37: Enabling framework | C37: Policy & Regulation | D37: Clean energy policies | E37: Both | F37: None | G37: Policy Types | H37: Asia | I37: China :: Inner Mongolia | J37: User Defined | K37: 5 | L37: =IFERROR(IF($F37="None", 1, INDEX(SubIndicator!$L$15605:$U$16084, MATCH($F37&" > "&$I37, SubIndicator!$Y$15605:$Y$16084, 0), MATCH(int_Year, SubIndicator!$L$4:$U$4, 0))), 1) -> 1 | M37: =SUMIFS(SubIndicator!V$5:V$16398, SubIndicator!$X$5:$X$16398, $R37) -> 0 | N37: 2.709267082 | O37: 5 | P37: 54.18534163 | Q37: 2.709267082 | R37: 1.01 > China :: Inner Mongolia | S37: 28 | T37: 1
A38: 1.01 | B38: Enabling framework | C38: Policy & Regulation | D38: Clean energy policies | E38: Both | F38: None | G38: Policy Types | H38: Asia | I38: China :: Jiangsu | J38: User Defined | K38: 5 | L38: =IFERROR(IF($F38="None", 1, INDEX(SubIndicator!$L$15605:$U$16084, MATCH($F38&" > "&$I38, SubIndicator!$Y$15605:$Y$16084, 0), MATCH(int_Year, SubIndicator!$L$4:$U$4, 0))), 1) -> 1 | M38: =SUMIFS(SubIndicator!V$5:V$16398, SubIndicator!$X$5:$X$16398, $R38) -> 0 | N38: 2.709267082 | O38: 5 | P38: 54.18534163 | Q38: 2.709267082 | R38: 1.01 > China :: Jiangsu | S38: 29 | T38: 1
A39: 1.01 | B39: Enabling framework | C39: Policy & Regulation | D39: Clean energy policies | E39: Both | F39: None | G39: Policy Types | H39: Asia | I39: China :: Jilin | J39: User Defined | K39: 5 | L39: =IFERROR(IF($F39="None", 1, INDEX(SubIndicator!$L$15605:$U$16084, MATCH($F39&" > "&$I39, SubIndicator!$Y$15605:$Y$16084, 0), MATCH(int_Year, SubIndicator!$L$4:$U$4, 0))), 1) -> 1 | M39: =SUMIFS(SubIndicator!V$5:V$16398, SubIndicator!$X$5:$X$16398, $R39) -> 0 | N39: 2.709267082 | O39: 5 | P39: 54.18534163 | Q39: 2.709267082 | R39: 1.01 > China :: Jilin | S39: 30 | T39: 1
A40: 1.01 | B40: Enabling framework | C40: Policy & Regulation | D40: Clean energy policies | E40: Both | F40: None | G40: Policy Types | H40: Asia | I40: China :: Qinghai | J40: User Defined | K40: 5 | L40: =IFERROR(IF($F40="None", 1, INDEX(SubIndicator!$L$15605:$U$16084, MATCH($F40&" > "&$I40, SubIndicator!$Y$15605:$Y$16084, 0), MATCH(int_Year, SubIndicator!$L$4:$U$4, 0))), 1) -> 1 | M40: =SUMIFS(SubIndicator!V$5:V$16398, SubIndicator!$X$5:$X$16398, $R40) -> 0 | N40: 2.709267082 | O40: 5 | P40: 54.18534163 | Q40: 2.709267082 | R40: 1.01 > China :: Qinghai | S40: 31 | T40: 1
A41: 1.01 | B41: Enabling framework | C41: Policy & Regulation | D41: Clean energy policies | E41: Both | F41: None | G41: Policy Types | H41: Asia | I41: China :: Shandong | J41: User Defined | K41: 5 | L41: =IFERROR(IF($F41="None", 1, INDEX(SubIndicator!$L$15605:$U$16084, MATCH($F41&" > "&$I41, SubIndicator!$Y$15605:$Y$16084, 0), MATCH(int_Year, SubIndicator!$L$4:$U$4, 0))), 1) -> 1 | M41: =SUMIFS(SubIndicator!V$5:V$16398, SubIndicator!$X$5:$X$16398, $R41) -> 0 | N41: 2.709267082 | O41: 5 | P41: 54.18534163 | Q41: 2.709267082 | R41: 1.01 > China :: Shandong | S41: 32 | T41: 1
A42: 1.01 | B42: Enabling framework | C42: Policy & Regulation | D42: Clean energy policies | E42: Both | F42: None | G42: Policy Types | H42: Asia | I42: China :: Sichuan | J42: User Defined | K42: 5 | L42: =IFERROR(IF($F42="None", 1, INDEX(SubIndicator!$L$15605:$U$16084, MATCH($F42&" > "&$I42, SubIndicator!$Y$15605:$Y$16084, 0), MATCH(int_Year, SubIndicator!$L$4:$U$4, 0))), 1) -> 1 | M42: =SUMIFS(SubIndicator!V$5:V$16398, SubIndicator!$X$5:$X$16398, $R42) -> 0 | N42: 2.709267082 | O42: 5 | P42: 54.18534163 | Q42: 2.709267082 | R42: 1.01 > China :: Sichuan | S42: 33 | T42: 1
A43: 1.01 | B43: Enabling framework | C43: Policy & Regulation | D43: Clean energy policies | E43: Both | F43: None | G43: Policy Types | H43: Asia | I43: China :: Tibet | J43: User Defined | K43: 5 | L43: =IFERROR(IF($F43="None", 1, INDEX(SubIndicator!$L$15605:$U$16084, MATCH($F43&" > "&$I43, SubIndicator!$Y$15605:$Y$16084, 0), MATCH(int_Year, SubIndicator!$L$4:$U$4, 0))), 1) -> 1 | M43: =SUMIFS(SubIndicator!V$5:V$16398, SubIndicator!$X$5:$X$16398, $R43) -> 0 | N43: 2.709267082 | O43: 5 | P43: 54.18534163 | Q43: 2.709267082 | R43: 1.01 > China :: Tibet | S43: 34 | T43: 1
A44: 1.01 | B44: Enabling framework | C44: Policy & Regulation | D44: Clean energy policies | E44: Both | F44: None | G44: Policy Types | H44: Asia | I44: China :: Xinjiang | J44: User Defined | K44: =K43 -> 5 | L44: =IFERROR(IF($F44="None", 1, INDEX(SubIndicator!$L$15605:$U$16084, MATCH($F44&" > "&$I44, SubIndicator!$Y$15605:$Y$16084, 0), MATCH(int_Year, SubIndicator!$L$4:$U$4, 0))), 1) -> 1 | M44: =SUMIFS(SubIndicator!V$5:V$16398, SubIndicator!$X$5:$X$16398, $R44) -> 0 | N44: 2.709267082 | O44: 5 | P44: 54.18534163 | Q44: 2.709267082 | R44: 1.01 > China :: Xinjiang | S44: 35 | T44: 1
A45: 1.01 | B45: Enabling framework | C45: Policy & Regulation | D45: Clean energy policies | E45: Both | F45: None | G45: Policy Types | H45: Asia | I45: China :: Yunnan | J45: User Defined | K45: 5 | L45: =IFERROR(IF($F45="None", 1, INDEX(SubIndicator!$L$15605:$U$16084, MATCH($F45&" > "&$I45, SubIndicator!$Y$15605:$Y$16084, 0), MATCH(int_Year, SubIndicator!$L$4:$U$4, 0))), 1) -> 1 | M45: =SUMIFS(SubIndicator!V$5:V$16398, SubIndicator!$X$5:$X$16398, $R45) -> 0 | N45: 2.709267082 | O45: 5 | P45: 54.18534163 | Q45: 2.709267082 | R45: 1.01 > China :: Yunnan | S45: 36 | T45: 1
A46: 1.01 | B46: Enabling framework | C46: Policy & Regulation | D46: Clean energy policies | E46: Both | F46: None | G46: Policy Types | H46: Asia | I46: India | J46: User Defined | K46: 5 | L46: =IFERROR(IF($F46="None", 1, INDEX(SubIndicator!$L$15605:$U$16084, MATCH($F46&" > "&$I46, SubIndicator!$Y$15605:$Y$16084, 0), MATCH(int_Year, SubIndicator!$L$4:$U$4, 0))), 1) -> 1 | M46: =SUMIFS(SubIndicator!V$5:V$16398, SubIndicator!$X$5:$X$16398, $R46) -> 7 | N46: 2.594481212 | O46: 5 | P46: 51.88962423 | Q46: 2.594481212 | R46: 1.01 > India | S46: 37 | T46: 1
A47: 1.01 | B47: Enabling framework | C47: Policy & Regulation | D47: Clean energy policies | E47: Both | F47: None | G47: Policy Types | H47: Asia | I47: India :: Andhra Pradesh | J47: User Defined | K47: 5 | L47: =IFERROR(IF($F47="None", 1, INDEX(SubIndicator!$L$15605:$U$16084, MATCH($F47&" > "&$I47, SubIndicator!$Y$15605:$Y$16084, 0), MATCH(int_Year, SubIndicator!$L$4:$U$4, 0))), 1) -> 1 | M47: =SUMIFS(SubIndicator!V$5:V$16398, SubIndicator!$X$5:$X$16398, $R47) -> 1 | N47: 2.594481212 | O47: 5 | P47: 51.88962423 | Q47: 2.594481212 | R47: 1.01 > India :: Andhra Pradesh | S47: 38 | T47: 1
A48: 1.01 | B48: Enabling framework | C48: Policy & Regulation | D48: Clean energy policies | E48: Both | F48: None | G48: Policy Types | H48: Asia | I48: India :: Gujarat | J48: User Defined | K48: 5 | L48: =IFERROR(IF($F48="None", 1, INDEX(SubIndicator!$L$15605:$U$16084, MATCH($F48&" > "&$I48, SubIndicator!$Y$15605:$Y$16084, 0), MATCH(int_Year, SubIndicator!$L$4:$U$4, 0))), 1) -> 1 | M48: =SUMIFS(SubIndicator!V$5:V$16398, SubIndicator!$X$5:$X$16398, $R48) -> 5 | N48: 2.594481212 | O48: 5 | P48: 51.88962423 | Q48: 2.594481212 | R48: 1.01 > India :: Gujarat | S48: 39 | T48: 1
A49: 1.01 | B49: Enabling framework | C49: Policy & Regulation | D49: Clean energy policies | E49: Both | F49: None | G49: Policy Types | H49: Asia | I49: India :: Karnataka | J49: User Defined | K49: 5 | L49: =IFERROR(IF($F49="None", 1, INDEX(SubIndicator!$L$15605:$U$16084, MATCH($F49&" > "&$I49, SubIndicator!$Y$15605:$Y$16084, 0), MATCH(int_Year, SubIndicator!$L$4:$U$4, 0))), 1) -> 1 | M49: =SUMIFS(SubIndicator!V$5:V$16398, SubIndicator!$X$5:$X$16398, $R49) -> 6 | N49: 2.594481212 | O49: 5 | P49: 51.88962423 | Q49: 2.594481212 | R49: 1.01 > India :: Karnataka | S49: 40 | T49: 1
A50: 1.01 | B50: Enabling framework | C50: Policy & Regulation | D50: Clean energy policies | E50: Both | F50: None | G50: Policy Types | H50: Asia | I50: India :: Madhya Pradesh | J50: User Defined | K50: 5 | L50: =IFERROR(IF($F50="None", 1, INDEX(SubIndicator!$L$15605:$U$16084, MATCH($F50&" > "&$I50, SubIndicator!$Y$15605:$Y$16084, 0), MATCH(int_Year, SubIndicator!$L$4:$U$4, 0))), 1) -> 1 | M50: =SUMIFS(SubIndicator!V$5:V$16398, SubIndicator!$X$5:$X$16398, $R50) -> 5 | N50: 2.594481212 | O50: 5 | P50: 51.88962423 | Q50: 2.594481212 | R50: 1.01 > India :: Madhya Pradesh | S50: 41 | T50: 1
A51: 1.01 | B51: Enabling framework | C51: Policy & Regulation | D51: Clean energy policies | E51: Both | F51: None | G51: Policy Types | H51: Asia | I51: India :: Maharashtra | J51: User Defined | K51: 5 | L51: =IFERROR(IF($F51="None", 1, INDEX(SubIndicator!$L$15605:$U$16084, MATCH($F51&" > "&$I51, SubIndicator!$Y$15605:$Y$16084, 0), MATCH(int_Year, SubIndicator!$L$4:$U$4, 0))), 1) -> 1 | M51: =SUMIFS(SubIndicator!V$5:V$16398, SubIndicator!$X$5:$X$16398, $R51) -> 5 | N51: 2.594481212 | O51: 5 | P51: 51.88962423 | Q51: 2.594481212 | R51: 1.01 > India :: Maharashtra | S51: 42 | T51: 1
A52: 1.01 | B52: Enabling framework | C52: Policy & Regulation | D52: Clean energy policies | E52: Both | F52: None | G52: Policy Types | H52: Asia | I52: India :: Punjab | J52: User Defined | K52: 5 | L52: =IFERROR(IF($F52="None", 1, INDEX(SubIndicator!$L$15605:$U$16084, MATCH($F52&" > "&$I52, SubIndicator!$Y$15605:$Y$16084, 0), MATCH(int_Year, SubIndicator!$L$4:$U$4, 0))), 1) -> 1 | M52: =SUMIFS(SubIndicator!V$5:V$16398, SubIndicator!$X$5:$X$16398, $R52) -> 6 | N52: 2.594481212 | O52: 5 | P52: 51.88962423 | Q52: 2.594481212 | R52: 1.01 > India :: Punjab | S52: 43 | T52: 1
A53: 1.01 | B53: Enabling framework | C53: Policy & Regulation | D53: Clean energy policies | E53: Both | F53: None | G53: Policy Types | H53: Asia | I53: India :: Rajasthan | J53: User Defined | K53: 5 | L53: =IFERROR(IF($F53="None", 1, INDEX(SubIndicator!$L$15605:$U$16084, MATCH($F53&" > "&$I53, SubIndicator!$Y$15605:$Y$16084, 0), MATCH(int_Year, SubIndicator!$L$4:$U$4, 0))), 1) -> 1 | M53: =SUMIFS(SubIndicator!V$5:V$16398, SubIndicator!$X$5:$X$16398, $R53) -> 6 | N53: 2.594481212 | O53: 5 | P53: 51.88962423 | Q53: 2.594481212 | R53: 1.01 > India :: Rajasthan | S53: 44 | T53: 1
A54: 1.01 | B54: Enabling framework | C54: Policy & Regulation | D54: Clean energy policies | E54: Both | F54: None | G54: Policy Types | H54: Asia | I54: India :: Tamil Nadu | J54: User Defined | K54: 5 | L54: =IFERROR(IF($F54="None", 1, INDEX(SubIndicator!$L$15605:$U$16084, MATCH($F54&" > "&$I54, SubIndicator!$Y$15605:$Y$16084, 0), MATCH(int_Year, SubIndicator!$L$4:$U$4, 0))), 1) -> 1 | M54: =SUMIFS(SubIndicator!V$5:V$16398, SubIndicator!$X$5:$X$16398, $R54) -> 7 | N54: 2.594481212 | O54: 5 | P54: 51.88962423 | Q54: 2.594481212 | R54: 1.01 > India :: Tamil Nadu | S54: 45 | T54: 1
A55: 1.01 | B55: Enabling framework | C55: Policy & Regulation | D55: Clean energy policies | E55: Both | F55: None | G55: Policy Types | H55: Asia | I55: India :: Uttar Pradesh | J55: User Defined | K55: 5 | L55: =IFERROR(IF($F55="None", 1, INDEX(SubIndicator!$L$15605:$U$16084, MATCH($F55&" > "&$I55, SubIndicator!$Y$15605:$Y$16084, 0), MATCH(int_Year, SubIndicator!$L$4:$U$4, 0))), 1) -> 1 | M55: =SUMIFS(SubIndicator!V$5:V$16398, SubIndicator!$X$5:$X$16398, $R55) -> 6 | N55: 2.594481212 | O55: 5 | P55: 51.88962423 | Q55: 2.594481212 | R55: 1.01 > India :: Uttar Pradesh | S55: 46 | T55: 1
A56: 1.01 | B56: Enabling framework | C56: Policy & Regulation | D56: Clean energy policies | E56: Both | F56: None | G56: Policy Types | H56: Asia | I56: India :: West Bengal | J56: User Defined | K56: 5 | L56: =IFERROR(IF($F56="None", 1, INDEX(SubIndicator!$L$15605:$U$16084, MATCH($F56&" > "&$I56, SubIndicator!$Y$15605:$Y$16084, 0), MATCH(int_Year, SubIndicator!$L$4:$U$4, 0))), 1) -> 1 | M56: =SUMIFS(SubIndicator!V$5:V$16398, SubIndicator!$X$5:$X$16398, $R56) -> 5 | N56: 2.594481212 | O56: 5 | P56: 51.88962423 | Q56: 2.594481212 | R56: 1.01 > India :: West Bengal | S56: 47 | T56: 1
A57: 1.01 | B57: Enabling framework | C57: Policy & Regulation | D57: Clean energy policies | E57: Both | F57: None | G57: Policy Types | H57: Asia | I57: Indonesia | J57: User Defined | K57: 5 | L57: =IFERROR(IF($F57="None", 1, INDEX(SubIndicator!$L$15605:$U$16084, MATCH($F57&" > "&$I57, SubIndicator!$Y$15605:$Y$16084, 0), MATCH(int_Year, SubIndicator!$L$4:$U$4, 0))), 1) -> 1 | M57: =SUMIFS(SubIndicator!V$5:V$16398, SubIndicator!$X$5:$X$16398, $R57) -> 6 | N57: 1.981869167 | O57: 5 | P57: 39.63738334 | Q57: 1.981869167 | R57: 1.01 > Indonesia | S57: 48 | T57: 1
A58: 1.01 | B58: Enabling framework | C58: Policy & Regulation | D58: Clean energy policies | E58: Both | F58: None | G58: Policy Types | H58: Asia | I58: Myanmar | J58: User Defined | K58: 5 | L58: =IFERROR(IF($F58="None", 1, INDEX(SubIndicator!$L$15605:$U$16084, MATCH($F58&" > "&$I58, SubIndicator!$Y$15605:$Y$16084, 0), MATCH(int_Year, SubIndicator!$L$4:$U$4, 0))), 1) -> 1 | M58: =SUMIFS(SubIndicator!V$5:V$16398, SubIndicator!$X$5:$X$16398, $R58) -> 1 | N58: 0.2594469102 | O58: 5 | P58: 5.188938205 | Q58: 0.2594469102 | R58: 1.01 > Myanmar | S58: 49 | T58: 1
A59: 1.01 | B59: Enabling framework | C59: Policy & Regulation | D59: Clean energy policies | E59: Both | F59: None | G59: Policy Types | H59: Asia | I59: Nepal | J59: User Defined | K59: 5 | L59: =IFERROR(IF($F59="None", 1, INDEX(SubIndicator!$L$15605:$U$16084, MATCH($F59&" > "&$I59, SubIndicator!$Y$15605:$Y$16084, 0), MATCH(int_Year, SubIndicator!$L$4:$U$4, 0))), 1) -> 1 | M59: =SUMIFS(SubIndicator!V$5:V$16398, SubIndicator!$X$5:$X$16398, $R59) -> 3 | N59: 1.33449496 | O59: 5 | P59: 26.68989919 | Q59: 1.33449496 | R59: 1.01 > Nepal | S59: 50 | T59: 1
A60: 1.01 | B60: Enabling framework | C60: Policy & Regulation | D60: Clean energy policies | E60: Both | F60: None | G60: Policy Types | H60: Asia | I60: Pakistan | J60: User Defined | K60: 5 | L60: =IFERROR(IF($F60="None", 1, INDEX(SubIndicator!$L$15605:$U$16084, MATCH($F60&" > "&$I60, SubIndicator!$Y$15605:$Y$16084, 0), MATCH(int_Year, SubIndicator!$L$4:$U$4, 0))), 1) -> 1 | M60: =SUMIFS(SubIndicator!V$5:V$16398, SubIndicator!$X$5:$X$16398, $R60) -> 6 | N60: 1.774840853 | O60: 5 | P60: 35.49681707 | Q60: 1.774840853 | R60: 1.01 > Pakistan | S60: 51 | T60: 1
A61: 1.01 | B61: Enabling framework | C61: Policy & Regulation | D61: Clean energy policies | E61: Both | F61: None | G61: Policy Types | H61: Asia | I61: Sri Lanka | J61: User Defined | K61: 5 | L61: =IFERROR(IF($F61="None", 1, INDEX(SubIndicator!$L$15605:$U$16084, MATCH($F61&" > "&$I61, SubIndicator!$Y$15605:$Y$16084, 0), MATCH(int_Year, SubIndicator!$L$4:$U$4, 0))), 1) -> 1 | M61: =SUMIFS(SubIndicator!V$5:V$16398, SubIndicator!$X$5:$X$16398, $R61) -> 4 | N61: 1.437837692 | O61: 5 | P61: 28.75675384 | Q61: 1.437837692 | R61: 1.01 > Sri Lanka | S61: 52 | T61: 1
A62: 1.01 | B62: Enabling framework | C62: Policy & Regulation | D62: Clean energy policies | E62: Both | F62: None | G62: Policy Types | H62: Asia | I62: Tajikistan | J62: User Defined | K62: 5 | L62: =IFERROR(IF($F62="None", 1, INDEX(SubIndicator!$L$15605:$U$16084, MATCH($F62&" > "&$I62, SubIndicator!$Y$15605:$Y$16084, 0), MATCH(int_Year, SubIndicator!$L$4:$U$4, 0))), 1) -> 1 | M62: =SUMIFS(SubIndicator!V$5:V$16398, SubIndicator!$X$5:$X$16398, $R62) -> 3 | N62: 0.9417019958 | O62: 5 | P62: 18.83403992 | Q62: 0.9417019958 | R62: 1.01 > Tajikistan | S62: 53 | T62: 1
A63: 1.01 | B63: Enabling framework | C63: Policy & Regulation | D63: Clean energy policies | E63: Both | F63: None | G63: Policy Types | H63: Asia | I63: Vietnam | J63: User Defined | K63: 5 | L63: =IFERROR(IF($F63="None", 1, INDEX(SubIndicator!$L$15605:$U$16084, MATCH($F63&" > "&$I63, SubIndicator!$Y$15605:$Y$16084, 0), MATCH(int_Year, SubIndicator!$L$4:$U$4, 0))), 1) -> 1 | M63: =SUMIFS(SubIndicator!V$5:V$16398, SubIndicator!$X$5:$X$16398, $R63) -> 4 | N63: 1.348824456 | O63: 5 | P63: 26.97648912 | Q63: 1.348824456 | R63: 1.01 > Vietnam | S63: 54 | T63: 1
A64: 1.01 | B64: Enabling framework | C64: Policy & Regulation | D64: Clean energy policies | E64: Both | F64: None | G64: Policy Types | H64: LAC | I64: Argentina | J64: User Defined | K64: 5 | L64: =IFERROR(IF($F64="None", 1, INDEX(SubIndicator!$L$15605:$U$16084, MATCH($F64&" > "&$I64, SubIndicator!$Y$15605:$Y$16084, 0), MATCH(int_Year, SubIndicator!$L$4:$U$4, 0))), 1) -> 1 | M64: =SUMIFS(SubIndicator!V$5:V$16398, SubIndicator!$X$5:$X$16398, $R64) -> 5 | N64: 1.878117037 | O64: 5 | P64: 37.56234075 | Q64: 1.878117037 | R64: 1.01 > Argentina | S64: 55 | T64: 1
A65: 1.01 | B65: Enabling framework | C65: Policy & Regulation | D65: Clean energy policies | E65: Both | F65: None | G65: Policy Types | H65: LAC | I65: Bahamas | J65: User Defined | K65: 5 | L65: =IFERROR(IF($F65="None", 1, INDEX(SubIndicator!$L$15605:$U$16084, MATCH($F65&" > "&$I65, SubIndicator!$Y$15605:$Y$16084, 0), MATCH(int_Year, SubIndicator!$L$4:$U$4, 0))), 1) -> 1 | M65: =SUMIFS(SubIndicator!V$5:V$16398, SubIndicator!$X$5:$X$16398, $R65) -> 0 | N65: 0 | O65: 5 | P65: 0 | Q65: 0 | R65: 1.01 > Bahamas | S65: 56 | T65: 1
A66: 1.01 | B66: Enabling framework | C66: Policy & Regulation | D66: Clean energy policies | E66: Both | F66: None | G66: Policy Types | H66: LAC | I66: Barbados | J66: User Defined | K66: 5 | L66: =IFERROR(IF($F66="None", 1, INDEX(SubIndicator!$L$15605:$U$16084, MATCH($F66&" > "&$I66, SubIndicator!$Y$15605:$Y$16084, 0), MATCH(int_Year, SubIndicator!$L$4:$U$4, 0))), 1) -> 1 | M66: =SUMIFS(SubIndicator!V$5:V$16398, SubIndicator!$X$5:$X$16398, $R66) -> 2 | N66: 0.7509084155 | O66: 5 | P66: 15.01816831 | Q66: 0.7509084155 | R66: 1.01 > Barbados | S66: 57 | T66: 1
A67: 1.01 | B67: Enabling framework | C67: Policy & Regulation | D67: Clean energy policies | E67: Both | F67: None | G67: Policy Types | H67: LAC | I67: Belize | J67: User Defined | K67: 5 | L67: =IFERROR(IF($F67="None", 1, INDEX(SubIndicator!$L$15605:$U$16084, MATCH($F67&" > "&$I67, SubIndicator!$Y$15605:$Y$16084, 0), MATCH(int_Year, SubIndicator!$L$4:$U$4, 0))), 1) -> 1 | M67: =SUMIFS(SubIndicator!V$5:V$16398, SubIndicator!$X$5:$X$16398, $R67) -> 1 | N67: 0.509914219 | O67: 5 | P67: 10.19828438 | Q67: 0.509914219 | R67: 1.01 > Belize | S67: 58 | T67: 1
A68: 1.01 | B68: Enabling framework | C68: Policy & Regulation | D68: Clean energy policies | E68: Both | F68: None | G68: Policy Types | H68: LAC | I68: Bolivia | J68: User Defined | K68: 5 | L68: =IFERROR(IF($F68="None", 1, INDEX(SubIndicator!$L$15605:$U$16084, MATCH($F68&" > "&$I68, SubIndicator!$Y$15605:$Y$16084, 0), MATCH(int_Year, SubIndicator!$L$4:$U$4, 0))), 1) -> 1 | M68: =SUMIFS(SubIndicator!V$5:V$16398, SubIndicator!$X$5:$X$16398, $R68) -> 0 | N68: 0 | O68: 5 | P68: 0 | Q68: 0 | R68: 1.01 > Bolivia | S68: 59 | T68: 1
A69: 1.01 | B69: Enabling framework | C69: Policy & Regulation | D69: Clean energy policies | E69: Both | F69: None | G69: Policy Types | H69: LAC | I69: Brazil | J69: User Defined | K69: 5 | L69: =IFERROR(IF($F69="None", 1, INDEX(SubIndicator!$L$15605:$U$16084, MATCH($F69&" > "&$I69, SubIndicator!$Y$15605:$Y$16084, 0), MATCH(int_Year, SubIndicator!$L$4:$U$4, 0))), 1) -> 1 | M69: =SUMIFS(SubIndicator!V$5:V$16398, SubIndicator!$X$5:$X$16398, $R69) -> 7 | N69: 2.806738099 | O69: 5 | P69: 56.13476198 | Q69: 2.806738099 | R69: 1.01 > Brazil | S69: 60 | T69: 1
A70: 1.01 | B70: Enabling framework | C70: Policy & Regulation | D70: Clean energy policies | E70: Both | F70: None | G70: Policy Types | H70: LAC | I70: Chile | J70: User Defined | K70: 5 | L70: =IFERROR(IF($F70="None", 1, INDEX(SubIndicator!$L$15605:$U$16084, MATCH($F70&" > "&$I70, SubIndicator!$Y$15605:$Y$16084, 0), MATCH(int_Year, SubIndicator!$L$4:$U$4, 0))), 1) -> 1 | M70: =SUMIFS(SubIndicator!V$5:V$16398, SubIndicator!$X$5:$X$16398, $R70) -> 3 | N70: 1.673493047 | O70: 5 | P70: 33.46986093 | Q70: 1.673493047 | R70: 1.01 > Chile | S70: 61 | T70: 1
A71: 1.01 | B71: Enabling framework | C71: Policy & Regulation | D71: Clean energy policies | E71: Both | F71: None | G71: Policy Types | H71: LAC | I71: Colombia | J71: User Defined | K71: 5 | L71: =IFERROR(IF($F71="None", 1, INDEX(SubIndicator!$L$15605:$U$16084, MATCH($F71&" > "&$I71, SubIndicator!$Y$15605:$Y$16084, 0), MATCH(int_Year, SubIndicator!$L$4:$U$4, 0))), 1) -> 1 | M71: =SUMIFS(SubIndicator!V$5:V$16398, SubIndicator!$X$5:$X$16398, $R71) -> 3 | N71: 0.6532965822 | O71: 5 | P71: 13.06593164 | Q71: 0.6532965822 | R71: 1.01 > Colombia | S71: 62 | T71: 1
A72: 1.01 | B72: Enabling framework | C72: Policy & Regulation | D72: Clean energy policies | E72: Both | F72: None | G72: Policy Types | H72: LAC | I72: Costa Rica | J72: User Defined | K72: 5 | L72: =IFERROR(IF($F72="None", 1, INDEX(SubIndicator!$L$15605:$U$16084, MATCH($F72&" > "&$I72, SubIndicator!$Y$15605:$Y$16084, 0), MATCH(int_Year, SubIndicator!$L$4:$U$4, 0))), 1) -> 1 | M72: =SUMIFS(SubIndicator!V$5:V$16398, SubIndicator!$X$5:$X$16398, $R72) -> 3 | N72: 0.7692015083 | O72: 5 | P72: 15.38403017 | Q72: 0.7692015083 | R72: 1.01 > Costa Rica | S72: 63 | T72: 1
A73: 1.01 | B73: Enabling framework | C73: Policy & Regulation | D73: Clean energy policies | E73: Both | F73: None | G73: Policy Types | H73: LAC | I73: Dominican Republic | J73: User Defined | K73: 5 | L73: =IFERROR(IF($F73="None", 1, INDEX(SubIndicator!$L$15605:$U$16084, MATCH($F73&" > "&$I73, SubIndicator!$Y$15605:$Y$16084, 0), MATCH(int_Year, SubIndicator!$L$4:$U$4, 0))), 1) -> 1 | M73: =SUMIFS(SubIndicator!V$5:V$16398, SubIndicator!$X$5:$X$16398, $R73) -> 5 | N73: 2.239529018 | O73: 5 | P73: 44.79058036 | Q73: 2.239529018 | R73: 1.01 > Dominican Republic | S73: 64 | T73: 1
A74: 1.01 | B74: Enabling framework | C74: Policy & Regulation | D74: Clean energy policies | E74: Both | F74: None | G74: Policy Types | H74: LAC | I74: Ecuador | J74: User Defined | K74: 5 | L74: =IFERROR(IF($F74="None", 1, INDEX(SubIndicator!$L$15605:$U$16084, MATCH($F74&" > "&$I74, SubIndicator!$Y$15605:$Y$16084, 0), MATCH(int_Year, SubIndicator!$L$4:$U$4, 0))), 1) -> 1 | M74: =SUMIFS(SubIndicator!V$5:V$16398, SubIndicator!$X$5:$X$16398, $R74) -> 3 | N74: =IFERROR(IF(ISNUMBER(Q74), MAX(Q74/L74, 0), MAX(M74/L74, 0)), 0) -> 1.077622375 | O74: 5 | P74: =IFERROR(dbl_BenchmarkMax*IF(J74="Min", O74/N74, N74/O74), 0) -> 21.5524475 | Q74: 1.077622375 | R74: 1.01 > Ecuador | S74: 65 | T74: 1
A75: 1.01 | B75: Enabling framework | C75: Policy & Regulation | D75: Clean energy policies | E75: Both | F75: None | G75: Policy Types | H75: LAC | I75: El Salvador | J75: User Defined | K75: 5 | L75: =IFERROR(IF($F75="None", 1, INDEX(SubIndicator!$L$15605:$U$16084, MATCH($F75&" > "&$I75, SubIndicator!$Y$15605:$Y$16084, 0), MATCH(int_Year, SubIndicator!$L$4:$U$4, 0))), 1) -> 1 | M75: =SUMIFS(SubIndicator!V$5:V$16398, SubIndicator!$X$5:$X$16398, $R75) -> 2 | N75: 0.6164331154 | O75: 5 | P75: 12.32866231 | Q75: 0.6164331154 | R75: 1.01 > El Salvador | S75: 66 | T75: 1
A76: 1.01 | B76: Enabling framework | C76: Policy & Regulation | D76: Clean energy policies | E76: Both | F76: None | G76: Policy Types | H76: LAC | I76: Guatemala | J76: =J75 -> User Defined | K76: =K75 -> 5 | L76: =IFERROR(IF($F76="None", 1, INDEX(SubIndicator!$L$15605:$U$16084, MATCH($F76&" > "&$I76, SubIndicator!$Y$15605:$Y$16084, 0), MATCH(int_Year, SubIndicator!$L$4:$U$4, 0))), 1) -> 1 | M76: =SUMIFS(SubIndicator!V$5:V$16398, SubIndicator!$X$5:$X$16398, $R76) -> 2 | N76: 0.664168193 | O76: =O75 -> 5 | P76: 13.28336386 | Q76: 0.664168193 | R76: =A76&" > " &I76 -> 1.01 > Guatemala | S76: =S75+1 -> 67 | T76: 1
A77: 1.01 | B77: Enabling framework | C77: Policy & Regulation | D77: Clean energy policies | E77: Both | F77: None | G77: Policy Types | H77: LAC | I77: Guyana | J77: User Defined | K77: 5 | L77: =IFERROR(IF($F77="None", 1, INDEX(SubIndicator!$L$15605:$U$16084, MATCH($F77&" > "&$I77, SubIndicator!$Y$15605:$Y$16084, 0), MATCH(int_Year, SubIndicator!$L$4:$U$4, 0))), 1) -> 1 | M77: =SUMIFS(SubIndicator!V$5:V$16398, SubIndicator!$X$5:$X$16398, $R77) -> 0 | N77: 0 | O77: 5 | P77: 0 | Q77: 0 | R77: 1.01 > Guyana | S77: 68 | T77: 1
A78: 1.01 | B78: Enabling framework | C78: Policy & Regulation | D78: Clean energy policies | E78: Both | F78: None | G78: Policy Types | H78: LAC | I78: Haiti | J78: User Defined | K78: 5 | L78: =IFERROR(IF($F78="None", 1, INDEX(SubIndicator!$L$15605:$U$16084, MATCH($F78&" > "&$I78, SubIndicator!$Y$15605:$Y$16084, 0), MATCH(int_Year, SubIndicator!$L$4:$U$4, 0))), 1) -> 1 | M78: =SUMIFS(SubIndicator!V$5:V$16398, SubIndicator!$X$5:$X$16398, $R78) -> 0 | N78: 0 | O78: 5 | P78: 0 | Q78: 0 | R78: 1.01 > Haiti | S78: 69 | T78: 1
A79: 1.01 | B79: Enabling framework | C79: Policy & Regulation | D79: Clean energy policies | E79: Both | F79: None | G79: Policy Types | H79: LAC | I79: Honduras | J79: User Defined | K79: 5 | L79: =IFERROR(IF($F79="None", 1, INDEX(SubIndicator!$L$15605:$U$16084, MATCH($F79&" > "&$I79, SubIndicator!$Y$15605:$Y$16084, 0), MATCH(int_Year, SubIndicator!$L$4:$U$4, 0))), 1) -> 1 | M79: =SUMIFS(SubIndicator!V$5:V$16398, SubIndicator!$X$5:$X$16398, $R79) -> 5 | N79: 1.340082696 | O79: 5 | P79: 26.80165393 | Q79: 1.340082696 | R79: 1.01 > Honduras | S79: 70 | T79: 1
A80: 1.01 | B80: Enabling framework | C80: Policy & Regulation | D80: Clean energy policies | E80: Both | F80: None | G80: Policy Types | H80: LAC | I80: Jamaica | J80: User Defined | K80: 5 | L80: =IFERROR(IF($F80="None", 1, INDEX(SubIndicator!$L$15605:$U$16084, MATCH($F80&" > "&$I80, SubIndicator!$Y$15605:$Y$16084, 0), MATCH(int_Year, SubIndicator!$L$4:$U$4, 0))), 1) -> 1 | M80: =SUMIFS(SubIndicator!V$5:V$16398, SubIndicator!$X$5:$X$16398, $R80) -> 3 | N80: 1.287327448 | O80: 5 | P80: 25.74654896 | Q80: 1.287327448 | R80: 1.01 > Jamaica | S80: 71 | T80: 1
A81: 1.01 | B81: Enabling framework | C81: Policy & Regulation | D81: Clean energy policies | E81: Both | F81: None | G81: Policy Types | H81: LAC | I81: Mexico | J81: User Defined | K81: 5 | L81: =IFERROR(IF($F81="None", 1, INDEX(SubIndicator!$L$15605:$U$16084, MATCH($F81&" > "&$I81, SubIndicator!$Y$15605:$Y$16084, 0), MATCH(int_Year, SubIndicator!$L$4:$U$4, 0))), 1) -> 1 | M81: =SUMIFS(SubIndicator!V$5:V$16398, SubIndicator!$X$5:$X$16398, $R81) -> 4 | N81: 1.547924365 | O81: 5 | P81: 30.9584873 | Q81: 1.547924365 | R81: 1.01 > Mexico | S81: 72 | T81: 1
A82: 1.01 | B82: Enabling framework | C82: Policy & Regulation | D82: Clean energy policies | E82: Both | F82: None | G82: Policy Types | H82: LAC | I82: Nicaragua | J82: User Defined | K82: 5 | L82: =IFERROR(IF($F82="None", 1, INDEX(SubIndicator!$L$15605:$U$16084, MATCH($F82&" > "&$I82, SubIndicator!$Y$15605:$Y$16084, 0), MATCH(int_Year, SubIndicator!$L$4:$U$4, 0))), 1) -> 1 | M82: =SUMIFS(SubIndicator!V$5:V$16398, SubIndicator!$X$5:$X$16398, $R82) -> 2 | N82: 0.6370132511 | O82: 5 | P82: 12.74026502 | Q82: 0.6370132511 | R82: 1.01 > Nicaragua | S82: 73 | T82: 1
A83: 1.01 | B83: Enabling framework | C83: Policy & Regulation | D83: Clean energy policies | E83: Both | F83: None | G83: Policy Types | H83: LAC | I83: Panama | J83: User Defined | K83: 5 | L83: =IFERROR(IF($F83="None", 1, INDEX(SubIndicator!$L$15605:$U$16084, MATCH($F83&" > "&$I83, SubIndicator!$Y$15605:$Y$16084, 0), MATCH(int_Year, SubIndicator!$L$4:$U$4, 0))), 1) -> 1 | M83: =SUMIFS(SubIndicator!V$5:V$16398, SubIndicator!$X$5:$X$16398, $R83) -> 4 | N83: 1.593589538 | O83: 5 | P83: 31.87179077 | Q83: 1.593589538 | R83: 1.01 > Panama | S83: 74 | T83: 1
A84: 1.01 | B84: Enabling framework | C84: Policy & Regulation | D84: Clean energy policies | E84: Both | F84: None | G84: Policy Types | H84: LAC | I84: Paraguay | J84: User Defined | K84: 5 | L84: =IFERROR(IF($F84="None", 1, INDEX(SubIndicator!$L$15605:$U$16084, MATCH($F84&" > "&$I84, SubIndicator!$Y$15605:$Y$16084, 0), MATCH(int_Year, SubIndicator!$L$4:$U$4, 0))), 1) -> 1 | M84: =SUMIFS(SubIndicator!V$5:V$16398, SubIndicator!$X$5:$X$16398, $R84) -> 2 | N84: 0.3855744468 | O84: 5 | P84: 7.711488935 | Q84: 0.3855744468 | R84: 1.01 > Paraguay | S84: 75 | T84: 1
A85: 1.01 | B85: Enabling framework | C85: Policy & Regulation | D85: Clean energy policies | E85: Both | F85: None | G85: Policy Types | H85: LAC | I85: Peru | J85: User Defined | K85: 5 | L85: =IFERROR(IF($F85="None", 1, INDEX(SubIndicator!$L$15605:$U$16084, MATCH($F85&" > "&$I85, SubIndicator!$Y$15605:$Y$16084, 0), MATCH(int_Year, SubIndicator!$L$4:$U$4, 0))), 1) -> 1 | M85: =SUMIFS(SubIndicator!V$5:V$16398, SubIndicator!$X$5:$X$16398, $R85) -> 4 | N85: 2.140607204 | O85: 5 | P85: 42.81214408 | Q85: 2.140607204 | R85: 1.01 > Peru | S85: 76 | T85: 1
A86: 1.01 | B86: Enabling framework | C86: Policy & Regulation | D86: Clean energy policies | E86: Both | F86: None | G86: Policy Types | H86: LAC | I86: Suriname | J86: User Defined | K86: 5 | L86: =IFERROR(IF($F86="None", 1, INDEX(SubIndicator!$L$15605:$U$16084, MATCH($F86&" > "&$I86, SubIndicator!$Y$15605:$Y$16084, 0), MATCH(int_Year, SubIndicator!$L$4:$U$4, 0))), 1) -> 1 | M86: =SUMIFS(SubIndicator!V$5:V$16398, SubIndicator!$X$5:$X$16398, $R86) -> 0 | N86: 0 | O86: 5 | P86: 0 | Q86: 0 | R86: 1.01 > Suriname | S86: 77 | T86: 1
A87: 1.01 | B87: Enabling framework | C87: Policy & Regulation | D87: Clean energy policies | E87: Both | F87: None | G87: Policy Types | H87: LAC | I87: Trinidad & Tobago | J87: User Defined | K87: 5 | L87: =IFERROR(IF($F87="None", 1, INDEX(SubIndicator!$L$15605:$U$16084, MATCH($F87&" > "&$I87, SubIndicator!$Y$15605:$Y$16084, 0), MATCH(int_Year, SubIndicator!$L$4:$U$4, 0))), 1) -> 1 | M87: =SUMIFS(SubIndicator!V$5:V$16398, SubIndicator!$X$5:$X$16398, $R87) -> 0 | N87: 0 | O87: 5 | P87: 0 | Q87: 0 | R87: 1.01 > Trinidad & Tobago | S87: 78 | T87: 1
A88: 1.01 | B88: Enabling framework | C88: Policy & Regulation | D88: Clean energy policies | E88: Both | F88: None | G88: Policy Types | H88: LAC | I88: Uruguay | J88: User Defined | K88: 5 | L88: =IFERROR(IF($F88="None", 1, INDEX(SubIndicator!$L$15605:$U$16084, MATCH($F88&" > "&$I88, SubIndicator!$Y$15605:$Y$16084, 0), MATCH(int_Year, SubIndicator!$L$4:$U$4, 0))), 1) -> 1 | M88: =SUMIFS(SubIndicator!V$5:V$16398, SubIndicator!$X$5:$X$16398, $R88) -> 5 | N88: 2.069574228 | O88: 5 | P88: 41.39148455 | Q88: 2.069574228 | R88: 1.01 > Uruguay | S88: 79 | T88: 1
A89: 1.01 | B89: Enabling framework | C89: Policy & Regulation | D89: Clean energy policies | E89: Both | F89: None | G89: Policy Types | H89: LAC | I89: Venezuela | J89: User Defined | K89: 5 | L89: =IFERROR(IF($F89="None", 1, INDEX(SubIndicator!$L$15605:$U$16084, MATCH($F89&" > "&$I89, SubIndicator!$Y$15605:$Y$16084, 0), MATCH(int_Year, SubIndicator!$L$4:$U$4, 0))), 1) -> 1 | M89: =SUMIFS(SubIndicator!V$5:V$16398, SubIndicator!$X$5:$X$16398, $R89) -> 0 | N89: 0 | O89: 5 | P89: 0 | Q89: 0 | R89: 1.01 > Venezuela | S89: 80 | T89: 1
A90: 1.02 | B90: Enabling framework | C90: Policy & Regulation | D90: Power sector structure | E90: Both | F90: None | G90: Question | H90: =H10 -> Africa | I90: Botswana | J90: User Defined | K90: 12 | L90: =IFERROR(IF($F90="None", 1, INDEX(SubIndicator!$L$15605:$U$16084, MATCH($F90&" > "&$I90, SubIndicator!$Y$15605:$Y$16084, 0), MATCH(int_Year, SubIndicator!$L$4:$U$4, 0))), 1) -> 1 | M90: =SUMIFS(SubIndicator!V$5:V$16398, SubIndicator!$X$5:$X$16398, $R90) -> 2.125 | N90: 2.125 | O90: =IFERROR(IF(J90="User Defined", $K90, IF(J90="Min", SMALL(N90:N169, COUNTIF(N90:N169, 0)+1), IF(J90="Max", MAX(N90:N169), IF(J90="Average", AVERAGEIF(N90:N169, "<>0"), IF(J90="Total", SUM(N90:N169), 0))))), 0) -> 12 | P90: 17.70833333 | Q90: None | R90: 1.02 > Botswana | S90: 81 | T90: 2
A91: 1.02 | B91: Enabling framework | C91: Policy & Regulation | D91: Power sector structure | E91: Both | F91: None | G91: Question | H91: Africa | I91: Cameroon | J91: =J90 -> User Defined | K91: =K90 -> 12 | L91: =IFERROR(IF($F91="None", 1, INDEX(SubIndicator!$L$15605:$U$16084, MATCH($F91&" > "&$I91, SubIndicator!$Y$15605:$Y$16084, 0), MATCH(int_Year, SubIndicator!$L$4:$U$4, 0))), 1) -> 1 | M91: =SUMIFS(SubIndicator!V$5:V$16398, SubIndicator!$X$5:$X$16398, $R91) -> 1.989093251 | N91: 1.989093251 | O91: =O90 -> 12 | P91: 16.57577709 | Q91: None | R91: 1.02 > Cameroon | S91: 82 | T91: 2
A92: 1.02 | B92: Enabling framework | C92: Policy & Regulation | D92: Power sector structure | E92: Both | F92: None | G92: Question | H92: Africa | I92: Cote d'Ivoire | J92: User Defined | K92: 12 | L92: =IFERROR(IF($F92="None", 1, INDEX(SubIndicator!$L$15605:$U$16084, MATCH($F92&" > "&$I92, SubIndicator!$Y$15605:$Y$16084, 0), MATCH(int_Year, SubIndicator!$L$4:$U$4, 0))), 1) -> 1 | M92: =SUMIFS(SubIndicator!V$5:V$16398, SubIndicator!$X$5:$X$16398, $R92) -> 6.855 | N92: 6.855 | O92: 12 | P92: 57.125 | Q92: None | R92: 1.02 > Cote d'Ivoire | S92: 83 | T92: 2
A93: 1.02 | B93: Enabling framework | C93: Policy & Regulation | D93: Power sector structure | E93: Both | F93: None | G93: Question | H93: Africa | I93: Democratic Republic of Congo | J93: User Defined | K93: 12 | L93: =IFERROR(IF($F93="None", 1, INDEX(SubIndicator!$L$15605:$U$16084, MATCH($F93&" > "&$I93, SubIndicator!$Y$15605:$Y$16084, 0), MATCH(int_Year, SubIndicator!$L$4:$U$4, 0))), 1) -> 1 | M93: =SUMIFS(SubIndicator!V$5:V$16398, SubIndicator!$X$5:$X$16398, $R93) -> 1.175 | N93: 1.175 | O93: 12 | P93: 9.791666667 | Q93: None | R93: 1.02 > Democratic Republic of Congo | S93: 84 | T93: 2
A94: 1.02 | B94: Enabling framework | C94: Policy & Regulation | D94: Power sector structure | E94: Both | F94: None | G94: Question | H94: Africa | I94: Ethiopia | J94: User Defined | K94: 12 | L94: =IFERROR(IF($F94="None", 1, INDEX(SubIndicator!$L$15605:$U$16084, MATCH($F94&" > "&$I94, SubIndicator!$Y$15605:$Y$16084, 0), MATCH(int_Year, SubIndicator!$L$4:$U$4, 0))), 1) -> 1 | M94: =SUMIFS(SubIndicator!V$5:V$16398, SubIndicator!$X$5:$X$16398, $R94) -> 1.625 | N94: 1.625 | O94: 12 | P94: 13.54166667 | Q94: None | R94: 1.02 > Ethiopia | S94: 85 | T94: 2
A95: 1.02 | B95: Enabling framework | C95: Policy & Regulation | D95: Power sector structure | E95: Both | F95: None | G95: Question | H95: Africa | I95: Ghana | J95: User Defined | K95: 12 | L95: =IFERROR(IF($F95="None", 1, INDEX(SubIndicator!$L$15605:$U$16084, MATCH($F95&" > "&$I95, SubIndicator!$Y$15605:$Y$16084, 0), MATCH(int_Year, SubIndicator!$L$4:$U$4, 0))), 1) -> 1 | M95: =SUMIFS(SubIndicator!V$5:V$16398, SubIndicator!$X$5:$X$16398, $R95) -> 4.855 | N95: 4.855 | O95: 12 | P95: 40.45833333 | Q95: None | R95: 1.02 > Ghana | S95: 86 | T95: 2
A96: 1.02 | B96: Enabling framework | C96: Policy & Regulation | D96: Power sector structure | E96: Both | F96: None | G96: Question | H96: Africa | I96: Kenya | J96: User Defined | K96: 12 | L96: =IFERROR(IF($F96="None", 1, INDEX(SubIndicator!$L$15605:$U$16084, MATCH($F96&" > "&$I96, SubIndicator!$Y$15605:$Y$16084, 0), MATCH(int_Year, SubIndicator!$L$4:$U$4, 0))), 1) -> 1 | M96: =SUMIFS(SubIndicator!V$5:V$16398, SubIndicator!$X$5:$X$16398, $R96) -> 3.81 | N96: 3.81 | O96: 12 | P96: 31.75 | Q96: None | R96: 1.02 > Kenya | S96: 87 | T96: 2
A97: 1.02 | B97: Enabling framework | C97: Policy & Regulation | D97: Power sector structure | E97: Both | F97: None | G97: Question | H97: Africa | I97: Liberia | J97: User Defined | K97: 12 | L97: =IFERROR(IF($F97="None", 1, INDEX(SubIndicator!$L$15605:$U$16084, MATCH($F97&" > "&$I97, SubIndicator!$Y$15605:$Y$16084, 0), MATCH(int_Year, SubIndicator!$L$4:$U$4, 0))), 1) -> 1 | M97: =SUMIFS(SubIndicator!V$5:V$16398, SubIndicator!$X$5:$X$16398, $R97) -> 1.5 | N97: 1.5 | O97: 12 | P97: 12.5 | Q97: None | R97: 1.02 > Liberia | S97: 88 | T97: 2
A98: 1.02 | B98: Enabling framework | C98: Policy & Regulation | D98: Power sector structure | E98: Both | F98: None | G98: Question | H98: Africa | I98: Malawi | J98: User Defined | K98: 12 | L98: =IFERROR(IF($F98="None", 1, INDEX(SubIndicator!$L$15605:$U$16084, MATCH($F98&" > "&$I98, SubIndicator!$Y$15605:$Y$16084, 0), MATCH(int_Year, SubIndicator!$L$4:$U$4, 0))), 1) -> 1 | M98: =SUMIFS(SubIndicator!V$5:V$16398, SubIndicator!$X$5:$X$16398, $R98) -> 1.31 | N98: 1.31 | O98: 12 | P98: 10.91666667 | Q98: None | R98: 1.02 > Malawi | S98: 89 | T98: 2
A99: 1.02 | B99: Enabling framework | C99: Policy & Regulation | D99: Power sector structure | E99: Both | F99: None | G99: Question | H99: Africa | I99: Mozambique | J99: User Defined | K99: 12 | L99: =IFERROR(IF($F99="None", 1, INDEX(SubIndicator!$L$15605:$U$16084, MATCH($F99&" > "&$I99, SubIndicator!$Y$15605:$Y$16084, 0), MATCH(int_Year, SubIndicator!$L$4:$U$4, 0))), 1) -> 1 | M99: =SUMIFS(SubIndicator!V$5:V$16398, SubIndicator!$X$5:$X$16398, $R99) -> 2 | N99: 2 | O99: 12 | P99: 16.66666667 | Q99: None | R99: 1.02 > Mozambique | S99: 90 | T99: 2
A100: 1.02 | B100: Enabling framework | C100: Policy & Regulation | D100: Power sector structure | E100: Both | F100: None | G100: Question | H100: Africa | I100: Nigeria | J100: User Defined | K100: 12 | L100: =IFERROR(IF($F100="None", 1, INDEX(SubIndicator!$L$15605:$U$16084, MATCH($F100&" > "&$I100, SubIndicator!$Y$15605:$Y$16084, 0), MATCH(int_Year, SubIndicator!$L$4:$U$4, 0))), 1) -> 1 | M100: =SUMIFS(SubIndicator!V$5:V$16398, SubIndicator!$X$5:$X$16398, $R100) -> 7 | N100: 7 | O100: 12 | P100: 58.33333333 | Q100: None | R100: 1.02 > Nigeria | S100: 91 | T100: 2
A101: 1.02 | B101: Enabling framework | C101: Policy & Regulation | D101: Power sector structure | E101: Both | F101: None | G101: Question | H101: Africa | I101: Rwanda | J101: User Defined | K101: 12 | L101: =IFERROR(IF($F101="None", 1, INDEX(SubIndicator!$L$15605:$U$16084, MATCH($F101&" > "&$I101, SubIndicator!$Y$15605:$Y$16084, 0), MATCH(int_Year, SubIndicator!$L$4:$U$4, 0))), 1) -> 1 | M101: =SUMIFS(SubIndicator!V$5:V$16398, SubIndicator!$X$5:$X$16398, $R101) -> 3.205 | N101: 3.205 | O101: 12 | P101: 26.70833333 | Q101: None | R101: 1.02 > Rwanda | S101: 92 | T101: 2
A102: 1.02 | B102: Enabling framework | C102: Policy & Regulation | D102: Power sector structure | E102: Both | F102: None | G102: Question | H102: Africa | I102: Senegal | J102: User Defined | K102: 12 | L102: =IFERROR(IF($F102="None", 1, INDEX(SubIndicator!$L$15605:$U$16084, MATCH($F102&" > "&$I102, SubIndicator!$Y$15605:$Y$16084, 0), MATCH(int_Year, SubIndicator!$L$4:$U$4, 0))), 1) -> 1 | M102: =SUMIFS(SubIndicator!V$5:V$16398, SubIndicator!$X$5:$X$16398, $R102) -> 3.55 | N102: 3.55 | O102: 12 | P102: 29.58333333 | Q102: None | R102: 1.02 > Senegal | S102: 93 | T102: 2
A103: 1.02 | B103: Enabling framework | C103: Policy & Regulation | D103: Power sector structure | E103: Both | F103: None | G103: Question | H103: Africa | I103: Sierra Leone | J103: User Defined | K103: 12 | L103: =IFERROR(IF($F103="None", 1, INDEX(SubIndicator!$L$15605:$U$16084, MATCH($F103&" > "&$I103, SubIndicator!$Y$15605:$Y$16084, 0), MATCH(int_Year, SubIndicator!$L$4:$U$4, 0))), 1) -> 1 | M103: =SUMIFS(SubIndicator!V$5:V$16398, SubIndicator!$X$5:$X$16398, $R103) -> 1.89 | N103: 1.89 | O103: 12 | P103: 15.75 | Q103: None | R103: 1.02 > Sierra Leone | S103: 94 | T103: 2
A104: 1.02 | B104: Enabling framework | C104: Policy & Regulation | D104: Power sector structure | E104: Both | F104: None | G104: Question | H104: Africa | I104: South Africa | J104: User Defined | K104: 12 | L104: =IFERROR(IF($F104="None", 1, INDEX(SubIndicator!$L$15605:$U$16084, MATCH($F104&" > "&$I104, SubIndicator!$Y$15605:$Y$16084, 0), MATCH(int_Year, SubIndicator!$L$4:$U$4, 0))), 1) -> 1 | M104: =SUMIFS(SubIndicator!V$5:V$16398, SubIndicator!$X$5:$X$16398, $R104) -> 3.159 | N104: 3.159 | O104: 12 | P104: 26.325 | Q104: None | R104: 1.02 > South Africa | S104: 95 | T104: 2
A105: 1.02 | B105: Enabling framework | C105: Policy & Regulation | D105: Power sector structure | E105: Both | F105: None | G105: Question | H105: Africa | I105: Tanzania | J105: User Defined | K105: 12 | L105: =IFERROR(IF($F105="None", 1, INDEX(SubIndicator!$L$15605:$U$16084, MATCH($F105&" > "&$I105, SubIndicator!$Y$15605:$Y$16084, 0), MATCH(int_Year, SubIndicator!$L$4:$U$4, 0))), 1) -> 1 | M105: =SUMIFS(SubIndicator!V$5:V$16398, SubIndicator!$X$5:$X$16398, $R105) -> 2.635 | N105: 2.635 | O105: 12 | P105: 21.95833333 | Q105: None | R105: 1.02 > Tanzania | S105: 96 | T105: 2
A106: 1.02 | B106: Enabling framework | C106: Policy & Regulation | D106: Power sector structure | E106: Both | F106: None | G106: Question | H106: Africa | I106: Uganda | J106: User Defined | K106: 12 | L106: =IFERROR(IF($F106="None", 1, INDEX(SubIndicator!$L$15605:$U$16084, MATCH($F106&" > "&$I106, SubIndicator!$Y$15605:$Y$16084, 0), MATCH(int_Year, SubIndicator!$L$4:$U$4, 0))), 1) -> 1 | M106: =SUMIFS(SubIndicator!V$5:V$16398, SubIndicator!$X$5:$X$16398, $R106) -> 3.945 | N106: 3.945 | O106: 12 | P106: 32.875 | Q106: None | R106: 1.02 > Uganda | S106: 97 | T106: 2
A107: 1.02 | B107: Enabling framework | C107: Policy & Regulation | D107: Power sector structure | E107: Both | F107: None | G107: Question | H107: Africa | I107: Zambia | J107: User Defined | K107: 12 | L107: =IFERROR(IF($F107="None", 1, INDEX(SubIndicator!$L$15605:$U$16084, MATCH($F107&" > "&$I107, SubIndicator!$Y$15605:$Y$16084, 0), MATCH(int_Year, SubIndicator!$L$4:$U$4, 0))), 1) -> 1 | M107: =SUMIFS(SubIndicator!V$5:V$16398, SubIndicator!$X$5:$X$16398, $R107) -> 4.185 | N107: 4.185 | O107: 12 | P107: 34.875 | Q107: None | R107: 1.02 > Zambia | S107: 98 | T107: 2
A108: 1.02 | B108: Enabling framework | C108: Policy & Regulation | D108: Power sector structure | E108: Both | F108: None | G108: Question | H108: Africa | I108: Zimbabwe | J108: User Defined | K108: 12 | L108: =IFERROR(IF($F108="None", 1, INDEX(SubIndicator!$L$15605:$U$16084, MATCH($F108&" > "&$I108, SubIndicator!$Y$15605:$Y$16084, 0), MATCH(int_Year, SubIndicator!$L$4:$U$4, 0))), 1) -> 1 | M108: =SUMIFS(SubIndicator!V$5:V$16398, SubIndicator!$X$5:$X$16398, $R108) -> 1.293 | N108: 1.293 | O108: 12 | P108: 10.775 | Q108: None | R108: 1.02 > Zimbabwe | S108: 99 | T108: 2
A109: 1.02 | B109: Enabling framework | C109: Policy & Regulation | D109: Power sector structure | E109: Both | F109: None | G109: Question | H109: Asia | I109: Bangladesh | J109: User Defined | K109: 12 | L109: =IFERROR(IF($F109="None", 1, INDEX(SubIndicator!$L$15605:$U$16084, MATCH($F109&" > "&$I109, SubIndicator!$Y$15605:$Y$16084, 0), MATCH(int_Year, SubIndicator!$L$4:$U$4, 0))), 1) -> 1 | M109: =SUMIFS(SubIndicator!V$5:V$16398, SubIndicator!$X$5:$X$16398, $R109) -> 10.01 | N109: 10.01 | O109: 12 | P109: 83.41666667 | Q109: None | R109: 1.02 > Bangladesh | S109: 100 | T109: 2
A110: 1.02 | B110: Enabling framework | C110: Policy & Regulation | D110: Power sector structure | E110: Both | F110: None | G110: Question | H110: =H30 -> Asia | I110: China | J110: User Defined | K110: 12 | L110: =IFERROR(IF($F110="None", 1, INDEX(SubIndicator!$L$15605:$U$16084, MATCH($F110&" > "&$I110, SubIndicator!$Y$15605:$Y$16084, 0), MATCH(int_Year, SubIndicator!$L$4:$U$4, 0))), 1) -> 1 | M110: =SUMIFS(SubIndicator!V$5:V$16398, SubIndicator!$X$5:$X$16398, $R110) -> 7.125 | N110: 7.125 | O110: 12 | P110: 59.375 | Q110: None | R110: 1.02 > China | S110: 101 | T110: 2
A111: 1.02 | B111: Enabling framework | C111: Policy & Regulation | D111: Power sector structure | E111: Both | F111: None | G111: Question | H111: Asia | I111: China :: Fujian | J111: User Defined | K111: 12 | L111: =IFERROR(IF($F111="None", 1, INDEX(SubIndicator!$L$15605:$U$16084, MATCH($F111&" > "&$I111, SubIndicator!$Y$15605:$Y$16084, 0), MATCH(int_Year, SubIndicator!$L$4:$U$4, 0))), 1) -> 1 | M111: =SUMIFS(SubIndicator!V$5:V$16398, SubIndicator!$X$5:$X$16398, $R111) -> 3.625 | N111: 3.625 | O111: 12 | P111: 30.20833333 | Q111: None | R111: 1.02 > China :: Fujian | S111: 102 | T111: 2
A112: 1.02 | B112: Enabling framework | C112: Policy & Regulation | D112: Power sector structure | E112: Both | F112: None | G112: Question | H112: Asia | I112: China :: Gansu | J112: User Defined | K112: 12 | L112: =IFERROR(IF($F112="None", 1, INDEX(SubIndicator!$L$15605:$U$16084, MATCH($F112&" > "&$I112, SubIndicator!$Y$15605:$Y$16084, 0), MATCH(int_Year, SubIndicator!$L$4:$U$4, 0))), 1) -> 1 | M112: =SUMIFS(SubIndicator!V$5:V$16398, SubIndicator!$X$5:$X$16398, $R112) -> 3.625 | N112: 3.625 | O112: 12 | P112: 30.20833333 | Q112: None | R112: 1.02 > China :: Gansu | S112: 103 | T112: 2
A113: 1.02 | B113: Enabling framework | C113: Policy & Regulation | D113: Power sector structure | E113: Both | F113: None | G113: Question | H113: Asia | I113: China :: Guangdong | J113: User Defined | K113: 12 | L113: =IFERROR(IF($F113="None", 1, INDEX(SubIndicator!$L$15605:$U$16084, MATCH($F113&" > "&$I113, SubIndicator!$Y$15605:$Y$16084, 0), MATCH(int_Year, SubIndicator!$L$4:$U$4, 0))), 1) -> 1 | M113: =SUMIFS(SubIndicator!V$5:V$16398, SubIndicator!$X$5:$X$16398, $R113) -> 3.625 | N113: 3.625 | O113: 12 | P113: 30.20833333 | Q113: None | R113: 1.02 > China :: Guangdong | S113: 104 | T113: 2
A114: 1.02 | B114: Enabling framework | C114: Policy & Regulation | D114: Power sector structure | E114: Both | F114: None | G114: Question | H114: Asia | I114: China :: Hebei | J114: User Defined | K114: 12 | L114: =IFERROR(IF($F114="None", 1, INDEX(SubIndicator!$L$15605:$U$16084, MATCH($F114&" > "&$I114, SubIndicator!$Y$15605:$Y$16084, 0), MATCH(int_Year, SubIndicator!$L$4:$U$4, 0))), 1) -> 1 | M114: =SUMIFS(SubIndicator!V$5:V$16398, SubIndicator!$X$5:$X$16398, $R114) -> 3.625 | N114: 3.625 | O114: 12 | P114: 30.20833333 | Q114: None | R114: 1.02 > China :: Hebei | S114: 105 | T114: 2
A115: 1.02 | B115: Enabling framework | C115: Policy & Regulation | D115: Power sector structure | E115: Both | F115: None | G115: Question | H115: Asia | I115: China :: Heilongjiang | J115: User Defined | K115: 12 | L115: =IFERROR(IF($F115="None", 1, INDEX(SubIndicator!$L$15605:$U$16084, MATCH($F115&" > "&$I115, SubIndicator!$Y$15605:$Y$16084, 0), MATCH(int_Year, SubIndicator!$L$4:$U$4, 0))), 1) -> 1 | M115: =SUMIFS(SubIndicator!V$5:V$16398, SubIndicator!$X$5:$X$16398, $R115) -> 3.625 | N115: 3.625 | O115: 12 | P115: 30.20833333 | Q115: None | R115: 1.02 > China :: Heilongjiang | S115: 106 | T115: 2
A116: 1.02 | B116: Enabling framework | C116: Policy & Regulation | D116: Power sector structure | E116: Both | F116: None | G116: Question | H116: Asia | I116: China :: Hubei | J116: User Defined | K116: 12 | L116: =IFERROR(IF($F116="None", 1, INDEX(SubIndicator!$L$15605:$U$16084, MATCH($F116&" > "&$I116, SubIndicator!$Y$15605:$Y$16084, 0), MATCH(int_Year, SubIndicator!$L$4:$U$4, 0))), 1) -> 1 | M116: =SUMIFS(SubIndicator!V$5:V$16398, SubIndicator!$X$5:$X$16398, $R116) -> 3.625 | N116: 3.625 | O116: 12 | P116: 30.20833333 | Q116: None | R116: 1.02 > China :: Hubei | S116: 107 | T116: 2
A117: 1.02 | B117: Enabling framework | C117: Policy & Regulation | D117: Power sector structure | E117: Both | F117: None | G117: Question | H117: Asia | I117: China :: Inner Mongolia | J117: User Defined | K117: 12 | L117: =IFERROR(IF($F117="None", 1, INDEX(SubIndicator!$L$15605:$U$16084, MATCH($F117&" > "&$I117, SubIndicator!$Y$15605:$Y$16084, 0), MATCH(int_Year, SubIndicator!$L$4:$U$4, 0))), 1) -> 1 | M117: =SUMIFS(SubIndicator!V$5:V$16398, SubIndicator!$X$5:$X$16398, $R117) -> 3.625 | N117: 3.625 | O117: 12 | P117: 30.20833333 | Q117: None | R117: 1.02 > China :: Inner Mongolia | S117: 108 | T117: 2
A118: 1.02 | B118: Enabling framework | C118: Policy & Regulation | D118: Power sector structure | E118: Both | F118: None | G118: Question | H118: Asia | I118: China :: Jiangsu | J118: User Defined | K118: 12 | L118: =IFERROR(IF($F118="None", 1, INDEX(SubIndicator!$L$15605:$U$16084, MATCH($F118&" > "&$I118, SubIndicator!$Y$15605:$Y$16084, 0), MATCH(int_Year, SubIndicator!$L$4:$U$4, 0))), 1) -> 1 | M118: =SUMIFS(SubIndicator!V$5:V$16398, SubIndicator!$X$5:$X$16398, $R118) -> 3.625 | N118: 3.625 | O118: 12 | P118: 30.20833333 | Q118: None | R118: 1.02 > China :: Jiangsu | S118: 109 | T118: 2
A119: 1.02 | B119: Enabling framework | C119: Policy & Regulation | D119: Power sector structure | E119: Both | F119: None | G119: Question | H119: Asia | I119: China :: Jilin | J119: User Defined | K119: 12 | L119: =IFERROR(IF($F119="None", 1, INDEX(SubIndicator!$L$15605:$U$16084, MATCH($F119&" > "&$I119, SubIndicator!$Y$15605:$Y$16084, 0), MATCH(int_Year, SubIndicator!$L$4:$U$4, 0))), 1) -> 1 | M119: =SUMIFS(SubIndicator!V$5:V$16398, SubIndicator!$X$5:$X$16398, $R119) -> 3.625 | N119: 3.625 | O119: 12 | P119: 30.20833333 | Q119: None | R119: 1.02 > China :: Jilin | S119: 110 | T119: 2
A120: 1.02 | B120: Enabling framework | C120: Policy & Regulation | D120: Power sector structure | E120: Both | F120: None | G120: Question | H120: Asia | I120: China :: Qinghai | J120: User Defined | K120: 12 | L120: =IFERROR(IF($F120="None", 1, INDEX(SubIndicator!$L$15605:$U$16084, MATCH($F120&" > "&$I120, SubIndicator!$Y$15605:$Y$16084, 0), MATCH(int_Year, SubIndicator!$L$4:$U$4, 0))), 1) -> 1 | M120: =SUMIFS(SubIndicator!V$5:V$16398, SubIndicator!$X$5:$X$16398, $R120) -> 3.625 | N120: 3.625 | O120: 12 | P120: 30.20833333 | Q120: None | R120: 1.02 > China :: Qinghai | S120: 111 | T120: 2
A121: 1.02 | B121: Enabling framework | C121: Policy & Regulation | D121: Power sector structure | E121: Both | F121: None | G121: Question | H121: Asia | I121: China :: Shandong | J121: User Defined | K121: 12 | L121: =IFERROR(IF($F121="None", 1, INDEX(SubIndicator!$L$15605:$U$16084, MATCH($F121&" > "&$I121, SubIndicator!$Y$15605:$Y$16084, 0), MATCH(int_Year, SubIndicator!$L$4:$U$4, 0))), 1) -> 1 | M121: =SUMIFS(SubIndicator!V$5:V$16398, SubIndicator!$X$5:$X$16398, $R121) -> 3.625 | N121: 3.625 | O121: 12 | P121: 30.20833333 | Q121: None | R121: 1.02 > China :: Shandong | S121: 112 | T121: 2
A122: 1.02 | B122: Enabling framework | C122: Policy & Regulation | D122: Power sector structure | E122: Both | F122: None | G122: Question | H122: Asia | I122: China :: Sichuan | J122: User Defined | K122: 12 | L122: =IFERROR(IF($F122="None", 1, INDEX(SubIndicator!$L$15605:$U$16084, MATCH($F122&" > "&$I122, SubIndicator!$Y$15605:$Y$16084, 0), MATCH(int_Year, SubIndicator!$L$4:$U$4, 0))), 1) -> 1 | M122: =SUMIFS(SubIndicator!V$5:V$16398, SubIndicator!$X$5:$X$16398, $R122) -> 3.625 | N122: 3.625 | O122: 12 | P122: 30.20833333 | Q122: None | R122: 1.02 > China :: Sichuan | S122: 113 | T122: 2
A123: 1.02 | B123: Enabling framework | C123: Policy & Regulation | D123: Power sector structure | E123: Both | F123: None | G123: Question | H123: Asia | I123: China :: Tibet | J123: User Defined | K123: 12 | L123: =IFERROR(IF($F123="None", 1, INDEX(SubIndicator!$L$15605:$U$16084, MATCH($F123&" > "&$I123, SubIndicator!$Y$15605:$Y$16084, 0), MATCH(int_Year, SubIndicator!$L$4:$U$4, 0))), 1) -> 1 | M123: =SUMIFS(SubIndicator!V$5:V$16398, SubIndicator!$X$5:$X$16398, $R123) -> 3.625 | N123: 3.625 | O123: =O122 -> 12 | P123: 30.20833333 | Q123: None | R123: 1.02 > China :: Tibet | S123: 114 | T123: 2
A124: 1.02 | B124: Enabling framework | C124: Policy & Regulation | D124: Power sector structure | E124: Both | F124: None | G124: Question | H124: Asia | I124: China :: Xinjiang | J124: User Defined | K124: 12 | L124: =IFERROR(IF($F124="None", 1, INDEX(SubIndicator!$L$15605:$U$16084, MATCH($F124&" > "&$I124, SubIndicator!$Y$15605:$Y$16084, 0), MATCH(int_Year, SubIndicator!$L$4:$U$4, 0))), 1) -> 1 | M124: =SUMIFS(SubIndicator!V$5:V$16398, SubIndicator!$X$5:$X$16398, $R124) -> 3.625 | N124: 3.625 | O124: 12 | P124: 30.20833333 | Q124: None | R124: 1.02 > China :: Xinjiang | S124: 115 | T124: 2
A125: 1.02 | B125: Enabling framework | C125: Policy & Regulation | D125: Power sector structure | E125: Both | F125: None | G125: Question | H125: Asia | I125: China :: Yunnan | J125: User Defined | K125: 12 | L125: =IFERROR(IF($F125="None", 1, INDEX(SubIndicator!$L$15605:$U$16084, MATCH($F125&" > "&$I125, SubIndicator!$Y$15605:$Y$16084, 0), MATCH(int_Year, SubIndicator!$L$4:$U$4, 0))), 1) -> 1 | M125: =SUMIFS(SubIndicator!V$5:V$16398, SubIndicator!$X$5:$X$16398, $R125) -> 3.625 | N125: 3.625 | O125: 12 | P125: 30.20833333 | Q125: None | R125: 1.02 > China :: Yunnan | S125: 116 | T125: 2
A126: 1.02 | B126: Enabling framework | C126: Policy & Regulation | D126: Power sector structure | E126: Both | F126: None | G126: Question | H126: Asia | I126: India | J126: User Defined | K126: 12 | L126: =IFERROR(IF($F126="None", 1, INDEX(SubIndicator!$L$15605:$U$16084, MATCH($F126&" > "&$I126, SubIndicator!$Y$15605:$Y$16084, 0), MATCH(int_Year, SubIndicator!$L$4:$U$4, 0))), 1) -> 1 | M126: =SUMIFS(SubIndicator!V$5:V$16398, SubIndicator!$X$5:$X$16398, $R126) -> 7.568 | N126: 7.568 | O126: 12 | P126: 63.06666667 | Q126: None | R126: 1.02 > India | S126: 117 | T126: 2
A127: 1.02 | B127: Enabling framework | C127: Policy & Regulation | D127: Power sector structure | E127: Both | F127: None | G127: Question | H127: Asia | I127: India :: Andhra Pradesh | J127: User Defined | K127: 12 | L127: =IFERROR(IF($F127="None", 1, INDEX(SubIndicator!$L$15605:$U$16084, MATCH($F127&" > "&$I127, SubIndicator!$Y$15605:$Y$16084, 0), MATCH(int_Year, SubIndicator!$L$4:$U$4, 0))), 1) -> 1 | M127: =SUMIFS(SubIndicator!V$5:V$16398, SubIndicator!$X$5:$X$16398, $R127) -> 5.43 | N127: 5.43 | O127: 12 | P127: 45.25 | Q127: None | R127: 1.02 > India :: Andhra Pradesh | S127: 118 | T127: 2
A128: 1.02 | B128: Enabling framework | C128: Policy & Regulation | D128: Power sector structure | E128: Both | F128: None | G128: Question | H128: Asia | I128: India :: Gujarat | J128: User Defined | K128: 12 | L128: =IFERROR(IF($F128="None", 1, INDEX(SubIndicator!$L$15605:$U$16084, MATCH($F128&" > "&$I128, SubIndicator!$Y$15605:$Y$16084, 0), MATCH(int_Year, SubIndicator!$L$4:$U$4, 0))), 1) -> 1 | M128: =SUMIFS(SubIndicator!V$5:V$16398, SubIndicator!$X$5:$X$16398, $R128) -> 9.41 | N128: 9.41 | O128: 12 | P128: 78.41666667 | Q128: None | R128: 1.02 > India :: Gujarat | S128: 119 | T128: 2
A129: 1.02 | B129: Enabling framework | C129: Policy & Regulation | D129: Power sector structure | E129: Both | F129: None | G129: Question | H129: Asia | I129: India :: Karnataka | J129: User Defined | K129: 12 | L129: =IFERROR(IF($F129="None", 1, INDEX(SubIndicator!$L$15605:$U$16084, MATCH($F129&" > "&$I129, SubIndicator!$Y$15605:$Y$16084, 0), MATCH(int_Year, SubIndicator!$L$4:$U$4, 0))), 1) -> 1 | M129: =SUMIFS(SubIndicator!V$5:V$16398, SubIndicator!$X$5:$X$16398, $R129) -> 7.03 | N129: 7.03 | O129: 12 | P129: 58.58333333 | Q129: None | R129: 1.02 > India :: Karnataka | S129: 120 | T129: 2
A130: 1.02 | B130: Enabling framework | C130: Policy & Regulation | D130: Power sector structure | E130: Both | F130: None | G130: Question | H130: =H50 -> Asia | I130: India :: Madhya Pradesh | J130: User Defined | K130: 12 | L130: =IFERROR(IF($F130="None", 1, INDEX(SubIndicator!$L$15605:$U$16084, MATCH($F130&" > "&$I130, SubIndicator!$Y$15605:$Y$16084, 0), MATCH(int_Year, SubIndicator!$L$4:$U$4, 0))), 1) -> 1 | M130: =SUMIFS(SubIndicator!V$5:V$16398, SubIndicator!$X$5:$X$16398, $R130) -> 5.03 | N130: 5.03 | O130: 12 | P130: 41.91666667 | Q130: None | R130: 1.02 > India :: Madhya Pradesh | S130: 121 | T130: 2
A131: 1.02 | B131: Enabling framework | C131: Policy & Regulation | D131: Power sector structure | E131: Both | F131: None | G131: Question | H131: Asia | I131: India :: Maharashtra | J131: User Defined | K131: 12 | L131: =IFERROR(IF($F131="None", 1, INDEX(SubIndicator!$L$15605:$U$16084, MATCH($F131&" > "&$I131, SubIndicator!$Y$15605:$Y$16084, 0), MATCH(int_Year, SubIndicator!$L$4:$U$4, 0))), 1) -> 1 | M131: =SUMIFS(SubIndicator!V$5:V$16398, SubIndicator!$X$5:$X$16398, $R131) -> 8.58 | N131: 8.58 | O131: 12 | P131: 71.5 | Q131: None | R131: 1.02 > India :: Maharashtra | S131: 122 | T131: 2
A132: 1.02 | B132: Enabling framework | C132: Policy & Regulation | D132: Power sector structure | E132: Both | F132: None | G132: Question | H132: Asia | I132: India :: Punjab | J132: User Defined | K132: 12 | L132: =IFERROR(IF($F132="None", 1, INDEX(SubIndicator!$L$15605:$U$16084, MATCH($F132&" > "&$I132, SubIndicator!$Y$15605:$Y$16084, 0), MATCH(int_Year, SubIndicator!$L$4:$U$4, 0))), 1) -> 1 | M132: =SUMIFS(SubIndicator!V$5:V$16398, SubIndicator!$X$5:$X$16398, $R132) -> 5.76 | N132: 5.76 | O132: 12 | P132: 48 | Q132: None | R132: 1.02 > India :: Punjab | S132: 123 | T132: 2
A133: 1.02 | B133: Enabling framework | C133: Policy & Regulation | D133: Power sector structure | E133: Both | F133: None | G133: Question | H133: Asia | I133: India :: Rajasthan | J133: User Defined | K133: 12 | L133: =IFERROR(IF($F133="None", 1, INDEX(SubIndicator!$L$15605:$U$16084, MATCH($F133&" > "&$I133, SubIndicator!$Y$15605:$Y$16084, 0), MATCH(int_Year, SubIndicator!$L$4:$U$4, 0))), 1) -> 1 | M133: =SUMIFS(SubIndicator!V$5:V$16398, SubIndicator!$X$5:$X$16398, $R133) -> 4.83 | N133: 4.83 | O133: 12 | P133: 40.25 | Q133: None | R133: 1.02 > India :: Rajasthan | S133: 124 | T133: 2
A134: 1.02 | B134: Enabling framework | C134: Policy & Regulation | D134: Power sector structure | E134: Both | F134: None | G134: Question | H134: Asia | I134: India :: Tamil Nadu | J134: User Defined | K134: 12 | L134: =IFERROR(IF($F134="None", 1, INDEX(SubIndicator!$L$15605:$U$16084, MATCH($F134&" > "&$I134, SubIndicator!$Y$15605:$Y$16084, 0), MATCH(int_Year, SubIndicator!$L$4:$U$4, 0))), 1) -> 1 | M134: =SUMIFS(SubIndicator!V$5:V$16398, SubIndicator!$X$5:$X$16398, $R134) -> 4.6 | N134: 4.6 | O134: 12 | P134: 38.33333333 | Q134: None | R134: 1.02 > India :: Tamil Nadu | S134: 125 | T134: 2
A135: 1.02 | B135: Enabling framework | C135: Policy & Regulation | D135: Power sector structure | E135: Both | F135: None | G135: Question | H135: Asia | I135: India :: Uttar Pradesh | J135: User Defined | K135: 12 | L135: =IFERROR(IF($F135="None", 1, INDEX(SubIndicator!$L$15605:$U$16084, MATCH($F135&" > "&$I135, SubIndicator!$Y$15605:$Y$16084, 0), MATCH(int_Year, SubIndicator!$L$4:$U$4, 0))), 1) -> 1 | M135: =SUMIFS(SubIndicator!V$5:V$16398, SubIndicator!$X$5:$X$16398, $R135) -> 5.94 | N135: 5.94 | O135: 12 | P135: 49.5 | Q135: None | R135: 1.02 > India :: Uttar Pradesh | S135: 126 | T135: 2
A136: 1.02 | B136: Enabling framework | C136: Policy & Regulation | D136: Power sector structure | E136: Both | F136: None | G136: Question | H136: Asia | I136: India :: West Bengal | J136: User Defined | K136: 12 | L136: =IFERROR(IF($F136="None", 1, INDEX(SubIndicator!$L$15605:$U$16084, MATCH($F136&" > "&$I136, SubIndicator!$Y$15605:$Y$16084, 0), MATCH(int_Year, SubIndicator!$L$4:$U$4, 0))), 1) -> 1 | M136: =SUMIFS(SubIndicator!V$5:V$16398, SubIndicator!$X$5:$X$16398, $R136) -> 7.13 | N136: 7.13 | O136: 12 | P136: 59.41666667 | Q136: None | R136: 1.02 > India :: West Bengal | S136: 127 | T136: 2
A137: 1.02 | B137: Enabling framework | C137: Policy & Regulation | D137: Power sector structure | E137: Both | F137: None | G137: Question | H137: Asia | I137: Indonesia | J137: User Defined | K137: 12 | L137: =IFERROR(IF($F137="None", 1, INDEX(SubIndicator!$L$15605:$U$16084, MATCH($F137&" > "&$I137, SubIndicator!$Y$15605:$Y$16084, 0), MATCH(int_Year, SubIndicator!$L$4:$U$4, 0))), 1) -> 1 | M137: =SUMIFS(SubIndicator!V$5:V$16398, SubIndicator!$X$5:$X$16398, $R137) -> 7.3873 | N137: 7.3873 | O137: 12 | P137: 61.56083333 | Q137: None | R137: 1.02 > Indonesia | S137: 128 | T137: 2
A138: 1.02 | B138: Enabling framework | C138: Policy & Regulation | D138: Power sector structure | E138: Both | F138: None | G138: Question | H138: Asia | I138: Myanmar | J138: User Defined | K138: 12 | L138: =IFERROR(IF($F138="None", 1, INDEX(SubIndicator!$L$15605:$U$16084, MATCH($F138&" > "&$I138, SubIndicator!$Y$15605:$Y$16084, 0), MATCH(int_Year, SubIndicator!$L$4:$U$4, 0))), 1) -> 1 | M138: =SUMIFS(SubIndicator!V$5:V$16398, SubIndicator!$X$5:$X$16398, $R138) -> 3.5 | N138: =IFERROR(IF(ISNUMBER(Q138), MAX(Q138/L138, 0), MAX(M138/L138, 0)), 0) -> 3.5 | O138: 12 | P138: =IFERROR(dbl_BenchmarkMax*IF(J138="Min", O138/N138, N138/O138), 0) -> 29.16666667 | Q138: None | R138: 1.02 > Myanmar | S138: 129 | T138: 2
A139: 1.02 | B139: Enabling framework | C139: Policy & Regulation | D139: Power sector structure | E139: Both | F139: None | G139: Question | H139: Asia | I139: Nepal | J139: User Defined | K139: 12 | L139: =IFERROR(IF($F139="None", 1, INDEX(SubIndicator!$L$15605:$U$16084, MATCH($F139&" > "&$I139, SubIndicator!$Y$15605:$Y$16084, 0), MATCH(int_Year, SubIndicator!$L$4:$U$4, 0))), 1) -> 1 | M139: =SUMIFS(SubIndicator!V$5:V$16398, SubIndicator!$X$5:$X$16398, $R139) -> 2.675 | N139: 2.675 | O139: 12 | P139: 22.29166667 | Q139: None | R139: 1.02 > Nepal | S139: 130 | T139: 2
A140: 1.02 | B140: Enabling framework | C140: Policy & Regulation | D140: Power sector structure | E140: Both | F140: None | G140: Question | H140: Asia | I140: Pakistan | J140: User Defined | K140: 12 | L140: =IFERROR(IF($F140="None", 1, INDEX(SubIndicator!$L$15605:$U$16084, MATCH($F140&" > "&$I140, SubIndicator!$Y$15605:$Y$16084, 0), MATCH(int_Year, SubIndicator!$L$4:$U$4, 0))), 1) -> 1 | M140: =SUMIFS(SubIndicator!V$5:V$16398, SubIndicator!$X$5:$X$16398, $R140) -> 2.158 | N140: 2.158 | O140: 12 | P140: 17.98333333 | Q140: None | R140: =A140&" > " &I140 -> 1.02 > Pakistan | S140: =S139+1 -> 131 | T140: 2
A141: 1.02 | B141: Enabling framework | C141: Policy & Regulation | D141: Power sector structure | E141: Both | F141: None | G141: Question | H141: Asia | I141: Sri Lanka | J141: User Defined | K141: 12 | L141: =IFERROR(IF($F141="None", 1, INDEX(SubIndicator!$L$15605:$U$16084, MATCH($F141&" > "&$I141, SubIndicator!$Y$15605:$Y$16084, 0), MATCH(int_Year, SubIndicator!$L$4:$U$4, 0))), 1) -> 1 | M141: =SUMIFS(SubIndicator!V$5:V$16398, SubIndicator!$X$5:$X$16398, $R141) -> 4.23 | N141: 4.23 | O141: 12 | P141: 35.25 | Q141: None | R141: 1.02 > Sri Lanka | S141: 132 | T141: 2
A142: 1.02 | B142: Enabling framework | C142: Policy & Regulation | D142: Power sector structure | E142: Both | F142: None | G142: Question | H142: Asia | I142: Tajikistan | J142: User Defined | K142: 12 | L142: =IFERROR(IF($F142="None", 1, INDEX(SubIndicator!$L$15605:$U$16084, MATCH($F142&" > "&$I142, SubIndicator!$Y$15605:$Y$16084, 0), MATCH(int_Year, SubIndicator!$L$4:$U$4, 0))), 1) -> 1 | M142: =SUMIFS(SubIndicator!V$5:V$16398, SubIndicator!$X$5:$X$16398, $R142) -> 2.5252 | N142: 2.5252 | O142: 12 | P142: 21.04333333 | Q142: None | R142: 1.02 > Tajikistan | S142: 133 | T142: 2
A143: 1.02 | B143: Enabling framework | C143: Policy & Regulation | D143: Power sector structure | E143: Both | F143: None | G143: Question | H143: Asia | I143: Vietnam | J143: User Defined | K143: 12 | L143: =IFERROR(IF($F143="None", 1, INDEX(SubIndicator!$L$15605:$U$16084, MATCH($F143&" > "&$I143, SubIndicator!$Y$15605:$Y$16084, 0), MATCH(int_Year, SubIndicator!$L$4:$U$4, 0))), 1) -> 1 | M143: =SUMIFS(SubIndicator!V$5:V$16398, SubIndicator!$X$5:$X$16398, $R143) -> 6.125 | N143: 6.125 | O143: 12 | P143: 51.04166667 | Q143: None | R143: 1.02 > Vietnam | S143: 134 | T143: 2
A144: 1.02 | B144: Enabling framework | C144: Policy & Regulation | D144: Power sector structure | E144: Both | F144: None | G144: Question | H144: LAC | I144: Argentina | J144: User Defined | K144: 12 | L144: =IFERROR(IF($F144="None", 1, INDEX(SubIndicator!$L$15605:$U$16084, MATCH($F144&" > "&$I144, SubIndicator!$Y$15605:$Y$16084, 0), MATCH(int_Year, SubIndicator!$L$4:$U$4, 0))), 1) -> 1 | M144: =SUMIFS(SubIndicator!V$5:V$16398, SubIndicator!$X$5:$X$16398, $R144) -> 7.75 | N144: 7.75 | O144: 12 | P144: 64.58333333 | Q144: None | R144: 1.02 > Argentina | S144: 135 | T144: 2
A145: 1.02 | B145: Enabling framework | C145: Policy & Regulation | D145: Power sector structure | E145: Both | F145: None | G145: Question | H145: LAC | I145: Bahamas | J145: User Defined | K145: 12 | L145: =IFERROR(IF($F145="None", 1, INDEX(SubIndicator!$L$15605:$U$16084, MATCH($F145&" > "&$I145, SubIndicator!$Y$15605:$Y$16084, 0), MATCH(int_Year, SubIndicator!$L$4:$U$4, 0))), 1) -> 1 | M145: =SUMIFS(SubIndicator!V$5:V$16398, SubIndicator!$X$5:$X$16398, $R145) -> 2.01 | N145: 2.01 | O145: 12 | P145: 16.75 | Q145: None | R145: 1.02 > Bahamas | S145: 136 | T145: 2
A146: 1.02 | B146: Enabling framework | C146: Policy & Regulation | D146: Power sector structure | E146: Both | F146: None | G146: Question | H146: LAC | I146: Barbados | J146: User Defined | K146: 12 | L146: =IFERROR(IF($F146="None", 1, INDEX(SubIndicator!$L$15605:$U$16084, MATCH($F146&" > "&$I146, SubIndicator!$Y$15605:$Y$16084, 0), MATCH(int_Year, SubIndicator!$L$4:$U$4, 0))), 1) -> 1 | M146: =SUMIFS(SubIndicator!V$5:V$16398, SubIndicator!$X$5:$X$16398, $R146) -> 1.875 | N146: 1.875 | O146: 12 | P146: 15.625 | Q146: None | R146: 1.02 > Barbados | S146: 137 | T146: 2
A147: 1.02 | B147: Enabling framework | C147: Policy & Regulation | D147: Power sector structure | E147: Both | F147: None | G147: Question | H147: LAC | I147: Belize | J147: User Defined | K147: 12 | L147: =IFERROR(IF($F147="None", 1, INDEX(SubIndicator!$L$15605:$U$16084, MATCH($F147&" > "&$I147, SubIndicator!$Y$15605:$Y$16084, 0), MATCH(int_Year, SubIndicator!$L$4:$U$4, 0))), 1) -> 1 | M147: =SUMIFS(SubIndicator!V$5:V$16398, SubIndicator!$X$5:$X$16398, $R147) -> 2.61 | N147: 2.61 | O147: 12 | P147: 21.75 | Q147: None | R147: 1.02 > Belize | S147: 138 | T147: 2
A148: 1.02 | B148: Enabling framework | C148: Policy & Regulation | D148: Power sector structure | E148: Both | F148: None | G148: Question | H148: LAC | I148: Bolivia | J148: User Defined | K148: 12 | L148: =IFERROR(IF($F148="None", 1, INDEX(SubIndicator!$L$15605:$U$16084, MATCH($F148&" > "&$I148, SubIndicator!$Y$15605:$Y$16084, 0), MATCH(int_Year, SubIndicator!$L$4:$U$4, 0))), 1) -> 1 | M148: =SUMIFS(SubIndicator!V$5:V$16398, SubIndicator!$X$5:$X$16398, $R148) -> 4.065 | N148: 4.065 | O148: 12 | P148: 33.875 | Q148: None | R148: 1.02 > Bolivia | S148: 139 | T148: 2
A149: 1.02 | B149: Enabling framework | C149: Policy & Regulation | D149: Power sector structure | E149: Both | F149: None | G149: Question | H149: LAC | I149: Brazil | J149: User Defined | K149: 12 | L149: =IFERROR(IF($F149="None", 1, INDEX(SubIndicator!$L$15605:$U$16084, MATCH($F149&" > "&$I149, SubIndicator!$Y$15605:$Y$16084, 0), MATCH(int_Year, SubIndicator!$L$4:$U$4, 0))), 1) -> 1 | M149: =SUMIFS(SubIndicator!V$5:V$16398, SubIndicator!$X$5:$X$16398, $R149) -> 8.455 | N149: 8.455 | O149: 12 | P149: 70.45833333 | Q149: None | R149: 1.02 > Brazil | S149: 140 | T149: 2
A150: 1.02 | B150: Enabling framework | C150: Policy & Regulation | D150: Power sector structure | E150: Both | F150: None | G150: Question | H150: =H70 -> LAC | I150: Chile | J150: User Defined | K150: 12 | L150: =IFERROR(IF($F150="None", 1, INDEX(SubIndicator!$L$15605:$U$16084, MATCH($F150&" > "&$I150, SubIndicator!$Y$15605:$Y$16084, 0), MATCH(int_Year, SubIndicator!$L$4:$U$4, 0))), 1) -> 1 | M150: =SUMIFS(SubIndicator!V$5:V$16398, SubIndicator!$X$5:$X$16398, $R150) -> 9.375 | N150: 9.375 | O150: 12 | P150: 78.125 | Q150: None | R150: 1.02 > Chile | S150: 141 | T150: 2
A151: 1.02 | B151: Enabling framework | C151: Policy & Regulation | D151: Power sector structure | E151: Both | F151: None | G151: Question | H151: LAC | I151: Colombia | J151: User Defined | K151: 12 | L151: =IFERROR(IF($F151="None", 1, INDEX(SubIndicator!$L$15605:$U$16084, MATCH($F151&" > "&$I151, SubIndicator!$Y$15605:$Y$16084, 0), MATCH(int_Year, SubIndicator!$L$4:$U$4, 0))), 1) -> 1 | M151: =SUMIFS(SubIndicator!V$5:V$16398, SubIndicator!$X$5:$X$16398, $R151) -> 9.035 | N151: 9.035 | O151: 12 | P151: 75.29166667 | Q151: None | R151: 1.02 > Colombia | S151: 142 | T151: 2
A152: 1.02 | B152: Enabling framework | C152: Policy & Regulation | D152: Power sector structure | E152: Both | F152: None | G152: Question | H152: LAC | I152: Costa Rica | J152: User Defined | K152: 12 | L152: =IFERROR(IF($F152="None", 1, INDEX(SubIndicator!$L$15605:$U$16084, MATCH($F152&" > "&$I152, SubIndicator!$Y$15605:$Y$16084, 0), MATCH(int_Year, SubIndicator!$L$4:$U$4, 0))), 1) -> 1 | M152: =SUMIFS(SubIndicator!V$5:V$16398, SubIndicator!$X$5:$X$16398, $R152) -> 3.3468 | N152: 3.3468 | O152: 12 | P152: 27.89 | Q152: None | R152: 1.02 > Costa Rica | S152: 143 | T152: 2
A153: 1.02 | B153: Enabling framework | C153: Policy & Regulation | D153: Power sector structure | E153: Both | F153: None | G153: Question | H153: LAC | I153: Dominican Republic | J153: User Defined | K153: 12 | L153: =IFERROR(IF($F153="None", 1, INDEX(SubIndicator!$L$15605:$U$16084, MATCH($F153&" > "&$I153, SubIndicator!$Y$15605:$Y$16084, 0), MATCH(int_Year, SubIndicator!$L$4:$U$4, 0))), 1) -> 1 | M153: =SUMIFS(SubIndicator!V$5:V$16398, SubIndicator!$X$5:$X$16398, $R153) -> 5.745 | N153: 5.745 | O153: 12 | P153: 47.875 | Q153: None | R153: 1.02 > Dominican Republic | S153: 144 | T153: 2
A154: 1.02 | B154: Enabling framework | C154: Policy & Regulation | D154: Power sector structure | E154: Both | F154: None | G154: Question | H154: LAC | I154: Ecuador | J154: User Defined | K154: 12 | L154: =IFERROR(IF($F154="None", 1, INDEX(SubIndicator!$L$15605:$U$16084, MATCH($F154&" > "&$I154, SubIndicator!$Y$15605:$Y$16084, 0), MATCH(int_Year, SubIndicator!$L$4:$U$4, 0))), 1) -> 1 | M154: =SUMIFS(SubIndicator!V$5:V$16398, SubIndicator!$X$5:$X$16398, $R154) -> 6.7538 | N154: 6.7538 | O154: 12 | P154: 56.28166667 | Q154: None | R154: 1.02 > Ecuador | S154: 145 | T154: 2
A155: 1.02 | B155: Enabling framework | C155: Policy & Regulation | D155: Power sector structure | E155: Both | F155: None | G155: Question | H155: LAC | I155: El Salvador | J155: =J154 -> User Defined | K155: =K154 -> 12 | L155: =IFERROR(IF($F155="None", 1, INDEX(SubIndicator!$L$15605:$U$16084, MATCH($F155&" > "&$I155, SubIndicator!$Y$15605:$Y$16084, 0), MATCH(int_Year, SubIndicator!$L$4:$U$4, 0))), 1) -> 1 | M155: =SUMIFS(SubIndicator!V$5:V$16398, SubIndicator!$X$5:$X$16398, $R155) -> 8.193 | N155: 8.193 | O155: =O154 -> 12 | P155: 68.275 | Q155: None | R155: 1.02 > El Salvador | S155: 146 | T155: 2
A156: 1.02 | B156: Enabling framework | C156: Policy & Regulation | D156: Power sector structure | E156: Both | F156: None | G156: Question | H156: LAC | I156: Guatemala | J156: User Defined | K156: 12 | L156: =IFERROR(IF($F156="None", 1, INDEX(SubIndicator!$L$15605:$U$16084, MATCH($F156&" > "&$I156, SubIndicator!$Y$15605:$Y$16084, 0), MATCH(int_Year, SubIndicator!$L$4:$U$4, 0))), 1) -> 1 | M156: =SUMIFS(SubIndicator!V$5:V$16398, SubIndicator!$X$5:$X$16398, $R156) -> 7.255 | N156: 7.255 | O156: 12 | P156: 60.45833333 | Q156: None | R156: 1.02 > Guatemala | S156: 147 | T156: 2
A157: 1.02 | B157: Enabling framework | C157: Policy & Regulation | D157: Power sector structure | E157: Both | F157: None | G157: Question | H157: LAC | I157: Guyana | J157: User Defined | K157: 12 | L157: =IFERROR(IF($F157="None", 1, INDEX(SubIndicator!$L$15605:$U$16084, MATCH($F157&" > "&$I157, SubIndicator!$Y$15605:$Y$16084, 0), MATCH(int_Year, SubIndicator!$L$4:$U$4, 0))), 1) -> 1 | M157: =SUMIFS(SubIndicator!V$5:V$16398, SubIndicator!$X$5:$X$16398, $R157) -> 2.485 | N157: 2.485 | O157: 12 | P157: 20.70833333 | Q157: None | R157: 1.02 > Guyana | S157: 148 | T157: 2
A158: 1.02 | B158: Enabling framework | C158: Policy & Regulation | D158: Power sector structure | E158: Both | F158: None | G158: Question | H158: LAC | I158: Haiti | J158: User Defined | K158: 12 | L158: =IFERROR(IF($F158="None", 1, INDEX(SubIndicator!$L$15605:$U$16084, MATCH($F158&" > "&$I158, SubIndicator!$Y$15605:$Y$16084, 0), MATCH(int_Year, SubIndicator!$L$4:$U$4, 0))), 1) -> 1 | M158: =SUMIFS(SubIndicator!V$5:V$16398, SubIndicator!$X$5:$X$16398, $R158) -> 2.0832 | N158: 2.0832 | O158: 12 | P158: 17.36 | Q158: None | R158: 1.02 > Haiti | S158: 149 | T158: 2
A159: 1.02 | B159: Enabling framework | C159: Policy & Regulation | D159: Power sector structure | E159: Both | F159: None | G159: Question | H159: LAC | I159: Honduras | J159: User Defined | K159: 12 | L159: =IFERROR(IF($F159="None", 1, INDEX(SubIndicator!$L$15605:$U$16084, MATCH($F159&" > "&$I159, SubIndicator!$Y$15605:$Y$16084, 0), MATCH(int_Year, SubIndicator!$L$4:$U$4, 0))), 1) -> 1 | M159: =SUMIFS(SubIndicator!V$5:V$16398, SubIndicator!$X$5:$X$16398, $R159) -> 3.684 | N159: 3.684 | O159: 12 | P159: 30.7 | Q159: None | R159: 1.02 > Honduras | S159: 150 | T159: 2
A160: 1.02 | B160: Enabling framework | C160: Policy & Regulation | D160: Power sector structure | E160: Both | F160: None | G160: Question | H160: LAC | I160: Jamaica | J160: User Defined | K160: 12 | L160: =IFERROR(IF($F160="None", 1, INDEX(SubIndicator!$L$15605:$U$16084, MATCH($F160&" > "&$I160, SubIndicator!$Y$15605:$Y$16084, 0), MATCH(int_Year, SubIndicator!$L$4:$U$4, 0))), 1) -> 1 | M160: =SUMIFS(SubIndicator!V$5:V$16398, SubIndicator!$X$5:$X$16398, $R160) -> 3.125 | N160: 3.125 | O160: 12 | P160: 26.04166667 | Q160: None | R160: 1.02 > Jamaica | S160: 151 | T160: 2
A161: 1.02 | B161: Enabling framework | C161: Policy & Regulation | D161: Power sector structure | E161: Both | F161: None | G161: Question | H161: LAC | I161: Mexico | J161: User Defined | K161: 12 | L161: =IFERROR(IF($F161="None", 1, INDEX(SubIndicator!$L$15605:$U$16084, MATCH($F161&" > "&$I161, SubIndicator!$Y$15605:$Y$16084, 0), MATCH(int_Year, SubIndicator!$L$4:$U$4, 0))), 1) -> 1 | M161: =SUMIFS(SubIndicator!V$5:V$16398, SubIndicator!$X$5:$X$16398, $R161) -> 2.861 | N161: 2.861 | O161: 12 | P161: 23.84166667 | Q161: None | R161: 1.02 > Mexico | S161: 152 | T161: 2
A162: 1.02 | B162: Enabling framework | C162: Policy & Regulation | D162: Power sector structure | E162: Both | F162: None | G162: Question | H162: LAC | I162: Nicaragua | J162: User Defined | K162: 12 | L162: =IFERROR(IF($F162="None", 1, INDEX(SubIndicator!$L$15605:$U$16084, MATCH($F162&" > "&$I162, SubIndicator!$Y$15605:$Y$16084, 0), MATCH(int_Year, SubIndicator!$L$4:$U$4, 0))), 1) -> 1 | M162: =SUMIFS(SubIndicator!V$5:V$16398, SubIndicator!$X$5:$X$16398, $R162) -> 5.7 | N162: 5.7 | O162: 12 | P162: 47.5 | Q162: None | R162: 1.02 > Nicaragua | S162: 153 | T162: 2
A163: 1.02 | B163: Enabling framework | C163: Policy & Regulation | D163: Power sector structure | E163: Both | F163: None | G163: Question | H163: LAC | I163: Panama | J163: User Defined | K163: 12 | L163: =IFERROR(IF($F163="None", 1, INDEX(SubIndicator!$L$15605:$U$16084, MATCH($F163&" > "&$I163, SubIndicator!$Y$15605:$Y$16084, 0), MATCH(int_Year, SubIndicator!$L$4:$U$4, 0))), 1) -> 1 | M163: =SUMIFS(SubIndicator!V$5:V$16398, SubIndicator!$X$5:$X$16398, $R163) -> 7.65 | N163: 7.65 | O163: 12 | P163: 63.75 | Q163: None | R163: 1.02 > Panama | S163: 154 | T163: 2
A164: 1.02 | B164: Enabling framework | C164: Policy & Regulation | D164: Power sector structure | E164: Both | F164: None | G164: Question | H164: LAC | I164: Paraguay | J164: User Defined | K164: 12 | L164: =IFERROR(IF($F164="None", 1, INDEX(SubIndicator!$L$15605:$U$16084, MATCH($F164&" > "&$I164, SubIndicator!$Y$15605:$Y$16084, 0), MATCH(int_Year, SubIndicator!$L$4:$U$4, 0))), 1) -> 1 | M164: =SUMIFS(SubIndicator!V$5:V$16398, SubIndicator!$X$5:$X$16398, $R164) -> 3.5 | N164: 3.5 | O164: 12 | P164: 29.16666667 | Q164: None | R164: 1.02 > Paraguay | S164: 155 | T164: 2
A165: 1.02 | B165: Enabling framework | C165: Policy & Regulation | D165: Power sector structure | E165: Both | F165: None | G165: Question | H165: LAC | I165: Peru | J165: User Defined | K165: 12 | L165: =IFERROR(IF($F165="None", 1, INDEX(SubIndicator!$L$15605:$U$16084, MATCH($F165&" > "&$I165, SubIndicator!$Y$15605:$Y$16084, 0), MATCH(int_Year, SubIndicator!$L$4:$U$4, 0))), 1) -> 1 | M165: =SUMIFS(SubIndicator!V$5:V$16398, SubIndicator!$X$5:$X$16398, $R165) -> 7.773 | N165: 7.773 | O165: 12 | P165: 64.775 | Q165: None | R165: 1.02 > Peru | S165: 156 | T165: 2
A166: 1.02 | B166: Enabling framework | C166: Policy & Regulation | D166: Power sector structure | E166: Both | F166: None | G166: Question | H166: LAC | I166: Suriname | J166: User Defined | K166: 12 | L166: =IFERROR(IF($F166="None", 1, INDEX(SubIndicator!$L$15605:$U$16084, MATCH($F166&" > "&$I166, SubIndicator!$Y$15605:$Y$16084, 0), MATCH(int_Year, SubIndicator!$L$4:$U$4, 0))), 1) -> 1 | M166: =SUMIFS(SubIndicator!V$5:V$16398, SubIndicator!$X$5:$X$16398, $R166) -> 3.0229 | N166: 3.0229 | O166: 12 | P166: 25.19083333 | Q166: None | R166: 1.02 > Suriname | S166: 157 | T166: 2
A167: 1.02 | B167: Enabling framework | C167: Policy & Regulation | D167: Power sector structure | E167: Both | F167: None | G167: Question | H167: LAC | I167: Trinidad & Tobago | J167: User Defined | K167: 12 | L167: =IFERROR(IF($F167="None", 1, INDEX(SubIndicator!$L$15605:$U$16084, MATCH($F167&" > "&$I167, SubIndicator!$Y$15605:$Y$16084, 0), MATCH(int_Year, SubIndicator!$L$4:$U$4, 0))), 1) -> 1 | M167: =SUMIFS(SubIndicator!V$5:V$16398, SubIndicator!$X$5:$X$16398, $R167) -> 3.475 | N167: 3.475 | O167: 12 | P167: 28.95833333 | Q167: None | R167: 1.02 > Trinidad & Tobago | S167: 158 | T167: 2
A168: 1.02 | B168: Enabling framework | C168: Policy & Regulation | D168: Power sector structure | E168: Both | F168: None | G168: Question | H168: LAC | I168: Uruguay | J168: User Defined | K168: 12 | L168: =IFERROR(IF($F168="None", 1, INDEX(SubIndicator!$L$15605:$U$16084, MATCH($F168&" > "&$I168, SubIndicator!$Y$15605:$Y$16084, 0), MATCH(int_Year, SubIndicator!$L$4:$U$4, 0))), 1) -> 1 | M168: =SUMIFS(SubIndicator!V$5:V$16398, SubIndicator!$X$5:$X$16398, $R168) -> 4.979 | N168: 4.979 | O168: 12 | P168: 41.49166667 | Q168: None | R168: 1.02 > Uruguay | S168: 159 | T168: 2
A169: 1.02 | B169: Enabling framework | C169: Policy & Regulation | D169: Power sector structure | E169: Both | F169: None | G169: Question | H169: LAC | I169: Venezuela | J169: User Defined | K169: 12 | L169: =IFERROR(IF($F169="None", 1, INDEX(SubIndicator!$L$15605:$U$16084, MATCH($F169&" > "&$I169, SubIndicator!$Y$15605:$Y$16084, 0), MATCH(int_Year, SubIndicator!$L$4:$U$4, 0))), 1) -> 1 | M169: =SUMIFS(SubIndicator!V$5:V$16398, SubIndicator!$X$5:$X$16398, $R169) -> 1.375 | N169: 1.375 | O169: 12 | P169: 11.45833333 | Q169: None | R169: 1.02 > Venezuela | S169: 160 | T169: 2
A170: 1.03 | B170: Enabling framework | C170: Policy & Regulation | D170: Distributed energy regulatory framework | E170: Off-grid | F170: None | G170: Questions | H170: =H90 -> Africa | I170: Botswana | J170: User Defined | K170: 13.5 | L170: =IFERROR(IF($F170="None", 1, INDEX(SubIndicator!$L$15605:$U$16084, MATCH($F170&" > "&$I170, SubIndicator!$Y$15605:$Y$16084, 0), MATCH(int_Year, SubIndicator!$L$4:$U$4, 0))), 1) -> 1 | M170: =SUMIFS(SubIndicator!V$5:V$16398, SubIndicator!$X$5:$X$16398, $R170) -> 2.5 | N170: 2.5 | O170: =IFERROR(IF(J170="User Defined", $K170, IF(J170="Min", SMALL(N170:N249, COUNTIF(N170:N249, 0)+1), IF(J170="Max", MAX(N170:N249), IF(J170="Average", AVERAGEIF(N170:N249, "<>0"), IF(J170="Total", SUM(N170:N249), 0))))), 0) -> 13.5 | P170: 18.51851852 | Q170: None | R170: 1.03 > Botswana | S170: 161 | T170: 3
A171: 1.03 | B171: Enabling framework | C171: Policy & Regulation | D171: Distributed energy regulatory framework | E171: Off-grid | F171: None | G171: Questions | H171: Africa | I171: Cameroon | J171: =J170 -> User Defined | K171: =K170 -> 13.5 | L171: =IFERROR(IF($F171="None", 1, INDEX(SubIndicator!$L$15605:$U$16084, MATCH($F171&" > "&$I171, SubIndicator!$Y$15605:$Y$16084, 0), MATCH(int_Year, SubIndicator!$L$4:$U$4, 0))), 1) -> 1 | M171: =SUMIFS(SubIndicator!V$5:V$16398, SubIndicator!$X$5:$X$16398, $R171) -> 7 | N171: 7 | O171: =O170 -> 13.5 | P171: 51.85185185 | Q171: None | R171: 1.03 > Cameroon | S171: 162 | T171: 3
A172: 1.03 | B172: Enabling framework | C172: Policy & Regulation | D172: Distributed energy regulatory framework | E172: Off-grid | F172: None | G172: Questions | H172: Africa | I172: Cote d'Ivoire | J172: User Defined | K172: 13.5 | L172: =IFERROR(IF($F172="None", 1, INDEX(SubIndicator!$L$15605:$U$16084, MATCH($F172&" > "&$I172, SubIndicator!$Y$15605:$Y$16084, 0), MATCH(int_Year, SubIndicator!$L$4:$U$4, 0))), 1) -> 1 | M172: =SUMIFS(SubIndicator!V$5:V$16398, SubIndicator!$X$5:$X$16398, $R172) -> 6 | N172: 6 | O172: 13.5 | P172: 44.44444444 | Q172: None | R172: 1.03 > Cote d'Ivoire | S172: 163 | T172: 3
A173: 1.03 | B173: Enabling framework | C173: Policy & Regulation | D173: Distributed energy regulatory framework | E173: Off-grid | F173: None | G173: Questions | H173: Africa | I173: Democratic Republic of Congo | J173: User Defined | K173: 13.5 | L173: =IFERROR(IF($F173="None", 1, INDEX(SubIndicator!$L$15605:$U$16084, MATCH($F173&" > "&$I173, SubIndicator!$Y$15605:$Y$16084, 0), MATCH(int_Year, SubIndicator!$L$4:$U$4, 0))), 1) -> 1 | M173: =SUMIFS(SubIndicator!V$5:V$16398, SubIndicator!$X$5:$X$16398, $R173) -> 4 | N173: 4 | O173: 13.5 | P173: 29.62962963 | Q173: None | R173: 1.03 > Democratic Republic of Congo | S173: 164 | T173: 3
A174: 1.03 | B174: Enabling framework | C174: Policy & Regulation | D174: Distributed energy regulatory framework | E174: Off-grid | F174: None | G174: Questions | H174: Africa | I174: Ethiopia | J174: User Defined | K174: 13.5 | L174: =IFERROR(IF($F174="None", 1, INDEX(SubIndicator!$L$15605:$U$16084, MATCH($F174&" > "&$I174, SubIndicator!$Y$15605:$Y$16084, 0), MATCH(int_Year, SubIndicator!$L$4:$U$4, 0))), 1) -> 1 | M174: =SUMIFS(SubIndicator!V$5:V$16398, SubIndicator!$X$5:$X$16398, $R174) -> 4.25 | N174: 4.25 | O174: 13.5 | P174: 31.48148148 | Q174: None | R174: 1.03 > Ethiopia | S174: 165 | T174: 3
A175: 1.03 | B175: Enabling framework | C175: Policy & Regulation | D175: Distributed energy regulatory framework | E175: Off-grid | F175: None | G175: Questions | H175: Africa | I175: Ghana | J175: User Defined | K175: 13.5 | L175: =IFERROR(IF($F175="None", 1, INDEX(SubIndicator!$L$15605:$U$16084, MATCH($F175&" > "&$I175, SubIndicator!$Y$15605:$Y$16084, 0), MATCH(int_Year, SubIndicator!$L$4:$U$4, 0))), 1) -> 1 | M175: =SUMIFS(SubIndicator!V$5:V$16398, SubIndicator!$X$5:$X$16398, $R175) -> 6 | N175: 6 | O175: 13.5 | P175: 44.44444444 | Q175: None | R175: 1.03 > Ghana | S175: 166 | T175: 3
A176: 1.03 | B176: Enabling framework | C176: Policy & Regulation | D176: Distributed energy regulatory framework | E176: Off-grid | F176: None | G176: Questions | H176: Africa | I176: Kenya | J176: User Defined | K176: 13.5 | L176: =IFERROR(IF($F176="None", 1, INDEX(SubIndicator!$L$15605:$U$16084, MATCH($F176&" > "&$I176, SubIndicator!$Y$15605:$Y$16084, 0), MATCH(int_Year, SubIndicator!$L$4:$U$4, 0))), 1) -> 1 | M176: =SUMIFS(SubIndicator!V$5:V$16398, SubIndicator!$X$5:$X$16398, $R176) -> 9 | N176: 9 | O176: 13.5 | P176: 66.66666667 | Q176: None | R176: 1.03 > Kenya | S176: 167 | T176: 3
A177: 1.03 | B177: Enabling framework | C177: Policy & Regulation | D177: Distributed energy regulatory framework | E177: Off-grid | F177: None | G177: Questions | H177: Africa | I177: Liberia | J177: User Defined | K177: 13.5 | L177: =IFERROR(IF($F177="None", 1, INDEX(SubIndicator!$L$15605:$U$16084, MATCH($F177&" > "&$I177, SubIndicator!$Y$15605:$Y$16084, 0), MATCH(int_Year, SubIndicator!$L$4:$U$4, 0))), 1) -> 1 | M177: =SUMIFS(SubIndicator!V$5:V$16398, SubIndicator!$X$5:$X$16398, $R177) -> 5 | N177: 5 | O177: 13.5 | P177: 37.03703704 | Q177: None | R177: 1.03 > Liberia | S177: 168 | T177: 3
A178: 1.03 | B178: Enabling framework | C178: Policy & Regulation | D178: Distributed energy regulatory framework | E178: Off-grid | F178: None | G178: Questions | H178: Africa | I178: Malawi | J178: User Defined | K178: 13.5 | L178: =IFERROR(IF($F178="None", 1, INDEX(SubIndicator!$L$15605:$U$16084, MATCH($F178&" > "&$I178, SubIndicator!$Y$15605:$Y$16084, 0), MATCH(int_Year, SubIndicator!$L$4:$U$4, 0))), 1) -> 1 | M178: =SUMIFS(SubIndicator!V$5:V$16398, SubIndicator!$X$5:$X$16398, $R178) -> 8.25 | N178: 8.25 | O178: 13.5 | P178: 61.11111111 | Q178: None | R178: 1.03 > Malawi | S178: 169 | T178: 3
A179: 1.03 | B179: Enabling framework | C179: Policy & Regulation | D179: Distributed energy regulatory framework | E179: Off-grid | F179: None | G179: Questions | H179: Africa | I179: Mozambique | J179: User Defined | K179: 13.5 | L179: =IFERROR(IF($F179="None", 1, INDEX(SubIndicator!$L$15605:$U$16084, MATCH($F179&" > "&$I179, SubIndicator!$Y$15605:$Y$16084, 0), MATCH(int_Year, SubIndicator!$L$4:$U$4, 0))), 1) -> 1 | M179: =SUMIFS(SubIndicator!V$5:V$16398, SubIndicator!$X$5:$X$16398, $R179) -> 3 | N179: 3 | O179: 13.5 | P179: 22.22222222 | Q179: None | R179: 1.03 > Mozambique | S179: 170 | T179: 3
A180: 1.03 | B180: Enabling framework | C180: Policy & Regulation | D180: Distributed energy regulatory framework | E180: Off-grid | F180: None | G180: Questions | H180: Africa | I180: Nigeria | J180: User Defined | K180: 13.5 | L180: =IFERROR(IF($F180="None", 1, INDEX(SubIndicator!$L$15605:$U$16084, MATCH($F180&" > "&$I180, SubIndicator!$Y$15605:$Y$16084, 0), MATCH(int_Year, SubIndicator!$L$4:$U$4, 0))), 1) -> 1 | M180: =SUMIFS(SubIndicator!V$5:V$16398, SubIndicator!$X$5:$X$16398, $R180) -> 8 | N180: 8 | O180: 13.5 | P180: 59.25925926 | Q180: None | R180: 1.03 > Nigeria | S180: 171 | T180: 3
A181: 1.03 | B181: Enabling framework | C181: Policy & Regulation | D181: Distributed energy regulatory framework | E181: Off-grid | F181: None | G181: Questions | H181: Africa | I181: Rwanda | J181: User Defined | K181: 13.5 | L181: =IFERROR(IF($F181="None", 1, INDEX(SubIndicator!$L$15605:$U$16084, MATCH($F181&" > "&$I181, SubIndicator!$Y$15605:$Y$16084, 0), MATCH(int_Year, SubIndicator!$L$4:$U$4, 0))), 1) -> 1 | M181: =SUMIFS(SubIndicator!V$5:V$16398, SubIndicator!$X$5:$X$16398, $R181) -> 5 | N181: 5 | O181: 13.5 | P181: 37.03703704 | Q181: None | R181: 1.03 > Rwanda | S181: 172 | T181: 3
A182: 1.03 | B182: Enabling framework | C182: Policy & Regulation | D182: Distributed energy regulatory framework | E182: Off-grid | F182: None | G182: Questions | H182: Africa | I182: Senegal | J182: User Defined | K182: 13.5 | L182: =IFERROR(IF($F182="None", 1, INDEX(SubIndicator!$L$15605:$U$16084, MATCH($F182&" > "&$I182, SubIndicator!$Y$15605:$Y$16084, 0), MATCH(int_Year, SubIndicator!$L$4:$U$4, 0))), 1) -> 1 | M182: =SUMIFS(SubIndicator!V$5:V$16398, SubIndicator!$X$5:$X$16398, $R182) -> 7.5 | N182: 7.5 | O182: 13.5 | P182: 55.55555556 | Q182: None | R182: 1.03 > Senegal | S182: 173 | T182: 3
A183: 1.03 | B183: Enabling framework | C183: Policy & Regulation | D183: Distributed energy regulatory framework | E183: Off-grid | F183: None | G183: Questions | H183: Africa | I183: Sierra Leone | J183: User Defined | K183: 13.5 | L183: =IFERROR(IF($F183="None", 1, INDEX(SubIndicator!$L$15605:$U$16084, MATCH($F183&" > "&$I183, SubIndicator!$Y$15605:$Y$16084, 0), MATCH(int_Year, SubIndicator!$L$4:$U$4, 0))), 1) -> 1 | M183: =SUMIFS(SubIndicator!V$5:V$16398, SubIndicator!$X$5:$X$16398, $R183) -> 1.5 | N183: 1.5 | O183: 13.5 | P183: 11.11111111 | Q183: None | R183: 1.03 > Sierra Leone | S183: 174 | T183: 3
A184: 1.03 | B184: Enabling framework | C184: Policy & Regulation | D184: Distributed energy regulatory framework | E184: Off-grid | F184: None | G184: Questions | H184: Africa | I184: South Africa | J184: User Defined | K184: 13.5 | L184: =IFERROR(IF($F184="None", 1, INDEX(SubIndicator!$L$15605:$U$16084, MATCH($F184&" > "&$I184, SubIndicator!$Y$15605:$Y$16084, 0), MATCH(int_Year, SubIndicator!$L$4:$U$4, 0))), 1) -> 1 | M184: =SUMIFS(SubIndicator!V$5:V$16398, SubIndicator!$X$5:$X$16398, $R184) -> 6.5 | N184: 6.5 | O184: 13.5 | P184: 48.14814815 | Q184: None | R184: 1.03 > South Africa | S184: 175 | T184: 3
A185: 1.03 | B185: Enabling framework | C185: Policy & Regulation | D185: Distributed energy regulatory framework | E185: Off-grid | F185: None | G185: Questions | H185: Africa | I185: Tanzania | J185: User Defined | K185: 13.5 | L185: =IFERROR(IF($F185="None", 1, INDEX(SubIndicator!$L$15605:$U$16084, MATCH($F185&" > "&$I185, SubIndicator!$Y$15605:$Y$16084, 0), MATCH(int_Year, SubIndicator!$L$4:$U$4, 0))), 1) -> 1 | M185: =SUMIFS(SubIndicator!V$5:V$16398, SubIndicator!$X$5:$X$16398, $R185) -> 12.5 | N185: 12.5 | O185: 13.5 | P185: 92.59259259 | Q185: None | R185: 1.03 > Tanzania | S185: 176 | T185: 3
A186: 1.03 | B186: Enabling framework | C186: Policy & Regulation | D186: Distributed energy regulatory framework | E186: Off-grid | F186: None | G186: Questions | H186: Africa | I186: Uganda | J186: User Defined | K186: 13.5 | L186: =IFERROR(IF($F186="None", 1, INDEX(SubIndicator!$L$15605:$U$16084, MATCH($F186&" > "&$I186, SubIndicator!$Y$15605:$Y$16084, 0), MATCH(int_Year, SubIndicator!$L$4:$U$4, 0))), 1) -> 1 | M186: =SUMIFS(SubIndicator!V$5:V$16398, SubIndicator!$X$5:$X$16398, $R186) -> 7.75 | N186: 7.75 | O186: 13.5 | P186: 57.40740741 | Q186: None | R186: 1.03 > Uganda | S186: 177 | T186: 3
A187: 1.03 | B187: Enabling framework | C187: Policy & Regulation | D187: Distributed energy regulatory framework | E187: Off-grid | F187: None | G187: Questions | H187: Africa | I187: Zambia | J187: User Defined | K187: 13.5 | L187: =IFERROR(IF($F187="None", 1, INDEX(SubIndicator!$L$15605:$U$16084, MATCH($F187&" > "&$I187, SubIndicator!$Y$15605:$Y$16084, 0), MATCH(int_Year, SubIndicator!$L$4:$U$4, 0))), 1) -> 1 | M187: =SUMIFS(SubIndicator!V$5:V$16398, SubIndicator!$X$5:$X$16398, $R187) -> 6.5 | N187: 6.5 | O187: 13.5 | P187: 48.14814815 | Q187: None | R187: 1.03 > Zambia | S187: 178 | T187: 3
A188: 1.03 | B188: Enabling framework | C188: Policy & Regulation | D188: Distributed energy regulatory framework | E188: Off-grid | F188: None | G188: Questions | H188: Africa | I188: Zimbabwe | J188: User Defined | K188: 13.5 | L188: =IFERROR(IF($F188="None", 1, INDEX(SubIndicator!$L$15605:$U$16084, MATCH($F188&" > "&$I188, SubIndicator!$Y$15605:$Y$16084, 0), MATCH(int_Year, SubIndicator!$L$4:$U$4, 0))), 1) -> 1 | M188: =SUMIFS(SubIndicator!V$5:V$16398, SubIndicator!$X$5:$X$16398, $R188) -> 6 | N188: 6 | O188: 13.5 | P188: 44.44444444 | Q188: None | R188: 1.03 > Zimbabwe | S188: 179 | T188: 3
A189: 1.03 | B189: Enabling framework | C189: Policy & Regulation | D189: Distributed energy regulatory framework | E189: Off-grid | F189: None | G189: Questions | H189: Asia | I189: Bangladesh | J189: User Defined | K189: 13.5 | L189: =IFERROR(IF($F189="None", 1, INDEX(SubIndicator!$L$15605:$U$16084, MATCH($F189&" > "&$I189, SubIndicator!$Y$15605:$Y$16084, 0), MATCH(int_Year, SubIndicator!$L$4:$U$4, 0))), 1) -> 1 | M189: =SUMIFS(SubIndicator!V$5:V$16398, SubIndicator!$X$5:$X$16398, $R189) -> 6.5 | N189: 6.5 | O189: 13.5 | P189: 48.14814815 | Q189: None | R189: 1.03 > Bangladesh | S189: 180 | T189: 3
A190: 1.03 | B190: Enabling framework | C190: Policy & Regulation | D190: Distributed energy regulatory framework | E190: Off-grid | F190: None | G190: Questions | H190: =H110 -> Asia | I190: China | J190: User Defined | K190: 13.5 | L190: =IFERROR(IF($F190="None", 1, INDEX(SubIndicator!$L$15605:$U$16084, MATCH($F190&" > "&$I190, SubIndicator!$Y$15605:$Y$16084, 0), MATCH(int_Year, SubIndicator!$L$4:$U$4, 0))), 1) -> 1 | M190: =SUMIFS(SubIndicator!V$5:V$16398, SubIndicator!$X$5:$X$16398, $R190) -> 0 | N190: 0 | O190: 13.5 | P190: 0 | Q190: None | R190: 1.03 > China | S190: 181 | T190: 3
A191: 1.03 | B191: Enabling framework | C191: Policy & Regulation | D191: Distributed energy regulatory framework | E191: Off-grid | F191: None | G191: Questions | H191: Asia | I191: China :: Fujian | J191: User Defined | K191: 13.5 | L191: =IFERROR(IF($F191="None", 1, INDEX(SubIndicator!$L$15605:$U$16084, MATCH($F191&" > "&$I191, SubIndicator!$Y$15605:$Y$16084, 0), MATCH(int_Year, SubIndicator!$L$4:$U$4, 0))), 1) -> 1 | M191: =SUMIFS(SubIndicator!V$5:V$16398, SubIndicator!$X$5:$X$16398, $R191) -> 0 | N191: 0 | O191: 13.5 | P191: 0 | Q191: None | R191: 1.03 > China :: Fujian | S191: 182 | T191: 3
A192: 1.03 | B192: Enabling framework | C192: Policy & Regulation | D192: Distributed energy regulatory framework | E192: Off-grid | F192: None | G192: Questions | H192: Asia | I192: China :: Gansu | J192: User Defined | K192: 13.5 | L192: =IFERROR(IF($F192="None", 1, INDEX(SubIndicator!$L$15605:$U$16084, MATCH($F192&" > "&$I192, SubIndicator!$Y$15605:$Y$16084, 0), MATCH(int_Year, SubIndicator!$L$4:$U$4, 0))), 1) -> 1 | M192: =SUMIFS(SubIndicator!V$5:V$16398, SubIndicator!$X$5:$X$16398, $R192) -> 0 | N192: 0 | O192: 13.5 | P192: 0 | Q192: None | R192: 1.03 > China :: Gansu | S192: 183 | T192: 3
A193: 1.03 | B193: Enabling framework | C193: Policy & Regulation | D193: Distributed energy regulatory framework | E193: Off-grid | F193: None | G193: Questions | H193: Asia | I193: China :: Guangdong | J193: User Defined | K193: 13.5 | L193: =IFERROR(IF($F193="None", 1, INDEX(SubIndicator!$L$15605:$U$16084, MATCH($F193&" > "&$I193, SubIndicator!$Y$15605:$Y$16084, 0), MATCH(int_Year, SubIndicator!$L$4:$U$4, 0))), 1) -> 1 | M193: =SUMIFS(SubIndicator!V$5:V$16398, SubIndicator!$X$5:$X$16398, $R193) -> 0 | N193: 0 | O193: 13.5 | P193: 0 | Q193: None | R193: 1.03 > China :: Guangdong | S193: 184 | T193: 3
A194: 1.03 | B194: Enabling framework | C194: Policy & Regulation | D194: Distributed energy regulatory framework | E194: Off-grid | F194: None | G194: Questions | H194: Asia | I194: China :: Hebei | J194: User Defined | K194: 13.5 | L194: =IFERROR(IF($F194="None", 1, INDEX(SubIndicator!$L$15605:$U$16084, MATCH($F194&" > "&$I194, SubIndicator!$Y$15605:$Y$16084, 0), MATCH(int_Year, SubIndicator!$L$4:$U$4, 0))), 1) -> 1 | M194: =SUMIFS(SubIndicator!V$5:V$16398, SubIndicator!$X$5:$X$16398, $R194) -> 0 | N194: 0 | O194: 13.5 | P194: 0 | Q194: None | R194: 1.03 > China :: Hebei | S194: 185 | T194: 3
A195: 1.03 | B195: Enabling framework | C195: Policy & Regulation | D195: Distributed energy regulatory framework | E195: Off-grid | F195: None | G195: Questions | H195: Asia | I195: China :: Heilongjiang | J195: User Defined | K195: 13.5 | L195: =IFERROR(IF($F195="None", 1, INDEX(SubIndicator!$L$15605:$U$16084, MATCH($F195&" > "&$I195, SubIndicator!$Y$15605:$Y$16084, 0), MATCH(int_Year, SubIndicator!$L$4:$U$4, 0))), 1) -> 1 | M195: =SUMIFS(SubIndicator!V$5:V$16398, SubIndicator!$X$5:$X$16398, $R195) -> 0 | N195: 0 | O195: 13.5 | P195: 0 | Q195: None | R195: 1.03 > China :: Heilongjiang | S195: 186 | T195: 3
A196: 1.03 | B196: Enabling framework | C196: Policy & Regulation | D196: Distributed energy regulatory framework | E196: Off-grid | F196: None | G196: Questions | H196: Asia | I196: China :: Hubei | J196: User Defined | K196: 13.5 | L196: =IFERROR(IF($F196="None", 1, INDEX(SubIndicator!$L$15605:$U$16084, MATCH($F196&" > "&$I196, SubIndicator!$Y$15605:$Y$16084, 0), MATCH(int_Year, SubIndicator!$L$4:$U$4, 0))), 1) -> 1 | M196: =SUMIFS(SubIndicator!V$5:V$16398, SubIndicator!$X$5:$X$16398, $R196) -> 0 | N196: 0 | O196: 13.5 | P196: 0 | Q196: None | R196: 1.03 > China :: Hubei | S196: 187 | T196: 3
A197: 1.03 | B197: Enabling framework | C197: Policy & Regulation | D197: Distributed energy regulatory framework | E197: Off-grid | F197: None | G197: Questions | H197: Asia | I197: China :: Inner Mongolia | J197: User Defined | K197: 13.5 | L197: =IFERROR(IF($F197="None", 1, INDEX(SubIndicator!$L$15605:$U$16084, MATCH($F197&" > "&$I197, SubIndicator!$Y$15605:$Y$16084, 0), MATCH(int_Year, SubIndicator!$L$4:$U$4, 0))), 1) -> 1 | M197: =SUMIFS(SubIndicator!V$5:V$16398, SubIndicator!$X$5:$X$16398, $R197) -> 0 | N197: 0 | O197: 13.5 | P197: 0 | Q197: None | R197: 1.03 > China :: Inner Mongolia | S197: 188 | T197: 3
A198: 1.03 | B198: Enabling framework | C198: Policy & Regulation | D198: Distributed energy regulatory framework | E198: Off-grid | F198: None | G198: Questions | H198: Asia | I198: China :: Jiangsu | J198: User Defined | K198: 13.5 | L198: =IFERROR(IF($F198="None", 1, INDEX(SubIndicator!$L$15605:$U$16084, MATCH($F198&" > "&$I198, SubIndicator!$Y$15605:$Y$16084, 0), MATCH(int_Year, SubIndicator!$L$4:$U$4, 0))), 1) -> 1 | M198: =SUMIFS(SubIndicator!V$5:V$16398, SubIndicator!$X$5:$X$16398, $R198) -> 0 | N198: 0 | O198: 13.5 | P198: 0 | Q198: None | R198: 1.03 > China :: Jiangsu | S198: 189 | T198: 3
A199: 1.03 | B199: Enabling framework | C199: Policy & Regulation | D199: Distributed energy regulatory framework | E199: Off-grid | F199: None | G199: Questions | H199: Asia | I199: China :: Jilin | J199: User Defined | K199: 13.5 | L199: =IFERROR(IF($F199="None", 1, INDEX(SubIndicator!$L$15605:$U$16084, MATCH($F199&" > "&$I199, SubIndicator!$Y$15605:$Y$16084, 0), MATCH(int_Year, SubIndicator!$L$4:$U$4, 0))), 1) -> 1 | M199: =SUMIFS(SubIndicator!V$5:V$16398, SubIndicator!$X$5:$X$16398, $R199) -> 0 | N199: 0 | O199: 13.5 | P199: 0 | Q199: None | R199: 1.03 > China :: Jilin | S199: 190 | T199: 3
A200: 1.03 | B200: Enabling framework | C200: Policy & Regulation | D200: Distributed energy regulatory framework | E200: Off-grid | F200: None | G200: Questions | H200: Asia | I200: China :: Qinghai | J200: User Defined | K200: 13.5 | L200: =IFERROR(IF($F200="None", 1, INDEX(SubIndicator!$L$15605:$U$16084, MATCH($F200&" > "&$I200, SubIndicator!$Y$15605:$Y$16084, 0), MATCH(int_Year, SubIndicator!$L$4:$U$4, 0))), 1) -> 1 | M200: =SUMIFS(SubIndicator!V$5:V$16398, SubIndicator!$X$5:$X$16398, $R200) -> 0 | N200: 0 | O200: 13.5 | P200: 0 | Q200: None | R200: 1.03 > China :: Qinghai | S200: 191 | T200: 3
A201: 1.03 | B201: Enabling framework | C201: Policy & Regulation | D201: Distributed energy regulatory framework | E201: Off-grid | F201: None | G201: Questions | H201: Asia | I201: China :: Shandong | J201: User Defined | K201: 13.5 | L201: =IFERROR(IF($F201="None", 1, INDEX(SubIndicator!$L$15605:$U$16084, MATCH($F201&" > "&$I201, SubIndicator!$Y$15605:$Y$16084, 0), MATCH(int_Year, SubIndicator!$L$4:$U$4, 0))), 1) -> 1 | M201: =SUMIFS(SubIndicator!V$5:V$16398, SubIndicator!$X$5:$X$16398, $R201) -> 0 | N201: 0 | O201: 13.5 | P201: 0 | Q201: None | R201: 1.03 > China :: Shandong | S201: 192 | T201: 3
A202: 1.03 | B202: Enabling framework | C202: Policy & Regulation | D202: Distributed energy regulatory framework | E202: Off-grid | F202: None | G202: Questions | H202: Asia | I202: China :: Sichuan | J202: User Defined | K202: 13.5 | L202: =IFERROR(IF($F202="None", 1, INDEX(SubIndicator!$L$15605:$U$16084, MATCH($F202&" > "&$I202, SubIndicator!$Y$15605:$Y$16084, 0), MATCH(int_Year, SubIndicator!$L$4:$U$4, 0))), 1) -> 1 | M202: =SUMIFS(SubIndicator!V$5:V$16398, SubIndicator!$X$5:$X$16398, $R202) -> 0 | N202: =IFERROR(IF(ISNUMBER(Q202), MAX(Q202/L202, 0), MAX(M202/L202, 0)), 0) -> 0 | O202: 13.5 | P202: =IFERROR(dbl_BenchmarkMax*IF(J202="Min", O202/N202, N202/O202), 0) -> 0 | Q202: None | R202: 1.03 > China :: Sichuan | S202: 193 | T202: 3
... 4127 more rows

Sheet SubIndicator (hidden)
A1: SUB-INDICATOR DATABASE
A3: Sub-Indicator Database | L3: Underlying Data | V3: Year
A4: Parameter | B4: Category | C4: Indicator ID | D4: Indicator | E4: Sub-Indicator | F4: On/off-grid | G4: Units | H4: Data Type | I4: Clean? | J4: Region | K4: Countries & States | L4: 2006 | M4: 2007 | N4: 2008 | O4: 2009 | P4: 2010 | Q4: 2011 | R4: 2012 | S4: 2013 | T4: 2014 | U4: 2015 | V4: =int_Year -> 2013 | W4: Sub-Indicator Rows | X4: Indicator Rows | Y4: Levelisation Rows | Z4: Row | AA4: Sub-Indicator
A5: Enabling framework | B5: Policy & Regulation | C5: 1.01 | D5: Clean energy policies | E5: Energy target | F5: Both | G5: Policy Types | H5: Hardcoded | I5: =IF(E5="","",IF(OR(E5="Wind",E5="Solar",E5="Geothermal",E5="Small Hydro",E5="Biofuels",E5="Biomass & Waste"), 1, 0)) -> 0 | J5: Africa | K5: Botswana | S5: 0 | V5: =INDEX($L5:$U5, 1, MATCH(V$4, $L$4:$U$4, 0)) -> 0 | W5: =C5&" > "&E5&" > "&K5 -> 1.01 > Energy target > Botswana | X5: =C5&" > "&K5 -> 1.01 > Botswana | Y5: =IF(A5="Levelisation", E5&" > "&K5, "None") -> None | Z5: 1 | AA5: 1
A6: Enabling framework | B6: Policy & Regulation | C6: 1.01 | D6: Clean energy policies | E6: Energy target | F6: Both | G6: Policy Types | H6: Hardcoded | I6: 0 | J6: Africa | K6: Cameroon | S6: 0 | V6: =INDEX($L6:$U6, 1, MATCH(V$4, $L$4:$U$4, 0)) -> 0 | W6: =C6&" > "&E6&" > "&K6 -> 1.01 > Energy target > Cameroon | X6: =C6&" > "&K6 -> 1.01 > Cameroon | Y6: =IF(A6="Levelisation", E6&" > "&K6, "None") -> None | Z6: 2 | AA6: 1
A7: Enabling framework | B7: Policy & Regulation | C7: 1.01 | D7: Clean energy policies | E7: Energy target | F7: Both | G7: Policy Types | H7: Hardcoded | I7: 0 | J7: Africa | K7: Cote d'Ivoire | S7: 1 | V7: 1 | W7: =C7&" > "&E7&" > "&K7 -> 1.01 > Energy target > Cote d'Ivoire | X7: =C7&" > "&K7 -> 1.01 > Cote d'Ivoire | Y7: =IF(A7="Levelisation", E7&" > "&K7, "None") -> None | Z7: 3 | AA7: 1
A8: Enabling framework | B8: Policy & Regulation | C8: 1.01 | D8: Clean energy policies | E8: Energy target | F8: Both | G8: Policy Types | H8: Hardcoded | I8: 0 | J8: Africa | K8: Democratic Republic of Congo | S8: 0 | V8: 0 | W8: =C8&" > "&E8&" > "&K8 -> 1.01 > Energy target > Democratic Republic of Congo | X8: =C8&" > "&K8 -> 1.01 > Democratic Republic of Congo | Y8: =IF(A8="Levelisation", E8&" > "&K8, "None") -> None | Z8: 4 | AA8: 1
A9: Enabling framework | B9: Policy & Regulation | C9: 1.01 | D9: Clean energy policies | E9: Energy target | F9: Both | G9: Policy Types | H9: Hardcoded | I9: 0 | J9: Africa | K9: Ethiopia | S9: 1 | V9: 1 | W9: 1.01 > Energy target > Ethiopia | X9: 1.01 > Ethiopia | Y9: None | Z9: 5 | AA9: 1
A10: Enabling framework | B10: Policy & Regulation | C10: 1.01 | D10: Clean energy policies | E10: Energy target | F10: Both | G10: Policy Types | H10: Hardcoded | I10: 0 | J10: Africa | K10: Ghana | S10: 1 | V10: 1 | W10: 1.01 > Energy target > Ghana | X10: 1.01 > Ghana | Y10: None | Z10: 6 | AA10: 1
A11: Enabling framework | B11: Policy & Regulation | C11: 1.01 | D11: Clean energy policies | E11: Energy target | F11: Both | G11: Policy Types | H11: Hardcoded | I11: 0 | J11: Africa | K11: Kenya | S11: 1 | V11: 1 | W11: 1.01 > Energy target > Kenya | X11: 1.01 > Kenya | Y11: None | Z11: 7 | AA11: 1
A12: Enabling framework | B12: Policy & Regulation | C12: 1.01 | D12: Clean energy policies | E12: Energy target | F12: Both | G12: Policy Types | H12: Hardcoded | I12: 0 | J12: Africa | K12: Liberia | S12: 1 | V12: 1 | W12: 1.01 > Energy target > Liberia | X12: 1.01 > Liberia | Y12: None | Z12: 8 | AA12: 1
A13: Enabling framework | B13: Policy & Regulation | C13: 1.01 | D13: Clean energy policies | E13: Energy target | F13: Both | G13: Policy Types | H13: Hardcoded | I13: 0 | J13: Africa | K13: Malawi | S13: 0 | V13: 0 | W13: 1.01 > Energy target > Malawi | X13: 1.01 > Malawi | Y13: None | Z13: 9 | AA13: 1
A14: Enabling framework | B14: Policy & Regulation | C14: 1.01 | D14: Clean energy policies | E14: Energy target | F14: Both | G14: Policy Types | H14: Hardcoded | I14: 0 | J14: Africa | K14: Mozambique | S14: 1 | V14: 1 | W14: 1.01 > Energy target > Mozambique | X14: 1.01 > Mozambique | Y14: None | Z14: 10 | AA14: 1
A15: Enabling framework | B15: Policy & Regulation | C15: 1.01 | D15: Clean energy policies | E15: Energy target | F15: Both | G15: Policy Types | H15: Hardcoded | I15: 0 | J15: Africa | K15: Nigeria | S15: 1 | V15: 1 | W15: 1.01 > Energy target > Nigeria | X15: 1.01 > Nigeria | Y15: None | Z15: 11 | AA15: 1
A16: Enabling framework | B16: Policy & Regulation | C16: 1.01 | D16: Clean energy policies | E16: Energy target | F16: Both | G16: Policy Types | H16: Hardcoded | I16: 0 | J16: Africa | K16: Rwanda | S16: 1 | V16: 1 | W16: 1.01 > Energy target > Rwanda | X16: 1.01 > Rwanda | Y16: None | Z16: 12 | AA16: 1
A17: Enabling framework | B17: Policy & Regulation | C17: 1.01 | D17: Clean energy policies | E17: Energy target | F17: Both | G17: Policy Types | H17: Hardcoded | I17: 0 | J17: Africa | K17: Senegal | S17: 1 | V17: 1 | W17: 1.01 > Energy target > Senegal | X17: 1.01 > Senegal | Y17: None | Z17: 13 | AA17: 1
A18: Enabling framework | B18: Policy & Regulation | C18: 1.01 | D18: Clean energy policies | E18: Energy target | F18: Both | G18: Policy Types | H18: Hardcoded | I18: 0 | J18: Africa | K18: Sierra Leone | S18: 0 | V18: 0 | W18: 1.01 > Energy target > Sierra Leone | X18: 1.01 > Sierra Leone | Y18: None | Z18: 14 | AA18: 1
A19: Enabling framework | B19: Policy & Regulation | C19: 1.01 | D19: Clean energy policies | E19: Energy target | F19: Both | G19: Policy Types | H19: Hardcoded | I19: 0 | J19: Africa | K19: South Africa | S19: 1 | V19: 1 | W19: 1.01 > Energy target > South Africa | X19: 1.01 > South Africa | Y19: None | Z19: 15 | AA19: 1
A20: Enabling framework | B20: Policy & Regulation | C20: 1.01 | D20: Clean energy policies | E20: Energy target | F20: Both | G20: Policy Types | H20: Hardcoded | I20: 0 | J20: Africa | K20: Tanzania | S20: 1 | V20: 1 | W20: 1.01 > Energy target > Tanzania | X20: 1.01 > Tanzania | Y20: None | Z20: 16 | AA20: 1
A21: Enabling framework | B21: Policy & Regulation | C21: 1.01 | D21: Clean energy policies | E21: Energy target | F21: Both | G21: Policy Types | H21: Hardcoded | I21: 0 | J21: Africa | K21: Uganda | S21: 1 | V21: 1 | W21: 1.01 > Energy target > Uganda | X21: 1.01 > Uganda | Y21: None | Z21: 17 | AA21: 1
A22: Enabling framework | B22: Policy & Regulation | C22: 1.01 | D22: Clean energy policies | E22: Energy target | F22: Both | G22: Policy Types | H22: Hardcoded | I22: 0 | J22: Africa | K22: Zambia | S22: 0 | V22: 0 | W22: 1.01 > Energy target > Zambia | X22: 1.01 > Zambia | Y22: None | Z22: 18 | AA22: 1
A23: Enabling framework | B23: Policy & Regulation | C23: 1.01 | D23: Clean energy policies | E23: Energy target | F23: Both | G23: Policy Types | H23: Hardcoded | I23: 0 | J23: Africa | K23: Zimbabwe | S23: 0 | V23: 0 | W23: 1.01 > Energy target > Zimbabwe | X23: 1.01 > Zimbabwe | Y23: None | Z23: 19 | AA23: 1
A24: Enabling framework | B24: Policy & Regulation | C24: 1.01 | D24: Clean energy policies | E24: Energy target | F24: Both | G24: Policy Types | H24: Hardcoded | I24: 0 | J24: Asia | K24: Bangladesh | S24: 1 | V24: 1 | W24: 1.01 > Energy target > Bangladesh | X24: 1.01 > Bangladesh | Y24: None | Z24: 20 | AA24: 1
A25: Enabling framework | B25: Policy & Regulation | C25: 1.01 | D25: Clean energy policies | E25: Energy target | F25: Both | G25: Policy Types | H25: Hardcoded | I25: 0 | J25: Asia | K25: China | S25: 1 | V25: 1 | W25: 1.01 > Energy target > China | X25: 1.01 > China | Y25: None | Z25: 21 | AA25: 1
A26: Enabling framework | B26: Policy & Regulation | C26: 1.01 | D26: Clean energy policies | E26: Energy target | F26: Both | G26: Policy Types | H26: Hardcoded | I26: 0 | J26: Asia | K26: China :: Fujian | V26: 0 | W26: 1.01 > Energy target > China :: Fujian | X26: 1.01 > China :: Fujian | Y26: None | Z26: 22 | AA26: 1
A27: Enabling framework | B27: Policy & Regulation | C27: 1.01 | D27: Clean energy policies | E27: Energy target | F27: Both | G27: Policy Types | H27: Hardcoded | I27: 0 | J27: Asia | K27: China :: Gansu | V27: 0 | W27: 1.01 > Energy target > China :: Gansu | X27: 1.01 > China :: Gansu | Y27: None | Z27: 23 | AA27: 1
A28: Enabling framework | B28: Policy & Regulation | C28: 1.01 | D28: Clean energy policies | E28: Energy target | F28: Both | G28: Policy Types | H28: Hardcoded | I28: 0 | J28: Asia | K28: China :: Guangdong | V28: 0 | W28: 1.01 > Energy target > China :: Guangdong | X28: 1.01 > China :: Guangdong | Y28: None | Z28: 24 | AA28: 1
A29: Enabling framework | B29: Policy & Regulation | C29: 1.01 | D29: Clean energy policies | E29: Energy target | F29: Both | G29: Policy Types | H29: Hardcoded | I29: 0 | J29: Asia | K29: China :: Hebei | V29: 0 | W29: 1.01 > Energy target > China :: Hebei | X29: 1.01 > China :: Hebei | Y29: None | Z29: 25 | AA29: 1
A30: Enabling framework | B30: Policy & Regulation | C30: 1.01 | D30: Clean energy policies | E30: Energy target | F30: Both | G30: Policy Types | H30: Hardcoded | I30: 0 | J30: Asia | K30: China :: Heilongjiang | V30: 0 | W30: 1.01 > Energy target > China :: Heilongjiang | X30: 1.01 > China :: Heilongjiang | Y30: None | Z30: 26 | AA30: 1
A31: Enabling framework | B31: Policy & Regulation | C31: 1.01 | D31: Clean energy policies | E31: Energy target | F31: Both | G31: Policy Types | H31: Hardcoded | I31: 0 | J31: Asia | K31: China :: Hubei | V31: 0 | W31: 1.01 > Energy target > China :: Hubei | X31: 1.01 > China :: Hubei | Y31: None | Z31: 27 | AA31: 1
A32: Enabling framework | B32: Policy & Regulation | C32: 1.01 | D32: Clean energy policies | E32: Energy target | F32: Both | G32: Policy Types | H32: Hardcoded | I32: 0 | J32: Asia | K32: China :: Inner Mongolia | V32: 0 | W32: 1.01 > Energy target > China :: Inner Mongolia | X32: 1.01 > China :: Inner Mongolia | Y32: None | Z32: 28 | AA32: 1
A33: Enabling framework | B33: Policy & Regulation | C33: 1.01 | D33: Clean energy policies | E33: Energy target | F33: Both | G33: Policy Types | H33: Hardcoded | I33: 0 | J33: Asia | K33: China :: Jiangsu | V33: 0 | W33: 1.01 > Energy target > China :: Jiangsu | X33: 1.01 > China :: Jiangsu | Y33: None | Z33: 29 | AA33: 1
A34: Enabling framework | B34: Policy & Regulation | C34: 1.01 | D34: Clean energy policies | E34: Energy target | F34: Both | G34: Policy Types | H34: Hardcoded | I34: 0 | J34: Asia | K34: China :: Jilin | V34: 0 | W34: 1.01 > Energy target > China :: Jilin | X34: 1.01 > China :: Jilin | Y34: None | Z34: 30 | AA34: 1
A35: Enabling framework | B35: Policy & Regulation | C35: 1.01 | D35: Clean energy policies | E35: Energy target | F35: Both | G35: Policy Types | H35: Hardcoded | I35: 0 | J35: Asia | K35: China :: Qinghai | V35: 0 | W35: 1.01 > Energy target > China :: Qinghai | X35: 1.01 > China :: Qinghai | Y35: None | Z35: 31 | AA35: 1
A36: Enabling framework | B36: Policy & Regulation | C36: 1.01 | D36: Clean energy policies | E36: Energy target | F36: Both | G36: Policy Types | H36: Hardcoded | I36: 0 | J36: Asia | K36: China :: Shandong | V36: 0 | W36: 1.01 > Energy target > China :: Shandong | X36: 1.01 > China :: Shandong | Y36: None | Z36: 32 | AA36: 1
A37: Enabling framework | B37: Policy & Regulation | C37: 1.01 | D37: Clean energy policies | E37: Energy target | F37: Both | G37: Policy Types | H37: Hardcoded | I37: 0 | J37: Asia | K37: China :: Sichuan | V37: 0 | W37: 1.01 > Energy target > China :: Sichuan | X37: 1.01 > China :: Sichuan | Y37: None | Z37: 33 | AA37: 1
A38: Enabling framework | B38: Policy & Regulation | C38: 1.01 | D38: Clean energy policies | E38: Energy target | F38: Both | G38: Policy Types | H38: Hardcoded | I38: 0 | J38: Asia | K38: China :: Tibet | V38: 0 | W38: 1.01 > Energy target > China :: Tibet | X38: 1.01 > China :: Tibet | Y38: None | Z38: 34 | AA38: 1
A39: Enabling framework | B39: Policy & Regulation | C39: 1.01 | D39: Clean energy policies | E39: Energy target | F39: Both | G39: Policy Types | H39: Hardcoded | I39: 0 | J39: Asia | K39: China :: Xinjiang | V39: 0 | W39: 1.01 > Energy target > China :: Xinjiang | X39: 1.01 > China :: Xinjiang | Y39: None | Z39: 35 | AA39: 1
A40: Enabling framework | B40: Policy & Regulation | C40: 1.01 | D40: Clean energy policies | E40: Energy target | F40: Both | G40: Policy Types | H40: Hardcoded | I40: 0 | J40: Asia | K40: China :: Yunnan | V40: 0 | W40: 1.01 > Energy target > China :: Yunnan | X40: 1.01 > China :: Yunnan | Y40: None | Z40: 36 | AA40: 1
A41: Enabling framework | B41: Policy & Regulation | C41: 1.01 | D41: Clean energy policies | E41: Energy target | F41: Both | G41: Policy Types | H41: Hardcoded | I41: 0 | J41: Asia | K41: India | S41: 1 | V41: 1 | W41: 1.01 > Energy target > India | X41: 1.01 > India | Y41: None | Z41: 37 | AA41: 1
A42: Enabling framework | B42: Policy & Regulation | C42: 1.01 | D42: Clean energy policies | E42: Energy target | F42: Both | G42: Policy Types | H42: Hardcoded | I42: 0 | J42: Asia | K42: India :: Andhra Pradesh | V42: 0 | W42: 1.01 > Energy target > India :: Andhra Pradesh | X42: 1.01 > India :: Andhra Pradesh | Y42: None | Z42: 38 | AA42: 1
A43: Enabling framework | B43: Policy & Regulation | C43: 1.01 | D43: Clean energy policies | E43: Energy target | F43: Both | G43: Policy Types | H43: Hardcoded | I43: 0 | J43: Asia | K43: India :: Gujarat | S43: 1 | V43: 1 | W43: 1.01 > Energy target > India :: Gujarat | X43: 1.01 > India :: Gujarat | Y43: None | Z43: 39 | AA43: 1
A44: Enabling framework | B44: Policy & Regulation | C44: 1.01 | D44: Clean energy policies | E44: Energy target | F44: Both | G44: Policy Types | H44: Hardcoded | I44: 0 | J44: Asia | K44: India :: Karnataka | S44: 1 | V44: 1 | W44: 1.01 > Energy target > India :: Karnataka | X44: 1.01 > India :: Karnataka | Y44: None | Z44: 40 | AA44: 1
A45: Enabling framework | B45: Policy & Regulation | C45: 1.01 | D45: Clean energy policies | E45: Energy target | F45: Both | G45: Policy Types | H45: Hardcoded | I45: 0 | J45: Asia | K45: India :: Madhya Pradesh | S45: 0 | V45: 0 | W45: 1.01 > Energy target > India :: Madhya Pradesh | X45: 1.01 > India :: Madhya Pradesh | Y45: None | Z45: 41 | AA45: 1
A46: Enabling framework | B46: Policy & Regulation | C46: 1.01 | D46: Clean energy policies | E46: Energy target | F46: Both | G46: Policy Types | H46: Hardcoded | I46: 0 | J46: Asia | K46: India :: Maharashtra | S46: 1 | V46: 1 | W46: 1.01 > Energy target > India :: Maharashtra | X46: 1.01 > India :: Maharashtra | Y46: None | Z46: 42 | AA46: 1
A47: Enabling framework | B47: Policy & Regulation | C47: 1.01 | D47: Clean energy policies | E47: Energy target | F47: Both | G47: Policy Types | H47: Hardcoded | I47: 0 | J47: Asia | K47: India :: Punjab | S47: 1 | V47: 1 | W47: 1.01 > Energy target > India :: Punjab | X47: 1.01 > India :: Punjab | Y47: None | Z47: 43 | AA47: 1
A48: Enabling framework | B48: Policy & Regulation | C48: 1.01 | D48: Clean energy policies | E48: Energy target | F48: Both | G48: Policy Types | H48: Hardcoded | I48: 0 | J48: Asia | K48: India :: Rajasthan | S48: 1 | V48: 1 | W48: 1.01 > Energy target > India :: Rajasthan | X48: 1.01 > India :: Rajasthan | Y48: None | Z48: 44 | AA48: 1
A49: Enabling framework | B49: Policy & Regulation | C49: 1.01 | D49: Clean energy policies | E49: Energy target | F49: Both | G49: Policy Types | H49: Hardcoded | I49: 0 | J49: Asia | K49: India :: Tamil Nadu | S49: 1 | V49: 1 | W49: 1.01 > Energy target > India :: Tamil Nadu | X49: 1.01 > India :: Tamil Nadu | Y49: None | Z49: 45 | AA49: 1
A50: Enabling framework | B50: Policy & Regulation | C50: 1.01 | D50: Clean energy policies | E50: Energy target | F50: Both | G50: Policy Types | H50: Hardcoded | I50: 0 | J50: Asia | K50: India :: Uttar Pradesh | S50: 1 | V50: 1 | W50: 1.01 > Energy target > India :: Uttar Pradesh | X50: 1.01 > India :: Uttar Pradesh | Y50: None | Z50: 46 | AA50: 1
A51: Enabling framework | B51: Policy & Regulation | C51: 1.01 | D51: Clean energy policies | E51: Energy target | F51: Both | G51: Policy Types | H51: Hardcoded | I51: 0 | J51: Asia | K51: India :: West Bengal | S51: 1 | V51: 1 | W51: 1.01 > Energy target > India :: West Bengal | X51: 1.01 > India :: West Bengal | Y51: None | Z51: 47 | AA51: 1
A52: Enabling framework | B52: Policy & Regulation | C52: 1.01 | D52: Clean energy policies | E52: Energy target | F52: Both | G52: Policy Types | H52: Hardcoded | I52: 0 | J52: Asia | K52: Indonesia | S52: 1 | V52: 1 | W52: 1.01 > Energy target > Indonesia | X52: 1.01 > Indonesia | Y52: None | Z52: 48 | AA52: 1
A53: Enabling framework | B53: Policy & Regulation | C53: 1.01 | D53: Clean energy policies | E53: Energy target | F53: Both | G53: Policy Types | H53: Hardcoded | I53: 0 | J53: Asia | K53: Myanmar | S53: 0 | V53: 0 | W53: 1.01 > Energy target > Myanmar | X53: 1.01 > Myanmar | Y53: None | Z53: 49 | AA53: 1
A54: Enabling framework | B54: Policy & Regulation | C54: 1.01 | D54: Clean energy policies | E54: Energy target | F54: Both | G54: Policy Types | H54: Hardcoded | I54: 0 | J54: Asia | K54: Nepal | S54: 1 | V54: 1 | W54: 1.01 > Energy target > Nepal | X54: 1.01 > Nepal | Y54: None | Z54: 50 | AA54: 1
A55: Enabling framework | B55: Policy & Regulation | C55: 1.01 | D55: Clean energy policies | E55: Energy target | F55: Both | G55: Policy Types | H55: Hardcoded | I55: 0 | J55: Asia | K55: Pakistan | S55: 1 | V55: 1 | W55: 1.01 > Energy target > Pakistan | X55: 1.01 > Pakistan | Y55: None | Z55: 51 | AA55: 1
A56: Enabling framework | B56: Policy & Regulation | C56: 1.01 | D56: Clean energy policies | E56: Energy target | F56: Both | G56: Policy Types | H56: Hardcoded | I56: 0 | J56: Asia | K56: Sri Lanka | S56: 1 | V56: 1 | W56: 1.01 > Energy target > Sri Lanka | X56: 1.01 > Sri Lanka | Y56: None | Z56: 52 | AA56: 1
A57: Enabling framework | B57: Policy & Regulation | C57: 1.01 | D57: Clean energy policies | E57: Energy target | F57: Both | G57: Policy Types | H57: Hardcoded | I57: 0 | J57: Asia | K57: Tajikistan | S57: 1 | V57: 1 | W57: 1.01 > Energy target > Tajikistan | X57: 1.01 > Tajikistan | Y57: None | Z57: 53 | AA57: 1
A58: Enabling framework | B58: Policy & Regulation | C58: 1.01 | D58: Clean energy policies | E58: Energy target | F58: Both | G58: Policy Types | H58: Hardcoded | I58: 0 | J58: Asia | K58: Vietnam | S58: 1 | V58: 1 | W58: 1.01 > Energy target > Vietnam | X58: 1.01 > Vietnam | Y58: None | Z58: 54 | AA58: 1
A59: Enabling framework | B59: Policy & Regulation | C59: 1.01 | D59: Clean energy policies | E59: Energy target | F59: Both | G59: Policy Types | H59: Hardcoded | I59: 0 | J59: LAC | K59: Argentina | S59: 1 | V59: 1 | W59: 1.01 > Energy target > Argentina | X59: 1.01 > Argentina | Y59: None | Z59: 55 | AA59: 1
A60: Enabling framework | B60: Policy & Regulation | C60: 1.01 | D60: Clean energy policies | E60: Energy target | F60: Both | G60: Policy Types | H60: Hardcoded | I60: 0 | J60: LAC | K60: Bahamas | S60: 0 | V60: 0 | W60: 1.01 > Energy target > Bahamas | X60: 1.01 > Bahamas | Y60: None | Z60: 56 | AA60: 1
A61: Enabling framework | B61: Policy & Regulation | C61: 1.01 | D61: Clean energy policies | E61: Energy target | F61: Both | G61: Policy Types | H61: Hardcoded | I61: 0 | J61: LAC | K61: Barbados | S61: 1 | V61: 1 | W61: 1.01 > Energy target > Barbados | X61: 1.01 > Barbados | Y61: None | Z61: 57 | AA61: 1
A62: Enabling framework | B62: Policy & Regulation | C62: 1.01 | D62: Clean energy policies | E62: Energy target | F62: Both | G62: Policy Types | H62: Hardcoded | I62: 0 | J62: LAC | K62: Belize | S62: 0 | V62: 0 | W62: 1.01 > Energy target > Belize | X62: 1.01 > Belize | Y62: None | Z62: 58 | AA62: 1
A63: Enabling framework | B63: Policy & Regulation | C63: 1.01 | D63: Clean energy policies | E63: Energy target | F63: Both | G63: Policy Types | H63: Hardcoded | I63: 0 | J63: LAC | K63: Bolivia | S63: 0 | V63: 0 | W63: 1.01 > Energy target > Bolivia | X63: 1.01 > Bolivia | Y63: None | Z63: 59 | AA63: 1
A64: Enabling framework | B64: Policy & Regulation | C64: 1.01 | D64: Clean energy policies | E64: Energy target | F64: Both | G64: Policy Types | H64: Hardcoded | I64: 0 | J64: LAC | K64: Brazil | S64: 0 | V64: 0 | W64: 1.01 > Energy target > Brazil | X64: 1.01 > Brazil | Y64: None | Z64: 60 | AA64: 1
A65: Enabling framework | B65: Policy & Regulation | C65: 1.01 | D65: Clean energy policies | E65: Energy target | F65: Both | G65: Policy Types | H65: Hardcoded | I65: 0 | J65: LAC | K65: Chile | S65: 1 | V65: 1 | W65: 1.01 > Energy target > Chile | X65: 1.01 > Chile | Y65: None | Z65: 61 | AA65: 1
A66: Enabling framework | B66: Policy & Regulation | C66: 1.01 | D66: Clean energy policies | E66: Energy target | F66: Both | G66: Policy Types | H66: Hardcoded | I66: 0 | J66: LAC | K66: Colombia | S66: 1 | V66: 1 | W66: 1.01 > Energy target > Colombia | X66: 1.01 > Colombia | Y66: None | Z66: 62 | AA66: 1
A67: Enabling framework | B67: Policy & Regulation | C67: 1.01 | D67: Clean energy policies | E67: Energy target | F67: Both | G67: Policy Types | H67: Hardcoded | I67: 0 | J67: LAC | K67: Costa Rica | S67: 1 | V67: 1 | W67: 1.01 > Energy target > Costa Rica | X67: 1.01 > Costa Rica | Y67: None | Z67: 63 | AA67: 1
A68: Enabling framework | B68: Policy & Regulation | C68: 1.01 | D68: Clean energy policies | E68: Energy target | F68: Both | G68: Policy Types | H68: Hardcoded | I68: 0 | J68: LAC | K68: Dominican Republic | S68: 0 | V68: 0 | W68: 1.01 > Energy target > Dominican Republic | X68: 1.01 > Dominican Republic | Y68: None | Z68: 64 | AA68: 1
A69: Enabling framework | B69: Policy & Regulation | C69: 1.01 | D69: Clean energy policies | E69: Energy target | F69: Both | G69: Policy Types | H69: Hardcoded | I69: =IF(E69="","",IF(OR(E69="Wind",E69="Solar",E69="Geothermal",E69="Small Hydro",E69="Biofuels",E69="Biomass & Waste"), 1, 0)) -> 0 | J69: LAC | K69: Ecuador | S69: 0 | V69: 0 | W69: 1.01 > Energy target > Ecuador | X69: 1.01 > Ecuador | Y69: None | Z69: 65 | AA69: 1
A70: Enabling framework | B70: Policy & Regulation | C70: 1.01 | D70: Clean energy policies | E70: Energy target | F70: Both | G70: Policy Types | H70: Hardcoded | I70: 0 | J70: LAC | K70: El Salvador | S70: 0 | V70: =INDEX($L70:$U70, 1, MATCH(V$4, $L$4:$U$4, 0)) -> 0 | W70: 1.01 > Energy target > El Salvador | X70: 1.01 > El Salvador | Y70: None | Z70: 66 | AA70: 1
A71: Enabling framework | B71: Policy & Regulation | C71: 1.01 | D71: Clean energy policies | E71: Energy target | F71: Both | G71: Policy Types | H71: Hardcoded | I71: 0 | J71: LAC | K71: Guatemala | S71: 0 | V71: 0 | W71: 1.01 > Energy target > Guatemala | X71: 1.01 > Guatemala | Y71: None | Z71: 67 | AA71: 1
A72: Enabling framework | B72: Policy & Regulation | C72: 1.01 | D72: Clean energy policies | E72: Energy target | F72: Both | G72: Policy Types | H72: Hardcoded | I72: 0 | J72: LAC | K72: Guyana | S72: 0 | V72: 0 | W72: =C72&" > "&E72&" > "&K72 -> 1.01 > Energy target > Guyana | X72: =C72&" > "&K72 -> 1.01 > Guyana | Y72: =IF(A72="Levelisation", E72&" > "&K72, "None") -> None | Z72: 68 | AA72: 1
A73: Enabling framework | B73: Policy & Regulation | C73: 1.01 | D73: Clean energy policies | E73: Energy target | F73: Both | G73: Policy Types | H73: Hardcoded | I73: 0 | J73: LAC | K73: Haiti | S73: 0 | V73: 0 | W73: 1.01 > Energy target > Haiti | X73: 1.01 > Haiti | Y73: None | Z73: 69 | AA73: 1
A74: Enabling framework | B74: Policy & Regulation | C74: 1.01 | D74: Clean energy policies | E74: Energy target | F74: Both | G74: Policy Types | H74: Hardcoded | I74: 0 | J74: LAC | K74: Honduras | S74: 1 | V74: 1 | W74: 1.01 > Energy target > Honduras | X74: 1.01 > Honduras | Y74: None | Z74: 70 | AA74: 1
A75: Enabling framework | B75: Policy & Regulation | C75: 1.01 | D75: Clean energy policies | E75: Energy target | F75: Both | G75: Policy Types | H75: Hardcoded | I75: 0 | J75: LAC | K75: Jamaica | S75: 1 | V75: 1 | W75: 1.01 > Energy target > Jamaica | X75: 1.01 > Jamaica | Y75: None | Z75: 71 | AA75: 1
A76: Enabling framework | B76: Policy & Regulation | C76: 1.01 | D76: Clean energy policies | E76: Energy target | F76: Both | G76: Policy Types | H76: Hardcoded | I76: 0 | J76: LAC | K76: Mexico | S76: 1 | V76: 1 | W76: 1.01 > Energy target > Mexico | X76: 1.01 > Mexico | Y76: None | Z76: 72 | AA76: 1
A77: Enabling framework | B77: Policy & Regulation | C77: 1.01 | D77: Clean energy policies | E77: Energy target | F77: Both | G77: Policy Types | H77: Hardcoded | I77: 0 | J77: LAC | K77: Nicaragua | S77: 1 | V77: 1 | W77: 1.01 > Energy target > Nicaragua | X77: 1.01 > Nicaragua | Y77: None | Z77: 73 | AA77: 1
A78: Enabling framework | B78: Policy & Regulation | C78: 1.01 | D78: Clean energy policies | E78: Energy target | F78: Both | G78: Policy Types | H78: Hardcoded | I78: 0 | J78: LAC | K78: Panama | S78: 0 | V78: 0 | W78: 1.01 > Energy target > Panama | X78: 1.01 > Panama | Y78: None | Z78: 74 | AA78: 1
A79: Enabling framework | B79: Policy & Regulation | C79: 1.01 | D79: Clean energy policies | E79: Energy target | F79: Both | G79: Policy Types | H79: Hardcoded | I79: 0 | J79: LAC | K79: Paraguay | S79: 1 | V79: 1 | W79: 1.01 > Energy target > Paraguay | X79: 1.01 > Paraguay | Y79: None | Z79: 75 | AA79: 1
A80: Enabling framework | B80: Policy & Regulation | C80: 1.01 | D80: Clean energy policies | E80: Energy target | F80: Both | G80: Policy Types | H80: Hardcoded | I80: 0 | J80: LAC | K80: Peru | S80: 0 | V80: 0 | W80: 1.01 > Energy target > Peru | X80: 1.01 > Peru | Y80: None | Z80: 76 | AA80: 1
A81: Enabling framework | B81: Policy & Regulation | C81: 1.01 | D81: Clean energy policies | E81: Energy target | F81: Both | G81: Policy Types | H81: Hardcoded | I81: 0 | J81: LAC | K81: Suriname | S81: 0 | V81: 0 | W81: 1.01 > Energy target > Suriname | X81: 1.01 > Suriname | Y81: None | Z81: 77 | AA81: 1
A82: Enabling framework | B82: Policy & Regulation | C82: 1.01 | D82: Clean energy policies | E82: Energy target | F82: Both | G82: Policy Types | H82: Hardcoded | I82: 0 | J82: LAC | K82: Trinidad & Tobago | S82: 0 | V82: 0 | W82: 1.01 > Energy target > Trinidad & Tobago | X82: 1.01 > Trinidad & Tobago | Y82: None | Z82: 78 | AA82: 1
A83: Enabling framework | B83: Policy & Regulation | C83: 1.01 | D83: Clean energy policies | E83: Energy target | F83: Both | G83: Policy Types | H83: Hardcoded | I83: 0 | J83: LAC | K83: Uruguay | S83: 1 | V83: 1 | W83: 1.01 > Energy target > Uruguay | X83: 1.01 > Uruguay | Y83: None | Z83: 79 | AA83: 1
A84: Enabling framework | B84: Policy & Regulation | C84: 1.01 | D84: Clean energy policies | E84: Energy target | F84: Both | G84: Policy Types | H84: Hardcoded | I84: 0 | J84: LAC | K84: Venezuela | S84: 0 | V84: 0 | W84: 1.01 > Energy target > Venezuela | X84: 1.01 > Venezuela | Y84: None | Z84: 80 | AA84: 1
A85: Enabling framework | B85: Policy & Regulation | C85: 1.01 | D85: Clean energy policies | E85: Auctions | F85: Both | G85: Policy Types | H85: Hardcoded | I85: 0 | J85: Africa | K85: Botswana | S85: 0 | V85: 0 | W85: 1.01 > Auctions > Botswana | X85: 1.01 > Botswana | Y85: None | Z85: 81 | AA85: =AA5+1 -> 2
A86: Enabling framework | B86: Policy & Regulation | C86: 1.01 | D86: Clean energy policies | E86: Auctions | F86: Both | G86: Policy Types | H86: Hardcoded | I86: 0 | J86: Africa | K86: Cameroon | S86: 0 | V86: 0 | W86: 1.01 > Auctions > Cameroon | X86: 1.01 > Cameroon | Y86: None | Z86: 82 | AA86: =AA6+1 -> 2
A87: Enabling framework | B87: Policy & Regulation | C87: 1.01 | D87: Clean energy policies | E87: Auctions | F87: Both | G87: Policy Types | H87: Hardcoded | I87: 0 | J87: Africa | K87: Cote d'Ivoire | S87: 1 | V87: 1 | W87: 1.01 > Auctions > Cote d'Ivoire | X87: 1.01 > Cote d'Ivoire | Y87: None | Z87: 83 | AA87: 2
A88: Enabling framework | B88: Policy & Regulation | C88: 1.01 | D88: Clean energy policies | E88: Auctions | F88: Both | G88: Policy Types | H88: Hardcoded | I88: 0 | J88: Africa | K88: Democratic Republic of Congo | S88: 0 | V88: 0 | W88: 1.01 > Auctions > Democratic Republic of Congo | X88: 1.01 > Democratic Republic of Congo | Y88: None | Z88: 84 | AA88: 2
A89: Enabling framework | B89: Policy & Regulation | C89: 1.01 | D89: Clean energy policies | E89: Auctions | F89: Both | G89: Policy Types | H89: Hardcoded | I89: 0 | J89: Africa | K89: Ethiopia | S89: 0 | V89: 0 | W89: 1.01 > Auctions > Ethiopia | X89: 1.01 > Ethiopia | Y89: None | Z89: 85 | AA89: 2
A90: Enabling framework | B90: Policy & Regulation | C90: 1.01 | D90: Clean energy policies | E90: Auctions | F90: Both | G90: Policy Types | H90: Hardcoded | I90: 0 | J90: Africa | K90: Ghana | S90: 0 | V90: 0 | W90: 1.01 > Auctions > Ghana | X90: 1.01 > Ghana | Y90: None | Z90: 86 | AA90: 2
A91: Enabling framework | B91: Policy & Regulation | C91: 1.01 | D91: Clean energy policies | E91: Auctions | F91: Both | G91: Policy Types | H91: Hardcoded | I91: 0 | J91: Africa | K91: Kenya | S91: 0 | V91: 0 | W91: 1.01 > Auctions > Kenya | X91: 1.01 > Kenya | Y91: None | Z91: 87 | AA91: 2
A92: Enabling framework | B92: Policy & Regulation | C92: 1.01 | D92: Clean energy policies | E92: Auctions | F92: Both | G92: Policy Types | H92: Hardcoded | I92: 0 | J92: Africa | K92: Liberia | S92: 0 | V92: 0 | W92: 1.01 > Auctions > Liberia | X92: 1.01 > Liberia | Y92: None | Z92: 88 | AA92: 2
A93: Enabling framework | B93: Policy & Regulation | C93: 1.01 | D93: Clean energy policies | E93: Auctions | F93: Both | G93: Policy Types | H93: Hardcoded | I93: 0 | J93: Africa | K93: Malawi | S93: 0 | V93: 0 | W93: 1.01 > Auctions > Malawi | X93: 1.01 > Malawi | Y93: None | Z93: 89 | AA93: 2
A94: Enabling framework | B94: Policy & Regulation | C94: 1.01 | D94: Clean energy policies | E94: Auctions | F94: Both | G94: Policy Types | H94: Hardcoded | I94: 0 | J94: Africa | K94: Mozambique | S94: 0 | V94: 0 | W94: 1.01 > Auctions > Mozambique | X94: 1.01 > Mozambique | Y94: None | Z94: 90 | AA94: 2
A95: Enabling framework | B95: Policy & Regulation | C95: 1.01 | D95: Clean energy policies | E95: Auctions | F95: Both | G95: Policy Types | H95: Hardcoded | I95: 0 | J95: Africa | K95: Nigeria | S95: 0 | V95: 0 | W95: 1.01 > Auctions > Nigeria | X95: 1.01 > Nigeria | Y95: None | Z95: 91 | AA95: 2
A96: Enabling framework | B96: Policy & Regulation | C96: 1.01 | D96: Clean energy policies | E96: Auctions | F96: Both | G96: Policy Types | H96: Hardcoded | I96: 0 | J96: Africa | K96: Rwanda | S96: 1 | V96: 1 | W96: 1.01 > Auctions > Rwanda | X96: 1.01 > Rwanda | Y96: None | Z96: 92 | AA96: 2
A97: Enabling framework | B97: Policy & Regulation | C97: 1.01 | D97: Clean energy policies | E97: Auctions | F97: Both | G97: Policy Types | H97: Hardcoded | I97: 0 | J97: Africa | K97: Senegal | S97: 1 | V97: 1 | W97: 1.01 > Auctions > Senegal | X97: 1.01 > Senegal | Y97: None | Z97: 93 | AA97: 2
A98: Enabling framework | B98: Policy & Regulation | C98: 1.01 | D98: Clean energy policies | E98: Auctions | F98: Both | G98: Policy Types | H98: Hardcoded | I98: 0 | J98: Africa | K98: Sierra Leone | S98: 0 | V98: 0 | W98: 1.01 > Auctions > Sierra Leone | X98: 1.01 > Sierra Leone | Y98: None | Z98: 94 | AA98: 2
A99: Enabling framework | B99: Policy & Regulation | C99: 1.01 | D99: Clean energy policies | E99: Auctions | F99: Both | G99: Policy Types | H99: Hardcoded | I99: 0 | J99: Africa | K99: South Africa | S99: 1 | V99: 1 | W99: 1.01 > Auctions > South Africa | X99: 1.01 > South Africa | Y99: None | Z99: 95 | AA99: 2
A100: Enabling framework | B100: Policy & Regulation | C100: 1.01 | D100: Clean energy policies | E100: Auctions | F100: Both | G100: Policy Types | H100: Hardcoded | I100: 0 | J100: Africa | K100: Tanzania | S100: 0 | V100: 0 | W100: 1.01 > Auctions > Tanzania | X100: 1.01 > Tanzania | Y100: None | Z100: 96 | AA100: 2
A101: Enabling framework | B101: Policy & Regulation | C101: 1.01 | D101: Clean energy policies | E101: Auctions | F101: Both | G101: Policy Types | H101: Hardcoded | I101: 0 | J101: Africa | K101: Uganda | S101: 1 | V101: 1 | W101: 1.01 > Auctions > Uganda | X101: 1.01 > Uganda | Y101: None | Z101: 97 | AA101: 2
A102: Enabling framework | B102: Policy & Regulation | C102: 1.01 | D102: Clean energy policies | E102: Auctions | F102: Both | G102: Policy Types | H102: Hardcoded | I102: 0 | J102: Africa | K102: Zambia | S102: 0 | V102: 0 | W102: 1.01 > Auctions > Zambia | X102: 1.01 > Zambia | Y102: None | Z102: 98 | AA102: 2
A103: Enabling framework | B103: Policy & Regulation | C103: 1.01 | D103: Clean energy policies | E103: Auctions | F103: Both | G103: Policy Types | H103: Hardcoded | I103: 0 | J103: Africa | K103: Zimbabwe | S103: 0 | V103: 0 | W103: 1.01 > Auctions > Zimbabwe | X103: 1.01 > Zimbabwe | Y103: None | Z103: 99 | AA103: 2
A104: Enabling framework | B104: Policy & Regulation | C104: 1.01 | D104: Clean energy policies | E104: Auctions | F104: Both | G104: Policy Types | H104: Hardcoded | I104: 0 | J104: Asia | K104: Bangladesh | S104: 1 | V104: 1 | W104: 1.01 > Auctions > Bangladesh | X104: 1.01 > Bangladesh | Y104: None | Z104: 100 | AA104: 2
A105: Enabling framework | B105: Policy & Regulation | C105: 1.01 | D105: Clean energy policies | E105: Auctions | F105: Both | G105: Policy Types | H105: Hardcoded | I105: 0 | J105: Asia | K105: China | S105: 1 | V105: 1 | W105: 1.01 > Auctions > China | X105: 1.01 > China | Y105: None | Z105: 101 | AA105: 2
A106: Enabling framework | B106: Policy & Regulation | C106: 1.01 | D106: Clean energy policies | E106: Auctions | F106: Both | G106: Policy Types | H106: Hardcoded | I106: 0 | J106: Asia | K106: China :: Fujian | S106: 0 | V106: 0 | W106: 1.01 > Auctions > China :: Fujian | X106: 1.01 > China :: Fujian | Y106: None | Z106: 102 | AA106: 2
A107: Enabling framework | B107: Policy & Regulation | C107: 1.01 | D107: Clean energy policies | E107: Auctions | F107: Both | G107: Policy Types | H107: Hardcoded | I107: 0 | J107: Asia | K107: China :: Gansu | S107: 0 | V107: 0 | W107: 1.01 > Auctions > China :: Gansu | X107: 1.01 > China :: Gansu | Y107: None | Z107: 103 | AA107: 2
A108: Enabling framework | B108: Policy & Regulation | C108: 1.01 | D108: Clean energy policies | E108: Auctions | F108: Both | G108: Policy Types | H108: Hardcoded | I108: 0 | J108: Asia | K108: China :: Guangdong | S108: 0 | V108: 0 | W108: 1.01 > Auctions > China :: Guangdong | X108: 1.01 > China :: Guangdong | Y108: None | Z108: 104 | AA108: 2
A109: Enabling framework | B109: Policy & Regulation | C109: 1.01 | D109: Clean energy policies | E109: Auctions | F109: Both | G109: Policy Types | H109: Hardcoded | I109: 0 | J109: Asia | K109: China :: Hebei | S109: 0 | V109: 0 | W109: 1.01 > Auctions > China :: Hebei | X109: 1.01 > China :: Hebei | Y109: None | Z109: 105 | AA109: 2
A110: Enabling framework | B110: Policy & Regulation | C110: 1.01 | D110: Clean energy policies | E110: Auctions | F110: Both | G110: Policy Types | H110: Hardcoded | I110: 0 | J110: Asia | K110: China :: Heilongjiang | S110: 0 | V110: 0 | W110: 1.01 > Auctions > China :: Heilongjiang | X110: 1.01 > China :: Heilongjiang | Y110: None | Z110: 106 | AA110: 2
A111: Enabling framework | B111: Policy & Regulation | C111: 1.01 | D111: Clean energy policies | E111: Auctions | F111: Both | G111: Policy Types | H111: Hardcoded | I111: 0 | J111: Asia | K111: China :: Hubei | S111: 0 | V111: 0 | W111: 1.01 > Auctions > China :: Hubei | X111: 1.01 > China :: Hubei | Y111: None | Z111: 107 | AA111: 2
A112: Enabling framework | B112: Policy & Regulation | C112: 1.01 | D112: Clean energy policies | E112: Auctions | F112: Both | G112: Policy Types | H112: Hardcoded | I112: 0 | J112: Asia | K112: China :: Inner Mongolia | S112: 0 | V112: 0 | W112: 1.01 > Auctions > China :: Inner Mongolia | X112: 1.01 > China :: Inner Mongolia | Y112: None | Z112: 108 | AA112: 2
A113: Enabling framework | B113: Policy & Regulation | C113: 1.01 | D113: Clean energy policies | E113: Auctions | F113: Both | G113: Policy Types | H113: Hardcoded | I113: 0 | J113: Asia | K113: China :: Jiangsu | S113: 0 | V113: 0 | W113: 1.01 > Auctions > China :: Jiangsu | X113: 1.01 > China :: Jiangsu | Y113: None | Z113: 109 | AA113: 2
A114: Enabling framework | B114: Policy & Regulation | C114: 1.01 | D114: Clean energy policies | E114: Auctions | F114: Both | G114: Policy Types | H114: Hardcoded | I114: 0 | J114: Asia | K114: China :: Jilin | S114: 0 | V114: 0 | W114: 1.01 > Auctions > China :: Jilin | X114: 1.01 > China :: Jilin | Y114: None | Z114: 110 | AA114: 2
A115: Enabling framework | B115: Policy & Regulation | C115: 1.01 | D115: Clean energy policies | E115: Auctions | F115: Both | G115: Policy Types | H115: Hardcoded | I115: 0 | J115: Asia | K115: China :: Qinghai | S115: 0 | V115: 0 | W115: 1.01 > Auctions > China :: Qinghai | X115: 1.01 > China :: Qinghai | Y115: None | Z115: 111 | AA115: 2
A116: Enabling framework | B116: Policy & Regulation | C116: 1.01 | D116: Clean energy policies | E116: Auctions | F116: Both | G116: Policy Types | H116: Hardcoded | I116: 0 | J116: Asia | K116: China :: Shandong | S116: 0 | V116: 0 | W116: 1.01 > Auctions > China :: Shandong | X116: 1.01 > China :: Shandong | Y116: None | Z116: 112 | AA116: 2
A117: Enabling framework | B117: Policy & Regulation | C117: 1.01 | D117: Clean energy policies | E117: Auctions | F117: Both | G117: Policy Types | H117: Hardcoded | I117: 0 | J117: Asia | K117: China :: Sichuan | S117: 0 | V117: 0 | W117: 1.01 > Auctions > China :: Sichuan | X117: 1.01 > China :: Sichuan | Y117: None | Z117: 113 | AA117: 2
A118: Enabling framework | B118: Policy & Regulation | C118: 1.01 | D118: Clean energy policies | E118: Auctions | F118: Both | G118: Policy Types | H118: Hardcoded | I118: 0 | J118: Asia | K118: China :: Tibet | S118: 0 | V118: 0 | W118: 1.01 > Auctions > China :: Tibet | X118: 1.01 > China :: Tibet | Y118: None | Z118: 114 | AA118: 2
A119: Enabling framework | B119: Policy & Regulation | C119: 1.01 | D119: Clean energy policies | E119: Auctions | F119: Both | G119: Policy Types | H119: Hardcoded | I119: 0 | J119: Asia | K119: China :: Xinjiang | S119: 0 | V119: 0 | W119: 1.01 > Auctions > China :: Xinjiang | X119: 1.01 > China :: Xinjiang | Y119: None | Z119: 115 | AA119: 2
A120: Enabling framework | B120: Policy & Regulation | C120: 1.01 | D120: Clean energy policies | E120: Auctions | F120: Both | G120: Policy Types | H120: Hardcoded | I120: 0 | J120: Asia | K120: China :: Yunnan | S120: 0 | V120: 0 | W120: 1.01 > Auctions > China :: Yunnan | X120: 1.01 > China :: Yunnan | Y120: None | Z120: 116 | AA120: 2
A121: Enabling framework | B121: Policy & Regulation | C121: 1.01 | D121: Clean energy policies | E121: Auctions | F121: Both | G121: Policy Types | H121: Hardcoded | I121: 0 | J121: Asia | K121: India | S121: 1 | V121: 1 | W121: 1.01 > Auctions > India | X121: 1.01 > India | Y121: None | Z121: 117 | AA121: 2
A122: Enabling framework | B122: Policy & Regulation | C122: 1.01 | D122: Clean energy policies | E122: Auctions | F122: Both | G122: Policy Types | H122: Hardcoded | I122: 0 | J122: Asia | K122: India :: Andhra Pradesh | S122: 0 | V122: 0 | W122: 1.01 > Auctions > India :: Andhra Pradesh | X122: 1.01 > India :: Andhra Pradesh | Y122: None | Z122: 118 | AA122: 2
A123: Enabling framework | B123: Policy & Regulation | C123: 1.01 | D123: Clean energy policies | E123: Auctions | F123: Both | G123: Policy Types | H123: Hardcoded | I123: 0 | J123: Asia | K123: India :: Gujarat | S123: 0 | V123: 0 | W123: 1.01 > Auctions > India :: Gujarat | X123: 1.01 > India :: Gujarat | Y123: None | Z123: 119 | AA123: 2
A124: Enabling framework | B124: Policy & Regulation | C124: 1.01 | D124: Clean energy policies | E124: Auctions | F124: Both | G124: Policy Types | H124: Hardcoded | I124: 0 | J124: Asia | K124: India :: Karnataka | S124: 1 | V124: 1 | W124: 1.01 > Auctions > India :: Karnataka | X124: 1.01 > India :: Karnataka | Y124: None | Z124: 120 | AA124: 2
A125: Enabling framework | B125: Policy & Regulation | C125: 1.01 | D125: Clean energy policies | E125: Auctions | F125: Both | G125: Policy Types | H125: Hardcoded | I125: 0 | J125: Asia | K125: India :: Madhya Pradesh | S125: 1 | V125: 1 | W125: 1.01 > Auctions > India :: Madhya Pradesh | X125: 1.01 > India :: Madhya Pradesh | Y125: None | Z125: 121 | AA125: 2
A126: Enabling framework | B126: Policy & Regulation | C126: 1.01 | D126: Clean energy policies | E126: Auctions | F126: Both | G126: Policy Types | H126: Hardcoded | I126: 0 | J126: Asia | K126: India :: Maharashtra | S126: 0 | V126: 0 | W126: 1.01 > Auctions > India :: Maharashtra | X126: 1.01 > India :: Maharashtra | Y126: None | Z126: 122 | AA126: 2
A127: Enabling framework | B127: Policy & Regulation | C127: 1.01 | D127: Clean energy policies | E127: Auctions | F127: Both | G127: Policy Types | H127: Hardcoded | I127: 0 | J127: Asia | K127: India :: Punjab | S127: 1 | V127: 1 | W127: 1.01 > Auctions > India :: Punjab | X127: 1.01 > India :: Punjab | Y127: None | Z127: 123 | AA127: 2
A128: Enabling framework | B128: Policy & Regulation | C128: 1.01 | D128: Clean energy policies | E128: Auctions | F128: Both | G128: Policy Types | H128: Hardcoded | I128: 0 | J128: Asia | K128: India :: Rajasthan | S128: 1 | V128: 1 | W128: 1.01 > Auctions > India :: Rajasthan | X128: 1.01 > India :: Rajasthan | Y128: None | Z128: 124 | AA128: 2
A129: Enabling framework | B129: Policy & Regulation | C129: 1.01 | D129: Clean energy policies | E129: Auctions | F129: Both | G129: Policy Types | H129: Hardcoded | I129: 0 | J129: Asia | K129: India :: Tamil Nadu | S129: 1 | V129: 1 | W129: 1.01 > Auctions > India :: Tamil Nadu | X129: 1.01 > India :: Tamil Nadu | Y129: None | Z129: 125 | AA129: 2
A130: Enabling framework | B130: Policy & Regulation | C130: 1.01 | D130: Clean energy policies | E130: Auctions | F130: Both | G130: Policy Types | H130: Hardcoded | I130: 0 | J130: Asia | K130: India :: Uttar Pradesh | S130: 1 | V130: 1 | W130: 1.01 > Auctions > India :: Uttar Pradesh | X130: 1.01 > India :: Uttar Pradesh | Y130: None | Z130: 126 | AA130: 2
A131: Enabling framework | B131: Policy & Regulation | C131: 1.01 | D131: Clean energy policies | E131: Auctions | F131: Both | G131: Policy Types | H131: Hardcoded | I131: 0 | J131: Asia | K131: India :: West Bengal | S131: 0 | V131: 0 | W131: 1.01 > Auctions > India :: West Bengal | X131: 1.01 > India :: West Bengal | Y131: None | Z131: 127 | AA131: 2
A132: Enabling framework | B132: Policy & Regulation | C132: 1.01 | D132: Clean energy policies | E132: Auctions | F132: Both | G132: Policy Types | H132: Hardcoded | I132: 0 | J132: Asia | K132: Indonesia | S132: 1 | V132: 1 | W132: 1.01 > Auctions > Indonesia | X132: 1.01 > Indonesia | Y132: None | Z132: 128 | AA132: 2
A133: Enabling framework | B133: Policy & Regulation | C133: 1.01 | D133: Clean energy policies | E133: Auctions | F133: Both | G133: Policy Types | H133: Hardcoded | I133: =IF(E133="","",IF(OR(E133="Wind",E133="Solar",E133="Geothermal",E133="Small Hydro",E133="Biofuels",E133="Biomass & Waste"), 1, 0)) -> 0 | J133: Asia | K133: Myanmar | S133: 0 | V133: 0 | W133: 1.01 > Auctions > Myanmar | X133: 1.01 > Myanmar | Y133: None | Z133: 129 | AA133: 2
A134: Enabling framework | B134: Policy & Regulation | C134: 1.01 | D134: Clean energy policies | E134: Auctions | F134: Both | G134: Policy Types | H134: Hardcoded | I134: 0 | J134: Asia | K134: Nepal | S134: 0 | V134: =INDEX($L134:$U134, 1, MATCH(V$4, $L$4:$U$4, 0)) -> 0 | W134: 1.01 > Auctions > Nepal | X134: 1.01 > Nepal | Y134: None | Z134: 130 | AA134: 2
A135: Enabling framework | B135: Policy & Regulation | C135: 1.01 | D135: Clean energy policies | E135: Auctions | F135: Both | G135: Policy Types | H135: Hardcoded | I135: 0 | J135: Asia | K135: Pakistan | S135: 0 | V135: 0 | W135: 1.01 > Auctions > Pakistan | X135: 1.01 > Pakistan | Y135: None | Z135: 131 | AA135: 2
A136: Enabling framework | B136: Policy & Regulation | C136: 1.01 | D136: Clean energy policies | E136: Auctions | F136: Both | G136: Policy Types | H136: Hardcoded | I136: 0 | J136: Asia | K136: Sri Lanka | S136: 0 | V136: 0 | W136: =C136&" > "&E136&" > "&K136 -> 1.01 > Auctions > Sri Lanka | X136: =C136&" > "&K136 -> 1.01 > Sri Lanka | Y136: =IF(A136="Levelisation", E136&" > "&K136, "None") -> None | Z136: 132 | AA136: 2
A137: Enabling framework | B137: Policy & Regulation | C137: 1.01 | D137: Clean energy policies | E137: Auctions | F137: Both | G137: Policy Types | H137: Hardcoded | I137: 0 | J137: Asia | K137: Tajikistan | S137: 0 | V137: 0 | W137: 1.01 > Auctions > Tajikistan | X137: 1.01 > Tajikistan | Y137: None | Z137: 133 | AA137: 2
A138: Enabling framework | B138: Policy & Regulation | C138: 1.01 | D138: Clean energy policies | E138: Auctions | F138: Both | G138: Policy Types | H138: Hardcoded | I138: 0 | J138: Asia | K138: Vietnam | S138: 0 | V138: 0 | W138: 1.01 > Auctions > Vietnam | X138: 1.01 > Vietnam | Y138: None | Z138: 134 | AA138: 2
A139: Enabling framework | B139: Policy & Regulation | C139: 1.01 | D139: Clean energy policies | E139: Auctions | F139: Both | G139: Policy Types | H139: Hardcoded | I139: 0 | J139: LAC | K139: Argentina | S139: 1 | V139: 1 | W139: 1.01 > Auctions > Argentina | X139: 1.01 > Argentina | Y139: None | Z139: 135 | AA139: 2
A140: Enabling framework | B140: Policy & Regulation | C140: 1.01 | D140: Clean energy policies | E140: Auctions | F140: Both | G140: Policy Types | H140: Hardcoded | I140: 0 | J140: LAC | K140: Bahamas | S140: 0 | V140: 0 | W140: 1.01 > Auctions > Bahamas | X140: 1.01 > Bahamas | Y140: None | Z140: 136 | AA140: 2
A141: Enabling framework | B141: Policy & Regulation | C141: 1.01 | D141: Clean energy policies | E141: Auctions | F141: Both | G141: Policy Types | H141: Hardcoded | I141: 0 | J141: LAC | K141: Barbados | S141: 0 | V141: 0 | W141: 1.01 > Auctions > Barbados | X141: 1.01 > Barbados | Y141: None | Z141: 137 | AA141: 2
A142: Enabling framework | B142: Policy & Regulation | C142: 1.01 | D142: Clean energy policies | E142: Auctions | F142: Both | G142: Policy Types | H142: Hardcoded | I142: 0 | J142: LAC | K142: Belize | S142: 1 | V142: 1 | W142: 1.01 > Auctions > Belize | X142: 1.01 > Belize | Y142: None | Z142: 138 | AA142: 2
A143: Enabling framework | B143: Policy & Regulation | C143: 1.01 | D143: Clean energy policies | E143: Auctions | F143: Both | G143: Policy Types | H143: Hardcoded | I143: 0 | J143: LAC | K143: Bolivia | S143: 0 | V143: 0 | W143: 1.01 > Auctions > Bolivia | X143: 1.01 > Bolivia | Y143: None | Z143: 139 | AA143: 2
A144: Enabling framework | B144: Policy & Regulation | C144: 1.01 | D144: Clean energy policies | E144: Auctions | F144: Both | G144: Policy Types | H144: Hardcoded | I144: 0 | J144: LAC | K144: Brazil | S144: 1 | V144: 1 | W144: 1.01 > Auctions > Brazil | X144: 1.01 > Brazil | Y144: None | Z144: 140 | AA144: 2
A145: Enabling framework | B145: Policy & Regulation | C145: 1.01 | D145: Clean energy policies | E145: Auctions | F145: Both | G145: Policy Types | H145: Hardcoded | I145: 0 | J145: LAC | K145: Chile | S145: 0 | V145: 0 | W145: 1.01 > Auctions > Chile | X145: 1.01 > Chile | Y145: None | Z145: 141 | AA145: 2
A146: Enabling framework | B146: Policy & Regulation | C146: 1.01 | D146: Clean energy policies | E146: Auctions | F146: Both | G146: Policy Types | H146: Hardcoded | I146: 0 | J146: LAC | K146: Colombia | S146: 0 | V146: 0 | W146: 1.01 > Auctions > Colombia | X146: 1.01 > Colombia | Y146: None | Z146: 142 | AA146: 2
A147: Enabling framework | B147: Policy & Regulation | C147: 1.01 | D147: Clean energy policies | E147: Auctions | F147: Both | G147: Policy Types | H147: Hardcoded | I147: 0 | J147: LAC | K147: Costa Rica | S147: 1 | V147: 1 | W147: 1.01 > Auctions > Costa Rica | X147: 1.01 > Costa Rica | Y147: None | Z147: 143 | AA147: 2
A148: Enabling framework | B148: Policy & Regulation | C148: 1.01 | D148: Clean energy policies | E148: Auctions | F148: Both | G148: Policy Types | H148: Hardcoded | I148: 0 | J148: LAC | K148: Dominican Republic | S148: 0 | V148: 0 | W148: 1.01 > Auctions > Dominican Republic | X148: 1.01 > Dominican Republic | Y148: None | Z148: 144 | AA148: 2
A149: Enabling framework | B149: Policy & Regulation | C149: 1.01 | D149: Clean energy policies | E149: Auctions | F149: Both | G149: Policy Types | H149: Hardcoded | I149: 0 | J149: LAC | K149: Ecuador | S149: 0 | V149: 0 | W149: 1.01 > Auctions > Ecuador | X149: 1.01 > Ecuador | Y149: None | Z149: 145 | AA149: 2
A150: Enabling framework | B150: Policy & Regulation | C150: 1.01 | D150: Clean energy policies | E150: Auctions | F150: Both | G150: Policy Types | H150: Hardcoded | I150: 0 | J150: LAC | K150: El Salvador | S150: 1 | V150: 1 | W150: 1.01 > Auctions > El Salvador | X150: 1.01 > El Salvador | Y150: None | Z150: 146 | AA150: =AA70+1 -> 2
A151: Enabling framework | B151: Policy & Regulation | C151: 1.01 | D151: Clean energy policies | E151: Auctions | F151: Both | G151: Policy Types | H151: Hardcoded | I151: 0 | J151: LAC | K151: Guatemala | S151: 1 | V151: 1 | W151: 1.01 > Auctions > Guatemala | X151: 1.01 > Guatemala | Y151: None | Z151: 147 | AA151: 2
A152: Enabling framework | B152: Policy & Regulation | C152: 1.01 | D152: Clean energy policies | E152: Auctions | F152: Both | G152: Policy Types | H152: Hardcoded | I152: 0 | J152: LAC | K152: Guyana | S152: 0 | V152: 0 | W152: 1.01 > Auctions > Guyana | X152: 1.01 > Guyana | Y152: None | Z152: 148 | AA152: 2
A153: Enabling framework | B153: Policy & Regulation | C153: 1.01 | D153: Clean energy policies | E153: Auctions | F153: Both | G153: Policy Types | H153: Hardcoded | I153: 0 | J153: LAC | K153: Haiti | S153: 0 | V153: 0 | W153: 1.01 > Auctions > Haiti | X153: 1.01 > Haiti | Y153: None | Z153: 149 | AA153: 2
A154: Enabling framework | B154: Policy & Regulation | C154: 1.01 | D154: Clean energy policies | E154: Auctions | F154: Both | G154: Policy Types | H154: Hardcoded | I154: 0 | J154: LAC | K154: Honduras | S154: 1 | V154: 1 | W154: 1.01 > Auctions > Honduras | X154: 1.01 > Honduras | Y154: None | Z154: 150 | AA154: 2
A155: Enabling framework | B155: Policy & Regulation | C155: 1.01 | D155: Clean energy policies | E155: Auctions | F155: Both | G155: Policy Types | H155: Hardcoded | I155: 0 | J155: LAC | K155: Jamaica | S155: 1 | V155: 1 | W155: 1.01 > Auctions > Jamaica | X155: 1.01 > Jamaica | Y155: None | Z155: 151 | AA155: 2
A156: Enabling framework | B156: Policy & Regulation | C156: 1.01 | D156: Clean energy policies | E156: Auctions | F156: Both | G156: Policy Types | H156: Hardcoded | I156: 0 | J156: LAC | K156: Mexico | S156: 0 | V156: 0 | W156: 1.01 > Auctions > Mexico | X156: 1.01 > Mexico | Y156: None | Z156: 152 | AA156: 2
A157: Enabling framework | B157: Policy & Regulation | C157: 1.01 | D157: Clean energy policies | E157: Auctions | F157: Both | G157: Policy Types | H157: Hardcoded | I157: 0 | J157: LAC | K157: Nicaragua | S157: 0 | V157: 0 | W157: 1.01 > Auctions > Nicaragua | X157: 1.01 > Nicaragua | Y157: None | Z157: 153 | AA157: 2
A158: Enabling framework | B158: Policy & Regulation | C158: 1.01 | D158: Clean energy policies | E158: Auctions | F158: Both | G158: Policy Types | H158: Hardcoded | I158: 0 | J158: LAC | K158: Panama | S158: 1 | V158: 1 | W158: 1.01 > Auctions > Panama | X158: 1.01 > Panama | Y158: None | Z158: 154 | AA158: 2
A159: Enabling framework | B159: Policy & Regulation | C159: 1.01 | D159: Clean energy policies | E159: Auctions | F159: Both | G159: Policy Types | H159: Hardcoded | I159: 0 | J159: LAC | K159: Paraguay | S159: 0 | V159: 0 | W159: 1.01 > Auctions > Paraguay | X159: 1.01 > Paraguay | Y159: None | Z159: 155 | AA159: 2
A160: Enabling framework | B160: Policy & Regulation | C160: 1.01 | D160: Clean energy policies | E160: Auctions | F160: Both | G160: Policy Types | H160: Hardcoded | I160: 0 | J160: LAC | K160: Peru | S160: 1 | V160: 1 | W160: 1.01 > Auctions > Peru | X160: 1.01 > Peru | Y160: None | Z160: 156 | AA160: 2
A161: Enabling framework | B161: Policy & Regulation | C161: 1.01 | D161: Clean energy policies | E161: Auctions | F161: Both | G161: Policy Types | H161: Hardcoded | I161: 0 | J161: LAC | K161: Suriname | S161: 0 | V161: 0 | W161: 1.01 > Auctions > Suriname | X161: 1.01 > Suriname | Y161: None | Z161: 157 | AA161: 2
A162: Enabling framework | B162: Policy & Regulation | C162: 1.01 | D162: Clean energy policies | E162: Auctions | F162: Both | G162: Policy Types | H162: Hardcoded | I162: 0 | J162: LAC | K162: Trinidad & Tobago | S162: 0 | V162: 0 | W162: 1.01 > Auctions > Trinidad & Tobago | X162: 1.01 > Trinidad & Tobago | Y162: None | Z162: 158 | AA162: 2
A163: Enabling framework | B163: Policy & Regulation | C163: 1.01 | D163: Clean energy policies | E163: Auctions | F163: Both | G163: Policy Types | H163: Hardcoded | I163: 0 | J163: LAC | K163: Uruguay | S163: 1 | V163: 1 | W163: 1.01 > Auctions > Uruguay | X163: 1.01 > Uruguay | Y163: None | Z163: 159 | AA163: 2
A164: Enabling framework | B164: Policy & Regulation | C164: 1.01 | D164: Clean energy policies | E164: Auctions | F164: Both | G164: Policy Types | H164: Hardcoded | I164: 0 | J164: LAC | K164: Venezuela | S164: 0 | V164: 0 | W164: 1.01 > Auctions > Venezuela | X164: 1.01 > Venezuela | Y164: None | Z164: 160 | AA164: 2
A165: Enabling framework | B165: Policy & Regulation | C165: 1.01 | D165: Clean energy policies | E165: Feed-in tariff | F165: Both | G165: Policy Types | H165: Hardcoded | I165: 0 | J165: Africa | K165: Botswana | S165: 0 | V165: 0 | W165: 1.01 > Feed-in tariff > Botswana | X165: 1.01 > Botswana | Y165: None | Z165: 161 | AA165: 3
A166: Enabling framework | B166: Policy & Regulation | C166: 1.01 | D166: Clean energy policies | E166: Feed-in tariff | F166: Both | G166: Policy Types | H166: Hardcoded | I166: 0 | J166: Africa | K166: Cameroon | S166: 0 | V166: 0 | W166: 1.01 > Feed-in tariff > Cameroon | X166: 1.01 > Cameroon | Y166: None | Z166: 162 | AA166: 3
A167: Enabling framework | B167: Policy & Regulation | C167: 1.01 | D167: Clean energy policies | E167: Feed-in tariff | F167: Both | G167: Policy Types | H167: Hardcoded | I167: 0 | J167: Africa | K167: Cote d'Ivoire | S167: 0 | V167: 0 | W167: 1.01 > Feed-in tariff > Cote d'Ivoire | X167: 1.01 > Cote d'Ivoire | Y167: None | Z167: 163 | AA167: 3
A168: Enabling framework | B168: Policy & Regulation | C168: 1.01 | D168: Clean energy policies | E168: Feed-in tariff | F168: Both | G168: Policy Types | H168: Hardcoded | I168: 0 | J168: Africa | K168: Democratic Republic of Congo | S168: 0 | V168: 0 | W168: 1.01 > Feed-in tariff > Democratic Republic of Congo | X168: 1.01 > Democratic Republic of Congo | Y168: None | Z168: 164 | AA168: 3
A169: Enabling framework | B169: Policy & Regulation | C169: 1.01 | D169: Clean energy policies | E169: Feed-in tariff | F169: Both | G169: Policy Types | H169: Hardcoded | I169: 0 | J169: Africa | K169: Ethiopia | S169: 0 | V169: 0 | W169: 1.01 > Feed-in tariff > Ethiopia | X169: 1.01 > Ethiopia | Y169: None | Z169: 165 | AA169: 3
A170: Enabling framework | B170: Policy & Regulation | C170: 1.01 | D170: Clean energy policies | E170: Feed-in tariff | F170: Both | G170: Policy Types | H170: Hardcoded | I170: 0 | J170: Africa | K170: Ghana | S170: 1 | V170: 1 | W170: 1.01 > Feed-in tariff > Ghana | X170: 1.01 > Ghana | Y170: None | Z170: 166 | AA170: 3
A171: Enabling framework | B171: Policy & Regulation | C171: 1.01 | D171: Clean energy policies | E171: Feed-in tariff | F171: Both | G171: Policy Types | H171: Hardcoded | I171: 0 | J171: Africa | K171: Kenya | S171: 1 | V171: 1 | W171: 1.01 > Feed-in tariff > Kenya | X171: 1.01 > Kenya | Y171: None | Z171: 167 | AA171: 3
A172: Enabling framework | B172: Policy & Regulation | C172: 1.01 | D172: Clean energy policies | E172: Feed-in tariff | F172: Both | G172: Policy Types | H172: Hardcoded | I172: 0 | J172: Africa | K172: Liberia | S172: 0 | V172: 0 | W172: 1.01 > Feed-in tariff > Liberia | X172: 1.01 > Liberia | Y172: None | Z172: 168 | AA172: 3
A173: Enabling framework | B173: Policy & Regulation | C173: 1.01 | D173: Clean energy policies | E173: Feed-in tariff | F173: Both | G173: Policy Types | H173: Hardcoded | I173: 0 | J173: Africa | K173: Malawi | S173: 1 | V173: 1 | W173: 1.01 > Feed-in tariff > Malawi | X173: 1.01 > Malawi | Y173: None | Z173: 169 | AA173: 3
A174: Enabling framework | B174: Policy & Regulation | C174: 1.01 | D174: Clean energy policies | E174: Feed-in tariff | F174: Both | G174: Policy Types | H174: Hardcoded | I174: 0 | J174: Africa | K174: Mozambique | S174: 0 | V174: 0 | W174: 1.01 > Feed-in tariff > Mozambique | X174: 1.01 > Mozambique | Y174: None | Z174: 170 | AA174: 3
A175: Enabling framework | B175: Policy & Regulation | C175: 1.01 | D175: Clean energy policies | E175: Feed-in tariff | F175: Both | G175: Policy Types | H175: Hardcoded | I175: 0 | J175: Africa | K175: Nigeria | S175: 1 | V175: 1 | W175: 1.01 > Feed-in tariff > Nigeria | X175: 1.01 > Nigeria | Y175: None | Z175: 171 | AA175: 3
A176: Enabling framework | B176: Policy & Regulation | C176: 1.01 | D176: Clean energy policies | E176: Feed-in tariff | F176: Both | G176: Policy Types | H176: Hardcoded | I176: 0 | J176: Africa | K176: Rwanda | S176: 1 | V176: 1 | W176: 1.01 > Feed-in tariff > Rwanda | X176: 1.01 > Rwanda | Y176: None | Z176: 172 | AA176: 3
A177: Enabling framework | B177: Policy & Regulation | C177: 1.01 | D177: Clean energy policies | E177: Feed-in tariff | F177: Both | G177: Policy Types | H177: Hardcoded | I177: 0 | J177: Africa | K177: Senegal | S177: 0 | V177: 0 | W177: 1.01 > Feed-in tariff > Senegal | X177: 1.01 > Senegal | Y177: None | Z177: 173 | AA177: 3
A178: Enabling framework | B178: Policy & Regulation | C178: 1.01 | D178: Clean energy policies | E178: Feed-in tariff | F178: Both | G178: Policy Types | H178: Hardcoded | I178: 0 | J178: Africa | K178: Sierra Leone | S178: 0 | V178: 0 | W178: 1.01 > Feed-in tariff > Sierra Leone | X178: 1.01 > Sierra Leone | Y178: None | Z178: 174 | AA178: 3
A179: Enabling framework | B179: Policy & Regulation | C179: 1.01 | D179: Clean energy policies | E179: Feed-in tariff | F179: Both | G179: Policy Types | H179: Hardcoded | I179: 0 | J179: Africa | K179: South Africa | S179: 0 | V179: 0 | W179: 1.01 > Feed-in tariff > South Africa | X179: 1.01 > South Africa | Y179: None | Z179: 175 | AA179: 3
A180: Enabling framework | B180: Policy & Regulation | C180: 1.01 | D180: Clean energy policies | E180: Feed-in tariff | F180: Both | G180: Policy Types | H180: Hardcoded | I180: 0 | J180: Africa | K180: Tanzania | S180: 0 | V180: 0 | W180: 1.01 > Feed-in tariff > Tanzania | X180: 1.01 > Tanzania | Y180: None | Z180: 176 | AA180: 3
A181: Enabling framework | B181: Policy & Regulation | C181: 1.01 | D181: Clean energy policies | E181: Feed-in tariff | F181: Both | G181: Policy Types | H181: Hardcoded | I181: 0 | J181: Africa | K181: Uganda | S181: 1 | V181: 1 | W181: 1.01 > Feed-in tariff > Uganda | X181: 1.01 > Uganda | Y181: None | Z181: 177 | AA181: 3
A182: Enabling framework | B182: Policy & Regulation | C182: 1.01 | D182: Clean energy policies | E182: Feed-in tariff | F182: Both | G182: Policy Types | H182: Hardcoded | I182: 0 | J182: Africa | K182: Zambia | S182: 0 | V182: 0 | W182: 1.01 > Feed-in tariff > Zambia | X182: 1.01 > Zambia | Y182: None | Z182: 178 | AA182: 3
A183: Enabling framework | B183: Policy & Regulation | C183: 1.01 | D183: Clean energy policies | E183: Feed-in tariff | F183: Both | G183: Policy Types | H183: Hardcoded | I183: 0 | J183: Africa | K183: Zimbabwe | S183: 1 | V183: 1 | W183: 1.01 > Feed-in tariff > Zimbabwe | X183: 1.01 > Zimbabwe | Y183: None | Z183: 179 | AA183: 3
A184: Enabling framework | B184: Policy & Regulation | C184: 1.01 | D184: Clean energy policies | E184: Feed-in tariff | F184: Both | G184: Policy Types | H184: Hardcoded | I184: 0 | J184: Asia | K184: Bangladesh | S184: 0 | V184: 0 | W184: 1.01 > Feed-in tariff > Bangladesh | X184: 1.01 > Bangladesh | Y184: None | Z184: 180 | AA184: 3
A185: Enabling framework | B185: Policy & Regulation | C185: 1.01 | D185: Clean energy policies | E185: Feed-in tariff | F185: Both | G185: Policy Types | H185: Hardcoded | I185: 0 | J185: Asia | K185: China | S185: 1 | V185: 1 | W185: 1.01 > Feed-in tariff > China | X185: 1.01 > China | Y185: None | Z185: 181 | AA185: 3
A186: Enabling framework | B186: Policy & Regulation | C186: 1.01 | D186: Clean energy policies | E186: Feed-in tariff | F186: Both | G186: Policy Types | H186: Hardcoded | I186: 0 | J186: Asia | K186: China :: Fujian | S186: 0 | V186: 0 | W186: 1.01 > Feed-in tariff > China :: Fujian | X186: 1.01 > China :: Fujian | Y186: None | Z186: 182 | AA186: 3
A187: Enabling framework | B187: Policy & Regulation | C187: 1.01 | D187: Clean energy policies | E187: Feed-in tariff | F187: Both | G187: Policy Types | H187: Hardcoded | I187: 0 | J187: Asia | K187: China :: Gansu | S187: 0 | V187: 0 | W187: 1.01 > Feed-in tariff > China :: Gansu | X187: 1.01 > China :: Gansu | Y187: None | Z187: 183 | AA187: 3
A188: Enabling framework | B188: Policy & Regulation | C188: 1.01 | D188: Clean energy policies | E188: Feed-in tariff | F188: Both | G188: Policy Types | H188: Hardcoded | I188: 0 | J188: Asia | K188: China :: Guangdong | S188: 0 | V188: 0 | W188: 1.01 > Feed-in tariff > China :: Guangdong | X188: 1.01 > China :: Guangdong | Y188: None | Z188: 184 | AA188: 3
A189: Enabling framework | B189: Policy & Regulation | C189: 1.01 | D189: Clean energy policies | E189: Feed-in tariff | F189: Both | G189: Policy Types | H189: Hardcoded | I189: 0 | J189: Asia | K189: China :: Hebei | S189: 0 | V189: 0 | W189: 1.01 > Feed-in tariff > China :: Hebei | X189: 1.01 > China :: Hebei | Y189: None | Z189: 185 | AA189: 3
A190: Enabling framework | B190: Policy & Regulation | C190: 1.01 | D190: Clean energy policies | E190: Feed-in tariff | F190: Both | G190: Policy Types | H190: Hardcoded | I190: 0 | J190: Asia | K190: China :: Heilongjiang | S190: 0 | V190: 0 | W190: 1.01 > Feed-in tariff > China :: Heilongjiang | X190: 1.01 > China :: Heilongjiang | Y190: None | Z190: 186 | AA190: 3
A191: Enabling framework | B191: Policy & Regulation | C191: 1.01 | D191: Clean energy policies | E191: Feed-in tariff | F191: Both | G191: Policy Types | H191: Hardcoded | I191: 0 | J191: Asia | K191: China :: Hubei | S191: 0 | V191: 0 | W191: 1.01 > Feed-in tariff > China :: Hubei | X191: 1.01 > China :: Hubei | Y191: None | Z191: 187 | AA191: 3
A192: Enabling framework | B192: Policy & Regulation | C192: 1.01 | D192: Clean energy policies | E192: Feed-in tariff | F192: Both | G192: Policy Types | H192: Hardcoded | I192: 0 | J192: Asia | K192: China :: Inner Mongolia | S192: 0 | V192: 0 | W192: 1.01 > Feed-in tariff > China :: Inner Mongolia | X192: 1.01 > China :: Inner Mongolia | Y192: None | Z192: 188 | AA192: 3
A193: Enabling framework | B193: Policy & Regulation | C193: 1.01 | D193: Clean energy policies | E193: Feed-in tariff | F193: Both | G193: Policy Types | H193: Hardcoded | I193: 0 | J193: Asia | K193: China :: Jiangsu | S193: 0 | V193: 0 | W193: 1.01 > Feed-in tariff > China :: Jiangsu | X193: 1.01 > China :: Jiangsu | Y193: None | Z193: 189 | AA193: 3
A194: Enabling framework | B194: Policy & Regulation | C194: 1.01 | D194: Clean energy policies | E194: Feed-in tariff | F194: Both | G194: Policy Types | H194: Hardcoded | I194: 0 | J194: Asia | K194: China :: Jilin | S194: 0 | V194: 0 | W194: 1.01 > Feed-in tariff > China :: Jilin | X194: 1.01 > China :: Jilin | Y194: None | Z194: 190 | AA194: 3
A195: Enabling framework | B195: Policy & Regulation | C195: 1.01 | D195: Clean energy policies | E195: Feed-in tariff | F195: Both | G195: Policy Types | H195: Hardcoded | I195: 0 | J195: Asia | K195: China :: Qinghai | S195: 0 | V195: 0 | W195: 1.01 > Feed-in tariff > China :: Qinghai | X195: 1.01 > China :: Qinghai | Y195: None | Z195: 191 | AA195: 3
A196: Enabling framework | B196: Policy & Regulation | C196: 1.01 | D196: Clean energy policies | E196: Feed-in tariff | F196: Both | G196: Policy Types | H196: Hardcoded | I196: 0 | J196: Asia | K196: China :: Shandong | S196: 0 | V196: 0 | W196: 1.01 > Feed-in tariff > China :: Shandong | X196: 1.01 > China :: Shandong | Y196: None | Z196: 192 | AA196: 3
A197: Enabling framework | B197: Policy & Regulation | C197: 1.01 | D197: Clean energy policies | E197: Feed-in tariff | F197: Both | G197: Policy Types | H197: Hardcoded | I197: =IF(E197="","",IF(OR(E197="Wind",E197="Solar",E197="Geothermal",E197="Small Hydro",E197="Biofuels",E197="Biomass & Waste"), 1, 0)) -> 0 | J197: Asia | K197: China :: Sichuan | S197: 0 | V197: 0 | W197: 1.01 > Feed-in tariff > China :: Sichuan | X197: 1.01 > China :: Sichuan | Y197: None | Z197: 193 | AA197: 3
A198: Enabling framework | B198: Policy & Regulation | C198: 1.01 | D198: Clean energy policies | E198: Feed-in tariff | F198: Both | G198: Policy Types | H198: Hardcoded | I198: 0 | J198: Asia | K198: China :: Tibet | S198: 0 | V198: =INDEX($L198:$U198, 1, MATCH(V$4, $L$4:$U$4, 0)) -> 0 | W198: 1.01 > Feed-in tariff > China :: Tibet | X198: 1.01 > China :: Tibet | Y198: None | Z198: 194 | AA198: 3
A199: Enabling framework | B199: Policy & Regulation | C199: 1.01 | D199: Clean energy policies | E199: Feed-in tariff | F199: Both | G199: Policy Types | H199: Hardcoded | I199: 0 | J199: Asia | K199: China :: Xinjiang | S199: 0 | V199: 0 | W199: 1.01 > Feed-in tariff > China :: Xinjiang | X199: 1.01 > China :: Xinjiang | Y199: None | Z199: 195 | AA199: 3
A200: Enabling framework | B200: Policy & Regulation | C200: 1.01 | D200: Clean energy policies | E200: Feed-in tariff | F200: Both | G200: Policy Types | H200: Hardcoded | I200: 0 | J200: Asia | K200: China :: Yunnan | S200: 0 | V200: 0 | W200: =C200&" > "&E200&" > "&K200 -> 1.01 > Feed-in tariff > China :: Yunnan | X200: =C200&" > "&K200 -> 1.01 > China :: Yunnan | Y200: =IF(A200="Levelisation", E200&" > "&K200, "None") -> None | Z200: 196 | AA200: 3
A201: Enabling framework | B201: Policy & Regulation | C201: 1.01 | D201: Clean energy policies | E201: Feed-in tariff | F201: Both | G201: Policy Types | H201: Hardcoded | I201: 0 | J201: Asia | K201: India | S201: 1 | V201: 1 | W201: 1.01 > Feed-in tariff > India | X201: 1.01 > India | Y201: None | Z201: 197 | AA201: 3
... 2049 more rows

Sheet Investment (hidden)
A1: BNEF DESKTOP DEALS DATABASE | K1: BNEF DATABASE
A3: Database Summary | K3: BNEF Clean Energy Investment Database
A4: Year | B4: Month | C4: Quarter | D4: Period | E4: Region | F4: Country | G4: State | H4: Sector | I4: Deal Type | J4: Value | K4: Type | L4: Channel | M4: DealID | N4: TargetOrg | O4: Country(for PM StockExchCountry) | P4: CountryGrouped | Q4: Continent | R4: Region | S4: OECD/non-OECD | T4: Tradeblock | U4: Sector | V4: SectorGrouped | W4: Subsector | X4: Technology | Y4: BusinessModel (for PM, target country/for AF, transType) | Z4: FinancingType | AA4: FinancingType_Grouped | AB4: Date | AC4: CapacityMW | AD4: CapacityMWth | AE4: CapacityNm3/hr | AF4: CapacityMLPA | AG4: TransactionValue | AH4: Grossedup | AI4: Grossedup & Buffered | AJ4: State
A5: =IF(M5="","",IF(AND(YEAR(AB5)<2004,YEAR(AB5)>1910),2004,YEAR(AB5))) -> 2006 | B5: =IF(M5="","",IF(ISNUMBER(AB5),MONTH(AB5),0)) -> 5 | C5: =IF(M5="","",IF(AND(B5>=1,B5<=3),"Q1",IF(AND(B5>3,B5<=6),"Q2",IF(AND(B5>6,B5<=9),"Q3",IF(AND(B5>9,B5<=12),"Q4",0))))) -> Q2 | D5: =IF(A5<2006, "< 2006", A5&C5) -> 2006Q2 | E5: =IF(M5="","", IF(G5="Main", F5, F5 & " :: " & G5)) -> Brazil | F5: =IF(M5="","", O5) -> Brazil | G5: =IF(M5="","", AJ5) -> Main | H5: =IF(M5="","",IF(OR(V5="Wind",V5="Solar",V5="Geothermal",V5="Small Hydro",V5="Biofuels",V5="Biomass & Waste"),V5,"Other Clean Energy")) -> Biofuels | I5: =IF(M5="","",IF(OR(L5="PM",L5="MA"), "Corporate finance investments", IF(L5="VCPE", "VC/PE investments", IF(L5="AF", "Asset finance investments")))) -> VC/PE investments | J5: =IF(M5="","",AI5) -> 57.42749552 | K5: Acquisitions | L5: VCPE | M5: VCPE5866 | N5: Usina Moema Acucar e Alcool Ltda | O5: Brazil | P5: Brazil | Q5: Central & South America | R5: AMER | S5: non-OECD | T5: BASIC | U5: Biofuels | V5: Biofuels | W5: Gasoline/Petrol Substitute | X5: 1-Gen fermentation | Y5: Developer | Z5: PE - Buy-out / corp spinoff | AA5: PE Buy-out | AB5: 2006-05-14 | AC5: na | AD5: na | AE5: na | AF5: na | AG5: 0 | AH5: 57.142 | AI5: 57.42749552 | AJ5: Main
A6: 2010 | B6: 3 | C6: Q1 | D6: 2010Q1 | E6: Brazil | F6: Brazil | G6: Main | H6: Biofuels | I6: VC/PE investments | J6: 20.407 | K6: Deal details hidden for data protection purposes…
A7: 2010 | B7: 2 | C7: Q1 | D7: 2010Q1 | E7: Brazil | F7: Brazil | G7: Main | H7: Biofuels | I7: VC/PE investments | J7: 5.3 | K7: Deal details hidden for data protection purposes…
A8: 2009 | B8: 3 | C8: Q1 | D8: 2009Q1 | E8: Brazil | F8: Brazil | G8: Main | H8: Biofuels | I8: VC/PE investments | J8: 21.70500018 | K8: Deal details hidden for data protection purposes…
A9: 2008 | B9: 5 | C9: Q2 | D9: 2008Q2 | E9: Argentina | F9: Argentina | G9: Main | H9: Biofuels | I9: VC/PE investments | J9: 51.70332087 | K9: Deal details hidden for data protection purposes…
A10: 2008 | B10: 2 | C10: Q1 | D10: 2008Q1 | E10: Brazil | F10: Brazil | G10: Main | H10: Biofuels | I10: VC/PE investments | J10: 64.34262533 | K10: Deal details hidden for data protection purposes…
A11: 2013 | B11: 6 | C11: Q2 | D11: 2013Q2 | E11: Brazil | F11: Brazil | G11: Main | H11: Biofuels | I11: Corporate finance investments | J11: 69.63373592 | K11: Deal details hidden for data protection purposes…
A12: 2011 | B12: 12 | C12: Q4 | D12: 2011Q4 | E12: Brazil | F12: Brazil | G12: Main | H12: Biofuels | I12: Corporate finance investments | J12: 106.3159315 | K12: Deal details hidden for data protection purposes…
A13: 2011 | B13: 12 | C13: Q4 | D13: 2011Q4 | E13: Brazil | F13: Brazil | G13: Main | H13: Biofuels | I13: Corporate finance investments | J13: 88.64738124 | K13: Deal details hidden for data protection purposes…
A14: 2010 | B14: 12 | C14: Q4 | D14: 2010Q4 | E14: Brazil | F14: Brazil | G14: Main | H14: Biofuels | I14: Corporate finance investments | J14: 155.4 | K14: Deal details hidden for data protection purposes…
A15: 2012 | B15: 12 | C15: Q4 | D15: 2012Q4 | E15: Brazil | F15: Brazil | G15: Main | H15: Biofuels | I15: Corporate finance investments | J15: 113.5028964 | K15: Deal details hidden for data protection purposes…
A16: 2013 | B16: 5 | C16: Q2 | D16: 2013Q2 | E16: Brazil | F16: Brazil | G16: Main | H16: Biofuels | I16: Corporate finance investments | J16: 90.91071078 | K16: Deal details hidden for data protection purposes…
A17: 2008 | B17: 2 | C17: Q1 | D17: 2008Q1 | E17: Brazil | F17: Brazil | G17: Main | H17: Biofuels | I17: Corporate finance investments | J17: 30.16060562 | K17: Deal details hidden for data protection purposes…
A18: 2012 | B18: 10 | C18: Q4 | D18: 2012Q4 | E18: China :: Other | F18: China | G18: Other | H18: Biofuels | I18: Corporate finance investments | J18: 35.53799742 | K18: Deal details hidden for data protection purposes…
A19: 2011 | B19: 11 | C19: Q4 | D19: 2011Q4 | E19: Brazil | F19: Brazil | G19: Main | H19: Biofuels | I19: Corporate finance investments | J19: 113.899192 | K19: Deal details hidden for data protection purposes…
A20: 2013 | B20: 8 | C20: Q3 | D20: 2013Q3 | E20: Indonesia | F20: Indonesia | G20: Main | H20: Biofuels | I20: Asset finance investments | J20: 14.1 | K20: Deal details hidden for data protection purposes…
A21: 2013 | B21: 2 | C21: Q1 | D21: 2013Q1 | E21: Kenya | F21: Kenya | G21: Main | H21: Biofuels | I21: Asset finance investments | J21: 200 | K21: Deal details hidden for data protection purposes…
A22: 2013 | B22: 7 | C22: Q3 | D22: 2013Q3 | E22: Uruguay | F22: Uruguay | G22: Main | H22: Biofuels | I22: Asset finance investments | J22: 147.004 | K22: Deal details hidden for data protection purposes…
A23: 2013 | B23: 5 | C23: Q2 | D23: 2013Q2 | E23: Brazil | F23: Brazil | G23: Main | H23: Biofuels | I23: Asset finance investments | J23: 149.417 | K23: Deal details hidden for data protection purposes…
A24: 2013 | B24: 9 | C24: Q3 | D24: 2013Q3 | E24: Brazil | F24: Brazil | G24: Main | H24: Biofuels | I24: Asset finance investments | J24: 100 | K24: Deal details hidden for data protection purposes…
A25: 2013 | B25: 1 | C25: Q1 | D25: 2013Q1 | E25: Argentina | F25: Argentina | G25: Main | H25: Biofuels | I25: Asset finance investments | J25: 20.2996 | K25: Deal details hidden for data protection purposes…
A26: 2013 | B26: 3 | C26: Q1 | D26: 2013Q1 | E26: Brazil | F26: Brazil | G26: Main | H26: Biofuels | I26: Asset finance investments | J26: 82.098022 | K26: Deal details hidden for data protection purposes…
A27: 2013 | B27: 10 | C27: Q4 | D27: 2013Q4 | E27: Brazil | F27: Brazil | G27: Main | H27: Biofuels | I27: Asset finance investments | J27: 68.318635 | K27: Deal details hidden for data protection purposes…
A28: 2013 | B28: 3 | C28: Q1 | D28: 2013Q1 | E28: Argentina | F28: Argentina | G28: Main | H28: Biofuels | I28: Asset finance investments | J28: 60 | K28: Deal details hidden for data protection purposes…
A29: 2012 | B29: 1 | C29: Q1 | D29: 2012Q1 | E29: Nigeria | F29: Nigeria | G29: Main | H29: Biofuels | I29: Asset finance investments | J29: 77.29779289 | K29: Deal details hidden for data protection purposes…
A30: 2012 | B30: 7 | C30: Q3 | D30: 2012Q3 | E30: Brazil | F30: Brazil | G30: Main | H30: Biofuels | I30: Asset finance investments | J30: 8.643497835 | K30: Deal details hidden for data protection purposes…
A31: 2012 | B31: 4 | C31: Q2 | D31: 2012Q2 | E31: Brazil | F31: Brazil | G31: Main | H31: Biofuels | I31: Asset finance investments | J31: 197.2064042 | K31: Deal details hidden for data protection purposes…
A32: 2012 | B32: 3 | C32: Q1 | D32: 2012Q1 | E32: Argentina | F32: Argentina | G32: Main | H32: Biofuels | I32: Asset finance investments | J32: 8.195522731 | K32: Deal details hidden for data protection purposes…
A33: 2012 | B33: 9 | C33: Q3 | D33: 2012Q3 | E33: Brazil | F33: Brazil | G33: Main | H33: Biofuels | I33: Asset finance investments | J33: 257.3458412 | K33: Deal details hidden for data protection purposes…
A34: 2012 | B34: 1 | C34: Q1 | D34: 2012Q1 | E34: Brazil | F34: Brazil | G34: Main | H34: Biofuels | I34: Asset finance investments | J34: 16.06637584 | K34: Deal details hidden for data protection purposes…
A35: 2012 | B35: 1 | C35: Q1 | D35: 2012Q1 | E35: Zimbabwe | F35: Zimbabwe | G35: Main | H35: Biofuels | I35: Asset finance investments | J35: 35.12719447 | K35: Deal details hidden for data protection purposes…
A36: 2012 | B36: 3 | C36: Q1 | D36: 2012Q1 | E36: China :: Other | F36: China | G36: Other | H36: Biofuels | I36: Asset finance investments | J36: 39.90449292 | K36: Deal details hidden for data protection purposes…
A37: 2012 | B37: 8 | C37: Q3 | D37: 2012Q3 | E37: Brazil | F37: Brazil | G37: Main | H37: Biofuels | I37: Asset finance investments | J37: 24.71027513 | K37: Deal details hidden for data protection purposes…
A38: 2012 | B38: 8 | C38: Q3 | D38: 2012Q3 | E38: India :: Other | F38: India | G38: Other | H38: Biofuels | I38: Asset finance investments | J38: 5.466171852 | K38: Deal details hidden for data protection purposes…
A39: 2012 | B39: 3 | C39: Q1 | D39: 2012Q1 | E39: Brazil | F39: Brazil | G39: Main | H39: Biofuels | I39: Asset finance investments | J39: 3.793737003 | K39: Deal details hidden for data protection purposes…
A40: 2012 | B40: 11 | C40: Q4 | D40: 2012Q4 | E40: Brazil | F40: Brazil | G40: Main | H40: Biofuels | I40: Asset finance investments | J40: 85.83380151 | K40: Deal details hidden for data protection purposes…
A41: 2012 | B41: 5 | C41: Q2 | D41: 2012Q2 | E41: Brazil | F41: Brazil | G41: Main | H41: Biofuels | I41: Asset finance investments | J41: 87.37313443 | K41: Deal details hidden for data protection purposes…
A42: 2012 | B42: 11 | C42: Q4 | D42: 2012Q4 | E42: Brazil | F42: Brazil | G42: Main | H42: Biofuels | I42: Asset finance investments | J42: 85.83380151 | K42: Deal details hidden for data protection purposes…
A43: 2012 | B43: 12 | C43: Q4 | D43: 2012Q4 | E43: Argentina | F43: Argentina | G43: Main | H43: Biofuels | I43: Asset finance investments | J43: 130.6731634 | K43: Deal details hidden for data protection purposes…
A44: 2012 | B44: 10 | C44: Q4 | D44: 2012Q4 | E44: Brazil | F44: Brazil | G44: Main | H44: Biofuels | I44: Asset finance investments | J44: 63.22895005 | K44: Deal details hidden for data protection purposes…
A45: 2012 | B45: 12 | C45: Q4 | D45: 2012Q4 | E45: Brazil | F45: Brazil | G45: Main | H45: Biofuels | I45: Asset finance investments | J45: 37.7366432 | K45: Deal details hidden for data protection purposes…
A46: 2012 | B46: 3 | C46: Q1 | D46: 2012Q1 | E46: Argentina | F46: Argentina | G46: Main | H46: Biofuels | I46: VC/PE investments | J46: 0.5851849364 | K46: Deal details hidden for data protection purposes…
A47: 2011 | B47: 12 | C47: Q4 | D47: 2011Q4 | E47: India :: Other | F47: India | G47: Other | H47: Biofuels | I47: Asset finance investments | J47: 12.495 | K47: Deal details hidden for data protection purposes…
A48: 2011 | B48: 12 | C48: Q4 | D48: 2011Q4 | E48: Indonesia | F48: Indonesia | G48: Main | H48: Biofuels | I48: Asset finance investments | J48: 5.875849564 | K48: Deal details hidden for data protection purposes…
A49: 2011 | B49: 12 | C49: Q4 | D49: 2011Q4 | E49: Indonesia | F49: Indonesia | G49: Main | H49: Biofuels | I49: Asset finance investments | J49: 32.76373717 | K49: Deal details hidden for data protection purposes…
A50: 2011 | B50: 12 | C50: Q4 | D50: 2011Q4 | E50: Indonesia | F50: Indonesia | G50: Main | H50: Biofuels | I50: Asset finance investments | J50: 29.15921601 | K50: Deal details hidden for data protection purposes…
A51: 2011 | B51: 12 | C51: Q4 | D51: 2011Q4 | E51: Indonesia | F51: Indonesia | G51: Main | H51: Biofuels | I51: Asset finance investments | J51: 5.845845226 | K51: Deal details hidden for data protection purposes…
A52: 2011 | B52: 12 | C52: Q4 | D52: 2011Q4 | E52: Indonesia | F52: Indonesia | G52: Main | H52: Biofuels | I52: Asset finance investments | J52: 29.80230899 | K52: Deal details hidden for data protection purposes…
A53: 2011 | B53: 12 | C53: Q4 | D53: 2011Q4 | E53: Indonesia | F53: Indonesia | G53: Main | H53: Biofuels | I53: Asset finance investments | J53: 29.15921601 | K53: Deal details hidden for data protection purposes…
A54: 2011 | B54: 12 | C54: Q4 | D54: 2011Q4 | E54: Indonesia | F54: Indonesia | G54: Main | H54: Biofuels | I54: Asset finance investments | J54: 17.25749519 | K54: Deal details hidden for data protection purposes…
A55: 2011 | B55: 12 | C55: Q4 | D55: 2011Q4 | E55: Indonesia | F55: Indonesia | G55: Main | H55: Biofuels | I55: Asset finance investments | J55: 24.99361372 | K55: Deal details hidden for data protection purposes…
A56: 2011 | B56: 12 | C56: Q4 | D56: 2011Q4 | E56: Indonesia | F56: Indonesia | G56: Main | H56: Biofuels | I56: Asset finance investments | J56: 10.01144751 | K56: Deal details hidden for data protection purposes…
A57: 2011 | B57: 12 | C57: Q4 | D57: 2011Q4 | E57: Indonesia | F57: Indonesia | G57: Main | H57: Biofuels | I57: Asset finance investments | J57: 4.27061747 | K57: Deal details hidden for data protection purposes…
A58: 2011 | B58: 12 | C58: Q4 | D58: 2011Q4 | E58: Indonesia | F58: Indonesia | G58: Main | H58: Biofuels | I58: Asset finance investments | J58: 14.56210547 | K58: Deal details hidden for data protection purposes…
A59: 2011 | B59: 12 | C59: Q4 | D59: 2011Q4 | E59: Indonesia | F59: Indonesia | G59: Main | H59: Biofuels | I59: Asset finance investments | J59: 4.585663021 | K59: Deal details hidden for data protection purposes…
A60: 2011 | B60: 12 | C60: Q4 | D60: 2011Q4 | E60: Indonesia | F60: Indonesia | G60: Main | H60: Biofuels | I60: Asset finance investments | J60: 24.99361372 | K60: Deal details hidden for data protection purposes…
A61: 2011 | B61: 12 | C61: Q4 | D61: 2011Q4 | E61: Brazil | F61: Brazil | G61: Main | H61: Biofuels | I61: Asset finance investments | J61: 512.0740386 | K61: Deal details hidden for data protection purposes…
A62: 2011 | B62: 2 | C62: Q1 | D62: 2011Q1 | E62: Indonesia | F62: Indonesia | G62: Main | H62: Biofuels | I62: Asset finance investments | J62: 178.5258123 | K62: Deal details hidden for data protection purposes…
A63: 2011 | B63: 10 | C63: Q4 | D63: 2011Q4 | E63: Brazil | F63: Brazil | G63: Main | H63: Biofuels | I63: Asset finance investments | J63: 34.63100715 | K63: Deal details hidden for data protection purposes…
A64: 2011 | B64: 12 | C64: Q4 | D64: 2011Q4 | E64: Sierra Leone | F64: Sierra Leone | G64: Main | H64: Biofuels | I64: Asset finance investments | J64: 349.3445102 | K64: Deal details hidden for data protection purposes…
A65: 2011 | B65: 12 | C65: Q4 | D65: 2011Q4 | E65: Brazil | F65: Brazil | G65: Main | H65: Biofuels | I65: Asset finance investments | J65: 87.32312567 | K65: Deal details hidden for data protection purposes…
A66: 2011 | B66: 7 | C66: Q3 | D66: 2011Q3 | E66: Argentina | F66: Argentina | G66: Main | H66: Biofuels | I66: Asset finance investments | J66: 67.91331929 | K66: Deal details hidden for data protection purposes…
A67: 2011 | B67: 1 | C67: Q1 | D67: 2011Q1 | E67: Brazil | F67: Brazil | G67: Main | H67: Biofuels | I67: Asset finance investments | J67: 41.94014474 | K67: Deal details hidden for data protection purposes…
A68: 2011 | B68: 1 | C68: Q1 | D68: 2011Q1 | E68: Brazil | F68: Brazil | G68: Main | H68: Biofuels | I68: Asset finance investments | J68: 12.97124395 | K68: Deal details hidden for data protection purposes…
A69: 2011 | B69: 2 | C69: Q1 | D69: 2011Q1 | E69: Brazil | F69: Brazil | G69: Main | H69: Biofuels | I69: Asset finance investments | J69: 52.27668472 | K69: Deal details hidden for data protection purposes…
A70: 2011 | B70: 3 | C70: Q1 | D70: 2011Q1 | E70: Brazil | F70: Brazil | G70: Main | H70: Biofuels | I70: Asset finance investments | J70: 407.6622203 | K70: Deal details hidden for data protection purposes…
A71: 2011 | B71: 7 | C71: Q3 | D71: 2011Q3 | E71: Brazil | F71: Brazil | G71: Main | H71: Biofuels | I71: Asset finance investments | J71: 63.40056681 | K71: Deal details hidden for data protection purposes…
A72: 2011 | B72: 7 | C72: Q3 | D72: 2011Q3 | E72: Brazil | F72: Brazil | G72: Main | H72: Biofuels | I72: Asset finance investments | J72: 160.9192666 | K72: Deal details hidden for data protection purposes…
A73: 2011 | B73: 1 | C73: Q1 | D73: 2011Q1 | E73: Argentina | F73: Argentina | G73: Main | H73: Biofuels | I73: Asset finance investments | J73: 5.001353124 | K73: Deal details hidden for data protection purposes…
A74: 2011 | B74: 11 | C74: Q4 | D74: 2011Q4 | E74: Argentina | F74: Argentina | G74: Main | H74: Biofuels | I74: Asset finance investments | J74: 200.0289213 | K74: Deal details hidden for data protection purposes…
A75: 2011 | B75: 11 | C75: Q4 | D75: 2011Q4 | E75: Brazil | F75: Brazil | G75: Main | H75: Biofuels | I75: Asset finance investments | J75: 11.06049919 | K75: Deal details hidden for data protection purposes…
A76: 2011 | B76: 8 | C76: Q3 | D76: 2011Q3 | E76: Paraguay | F76: Paraguay | G76: Main | H76: Biofuels | I76: Asset finance investments | J76: 28.20407791 | K76: Deal details hidden for data protection purposes…
A77: 2011 | B77: 7 | C77: Q3 | D77: 2011Q3 | E77: Brazil | F77: Brazil | G77: Main | H77: Biofuels | I77: Asset finance investments | J77: 130.7709076 | K77: Deal details hidden for data protection purposes…
A78: 2011 | B78: 1 | C78: Q1 | D78: 2011Q1 | E78: Brazil | F78: Brazil | G78: Main | H78: Biofuels | I78: Asset finance investments | J78: 50.18268754 | K78: Deal details hidden for data protection purposes…
A79: 2011 | B79: 1 | C79: Q1 | D79: 2011Q1 | E79: Brazil | F79: Brazil | G79: Main | H79: Biofuels | I79: Asset finance investments | J79: 17.69914242 | K79: Deal details hidden for data protection purposes…
A80: 2011 | B80: 11 | C80: Q4 | D80: 2011Q4 | E80: China :: Other | F80: China | G80: Other | H80: Biofuels | I80: Asset finance investments | J80: 164.7605611 | K80: Deal details hidden for data protection purposes…
A81: 2011 | B81: 12 | C81: Q4 | D81: 2011Q4 | E81: Brazil | F81: Brazil | G81: Main | H81: Biofuels | I81: Asset finance investments | J81: 322.0465633 | K81: Deal details hidden for data protection purposes…
A82: 2011 | B82: 2 | C82: Q1 | D82: 2011Q1 | E82: Argentina | F82: Argentina | G82: Main | H82: Biofuels | I82: Asset finance investments | J82: 16.00231371 | K82: Deal details hidden for data protection purposes…
A83: 2011 | B83: 5 | C83: Q2 | D83: 2011Q2 | E83: Brazil | F83: Brazil | G83: Main | H83: Biofuels | I83: Asset finance investments | J83: 85.53536719 | K83: Deal details hidden for data protection purposes…
A84: 2011 | B84: 7 | C84: Q3 | D84: 2011Q3 | E84: Venezuela | F84: Venezuela | G84: Main | H84: Biofuels | I84: Asset finance investments | J84: 65.00939943 | K84: Deal details hidden for data protection purposes…
A85: 2011 | B85: 7 | C85: Q3 | D85: 2011Q3 | E85: Uruguay | F85: Uruguay | G85: Main | H85: Biofuels | I85: Asset finance investments | J85: 25.00361516 | K85: Deal details hidden for data protection purposes…
A86: 2011 | B86: 8 | C86: Q3 | D86: 2011Q3 | E86: Brazil | F86: Brazil | G86: Main | H86: Biofuels | I86: Asset finance investments | J86: 31.50455511 | K86: Deal details hidden for data protection purposes…
A87: 2011 | B87: 4 | C87: Q2 | D87: 2011Q2 | E87: Brazil | F87: Brazil | G87: Main | H87: Biofuels | I87: Asset finance investments | J87: 15.12218645 | K87: Deal details hidden for data protection purposes…
A88: 2011 | B88: 2 | C88: Q1 | D88: 2011Q1 | E88: Brazil | F88: Brazil | G88: Main | H88: Biofuels | I88: Asset finance investments | J88: 18.96336688 | K88: Deal details hidden for data protection purposes…
A89: 2011 | B89: 11 | C89: Q4 | D89: 2011Q4 | E89: Peru | F89: Peru | G89: Main | H89: Biofuels | I89: Asset finance investments | J89: 6.768978697 | K89: Deal details hidden for data protection purposes…
A90: 2011 | B90: 8 | C90: Q3 | D90: 2011Q3 | E90: Brazil | F90: Brazil | G90: Main | H90: Biofuels | I90: Asset finance investments | J90: 56.06670644 | K90: Deal details hidden for data protection purposes…
A91: 2011 | B91: 12 | C91: Q4 | D91: 2011Q4 | E91: Ethiopia | F91: Ethiopia | G91: Main | H91: Biofuels | I91: Asset finance investments | J91: 12.03373991 | K91: Deal details hidden for data protection purposes…
A92: 2011 | B92: 12 | C92: Q4 | D92: 2011Q4 | E92: Argentina | F92: Argentina | G92: Main | H92: Biofuels | I92: Asset finance investments | J92: 22.56326232 | K92: Deal details hidden for data protection purposes…
A93: 2011 | B93: 5 | C93: Q2 | D93: 2011Q2 | E93: Brazil | F93: Brazil | G93: Main | H93: Biofuels | I93: Asset finance investments | J93: 37.80546613 | K93: Deal details hidden for data protection purposes…
A94: 2011 | B94: 12 | C94: Q4 | D94: 2011Q4 | E94: Argentina | F94: Argentina | G94: Main | H94: Biofuels | I94: Asset finance investments | J94: 124.9680686 | K94: Deal details hidden for data protection purposes…
A95: 2011 | B95: 10 | C95: Q4 | D95: 2011Q4 | E95: Argentina | F95: Argentina | G95: Main | H95: Biofuels | I95: Asset finance investments | J95: 10.34149523 | K95: Deal details hidden for data protection purposes…
A96: 1900 | B96: 0 | C96: 0 | D96: < 2006 | E96: India :: Other | F96: India | G96: Other | H96: Biofuels | I96: Asset finance investments | J96: 0.5 | K96: Deal details hidden for data protection purposes…
A97: 2010 | B97: 3 | C97: Q1 | D97: 2010Q1 | E97: Ethiopia | F97: Ethiopia | G97: Main | H97: Biofuels | I97: Asset finance investments | J97: 14.99248334 | K97: Deal details hidden for data protection purposes…
A98: 2010 | B98: 2 | C98: Q1 | D98: 2010Q1 | E98: Ethiopia | F98: Ethiopia | G98: Main | H98: Biofuels | I98: Asset finance investments | J98: 63.34852116 | K98: Deal details hidden for data protection purposes…
A99: 2010 | B99: 8 | C99: Q3 | D99: 2010Q3 | E99: Brazil | F99: Brazil | G99: Main | H99: Biofuels | I99: Asset finance investments | J99: 22.80546762 | K99: Deal details hidden for data protection purposes…
A100: 2010 | B100: 12 | C100: Q4 | D100: 2010Q4 | E100: Vietnam | F100: Vietnam | G100: Main | H100: Biofuels | I100: Asset finance investments | J100: 34.73610577 | K100: Deal details hidden for data protection purposes…
A101: 2010 | B101: 12 | C101: Q4 | D101: 2010Q4 | E101: Indonesia | F101: Indonesia | G101: Main | H101: Biofuels | I101: Asset finance investments | J101: 65.99860097 | K101: Deal details hidden for data protection purposes…
A102: 2010 | B102: 12 | C102: Q4 | D102: 2010Q4 | E102: Indonesia | F102: Indonesia | G102: Main | H102: Biofuels | I102: Asset finance investments | J102: 58.0536406 | K102: Deal details hidden for data protection purposes…
A103: 2010 | B103: 12 | C103: Q4 | D103: 2010Q4 | E103: Indonesia | F103: Indonesia | G103: Main | H103: Biofuels | I103: Asset finance investments | J103: 43.97443177 | K103: Deal details hidden for data protection purposes…
A104: 2010 | B104: 12 | C104: Q4 | D104: 2010Q4 | E104: Indonesia | F104: Indonesia | G104: Main | H104: Biofuels | I104: Asset finance investments | J104: 65.99860097 | K104: Deal details hidden for data protection purposes…
A105: 2010 | B105: 7 | C105: Q3 | D105: 2010Q3 | E105: Colombia | F105: Colombia | G105: Main | H105: Biofuels | I105: Asset finance investments | J105: 6.651594722 | K105: Deal details hidden for data protection purposes…
A106: 2010 | B106: 8 | C106: Q3 | D106: 2010Q3 | E106: Brazil | F106: Brazil | G106: Main | H106: Biofuels | I106: Asset finance investments | J106: 1.20258721 | K106: Deal details hidden for data protection purposes…
A107: 2010 | B107: 1 | C107: Q1 | D107: 2010Q1 | E107: Brazil | F107: Brazil | G107: Main | H107: Biofuels | I107: Asset finance investments | J107: 35.71367903 | K107: Deal details hidden for data protection purposes…
A108: 2010 | B108: 2 | C108: Q1 | D108: 2010Q1 | E108: Peru | F108: Peru | G108: Main | H108: Biofuels | I108: Asset finance investments | J108: 268.1754063 | K108: Deal details hidden for data protection purposes…
A109: 2010 | B109: 6 | C109: Q2 | D109: 2010Q2 | E109: Brazil | F109: Brazil | G109: Main | H109: Biofuels | I109: Asset finance investments | J109: 468.7790566 | K109: Deal details hidden for data protection purposes…
A110: 2010 | B110: 5 | C110: Q2 | D110: 2010Q2 | E110: Brazil | F110: Brazil | G110: Main | H110: Biofuels | I110: Asset finance investments | J110: 14.19006874 | K110: Deal details hidden for data protection purposes…
A111: 2010 | B111: 3 | C111: Q1 | D111: 2010Q1 | E111: Brazil | F111: Brazil | G111: Main | H111: Biofuels | I111: Asset finance investments | J111: 14.81795817 | K111: Deal details hidden for data protection purposes…
A112: 2010 | B112: 6 | C112: Q2 | D112: 2010Q2 | E112: Brazil | F112: Brazil | G112: Main | H112: Biofuels | I112: Asset finance investments | J112: 128.7790971 | K112: Deal details hidden for data protection purposes…
A113: 2010 | B113: 3 | C113: Q1 | D113: 2010Q1 | E113: Brazil | F113: Brazil | G113: Main | H113: Biofuels | I113: Asset finance investments | J113: 39.11940111 | K113: Deal details hidden for data protection purposes…
A114: 2010 | B114: 2 | C114: Q1 | D114: 2010Q1 | E114: Nigeria | F114: Nigeria | G114: Main | H114: Biofuels | I114: Asset finance investments | J114: 24.5781704 | K114: Deal details hidden for data protection purposes…
A115: 2010 | B115: 3 | C115: Q1 | D115: 2010Q1 | E115: Zimbabwe | F115: Zimbabwe | G115: Main | H115: Biofuels | I115: Asset finance investments | J115: 211.1617372 | K115: Deal details hidden for data protection purposes…
A116: 2010 | B116: 3 | C116: Q1 | D116: 2010Q1 | E116: Brazil | F116: Brazil | G116: Main | H116: Biofuels | I116: Asset finance investments | J116: 88.907749 | K116: Deal details hidden for data protection purposes…
A117: 2010 | B117: 1 | C117: Q1 | D117: 2010Q1 | E117: Brazil | F117: Brazil | G117: Main | H117: Biofuels | I117: Asset finance investments | J117: 283.0348577 | K117: Deal details hidden for data protection purposes…
A118: 2010 | B118: 4 | C118: Q2 | D118: 2010Q2 | E118: Brazil | F118: Brazil | G118: Main | H118: Biofuels | I118: Asset finance investments | J118: 18.06657591 | K118: Deal details hidden for data protection purposes…
A119: 2010 | B119: 8 | C119: Q3 | D119: 2010Q3 | E119: Vietnam | F119: Vietnam | G119: Main | H119: Biofuels | I119: Asset finance investments | J119: 93.86139219 | K119: Deal details hidden for data protection purposes…
A120: 2010 | B120: 5 | C120: Q2 | D120: 2010Q2 | E120: Argentina | F120: Argentina | G120: Main | H120: Biofuels | I120: Asset finance investments | J120: 4.962300824 | K120: Deal details hidden for data protection purposes…
A121: 2010 | B121: 1 | C121: Q1 | D121: 2010Q1 | E121: China :: Other | F121: China | G121: Other | H121: Biofuels | I121: Asset finance investments | J121: 225.7783527 | K121: Deal details hidden for data protection purposes…
A122: 2010 | B122: 8 | C122: Q3 | D122: 2010Q3 | E122: Argentina | F122: Argentina | G122: Main | H122: Biofuels | I122: Asset finance investments | J122: 107.3852457 | K122: Deal details hidden for data protection purposes…
A123: 2010 | B123: 8 | C123: Q3 | D123: 2010Q3 | E123: Kenya | F123: Kenya | G123: Main | H123: Biofuels | I123: Asset finance investments | J123: 47.16941444 | K123: Deal details hidden for data protection purposes…
A124: 2010 | B124: 10 | C124: Q4 | D124: 2010Q4 | E124: Brazil | F124: Brazil | G124: Main | H124: Biofuels | I124: Asset finance investments | J124: 80.46845901 | K124: Deal details hidden for data protection purposes…
A125: 2010 | B125: 2 | C125: Q1 | D125: 2010Q1 | E125: Brazil | F125: Brazil | G125: Main | H125: Biofuels | I125: Asset finance investments | J125: 74.01588422 | K125: Deal details hidden for data protection purposes…
A126: 2010 | B126: 1 | C126: Q1 | D126: 2010Q1 | E126: Brazil | F126: Brazil | G126: Main | H126: Biofuels | I126: Asset finance investments | J126: 53.74361838 | K126: Deal details hidden for data protection purposes…
A127: 2010 | B127: 6 | C127: Q2 | D127: 2010Q2 | E127: Brazil | F127: Brazil | G127: Main | H127: Biofuels | I127: Asset finance investments | J127: 1005.837261 | K127: Deal details hidden for data protection purposes…
A128: 2010 | B128: 3 | C128: Q1 | D128: 2010Q1 | E128: Brazil | F128: Brazil | G128: Main | H128: Biofuels | I128: Asset finance investments | J128: 89.6638136 | K128: Deal details hidden for data protection purposes…
A129: 2010 | B129: 4 | C129: Q2 | D129: 2010Q2 | E129: Brazil | F129: Brazil | G129: Main | H129: Biofuels | I129: Asset finance investments | J129: 23.10616193 | K129: Deal details hidden for data protection purposes…
A130: 2010 | B130: 11 | C130: Q4 | D130: 2010Q4 | E130: Argentina | F130: Argentina | G130: Main | H130: Biofuels | I130: Asset finance investments | J130: 5.789495256 | K130: Deal details hidden for data protection purposes…
A131: 2010 | B131: 7 | C131: Q3 | D131: 2010Q3 | E131: Colombia | F131: Colombia | G131: Main | H131: Biofuels | I131: Asset finance investments | J131: 0.1478438345 | K131: Deal details hidden for data protection purposes…
A132: 2010 | B132: 8 | C132: Q3 | D132: 2010Q3 | E132: Argentina | F132: Argentina | G132: Main | H132: Biofuels | I132: Asset finance investments | J132: 21.98721589 | K132: Deal details hidden for data protection purposes…
A133: 2010 | B133: 2 | C133: Q1 | D133: 2010Q1 | E133: China :: Other | F133: China | G133: Other | H133: Biofuels | I133: Asset finance investments | J133: 14.43469961 | K133: Deal details hidden for data protection purposes…
A134: 2010 | B134: 8 | C134: Q3 | D134: 2010Q3 | E134: Brazil | F134: Brazil | G134: Main | H134: Biofuels | I134: Asset finance investments | J134: 10.55808686 | K134: Deal details hidden for data protection purposes…
A135: 2010 | B135: 7 | C135: Q3 | D135: 2010Q3 | E135: Brazil | F135: Brazil | G135: Main | H135: Biofuels | I135: Asset finance investments | J135: 21.11617372 | K135: Deal details hidden for data protection purposes…
A136: 2010 | B136: 3 | C136: Q1 | D136: 2010Q1 | E136: Brazil | F136: Brazil | G136: Main | H136: Biofuels | I136: Asset finance investments | J136: 19.43743791 | K136: Deal details hidden for data protection purposes…
A137: 2010 | B137: 11 | C137: Q4 | D137: 2010Q4 | E137: India :: Other | F137: India | G137: Other | H137: Biofuels | I137: Asset finance investments | J137: 71.65541274 | K137: Deal details hidden for data protection purposes…
A138: 2010 | B138: 11 | C138: Q4 | D138: 2010Q4 | E138: India :: Other | F138: India | G138: Other | H138: Biofuels | I138: Asset finance investments | J138: 71.65541274 | K138: Deal details hidden for data protection purposes…
A139: 2010 | B139: 12 | C139: Q4 | D139: 2010Q4 | E139: Mexico | F139: Mexico | G139: Main | H139: Biofuels | I139: Asset finance investments | J139: 19.8492033 | K139: Deal details hidden for data protection purposes…
A140: 2010 | B140: 7 | C140: Q3 | D140: 2010Q3 | E140: Brazil | F140: Brazil | G140: Main | H140: Biofuels | I140: Asset finance investments | J140: 36.32509784 | K140: Deal details hidden for data protection purposes…
A141: 2010 | B141: 10 | C141: Q4 | D141: 2010Q4 | E141: Argentina | F141: Argentina | G141: Main | H141: Biofuels | I141: Asset finance investments | J141: 26.40725337 | K141: Deal details hidden for data protection purposes…
A142: 2010 | B142: 10 | C142: Q4 | D142: 2010Q4 | E142: Brazil | F142: Brazil | G142: Main | H142: Biofuels | I142: Asset finance investments | J142: 15.83713029 | K142: Deal details hidden for data protection purposes…
A143: 2010 | B143: 12 | C143: Q4 | D143: 2010Q4 | E143: Brazil | F143: Brazil | G143: Main | H143: Biofuels | I143: Asset finance investments | J143: 78.80587707 | K143: Deal details hidden for data protection purposes…
A144: 2010 | B144: 1 | C144: Q1 | D144: 2010Q1 | E144: Brazil | F144: Brazil | G144: Main | H144: Biofuels | I144: Asset finance investments | J144: 26.60637889 | K144: Deal details hidden for data protection purposes…
A145: 2010 | B145: 1 | C145: Q1 | D145: 2010Q1 | E145: Brazil | F145: Brazil | G145: Main | H145: Biofuels | I145: Asset finance investments | J145: 7.246458452 | K145: Deal details hidden for data protection purposes…
A146: 2010 | B146: 12 | C146: Q4 | D146: 2010Q4 | E146: Brazil | F146: Brazil | G146: Main | H146: Biofuels | I146: Asset finance investments | J146: 11.4132919 | K146: Deal details hidden for data protection purposes…
A147: 2010 | B147: 2 | C147: Q1 | D147: 2010Q1 | E147: Peru | F147: Peru | G147: Main | H147: Biofuels | I147: Asset finance investments | J147: 295.6264321 | K147: Deal details hidden for data protection purposes…
A148: 2010 | B148: 2 | C148: Q1 | D148: 2010Q1 | E148: Brazil | F148: Brazil | G148: Main | H148: Biofuels | I148: VC/PE investments | J148: 50.67881693 | K148: Deal details hidden for data protection purposes…
A149: 2009 | B149: 4 | C149: Q2 | D149: 2009Q2 | E149: Brazil | F149: Brazil | G149: Main | H149: Biofuels | I149: Asset finance investments | J149: 89.856 | K149: Deal details hidden for data protection purposes…
A150: 2009 | B150: 5 | C150: Q2 | D150: 2009Q2 | E150: Brazil | F150: Brazil | G150: Main | H150: Biofuels | I150: Asset finance investments | J150: 17.9712 | K150: Deal details hidden for data protection purposes…
A151: 2009 | B151: 7 | C151: Q3 | D151: 2009Q3 | E151: Brazil | F151: Brazil | G151: Main | H151: Biofuels | I151: Asset finance investments | J151: 112.32 | K151: Deal details hidden for data protection purposes…
A152: 2009 | B152: 12 | C152: Q4 | D152: 2009Q4 | E152: Vietnam | F152: Vietnam | G152: Main | H152: Biofuels | I152: Asset finance investments | J152: 13 | K152: Deal details hidden for data protection purposes…
A153: 2009 | B153: 11 | C153: Q4 | D153: 2009Q4 | E153: Brazil | F153: Brazil | G153: Main | H153: Biofuels | I153: Asset finance investments | J153: 319.20304 | K153: Deal details hidden for data protection purposes…
A154: 2009 | B154: 3 | C154: Q1 | D154: 2009Q1 | E154: China :: Other | F154: China | G154: Other | H154: Biofuels | I154: Asset finance investments | J154: 33.459088 | K154: Deal details hidden for data protection purposes…
A155: 2009 | B155: 1 | C155: Q1 | D155: 2009Q1 | E155: Brazil | F155: Brazil | G155: Main | H155: Biofuels | I155: Asset finance investments | J155: 292.38352 | K155: Deal details hidden for data protection purposes…
A156: 2009 | B156: 4 | C156: Q2 | D156: 2009Q2 | E156: Brazil | F156: Brazil | G156: Main | H156: Biofuels | I156: Asset finance investments | J156: 520.2392 | K156: Deal details hidden for data protection purposes…
A157: 2009 | B157: 9 | C157: Q3 | D157: 2009Q3 | E157: Argentina | F157: Argentina | G157: Main | H157: Biofuels | I157: Asset finance investments | J157: 5.09808 | K157: Deal details hidden for data protection purposes…
A158: 2009 | B158: 3 | C158: Q1 | D158: 2009Q1 | E158: Argentina | F158: Argentina | G158: Main | H158: Biofuels | I158: Asset finance investments | J158: 18.777824 | K158: Deal details hidden for data protection purposes…
A159: 2009 | B159: 2 | C159: Q1 | D159: 2009Q1 | E159: Peru | F159: Peru | G159: Main | H159: Biofuels | I159: Asset finance investments | J159: 178.36312 | K159: Deal details hidden for data protection purposes…
A160: 2009 | B160: 3 | C160: Q1 | D160: 2009Q1 | E160: Indonesia | F160: Indonesia | G160: Main | H160: Biofuels | I160: Asset finance investments | J160: 103.715456 | K160: Deal details hidden for data protection purposes…
A161: 2009 | B161: 4 | C161: Q2 | D161: 2009Q2 | E161: Brazil | F161: Brazil | G161: Main | H161: Biofuels | I161: Asset finance investments | J161: 155.48 | K161: Deal details hidden for data protection purposes…
A162: 2009 | B162: 1 | C162: Q1 | D162: 2009Q1 | E162: Brazil | F162: Brazil | G162: Main | H162: Biofuels | I162: Asset finance investments | J162: 19.40016 | K162: Deal details hidden for data protection purposes…
A163: 2009 | B163: 2 | C163: Q1 | D163: 2009Q1 | E163: Brazil | F163: Brazil | G163: Main | H163: Biofuels | I163: Asset finance investments | J163: 29.022136 | K163: Deal details hidden for data protection purposes…
A164: 2009 | B164: 2 | C164: Q1 | D164: 2009Q1 | E164: Brazil | F164: Brazil | G164: Main | H164: Biofuels | I164: Asset finance investments | J164: 12.802192 | K164: Deal details hidden for data protection purposes…
A165: 2009 | B165: 6 | C165: Q2 | D165: 2009Q2 | E165: Vietnam | F165: Vietnam | G165: Main | H165: Biofuels | I165: Asset finance investments | J165: 83.2 | K165: Deal details hidden for data protection purposes…
A166: 2009 | B166: 6 | C166: Q2 | D166: 2009Q2 | E166: Brazil | F166: Brazil | G166: Main | H166: Biofuels | I166: Asset finance investments | J166: 519.974 | K166: Deal details hidden for data protection purposes…
A167: 2009 | B167: 5 | C167: Q2 | D167: 2009Q2 | E167: Brazil | F167: Brazil | G167: Main | H167: Biofuels | I167: Asset finance investments | J167: 0.35677512 | K167: Deal details hidden for data protection purposes…
A168: 2009 | B168: 7 | C168: Q3 | D168: 2009Q3 | E168: Brazil | F168: Brazil | G168: Main | H168: Biofuels | I168: Asset finance investments | J168: 88.92 | K168: Deal details hidden for data protection purposes…
A169: 2009 | B169: 8 | C169: Q3 | D169: 2009Q3 | E169: Brazil | F169: Brazil | G169: Main | H169: Biofuels | I169: Asset finance investments | J169: 22.505912 | K169: Deal details hidden for data protection purposes…
A170: 2009 | B170: 8 | C170: Q3 | D170: 2009Q3 | E170: Vietnam | F170: Vietnam | G170: Main | H170: Biofuels | I170: Asset finance investments | J170: 62.4 | K170: Deal details hidden for data protection purposes…
A171: 2009 | B171: 12 | C171: Q4 | D171: 2009Q4 | E171: Brazil | F171: Brazil | G171: Main | H171: Biofuels | I171: Asset finance investments | J171: 3.744 | K171: Deal details hidden for data protection purposes…
A172: 2009 | B172: 5 | C172: Q2 | D172: 2009Q2 | E172: Brazil | F172: Brazil | G172: Main | H172: Biofuels | I172: Asset finance investments | J172: 14.14816 | K172: Deal details hidden for data protection purposes…
A173: 2009 | B173: 4 | C173: Q2 | D173: 2009Q2 | E173: Uruguay | F173: Uruguay | G173: Main | H173: Biofuels | I173: Asset finance investments | J173: 7.28 | K173: Deal details hidden for data protection purposes…
A174: 2009 | B174: 3 | C174: Q1 | D174: 2009Q1 | E174: Brazil | F174: Brazil | G174: Main | H174: Biofuels | I174: Asset finance investments | J174: 134.32016 | K174: Deal details hidden for data protection purposes…
A175: 2009 | B175: 12 | C175: Q4 | D175: 2009Q4 | E175: Brazil | F175: Brazil | G175: Main | H175: Biofuels | I175: Asset finance investments | J175: 1.196 | K175: Deal details hidden for data protection purposes…
A176: 2009 | B176: 12 | C176: Q4 | D176: 2009Q4 | E176: Brazil | F176: Brazil | G176: Main | H176: Biofuels | I176: Asset finance investments | J176: 59.017088 | K176: Deal details hidden for data protection purposes…
A177: 2009 | B177: 12 | C177: Q4 | D177: 2009Q4 | E177: Brazil | F177: Brazil | G177: Main | H177: Biofuels | I177: Asset finance investments | J177: 238.42936 | K177: Deal details hidden for data protection purposes…
A178: 2009 | B178: 11 | C178: Q4 | D178: 2009Q4 | E178: China :: Other | F178: China | G178: Other | H178: Biofuels | I178: Asset finance investments | J178: 20.072 | K178: Deal details hidden for data protection purposes…
A179: 2009 | B179: 1 | C179: Q1 | D179: 2009Q1 | E179: Brazil | F179: Brazil | G179: Main | H179: Biofuels | I179: Asset finance investments | J179: 29.100344 | K179: Deal details hidden for data protection purposes…
A180: 2009 | B180: 8 | C180: Q3 | D180: 2009Q3 | E180: Brazil | F180: Brazil | G180: Main | H180: Biofuels | I180: Asset finance investments | J180: 18.2 | K180: Deal details hidden for data protection purposes…
A181: 2009 | B181: 1 | C181: Q1 | D181: 2009Q1 | E181: Brazil | F181: Brazil | G181: Main | H181: Biofuels | I181: Asset finance investments | J181: 35.568 | K181: Deal details hidden for data protection purposes…
A182: 2009 | B182: 12 | C182: Q4 | D182: 2009Q4 | E182: Brazil | F182: Brazil | G182: Main | H182: Biofuels | I182: Asset finance investments | J182: 5.961592 | K182: Deal details hidden for data protection purposes…
A183: 2009 | B183: 6 | C183: Q2 | D183: 2009Q2 | E183: Brazil | F183: Brazil | G183: Main | H183: Biofuels | I183: Asset finance investments | J183: 38.84816 | K183: Deal details hidden for data protection purposes…
A184: 2009 | B184: 12 | C184: Q4 | D184: 2009Q4 | E184: Argentina | F184: Argentina | G184: Main | H184: Biofuels | I184: Asset finance investments | J184: 3.2614608 | K184: Deal details hidden for data protection purposes…
A185: 2009 | B185: 9 | C185: Q3 | D185: 2009Q3 | E185: Brazil | F185: Brazil | G185: Main | H185: Biofuels | I185: Asset finance investments | J185: 26 | K185: Deal details hidden for data protection purposes…
A186: 2009 | B186: 6 | C186: Q2 | D186: 2009Q2 | E186: Brazil | F186: Brazil | G186: Main | H186: Biofuels | I186: Asset finance investments | J186: 42.627312 | K186: Deal details hidden for data protection purposes…
A187: 2009 | B187: 11 | C187: Q4 | D187: 2009Q4 | E187: Brazil | F187: Brazil | G187: Main | H187: Biofuels | I187: Asset finance investments | J187: 14.664 | K187: Deal details hidden for data protection purposes…
A188: 2009 | B188: 11 | C188: Q4 | D188: 2009Q4 | E188: Brazil | F188: Brazil | G188: Main | H188: Biofuels | I188: Asset finance investments | J188: 124.8 | K188: Deal details hidden for data protection purposes…
A189: 2009 | B189: 8 | C189: Q3 | D189: 2009Q3 | E189: Brazil | F189: Brazil | G189: Main | H189: Biofuels | I189: Asset finance investments | J189: 99.553272 | K189: Deal details hidden for data protection purposes…
A190: 2009 | B190: 8 | C190: Q3 | D190: 2009Q3 | E190: Brazil | F190: Brazil | G190: Main | H190: Biofuels | I190: Asset finance investments | J190: 86.279544 | K190: Deal details hidden for data protection purposes…
A191: 2009 | B191: 9 | C191: Q3 | D191: 2009Q3 | E191: Brazil | F191: Brazil | G191: Main | H191: Biofuels | I191: Asset finance investments | J191: 10.90752 | K191: Deal details hidden for data protection purposes…
A192: 2009 | B192: 9 | C192: Q3 | D192: 2009Q3 | E192: Brazil | F192: Brazil | G192: Main | H192: Biofuels | I192: Asset finance investments | J192: 156 | K192: Deal details hidden for data protection purposes…
A193: 2009 | B193: 7 | C193: Q3 | D193: 2009Q3 | E193: Brazil | F193: Brazil | G193: Main | H193: Biofuels | I193: Asset finance investments | J193: 8.53632 | K193: Deal details hidden for data protection purposes…
A194: 2009 | B194: 12 | C194: Q4 | D194: 2009Q4 | E194: Brazil | F194: Brazil | G194: Main | H194: Biofuels | I194: Asset finance investments | J194: 30.0352 | K194: Deal details hidden for data protection purposes…
A195: 2009 | B195: 12 | C195: Q4 | D195: 2009Q4 | E195: Brazil | F195: Brazil | G195: Main | H195: Biofuels | I195: Asset finance investments | J195: 85.3632 | K195: Deal details hidden for data protection purposes…
A196: 2009 | B196: 5 | C196: Q2 | D196: 2009Q2 | E196: Brazil | F196: Brazil | G196: Main | H196: Biofuels | I196: Asset finance investments | J196: 7.07408 | K196: Deal details hidden for data protection purposes…
A197: 2009 | B197: 9 | C197: Q3 | D197: 2009Q3 | E197: Brazil | F197: Brazil | G197: Main | H197: Biofuels | I197: Asset finance investments | J197: 12.09312 | K197: Deal details hidden for data protection purposes…
A198: 2009 | B198: 12 | C198: Q4 | D198: 2009Q4 | E198: Guatemala | F198: Guatemala | G198: Main | H198: Biofuels | I198: Asset finance investments | J198: 41.6 | K198: Deal details hidden for data protection purposes…
A199: 2009 | B199: 6 | C199: Q2 | D199: 2009Q2 | E199: Guatemala | F199: Guatemala | G199: Main | H199: Biofuels | I199: Asset finance investments | J199: 23.92 | K199: Deal details hidden for data protection purposes…
A200: 2009 | B200: 1 | C200: Q1 | D200: 2009Q1 | E200: Brazil | F200: Brazil | G200: Main | H200: Biofuels | I200: Asset finance investments | J200: 7.1136 | K200: Deal details hidden for data protection purposes…
A201: 2009 | B201: 11 | C201: Q4 | D201: 2009Q4 | E201: Brazil | F201: Brazil | G201: Main | H201: Biofuels | I201: Asset finance investments | J201: 91.137488 | K201: Deal details hidden for data protection purposes…
... 3942 more rows

Sheet ChartData (hidden)
A1: CHART DATA
A3: Workbook Status | B3: WBLocked
A4: Weight Scenario (Dashboard) | B4: =str_WeightScenario -> Defaults
A5: Years to Show on Country tab Charts | B5: =SUM(B17:K17) -> 8
A7: Capacity, Generation & Investment Chart Data | L7: Year
A8: Capacity (MW) | B8: 2006 | C8: 2007 | D8: 2008 | E8: 2009 | F8: 2010 | G8: 2011 | H8: 2012 | I8: 2013 | J8: 2014 | K8: 2015 | L8: =int_Year -> 2013
A9: Biomass & Waste | B9: =B$17*SUMIFS(SubIndicator!L$3925:L$4964, SubIndicator!$K$3925:$K$4964, str_Country, SubIndicator!$E$3925:$E$4964, $A9) -> 2700 | C9: =C$17*SUMIFS(SubIndicator!M$3925:M$4964, SubIndicator!$K$3925:$K$4964, str_Country, SubIndicator!$E$3925:$E$4964, $A9) -> 3400 | D9: =D$17*SUMIFS(SubIndicator!N$3925:N$4964, SubIndicator!$K$3925:$K$4964, str_Country, SubIndicator!$E$3925:$E$4964, $A9) -> 3150 | E9: =E$17*SUMIFS(SubIndicator!O$3925:O$4964, SubIndicator!$K$3925:$K$4964, str_Country, SubIndicator!$E$3925:$E$4964, $A9) -> 4300 | F9: =F$17*SUMIFS(SubIndicator!P$3925:P$4964, SubIndicator!$K$3925:$K$4964, str_Country, SubIndicator!$E$3925:$E$4964, $A9) -> 5500 | G9: =G$17*SUMIFS(SubIndicator!Q$3925:Q$4964, SubIndicator!$K$3925:$K$4964, str_Country, SubIndicator!$E$3925:$E$4964, $A9) -> 6800 | H9: =H$17*SUMIFS(SubIndicator!R$3925:R$4964, SubIndicator!$K$3925:$K$4964, str_Country, SubIndicator!$E$3925:$E$4964, $A9) -> 7300 | I9: =I$17*SUMIFS(SubIndicator!S$3925:S$4964, SubIndicator!$K$3925:$K$4964, str_Country, SubIndicator!$E$3925:$E$4964, $A9) -> 8768 | J9: =J$17*SUMIFS(SubIndicator!T$3925:T$4964, SubIndicator!$K$3925:$K$4964, str_Country, SubIndicator!$E$3925:$E$4964, $A9) -> 0 | K9: =K$17*SUMIFS(SubIndicator!U$3925:U$4964, SubIndicator!$K$3925:$K$4964, str_Country, SubIndicator!$E$3925:$E$4964, $A9) -> 0 | L9: =L$17*SUMIFS(SubIndicator!V$3925:V$4964, SubIndicator!$K$3925:$K$4964, str_Country, SubIndicator!$E$3925:$E$4964, $A9) -> 8768
A10: Geothermal | B10: =B$17*SUMIFS(SubIndicator!L$3925:L$4964, SubIndicator!$K$3925:$K$4964, str_Country, SubIndicator!$E$3925:$E$4964, $A10) -> 28.1 | C10: =C$17*SUMIFS(SubIndicator!M$3925:M$4964, SubIndicator!$K$3925:$K$4964, str_Country, SubIndicator!$E$3925:$E$4964, $A10) -> 28.1 | D10: =D$17*SUMIFS(SubIndicator!N$3925:N$4964, SubIndicator!$K$3925:$K$4964, str_Country, SubIndicator!$E$3925:$E$4964, $A10) -> 28.1 | E10: =E$17*SUMIFS(SubIndicator!O$3925:O$4964, SubIndicator!$K$3925:$K$4964, str_Country, SubIndicator!$E$3925:$E$4964, $A10) -> 28.1 | F10: =F$17*SUMIFS(SubIndicator!P$3925:P$4964, SubIndicator!$K$3925:$K$4964, str_Country, SubIndicator!$E$3925:$E$4964, $A10) -> 28.1 | G10: =G$17*SUMIFS(SubIndicator!Q$3925:Q$4964, SubIndicator!$K$3925:$K$4964, str_Country, SubIndicator!$E$3925:$E$4964, $A10) -> 28.1 | H10: =H$17*SUMIFS(SubIndicator!R$3925:R$4964, SubIndicator!$K$3925:$K$4964, str_Country, SubIndicator!$E$3925:$E$4964, $A10) -> 28.1 | I10: =I$17*SUMIFS(SubIndicator!S$3925:S$4964, SubIndicator!$K$3925:$K$4964, str_Country, SubIndicator!$E$3925:$E$4964, $A10) -> 28 | J10: =J$17*SUMIFS(SubIndicator!T$3925:T$4964, SubIndicator!$K$3925:$K$4964, str_Country, SubIndicator!$E$3925:$E$4964, $A10) -> 0 | K10: =K$17*SUMIFS(SubIndicator!U$3925:U$4964, SubIndicator!$K$3925:$K$4964, str_Country, SubIndicator!$E$3925:$E$4964, $A10) -> 0 | L10: =L$17*SUMIFS(SubIndicator!V$3925:V$4964, SubIndicator!$K$3925:$K$4964, str_Country, SubIndicator!$E$3925:$E$4964, $A10) -> 28
A11: Other | B11: =B$17*SUMIFS(SubIndicator!L$3925:L$4964, SubIndicator!$K$3925:$K$4964, str_Country, SubIndicator!$E$3925:$E$4964, $A11) -> 0 | C11: =C$17*SUMIFS(SubIndicator!M$3925:M$4964, SubIndicator!$K$3925:$K$4964, str_Country, SubIndicator!$E$3925:$E$4964, $A11) -> 0 | D11: =D$17*SUMIFS(SubIndicator!N$3925:N$4964, SubIndicator!$K$3925:$K$4964, str_Country, SubIndicator!$E$3925:$E$4964, $A11) -> 0 | E11: =E$17*SUMIFS(SubIndicator!O$3925:O$4964, SubIndicator!$K$3925:$K$4964, str_Country, SubIndicator!$E$3925:$E$4964, $A11) -> 0 | F11: =F$17*SUMIFS(SubIndicator!P$3925:P$4964, SubIndicator!$K$3925:$K$4964, str_Country, SubIndicator!$E$3925:$E$4964, $A11) -> 0 | G11: =G$17*SUMIFS(SubIndicator!Q$3925:Q$4964, SubIndicator!$K$3925:$K$4964, str_Country, SubIndicator!$E$3925:$E$4964, $A11) -> 0 | H11: =H$17*SUMIFS(SubIndicator!R$3925:R$4964, SubIndicator!$K$3925:$K$4964, str_Country, SubIndicator!$E$3925:$E$4964, $A11) -> 0 | I11: =I$17*SUMIFS(SubIndicator!S$3925:S$4964, SubIndicator!$K$3925:$K$4964, str_Country, SubIndicator!$E$3925:$E$4964, $A11) -> 0 | J11: =J$17*SUMIFS(SubIndicator!T$3925:T$4964, SubIndicator!$K$3925:$K$4964, str_Country, SubIndicator!$E$3925:$E$4964, $A11) -> 0 | K11: =K$17*SUMIFS(SubIndicator!U$3925:U$4964, SubIndicator!$K$3925:$K$4964, str_Country, SubIndicator!$E$3925:$E$4964, $A11) -> 0 | L11: =L$17*SUMIFS(SubIndicator!V$3925:V$4964, SubIndicator!$K$3925:$K$4964, str_Country, SubIndicator!$E$3925:$E$4964, $A11) -> 0
A12: Small Hydro | B12: =B$17*SUMIFS(SubIndicator!L$3925:L$4964, SubIndicator!$K$3925:$K$4964, str_Country, SubIndicator!$E$3925:$E$4964, $A12) -> 43183.551 | C12: =C$17*SUMIFS(SubIndicator!M$3925:M$4964, SubIndicator!$K$3925:$K$4964, str_Country, SubIndicator!$E$3925:$E$4964, $A12) -> 47388.997 | D12: =D$17*SUMIFS(SubIndicator!N$3925:N$4964, SubIndicator!$K$3925:$K$4964, str_Country, SubIndicator!$E$3925:$E$4964, $A12) -> 51274.371 | E12: =E$17*SUMIFS(SubIndicator!O$3925:O$4964, SubIndicator!$K$3925:$K$4964, str_Country, SubIndicator!$E$3925:$E$4964, $A12) -> 55121.211 | F12: =F$17*SUMIFS(SubIndicator!P$3925:P$4964, SubIndicator!$K$3925:$K$4964, str_Country, SubIndicator!$E$3925:$E$4964, $A12) -> 59240.191 | G12: =G$17*SUMIFS(SubIndicator!Q$3925:Q$4964, SubIndicator!$K$3925:$K$4964, str_Country, SubIndicator!$E$3925:$E$4964, $A12) -> 62123.43 | H12: =H$17*SUMIFS(SubIndicator!R$3925:R$4964, SubIndicator!$K$3925:$K$4964, str_Country, SubIndicator!$E$3925:$E$4964, $A12) -> 65686.071 | I12: =I$17*SUMIFS(SubIndicator!S$3925:S$4964, SubIndicator!$K$3925:$K$4964, str_Country, SubIndicator!$E$3925:$E$4964, $A12) -> 68000 | J12: =J$17*SUMIFS(SubIndicator!T$3925:T$4964, SubIndicator!$K$3925:$K$4964, str_Country, SubIndicator!$E$3925:$E$4964, $A12) -> 0 | K12: =K$17*SUMIFS(SubIndicator!U$3925:U$4964, SubIndicator!$K$3925:$K$4964, str_Country, SubIndicator!$E$3925:$E$4964, $A12) -> 0 | L12: =L$17*SUMIFS(SubIndicator!V$3925:V$4964, SubIndicator!$K$3925:$K$4964, str_Country, SubIndicator!$E$3925:$E$4964, $A12) -> 68000
A13: Solar | B13: =B$17*SUMIFS(SubIndicator!L$3925:L$4964, SubIndicator!$K$3925:$K$4964, str_Country, SubIndicator!$E$3925:$E$4964, $A13) -> 0 | C13: =C$17*SUMIFS(SubIndicator!M$3925:M$4964, SubIndicator!$K$3925:$K$4964, str_Country, SubIndicator!$E$3925:$E$4964, $A13) -> 0 | D13: =D$17*SUMIFS(SubIndicator!N$3925:N$4964, SubIndicator!$K$3925:$K$4964, str_Country, SubIndicator!$E$3925:$E$4964, $A13) -> 0 | E13: =E$17*SUMIFS(SubIndicator!O$3925:O$4964, SubIndicator!$K$3925:$K$4964, str_Country, SubIndicator!$E$3925:$E$4964, $A13) -> 25 | F13: =F$17*SUMIFS(SubIndicator!P$3925:P$4964, SubIndicator!$K$3925:$K$4964, str_Country, SubIndicator!$E$3925:$E$4964, $A13) -> 256.2 | G13: =G$17*SUMIFS(SubIndicator!Q$3925:Q$4964, SubIndicator!$K$3925:$K$4964, str_Country, SubIndicator!$E$3925:$E$4964, $A13) -> 2140 | H13: =H$17*SUMIFS(SubIndicator!R$3925:R$4964, SubIndicator!$K$3925:$K$4964, str_Country, SubIndicator!$E$3925:$E$4964, $A13) -> 3280 | I13: =I$17*SUMIFS(SubIndicator!S$3925:S$4964, SubIndicator!$K$3925:$K$4964, str_Country, SubIndicator!$E$3925:$E$4964, $A13) -> 13655 | J13: =J$17*SUMIFS(SubIndicator!T$3925:T$4964, SubIndicator!$K$3925:$K$4964, str_Country, SubIndicator!$E$3925:$E$4964, $A13) -> 0 | K13: =K$17*SUMIFS(SubIndicator!U$3925:U$4964, SubIndicator!$K$3925:$K$4964, str_Country, SubIndicator!$E$3925:$E$4964, $A13) -> 0 | L13: =L$17*SUMIFS(SubIndicator!V$3925:V$4964, SubIndicator!$K$3925:$K$4964, str_Country, SubIndicator!$E$3925:$E$4964, $A13) -> 13655
A14: Wind | B14: =B$17*SUMIFS(SubIndicator!L$3925:L$4964, SubIndicator!$K$3925:$K$4964, str_Country, SubIndicator!$E$3925:$E$4964, $A14) -> 1870 | C14: =C$17*SUMIFS(SubIndicator!M$3925:M$4964, SubIndicator!$K$3925:$K$4964, str_Country, SubIndicator!$E$3925:$E$4964, $A14) -> 4200 | D14: =D$17*SUMIFS(SubIndicator!N$3925:N$4964, SubIndicator!$K$3925:$K$4964, str_Country, SubIndicator!$E$3925:$E$4964, $A14) -> 8390 | E14: =E$17*SUMIFS(SubIndicator!O$3925:O$4964, SubIndicator!$K$3925:$K$4964, str_Country, SubIndicator!$E$3925:$E$4964, $A14) -> 17599 | F14: =F$17*SUMIFS(SubIndicator!P$3925:P$4964, SubIndicator!$K$3925:$K$4964, str_Country, SubIndicator!$E$3925:$E$4964, $A14) -> 29575 | G14: =G$17*SUMIFS(SubIndicator!Q$3925:Q$4964, SubIndicator!$K$3925:$K$4964, str_Country, SubIndicator!$E$3925:$E$4964, $A14) -> 46230 | H14: =H$17*SUMIFS(SubIndicator!R$3925:R$4964, SubIndicator!$K$3925:$K$4964, str_Country, SubIndicator!$E$3925:$E$4964, $A14) -> 60830 | I14: =I$17*SUMIFS(SubIndicator!S$3925:S$4964, SubIndicator!$K$3925:$K$4964, str_Country, SubIndicator!$E$3925:$E$4964, $A14) -> 75930 | J14: =J$17*SUMIFS(SubIndicator!T$3925:T$4964, SubIndicator!$K$3925:$K$4964, str_Country, SubIndicator!$E$3925:$E$4964, $A14) -> 0 | K14: =K$17*SUMIFS(SubIndicator!U$3925:U$4964, SubIndicator!$K$3925:$K$4964, str_Country, SubIndicator!$E$3925:$E$4964, $A14) -> 0 | L14: =L$17*SUMIFS(SubIndicator!V$3925:V$4964, SubIndicator!$K$3925:$K$4964, str_Country, SubIndicator!$E$3925:$E$4964, $A14) -> 75930
A15: Other Energy | B15: =B$17*(B16-SUM(B9:B14)) -> 610150.835 | C15: =C$17*(C16-SUM(C9:C14)) -> 695520.7766 | D15: 746438.4946 | E15: 785471.677 | F15: 854883.49 | G15: 922528.47 | H15: =H$17*(H16-SUM(H9:H14)) -> 985684.305 | I15: =I$17*(I16-SUM(I9:I14)) -> 1058905 | J15: =J$17*(J16-SUM(J9:J14)) -> 0 | K15: =K$17*(K16-SUM(K9:K14)) -> 0 | L15: =L$17*(L16-SUM(L9:L14)) -> 1058905
A16: All Energy | B16: =SUMIFS(SubIndicator!L$3925:L$4964, SubIndicator!$K$3925:$K$4964, str_Country, SubIndicator!$E$3925:$E$4964, $A16) -> 657932.486 | C16: =SUMIFS(SubIndicator!M$3925:M$4964, SubIndicator!$K$3925:$K$4964, str_Country, SubIndicator!$E$3925:$E$4964, $A16) -> 750537.8736 | D16: =SUMIFS(SubIndicator!N$3925:N$4964, SubIndicator!$K$3925:$K$4964, str_Country, SubIndicator!$E$3925:$E$4964, $A16) -> 809280.9656 | E16: =SUMIFS(SubIndicator!O$3925:O$4964, SubIndicator!$K$3925:$K$4964, str_Country, SubIndicator!$E$3925:$E$4964, $A16) -> 862544.988 | F16: =SUMIFS(SubIndicator!P$3925:P$4964, SubIndicator!$K$3925:$K$4964, str_Country, SubIndicator!$E$3925:$E$4964, $A16) -> 949482.981 | G16: =SUMIFS(SubIndicator!Q$3925:Q$4964, SubIndicator!$K$3925:$K$4964, str_Country, SubIndicator!$E$3925:$E$4964, $A16) -> 1039850 | H16: =SUMIFS(SubIndicator!R$3925:R$4964, SubIndicator!$K$3925:$K$4964, str_Country, SubIndicator!$E$3925:$E$4964, $A16) -> 1122808.476 | I16: =SUMIFS(SubIndicator!S$3925:S$4964, SubIndicator!$K$3925:$K$4964, str_Country, SubIndicator!$E$3925:$E$4964, $A16) -> 1225286 | J16: =SUMIFS(SubIndicator!T$3925:T$4964, SubIndicator!$K$3925:$K$4964, str_Country, SubIndicator!$E$3925:$E$4964, $A16) -> 0 | K16: =SUMIFS(SubIndicator!U$3925:U$4964, SubIndicator!$K$3925:$K$4964, str_Country, SubIndicator!$E$3925:$E$4964, $A16) -> 0 | L16: =SUMIFS(SubIndicator!V$3925:V$4964, SubIndicator!$K$3925:$K$4964, str_Country, SubIndicator!$E$3925:$E$4964, $A16) -> 1225286
A17: Show on chart? | B17: =IF(B8>int_Year, 0, 1) -> 1 | C17: 1 | D17: 1 | E17: 1 | F17: 1 | G17: 1 | H17: =IF(H8>int_Year, 0, 1) -> 1 | I17: =IF(I8>int_Year, 0, 1) -> 1 | J17: =IF(J8>int_Year, 0, 1) -> 0 | K17: =IF(K8>int_Year, 0, 1) -> 0 | L17: =IF(L8>int_Year, 0, 1) -> 1
A18: Generation (GWh) | B18: 2006 | C18: 2007 | D18: 2008 | E18: 2009 | F18: 2010 | G18: 2011 | H18: 2012 | I18: 2013 | J18: 2014 | K18: 2015 | L18: =int_Year -> 2013
